Workbook

Sheet CAPA
B1: SPARTA | C1: SCEE | R1: DF | S1: Sudeste/Centro Oeste
B2: Helenístico LX | C2: 0.93 | M2: =C23 -> 165 | N2: =C22 -> 1000040
C3: Macro Ver.
C4: 4.03
B6: ESS | L6: CodigoSamp | M6: Empresa | N6: Nome Completo | O6: IdSgtAg | P6: CodigoSamp | Q6: Supridora/suprida | R6: Financeiro 243 (TUSD) | S6: Databse Fin. 243 | T6: Contrato de Concessão | U6: Data Aditivo (Cont Novo) | V6: Cidade Sede | W6: CNPJ | X6: Novo/Antigo
B7: =VLOOKUP(B6,TabEmpresas[],2,FALSE) -> Energisa Sul-Sudeste - Distribuidora de Energia S.A. | C7: Reajuste | G7: Últ. Atualização | L7: 7019 | M7: Amazonas Energia | N7: Amazonas Energia S.A. | O7: 102 | P7: 7019 | Q7: NÃO SUPRIDA | T7: 1/2019 | U7: 42579 | V7: Manaus - AM | W7: 02.341.467/0001-20 | X7: N
B8: CÓDIGO DA EMPRESA | C8: ="D" & TEXT(C23-100,"00") -> D65 | F8: Info iniciais | G8: 2023-07-04T08:36:17 | L8: 31 | M8: CEA | N8: Companhia de Eletricidade do Amapá | O8: 107 | P8: 31 | Q8: NÃO SUPRIDA | T8: 01/2021 | U8: 42606 | V8: Macapá - AP | W8: 05.965.546/0001-09 | X8: N
B9: Data do Reajuste/Revisão Anterior | C9: 44754 | F9: Energia do ano anterior (CM compra, MWh Mercado, R$ Mercado) | L9: 5707 | M9: CEEE-D | N9: Companhia Estadual de Distribuição de Energia Elétrica | O9: 110 | P9: 5707 | Q9: NÃO SUPRIDA | T9: 81/1999 | U9: 42347 | V9: Porto Alegre - RS | W9: 08.467.115/0001-00 | X9: N
B10: Data de Reajuste/Revisão em Processamento | C10: 45119 | F10: Perda de RB /Perdas Regulatórias /TUSDgONS-RB | L10: 5697 | M10: Celesc-Dis | N10: Celesc Distribuição S.A. | O10: 111 | P10: 5697 | Q10: NÃO SUPRIDA | U10: 42347 | V10: Florianópolis - SC | W10: 08.336.783/0001-90 | X10: N
F11: Financeiros ano anterior (CVA 5º dia útil, RTE restante) | L11: 4950 | M11: Cemig-D | N11: Cemig Distribuição S.A. | O11: 118 | P11: 4950 | Q11: NÃO SUPRIDA | T11: 3/1997 | U11: 42359 | V11: Belo Horizonte - MG | W11: 06.981.180/0001-16 | X11: N
F12: Encargos ano anterior (não RTE) | L12: 103 | M12: CHESP | N12: Companhia Hidroelétrica São Patrício | O12: 123 | P12: 103 | Q12: SUPRIDA | T12: 44/1999 | U12: 42347 | V12: Ceres - GO | W12: 01.377.555/0001-10 | X12: N
F13: Dados da Revisão, Fator X e DecFec | L13: 82 | M13: Cocel | N13: Companhia Campolarguense de Energia | O13: 128 | P13: 82 | Q13: SUPRIDA | T13: 27/1998 | U13: 42347 | V13: Campo Largo - PR | W13: 75.805.895/0001-30 | X13: N
F14: Previsão de Subsidios dos Processos Anteriores | L14: 2904 | M14: Cooperaliança | N14: Cooperativa Aliança | O14: 131 | P14: 2904 | Q14: SUPRIDA | T14: 145/2002 | U14: 42347 | V14: Iraça - SC | W14: 83.647.990/0001-81 | X14: N
B15: Período de Referencia final | C15: =DATE(YEAR($C$10),MONTH($C$10)-1,1) -> 45078 | F15: Conexão ano anterior | L15: 2866 | M15: Copel-Dis | N15: Copel Distribuição S.A. | O15: 132 | P15: 2866 | Q15: NÃO SUPRIDA | T15: 46/1999 | U15: 42347 | V15: Curitiba - PR | W15: 04.368.898/0001-06 | X15: N
B16: Período de Referencia inicial | C16: =DATE(YEAR($C$10)-1,MONTH($C$10),1) -> 44743 | F16: Energia (CCEAR, Bil., Itaipu) | G16: 2023-06-30T17:50:35 | L16: 63 | M16: CPFL Paulista | N16: Companhia Paulista de Força e Luz | O16: 136 | P16: 63 | Q16: NÃO SUPRIDA | T16: 14/1997 | V16: Campinas - SP | W16: 33.050.196/0001-88 | X16: A
B17: Índice IGPM na data Revisão/Reajuste | C17: =VLOOKUP(C15,Índices!$B$7:$F$500,2,FALSE) -> 1128.837733 | F17: CCEAR | L17: 2937 | M17: CPFL Piratininga | N17: Companhia Piratininga de Força e Luz | O17: 135 | P17: 2937 | Q17: NÃO SUPRIDA | T17: 9/2002 | V17: Sorocaba - SP | W17: 04.172.213/0001-51 | X17: A
B18: Índice IPCA na data Revisão/Reajuste | C18: =VLOOKUP(C15,Índices!$B$7:$F$500,3,FALSE) -> 6685.095877 | L18: 1000041 | M18: CPFL Santa Cruz | N18: Companhia Jaguari de Energia | O18: 166 | P18: 1000041 | Q18: NÃO SUPRIDA | T18: 15/1999 | U18: 42347 | V18: Jaguariúna - SP | W18: 53.859.112/0001-69 | X18: N
B19: IGPM para o período de Referência | C19: =VLOOKUP(DATE(YEAR($C$10),MONTH($C$10)-1,1),Índices!$B$7:$F$500,2,FALSE)/VLOOKUP(DATE(YEAR($C$9),MONTH($C$9)-1,1),Índices!$B$7:$F$500,2,FALSE)-1 -> -0.05209942451 | F19: Itaipu (Energia, Transporte, MUST) | L19: 87 | M19: DCELT | N19: Distribuidora Catarinense de Energia Elétrica Ltda | O19: 158 | P19: 87 | Q19: NÃO SUPRIDA | T19: 50/1999 | U19: 42353 | V19: Xanxerê - SC | W19: 83.855.973/0001-30 | X19: N
B20: IPCA para o período de Referência | C20: =VLOOKUP(DATE(YEAR(C10),MONTH(C10)-1,1),Índices!$B$7:$F$500,3,FALSE)/VLOOKUP(DATE(YEAR($C$9),MONTH($C$9)-1,1),Índices!$B$7:$F$500,3,FALSE)-1 -> 0.03550978995 | F20: Cotas Lei/Angra | L20: 95 | M20: Demei | N20: Departamento Municipal de Energia de Ijuí | O20: 138 | P20: 95 | Q20: SUPRIDA | T20: 85/2000 | U20: 42347 | V20: Ijuí - RS | W20: 95.289.500/0001-00 | X20: N
B21: Dados Gerenciais | F21: Encargos DRP | G21: 2023-06-07T13:20:29 | L21: 51 | M21: DME-D | N21: DME Distribuição S.A. | O21: 139 | P21: 51 | Q21: NÃO SUPRIDA | T21: 49/1999 | U21: 42347 | V21: Poços de Caldas - MG | W21: 23.664.303/0001-04 | X21: N
B22: IdAgente | C22: =VLOOKUP(B6,TabEmpresas[],4,FALSE) -> 1000040 | F22: Indicadores Econômicos / Dólar | G22: 2023-06-28T13:24:10 | L22: 26 | M22: EAC | N22: Energisa Acre - Distribuidora de Energia S.A | O22: 146 | P22: 26 | Q22: NÃO SUPRIDA | T22: 3/2018 | U22: 42579 | V22: Rio Branco - AC | W22: 04.065.033/0001-70 | X22: N
B23: ID Concessão | C23: =VLOOKUP(B6,TabEmpresas[],3,FALSE) -> 165 | F23: Tudo de Mercado | G23: 2023-06-30T11:39:37 | L23: 6611 | M23: EBO | N23: Energisa Borborema - Distribuidora de Energia S.A | O23: 140 | P23: 6611 | Q23: NÃO SUPRIDA | T23: 8/2000 | V23: Campina Grande - PB | W23: 08.826.596/0001-95 | X23: A
F24: Rede Básica e Conexão | G24: 2023-07-04T08:31:55 | L24: 380 | M24: EDP ES | N24: EDP Espírito Santo Distribuição de Energia S.A. | O24: 154 | P24: 380 | Q24: NÃO SUPRIDA | T24: 1/1995 | V24: Vitória - ES | W24: 28.152.650/0001-71 | X24: A
B25: Quadro para vínculos | F25: Histórico de Tarifas B1 Residencial | L25: 391 | M25: EDP SP | N25: EDP São Paulo Distribuição de Energia S.A. | O25: 104 | P25: 391 | Q25: NÃO SUPRIDA | T25: 202/1998 | V25: São Paulo - SP | W25: 02.302.100/0001-06 | X25: A
B26: Descrição | C26: valor | F26: CVA | G26: 2023-06-28T13:12:51 | L26: 86 | M26: EFLUL | N26: Empresa Força e Luz de Urussanga Ltda | O26: 144 | P26: 86 | Q26: SUPRIDA | T26: 25/1999 | U26: 42347 | V26: Urussanga - SC | W26: 86.531.175/0001-40 | X26: N
B27: Tipo de contrato | C27: =IF(VLOOKUP(B6,TabEmpresas[],12,FALSE)="A", "Antigo","Novo") -> Novo | F27: CUSD | G27: 2023-06-24T17:13:10 | L27: 398 | M27: Eletrocar | N27: Centrais Elétricas de Carazinho S.A. | O27: 147 | P27: 398 | Q27: SUPRIDA | T27: 84/2000 | U27: 42347 | V27: Carazinho - RS | W27: 88.446.034/0001-55 | X27: N
B28: Contrato de concessão | C28: =VLOOKUP(B6,TabEmpresas[],8,FALSE) -> 13/1999 | F28: Suprimento: Financeiro de Ultrapassagem e Sobrecontratação | G28: 2023-06-24T17:42:18 | L28: 6585 | M28: EMG | N28: Energisa Minas Gerais - Distribuidora de Energia S.A. | O28: 150 | P28: 6585 | Q28: NÃO SUPRIDA | T28: 40/1999 | U28: 42347 | V28: Cataguases - MG | W28: 19.527.639/0001-58 | X28: N
B29: Número do Processo | C29: 48500.006859/2022-31 | F29: UDEROR | G29: 2023-06-24T17:48:30 | L29: 404 | M29: EMS | N29: Energisa Mato Grossodo Sul - Distribuidora de Energia S.A. | O29: 151 | P29: 404 | Q29: NÃO SUPRIDA | T29: 1/1997 | V29: Campo Grande - MS | W29: 15.413.826/0001-50 | X29: A
B30: Período de Referencia | C30: =TEXT(C16,"mmmm/aaaa")& " a "&TEXT(C15,"mmmm/aaaa") -> julho/2022 a junho/2023 | F30: BMP/RIT | L30: 405 | M30: EMT | N30: Energisa Mato Grosso - Distribuidora de Energia S.A. | O30: 117 | P30: 405 | Q30: NÃO SUPRIDA | T30: 3/1997 | V30: Cuibá - MT | W30: 03.467.321/0001-99 | X30: A
B31: Início da vigênica por extenso | C31: =DAY(LnkTxtDRPData)&" de "&TEXT(LnkTxtDRPData,"mmmmmm")&" de "&YEAR(LnkTxtDRPData) -> 12 de julho de 2023 | L31: 39 | M31: ENEL CE | N31: Companhia Energética do Ceará | O31: 130 | P31: 39 | Q31: NÃO SUPRIDA | T31: 1/1998 | V31: Fortaleza - CE | W31: 07.047.251/0001-70 | X31: A
B32: CNPJ | C32: =VLOOKUP(B6,TabEmpresas[],11,FALSE) -> 07.282.377/0001-20 | L32: 6072 | M32: ENEL GO | N32: Enel Distribuição Goiás | O32: 112 | P32: 6072 | Q32: NÃO SUPRIDA | T32: 63/2000 | U32: 42367 | V32: Goiânia - GO | W32: 01.543.032/0001-04 | X32: N
B33: Período de competência de previsão de subsídios | C33: =TEXT(EDATE(Aj.Subsidio!G19,12),"mmmmmm")&"/"&TEXT(EDATE(Aj.Subsidio!G19,12),"aaaa")&" a "&TEXT(EDATE(Aj.Subsidio!R19,12),"mmmmmm")&"/"&TEXT(EDATE(Aj.Subsidio!R19,12),"aaaa") -> julho/2023 a junho/2024 | L33: 383 | M33: ENEL RJ | N33: Ampla Energia e Serviços S.A. | O33: 103 | P33: 383 | Q33: NÃO SUPRIDA | T33: 5/1996 | U33: 42808 | V33: Rio de Janeiro - RJ | W33: 33.050.071/0001-58 | X33: N
B34: Período de competência de ajuste de subsídios | C34: =TEXT(Aj.Subsidio!G19,"mmmmmm")&"/"&TEXT(Aj.Subsidio!G19,"aaaa")&" a "&TEXT(Aj.Subsidio!R19,"mmmmmm")&"/"&TEXT(Aj.Subsidio!R19,"aaaa") -> julho/2022 a junho/2023 | L34: 390 | M34: ENEL SP | N34: Eletropaulo Metropolitana Eletricidade de São Paulo S.A. | O34: 148 | P34: 390 | Q34: NÃO SUPRIDA | T34: 162/1998 | V34: São Paulo - SP | W34: 61.695.227/0001-93 | X34: A
B35: Cidade Sede | C35: =VLOOKUP(B6,TabEmpresas[],10,FALSE) -> Presidente Prudente - SP | L35: 6612 | M35: ENF | N35: Energisa Nova Friburgo - Distribuidora de Energia S.A. | O35: 152 | P35: 6612 | Q35: SUPRIDA | T35: 42/1999 | U35: 42347 | V35: Nova Friburgo - RJ | W35: 33.249.046/0001-06 | X35: N
B36: Receita | C36: =IF(Mercado!D24>2000000000,ROUND(Mercado!D24/1000000000,2)&" bilhões",IF(Mercado!D24>1000000000,ROUND(Mercado!D24/1000000000,2)&" bilhão",IF(Mercado!D24>100000000,ROUND(Mercado!D24/1000000,0)&" milhões",IF(Mercado!D24>10000000,ROUND(Mercado!D24/1000000,1)&" milhões",IF(Mercado!D24>2000000,ROUND(Mercado!D24/1000000,2)&" milhões",IF(Mercado!D24>1000000,ROUND(Mercado!D24/1000000,2)&" milhão",ROUND(Mercado!D24/1000,0)&" mil")))))) -> 2,15 bilhões | L36: 6600 | M36: EPB | N36: Energisa Paraíba - Distribuidora de Energia S.A. | O36: 153 | P36: 6600 | Q36: NÃO SUPRIDA | T36: 19/2001 | V36: João Pessoa - PB | W36: 09.095.183/0001-40 | X36: A
B37: Unidades Consumidoras | C37: =IF(Mercado!E38>2000000,ROUND(Mercado!E38/1000000,2)&" milhões",IF(Mercado!E38>1000000,ROUND(Mercado!E38/1000000,2)&" milhão",IF(Mercado!E38>100000,ROUND(Mercado!E38/1000,0)&" mil",IF(Mercado!E38>10000,ROUND(Mercado!E38/1000,1)&" mil",IF(Mercado!E38>1000,ROUND(Mercado!E38/1000,2)&" mil",Mercado!E38))))) -> 862 mil | L37: 44 | M37: Equatorial AL | N37: Equatorial Alagoas Distribuidora de Energia S.A. | O37: 108 | P37: 44 | Q37: NÃO SUPRIDA | T37: 2/2019 | U37: 42579 | V37: Maceió - AL | W37: 12.272.084/0001-00 | X37: N
B38: Data SAMP | C38: =TEXT(_xlfn.MAXIFS(Mercado_Receita!K:K,Mercado_Receita!B:B,"regular"),"mmmmmm")&"/"&YEAR(_xlfn.MAXIFS(Mercado_Receita!K:K,Mercado_Receita!B:B,"regular")) -> maio/2023 | L38: 37 | M38: Equatorial MA | N38: Equatorial Maranhão Distribuidora de Energia S.A. | O38: 116 | P38: 37 | Q38: NÃO SUPRIDA | T38: 60/2000 | V38: São Luís - MA | W38: 06.272.793/0001-84 | X38: A
B39: Classificação mercado próprio | C39: >700 | L39: 371 | M39: Equatorial PA | N39: Equatorial Pará Distribuidora de Energia S.A. | O39: 113 | P39: 371 | Q39: NÃO SUPRIDA | T39: 182/1998 | V39: Belém - PA | W39: 04.895.728/0001-80 | X39: A
L40: 38 | M40: Equatorial PI | N40: Equatorial Piauí Distribuidora de Energia S.A. | O40: 119 | P40: 38 | Q40: NÃO SUPRIDA | T40: 1/2018 | U40: 42579 | V40: Teresina - PI | W40: 06.840.748/0001-89 | X40: N
L41: 369 | M41: ERO | N41: Energisa Rondônia - Distribuidora de Energia S.A. | O41: 120 | P41: 369 | Q41: NÃO SUPRIDA | T41: 2/2018 | U41: 42579 | V41: Porto Velho - RO | W41: 05.914.650/0001-66 | X41: N
L42: 6587 | M42: ESE | N42: Energisa Sergipe - Distribuidora de Energia S.A. | O42: 155 | P42: 6587 | Q42: NÃO SUPRIDA | T42: 7/1997 | V42: Aracajú - SE | W42: 13.017.462/0001-63 | X42: A
L43: 1000040 | M43: ESS | N43: Energisa Sul-Sudeste - Distribuidora de Energia S.A. | O43: 165 | P43: 1000040 | Q43: NÃO SUPRIDA | T43: 13/1999 | U43: 42347 | V43: Presidente Prudente - SP | W43: 07.282.377/0001-20 | X43: N
L44: 32 | M44: ETO | N44: Energisa Tocantins Distribuidora de Energia S.A. | O44: 115 | P44: 32 | Q44: NÃO SUPRIDA | T44: 52/1999 | U44: 43805 | V44: Palmas - TO | W44: 25.086.034/0001-71 | X44: A
L45: 83 | M45: Forcel | N45: Força e Luz Coronel Vivida Ltda. | O45: 156 | P45: 83 | Q45: SUPRIDA | T45: 69/1999 | U45: 42347 | V45: Coronel Vivida - PR | W45: 79.850.574/0001-09 | X45: N
L46: 399 | M46: Hidropan | N46: Hidropan Distribuição de Energia S.A. | O46: 157 | P46: 399 | Q46: SUPRIDA | T46: 86/2000 | U46: 42347 | V46: Panambi - RS | W46: 91.982.348/0001-87 | X46: N
B47: Deslocar mercado | C47: Não | L47: 88 | M47: João Cesa | N47: Empresa Força e Luz João Cesa Ltda. | O47: 143 | P47: 88 | Q47: SUPRIDA | T47: 26/1999 | U47: 42347 | V47: Siderópolis - RS | W47: 86.301.124/0001-22 | X47: N
B48: Data de processamento em simulação | L48: 382 | M48: Light | N48: Light Serviços de Eletricidade S.A. | O48: 160 | P48: 382 | Q48: NÃO SUPRIDA | T48: 1/1996 | U48: 42803 | V48: Rio de Janeiro - RJ | W48: 60.444.437/0001-46 | X48: N
L49: 401 | M49: Mux Energia | N49: Muxfeldt Marin E Cia Ltda | O49: 161 | P49: 401 | Q49: SUPRIDA | T49: 87/2000 | U49: 42347 | V49: Tapejara - RS | W49: 97.578.090/0001-34 | X49: N
L50: 5160 | M50: Neoenergia Brasília | N50: Neoenergia Distribuição Brasília S.A. | O50: 109 | P50: 5160 | Q50: NÃO SUPRIDA | T50: 66/1999 | U50: 42347 | V50: Brasília - DF | W50: 07.522.669/0001-92 | X50: N
L51: 47 | M51: Neoenergia Coelba | N51: Companhia de Eletricidadedo Estado da Bahia | O51: 129 | P51: 47 | Q51: NÃO SUPRIDA | T51: 10/1997 | V51: Salvador - BA | W51: 15.139.629/0001-94 | X51: A
L52: 40 | M52: Neoenergia Cosern | N52: Companhia Energetica do Rio Grande do Norte | O52: 133 | P52: 40 | Q52: NÃO SUPRIDA | T52: 8/1997 | V52: Natal - RN | W52: 08.324.196/0001-81 | X52: A
L53: 385 | M53: Neoenergia Elektro | N53: Elektro Redes S.A. | O53: 145 | P53: 385 | Q53: NÃO SUPRIDA | T53: 187/1998 | V53: Campinas - SP | W53: 02.328.280/0001-97 | X53: A
L54: 43 | M54: Neoenergia Pernambuco | N54: Companhia Energética de Pernambuco | O54: 114 | P54: 43 | Q54: NÃO SUPRIDA | T54: 26/2000 | V54: Recife - PE | W54: 10.835.932/0001-08 | X54: A
L55: 400 | M55: Nova Palma | N55: Nova Palma Energia Ltda. | O55: 164 | P55: 400 | Q55: SUPRIDA | T55: 107/2001 | U55: 42347 | V55: Faxinal do Soturno - RS | W55: 89.889.604/0001-44 | X55: N
L56: 1000042 | M56: RGE | N56: RGE Sul Distribuidora de Energia S.A. | O56: 167 | P56: 1000042 | Q56: NÃO SUPRIDA | T56: 12/1997 | V56: São Leopoldo - RS | W56: 02.016.440/0001-62 | X56: A
L57: 370 | M57: Roraima Energia | N57: Roraima Energia S.A. | O57: 105 | P57: 370 | Q57: NÃO SUPRIDA | T57: 4/2018 | U57: 42579 | V57: Boa Vista - RR | W57: 02.341.470/0001-44 | X57: N
L58: 381 | M58: Santa Maria | N58: Empresa Luz e Força Santa Maria S/A | O58: 149 | P58: 381 | Q58: SUPRIDA | T58: 20/1999 | U58: 42347 | V58: Colatina - ES | W58: 27.485.069/0001-09 | X58: N
L59: 46 | M59: Sulgipe | N59: Companhia Sul Sergipana de Eletricidade | O59: 163 | P59: 46 | Q59: SUPRIDA | T59: 91/1999 | U59: 42347 | V59: Estância - SE | W59: 13.255.658/0001-96 | X59: N

Sheet BD_Uderor
K1: Número de lançamentos por item e por competência
A2: Dados SAMP Opção:Cativo Classe:Industrial | K2: Descrição | L2: =DATE(YEAR(LnkTxtDRPData),MONTH(LnkTxtDRPData),1) -> 2023-07-01 | M2: =EDATE(L2,-1) -> 2023-06-01 | N2: =EDATE(M2,-1) -> 2023-05-01 | O2: 2023-04-01 | P2: 2023-03-01 | Q2: 2023-02-01 | R2: 2023-01-01 | S2: 2022-12-01 | T2: 2022-11-01 | U2: 2022-10-01 | V2: 2022-09-01 | W2: 2022-08-01 | X2: 2022-07-01 | Y2: 2022-06-01 | Z2: 2022-05-01 | AA2: 2022-04-01
A3: Competencia | B3: COFINS (R$) | C3: ICMS (R$) | D3: PIS/PASEP (R$) | E3: Receita Bandeiras (R$) | F3: Receita Demanda (R$) | G3: Receita Energia (R$) | H3: PIS_Cofins_% | I3: ICMS_% | K3: =Entrada!P8 -> Serviços Cobráveis | L3: =IF(COUNTIFS($C$30:$C$200000,$K3,$H$30:$H$200000,L$2)=0,"",COUNTIFS($C$30:$C$200000,$K3,$H$30:$H$200000,L$2)) ->  | M3: =IF(COUNTIFS($C$30:$C$200000,$K3,$H$30:$H$200000,M$2)=0,"",COUNTIFS($C$30:$C$200000,$K3,$H$30:$H$200000,M$2)) -> 2 | N3: 2 | O3: 2 | P3: 2 | Q3: 2 | R3: 2 | S3: 2 | T3: 2 | U3: 2 | V3: 2 | W3: 2 | X3: 2 | Y3: 2 | Z3: 2 | AA3: 2
A4: 44652 | B4: 418643.07 | C4: 3039761.03 | D4: 90868.96 | E4: 2031502.7 | F4: 1980235.21 | G4: 11030672.68 | H4: 0.03506940007 | I4: 0.2092248846 | K4: =Entrada!P9 -> Arrecadação de convênios ou valores pela fatura | L4: =IF(COUNTIFS($C$30:$C$200000,$K4,$H$30:$H$200000,L$2)=0,"",COUNTIFS($C$30:$C$200000,$K4,$H$30:$H$200000,L$2)) ->  | M4: 3 | N4: 3 | O4: 3 | P4: 3 | Q4: 3 | R4: 3 | S4: 3 | T4: 3 | U4: 3 | V4: 3 | W4: 3 | X4: 3 | Y4: 3 | Z4: 3 | AA4: 3
A5: 44682 | B5: 366712.54 | C5: 2689613.42 | D5: 79594.43 | E5: 365923.94 | F5: 2056717.16 | G5: 9477516.34 | H5: 0.03120104833 | I5: 0.1880292354 | K5: =Entrada!P10 -> Arrecadação de faturas de terceiros por estrutura própria
A6: 44713 | B6: 335768.66 | C6: 2446005.93 | D6: 72876.41 | E6: 97.88 | F6: 1979049.23 | G6: 8435238.79 | H6: 0.03079734437 | I6: 0.1843420917 | K6: =Entrada!P11 -> Veiculação de publicidade
A7: 44743 | B7: 357490.37 | C7: 2483688.36 | D7: 77592.89 | E7: 244.73 | F7: 2124499.77 | G7: 8852719.9 | H7: 0.03131053507 | I7: 0.17873731 | K7: =Entrada!P12 -> Aluguel ou cessão onerosa de imóveis e espaços físicos
A8: 44774 | B8: 374671.77 | C8: 2432884.91 | D8: 81325.64 | E8: -2.4 | F8: 2291430.04 | G8: 9302055.24 | H8: 0.03148638034 | I8: 0.1679894182 | K8: =Entrada!P13 -> Compartilhamento de infraestrutura | M8: 1 | N8: 1 | O8: 1 | P8: 1 | Q8: 1 | R8: 1 | S8: 1 | T8: 1 | U8: 1 | V8: 1 | W8: 1 | X8: 1 | Y8: 1 | Z8: 1 | AA8: 1
A9: 44805 | B9: 373689.81 | C9: 2345484.1 | D9: 81115.16 | E9: 109.24 | F9: 2289301.89 | G9: 9236310.25 | H9: 0.03174728287 | I9: 0.1637245679 | K9: =Entrada!P14 -> Serviços de avaliação técnica e aferição de medidores.
A10: 44835 | B10: 372115.79 | C10: 2356736.46 | D10: 80773.25 | E10: 3.9 | F10: 2299383.91 | G10: 9209663.35 | H10: 0.03162926976 | I10: 0.1645918684 | K10: =Entrada!P15 -> Operacionalização de serviço de créditos tributários
A11: 44866 | B11: 366175.53 | C11: 2282034.51 | D11: 79483.67 | F11: 2322781.14 | G11: 8855988.97 | H11: 0.0320469104 | I11: 0.1640988349 | K11: =Entrada!P16 -> Elaboração de projeto, construção, operação, manutenção ou reforma de:
A12: 44896 | B12: 344817.85 | C12: 2160895.61 | D12: 74847.23 | E12: -3069.61 | F12: 2259612.62 | G12: 8358764.05 | H12: 0.03178797595 | I12: 0.1636793266 | K12: =Entrada!P17 -> (1) redes de distribuição de energia elétrica destinadas à regularização fundiária de interesse específico e ao atendimento dos empreendimentos de múltiplas unidades consumidoras;
A13: 44927 | B13: 346713.43 | C13: 2190566.05 | D13: 75259.19 | F13: 2313111.53 | G13: 8249238.67 | H13: 0.03202855251 | I13: 0.1662682753 | K13: =Entrada!P18 -> (2) redes de energia elétrica destinadas ao acesso dos sistemas de distribuição ou transmissão;
A14: 44958 | B14: 379011.57 | C14: 2503660.39 | D14: 82271.06 | E14: 1058.64 | F14: 2316328.68 | G14: 9013601.21 | H14: 0.0322714862 | I14: 0.1751569135 | K14: =Entrada!P19 -> (3) subestações de energia;
A15: 44986 | B15: 486921.59 | C15: 2726074.64 | D15: 105703.94 | E15: 4058.88 | F15: 2301202.55 | G15: 9511321.77 | H15: 0.03917624394 | I15: 0.1802105371 | K15: =Entrada!P20 -> (4) instalações elétricas internas de unidades consumidoras;
A16: 45017 | B16: 547242.86 | C16: 2481986.18 | D16: 118794.44 | F16: 2253426.06 | G16: 8578276.65 | H16: 0.04764308621 | I16: 0.1775418307 | K16: =Entrada!P21 -> (5) banco de capacitores;
A17: 45047 | B17: 453994.23 | C17: 2448174.26 | D17: 98555.53 | F17: 2265985.2 | G17: 8394357.3 | H17: 0.0404470441 | I17: 0.1792081355 | K17: =Entrada!P22 -> (6) padrões de entrada de unidades consumidoras atendidas em baixa tensão;
K18: =Entrada!P23 -> (7) sistemas de medição de energia elétrica;
K19: =Entrada!P24 -> (8) geradores, incluindo-se unidades de microgeração e minigeração distribuída; | AA19: =IF(COUNTIFS($C$30:$C$200000,$K19,$H$30:$H$200000,AA$2)=0,"",COUNTIFS($C$30:$C$200000,$K19,$H$30:$H$200000,AA$2)) -> 
K20: =Entrada!P25 -> (9) sistemas de iluminação pública. | L20: =IF(COUNTIFS($C$30:$C$200000,$K20,$H$30:$H$200000,L$2)=0,"",COUNTIFS($C$30:$C$200000,$K20,$H$30:$H$200000,L$2)) -> 
K21: =Entrada!P26 -> (10) estações de recarga de veículos elétricos, incluindo a prestação de serviços aos usuários
K22: =Entrada!P27 -> Eficientização do consumo de energia elétrica e instalação de cogeração qualificada, desde que não enquadráveis nos projetos de Pesquisa e Desenvolvimento (P&D) ou de Eficiência Energética estabelecidos em lei
K23: =Entrada!P28 -> Serviços de comunicação de dados
K24: =Entrada!P29 -> Serviços de consultoria
K25: =Entrada!P30 -> Receita proveniente da comercialização de resultados de projetos de P&D COM comprovação
K26: =Entrada!P31 -> Receita proveniente da comercialização de resultados de projetos de P&D SEM comprovação
A28: Tab_Uderor | K28: Descrição | L28: =L2 -> 2023-07-01 | M28: =M2 -> 2023-06-01 | N28: 2023-05-01 | O28: 2023-04-01 | P28: 2023-03-01 | Q28: 2023-02-01 | R28: 2023-01-01 | S28: 2022-12-01 | T28: 2022-11-01 | U28: 2022-10-01 | V28: 2022-09-01 | W28: 2022-08-01 | X28: 2022-07-01 | Y28: 2022-06-01 | Z28: 2022-05-01 | AA28: =AA2 -> 2022-04-01
A29: IdeTipoReceita | B29: TipoReceitaArquivo | C29: TipoReceita | D29: CompetenciaArquivo | E29: Data_envio_arquivo | F29: NomeArquivo | G29: Data_Lancamento | H29: Competencia | I29: R$ | K29: =Entrada!P51 -> Ultrapassagem de Demanda | L29: =IF(COUNTIFS($C$30:$C$200000,$K29,$H$30:$H$200000,L$2)=0,"",COUNTIFS($C$30:$C$200000,$K29,$H$30:$H$200000,L$2)) ->  | M29: =IF(COUNTIFS($C$30:$C$200000,$K29,$H$30:$H$200000,M$2)=0,"",COUNTIFS($C$30:$C$200000,$K29,$H$30:$H$200000,M$2)) -> 1 | N29: 1 | O29: 1 | P29: 1 | Q29: 1 | R29: 1 | S29: 1 | T29: 1 | U29: 1 | V29: 1 | W29: 1 | X29: 1 | Y29: 1 | Z29: 1 | AA29: 1
A30: 1 | B30: Serviços Cobráveis | C30: Serviços Cobráveis | D30: 202204 | E30: 44720 | F30: APLCVA05216_FLXPAGAMENTOS_042022_S002.XML | G30: 44652 | H30: 44652 | I30: 2136.86 | K30: =Entrada!P52 -> Excedente Reativo | L30: =IF(COUNTIFS($C$30:$C$200000,$K30,$H$30:$H$200000,L$2)=0,"",COUNTIFS($C$30:$C$200000,$K30,$H$30:$H$200000,L$2)) ->  | M30: 1 | N30: 1 | O30: 1 | P30: 1 | Q30: 1 | R30: 1 | S30: 1 | T30: 1 | U30: 1 | V30: 1 | W30: 1 | X30: 1 | Y30: 1 | Z30: 1 | AA30: 1
A31: 1 | B31: Serviços Cobráveis | C31: Serviços Cobráveis | D31: 202204 | E31: 44720 | F31: APLCVA05216_FLXPAGAMENTOS_042022_S002.XML | G31: 44652 | H31: 44652 | I31: 96482.24
A32: 1 | B32: Serviços Cobráveis | C32: Serviços Cobráveis | D32: 202205 | E32: 45075 | F32: APLCVA05216_FLXPAGAMENTOS_052022_S004.XML | G32: 44682 | H32: 44682 | I32: 167044.06
A33: 1 | B33: Serviços Cobráveis | C33: Serviços Cobráveis | D33: 202205 | E33: 45075 | F33: APLCVA05216_FLXPAGAMENTOS_052022_S004.XML | G33: 44682 | H33: 44682 | I33: 8290.54
A34: 1 | B34: Serviços Cobráveis | C34: Serviços Cobráveis | D34: 202206 | E34: 45075 | F34: APLCVA05216_FLXPAGAMENTOS_062022_S006.XML | G34: 44713 | H34: 44713 | I34: 7323.32 | K34: Data do último Lançamento por item e competência
A35: 1 | B35: Serviços Cobráveis | C35: Serviços Cobráveis | D35: 202206 | E35: 45075 | F35: APLCVA05216_FLXPAGAMENTOS_062022_S006.XML | G35: 44713 | H35: 44713 | I35: 161808.17 | K35: Descrição | L35: =DATE(YEAR(LnkTxtDRPData),MONTH(LnkTxtDRPData),1) -> 2023-07-01 | M35: =EDATE(L35,-1) -> 2023-06-01 | N35: =EDATE(M35,-1) -> 2023-05-01 | O35: 2023-04-01 | P35: 2023-03-01 | Q35: 2023-02-01 | R35: 2023-01-01 | S35: 2022-12-01 | T35: 2022-11-01 | U35: 2022-10-01 | V35: 2022-09-01 | W35: 2022-08-01 | X35: 2022-07-01 | Y35: 2022-06-01 | Z35: 2022-05-01 | AA35: 2022-04-01
A36: 1 | B36: Serviços Cobráveis | C36: Serviços Cobráveis | D36: 202207 | E36: 45075 | F36: APLCVA05216_FLXPAGAMENTOS_072022_S005.XML | G36: 44743 | H36: 44743 | I36: 7265.6 | K36: =Entrada!P8 -> Serviços Cobráveis | L36: =IF(_xlfn.MAXIFS($G$30:$G$200000,$C$30:$C$200000,$K36,$H$30:$H$200000,L$2)=0,"",_xlfn.MAXIFS($G$30:$G$200000,$C$30:$C$200000,$K36,$H$30:$H$200000,L$2)) ->  | M36: 45078 | N36: 45047 | O36: 45017 | P36: 44986 | Q36: 44958 | R36: 44927 | S36: 44896 | T36: 44866 | U36: 44835 | V36: 44805 | W36: 44774 | X36: 44743 | Y36: 44713 | Z36: 44682 | AA36: 44652
A37: 1 | B37: Serviços Cobráveis | C37: Serviços Cobráveis | D37: 202207 | E37: 45075 | F37: APLCVA05216_FLXPAGAMENTOS_072022_S005.XML | G37: 44743 | H37: 44743 | I37: 165023.42 | K37: =Entrada!P9 -> Arrecadação de convênios ou valores pela fatura | M37: 45078 | N37: 45047 | O37: 45017 | P37: 44986 | Q37: 44958 | R37: 44927 | S37: 44896 | T37: 44866 | U37: 44835 | V37: 44805 | W37: 44774 | X37: 44743 | Y37: 44713 | Z37: 44682 | AA37: 44652
A38: 1 | B38: Serviços Cobráveis | C38: Serviços Cobráveis | D38: 202208 | E38: 45075 | F38: APLCVA05216_FLXPAGAMENTOS_082022_S006.XML | G38: 44774 | H38: 44774 | I38: 166921.06 | K38: =Entrada!P10 -> Arrecadação de faturas de terceiros por estrutura própria
A39: 1 | B39: Serviços Cobráveis | C39: Serviços Cobráveis | D39: 202208 | E39: 45075 | F39: APLCVA05216_FLXPAGAMENTOS_082022_S006.XML | G39: 44774 | H39: 44774 | I39: 9026.07 | K39: =Entrada!P11 -> Veiculação de publicidade
A40: 1 | B40: Serviços Cobráveis | C40: Serviços Cobráveis | D40: 202209 | E40: 45075 | F40: APLCVA05216_FLXPAGAMENTOS_092022_S005.XML | G40: 44805 | H40: 44805 | I40: 7599.46 | K40: =Entrada!P12 -> Aluguel ou cessão onerosa de imóveis e espaços físicos
A41: 1 | B41: Serviços Cobráveis | C41: Serviços Cobráveis | D41: 202209 | E41: 45075 | F41: APLCVA05216_FLXPAGAMENTOS_092022_S005.XML | G41: 44805 | H41: 44805 | I41: 164312.01 | K41: =Entrada!P13 -> Compartilhamento de infraestrutura | M41: 45078 | N41: 45047 | O41: 45017 | P41: 44986 | Q41: 44958 | R41: 44927 | S41: 44896 | T41: 44866 | U41: 44835 | V41: 44805 | W41: 44774 | X41: 44743 | Y41: 44713 | Z41: 44682 | AA41: 44652
A42: 1 | B42: Serviços Cobráveis | C42: Serviços Cobráveis | D42: 202210 | E42: 45075 | F42: APLCVA05216_FLXPAGAMENTOS_102022_S006.XML | G42: 44835 | H42: 44835 | I42: 138419.38 | K42: =Entrada!P14 -> Serviços de avaliação técnica e aferição de medidores.
A43: 1 | B43: Serviços Cobráveis | C43: Serviços Cobráveis | D43: 202210 | E43: 45075 | F43: APLCVA05216_FLXPAGAMENTOS_102022_S006.XML | G43: 44835 | H43: 44835 | I43: 8707.85 | K43: =Entrada!P15 -> Operacionalização de serviço de créditos tributários
A44: 1 | B44: Serviços Cobráveis | C44: Serviços Cobráveis | D44: 202211 | E44: 45075 | F44: APLCVA05216_FLXPAGAMENTOS_112022_S004.XML | G44: 44866 | H44: 44866 | I44: 4744.93 | K44: =Entrada!P16 -> Elaboração de projeto, construção, operação, manutenção ou reforma de:
A45: 1 | B45: Serviços Cobráveis | C45: Serviços Cobráveis | D45: 202211 | E45: 45075 | F45: APLCVA05216_FLXPAGAMENTOS_112022_S004.XML | G45: 44866 | H45: 44866 | I45: 131399.99 | K45: =Entrada!P17 -> (1) redes de distribuição de energia elétrica destinadas à regularização fundiária de interesse específico e ao atendimento dos empreendimentos de múltiplas unidades consumidoras;
A46: 1 | B46: Serviços Cobráveis | C46: Serviços Cobráveis | D46: 202212 | E46: 45084 | F46: APLCVA05216_FLXPAGAMENTOS_122022_S004.XML | G46: 44896 | H46: 44896 | I46: 176515.15 | K46: =Entrada!P18 -> (2) redes de energia elétrica destinadas ao acesso dos sistemas de distribuição ou transmissão; | L46: =IF(_xlfn.MAXIFS($G$30:$G$200000,$C$30:$C$200000,$K46,$H$30:$H$200000,L$2)=0,"",_xlfn.MAXIFS($G$30:$G$200000,$C$30:$C$200000,$K46,$H$30:$H$200000,L$2)) -> 
A47: 1 | B47: Serviços Cobráveis | C47: Serviços Cobráveis | D47: 202212 | E47: 45084 | F47: APLCVA05216_FLXPAGAMENTOS_122022_S004.XML | G47: 44896 | H47: 44896 | I47: 3775.31 | K47: =Entrada!P19 -> (3) subestações de energia;
A48: 1 | B48: Serviços Cobráveis | C48: Serviços Cobráveis | D48: 202301 | E48: 45084 | F48: APLCVA05216_FLXPAGAMENTOS_012023_S005.XML | G48: 44927 | H48: 44927 | I48: 131657.15 | K48: =Entrada!P20 -> (4) instalações elétricas internas de unidades consumidoras;
A49: 1 | B49: Serviços Cobráveis | C49: Serviços Cobráveis | D49: 202301 | E49: 45084 | F49: APLCVA05216_FLXPAGAMENTOS_012023_S005.XML | G49: 44927 | H49: 44927 | I49: 4385.92 | K49: =Entrada!P21 -> (5) banco de capacitores;
A50: 1 | B50: Serviços Cobráveis | C50: Serviços Cobráveis | D50: 202302 | E50: 45084 | F50: APLCVA05216_FLXPAGAMENTOS_022023_S006.XML | G50: 44958 | H50: 44958 | I50: 110267.57 | K50: =Entrada!P22 -> (6) padrões de entrada de unidades consumidoras atendidas em baixa tensão;
A51: 1 | B51: Serviços Cobráveis | C51: Serviços Cobráveis | D51: 202302 | E51: 45084 | F51: APLCVA05216_FLXPAGAMENTOS_022023_S006.XML | G51: 44958 | H51: 44958 | I51: 2267.58 | K51: =Entrada!P23 -> (7) sistemas de medição de energia elétrica;
A52: 1 | B52: Serviços Cobráveis | C52: Serviços Cobráveis | D52: 202303 | E52: 45093 | F52: APLCVA05216_FLXPAGAMENTOS_032023_S004.XML | G52: 44986 | H52: 44986 | I52: 104671.16 | K52: =Entrada!P24 -> (8) geradores, incluindo-se unidades de microgeração e minigeração distribuída;
A53: 1 | B53: Serviços Cobráveis | C53: Serviços Cobráveis | D53: 202303 | E53: 45093 | F53: APLCVA05216_FLXPAGAMENTOS_032023_S004.XML | G53: 44986 | H53: 44986 | I53: 2731.93 | K53: =Entrada!P25 -> (9) sistemas de iluminação pública.
A54: 1 | B54: Serviços Cobráveis | C54: Serviços Cobráveis | D54: 202304 | E54: 45093 | F54: APLCVA05216_FLXPAGAMENTOS_042023_S003.XML | G54: 45017 | H54: 45017 | I54: 129400.1 | K54: =Entrada!P26 -> (10) estações de recarga de veículos elétricos, incluindo a prestação de serviços aos usuários
A55: 1 | B55: Serviços Cobráveis | C55: Serviços Cobráveis | D55: 202304 | E55: 45093 | F55: APLCVA05216_FLXPAGAMENTOS_042023_S003.XML | G55: 45017 | H55: 45017 | I55: 2103.39 | K55: =Entrada!P27 -> Eficientização do consumo de energia elétrica e instalação de cogeração qualificada, desde que não enquadráveis nos projetos de Pesquisa e Desenvolvimento (P&D) ou de Eficiência Energética estabelecidos em lei
A56: 1 | B56: Serviços Cobráveis | C56: Serviços Cobráveis | D56: 202305 | E56: 45091 | F56: APLCVA05216_FLXPAGAMENTOS_052023_S002.XML | G56: 45047 | H56: 45047 | I56: 4780.64 | K56: =Entrada!P28 -> Serviços de comunicação de dados
A57: 1 | B57: Serviços Cobráveis | C57: Serviços Cobráveis | D57: 202305 | E57: 45091 | F57: APLCVA05216_FLXPAGAMENTOS_052023_S002.XML | G57: 45047 | H57: 45047 | I57: 153780.68 | K57: =Entrada!P29 -> Serviços de consultoria
A58: 1 | B58: Serviços Cobráveis | C58: Serviços Cobráveis | D58: 202306 | E58: 45084 | F58: APLCVA05216_FLXPAGAMENTOS_062023_S000.XML | G58: 45078 | H58: 45078 | I58: 0 | K58: =Entrada!P30 -> Receita proveniente da comercialização de resultados de projetos de P&D COM comprovação
A59: 1 | B59: Serviços Cobráveis | C59: Serviços Cobráveis | D59: 202306 | E59: 45084 | F59: APLCVA05216_FLXPAGAMENTOS_062023_S000.XML | G59: 45078 | H59: 45078 | I59: 0 | K59: =Entrada!P31 -> Receita proveniente da comercialização de resultados de projetos de P&D SEM comprovação
A60: 2 | B60: Arrecadação de convênios ou valores pela fatura | C60: Arrecadação de convênios ou valores pela fatura | D60: 202204 | E60: 44720 | F60: APLCVA05216_FLXPAGAMENTOS_042022_S002.XML | G60: 44652 | H60: 44652 | I60: 59448.81
A61: 2 | B61: Arrecadação de convênios ou valores pela fatura | C61: Arrecadação de convênios ou valores pela fatura | D61: 202204 | E61: 44720 | F61: APLCVA05216_FLXPAGAMENTOS_042022_S002.XML | G61: 44652 | H61: 44652 | I61: 201003.4 | K61: Descrição | L61: =L35 -> 2023-07-01 | M61: =M35 -> 2023-06-01 | N61: 2023-05-01 | O61: 2023-04-01 | P61: 2023-03-01 | Q61: 2023-02-01 | R61: 2023-01-01 | S61: 2022-12-01 | T61: 2022-11-01 | U61: 2022-10-01 | V61: 2022-09-01 | W61: 2022-08-01 | X61: 2022-07-01 | Y61: 2022-06-01 | Z61: 2022-05-01 | AA61: 2022-04-01
A62: 2 | B62: Arrecadação de convênios ou valores pela fatura | C62: Arrecadação de convênios ou valores pela fatura | D62: 202204 | E62: 44720 | F62: APLCVA05216_FLXPAGAMENTOS_042022_S002.XML | G62: 44652 | H62: 44652 | I62: 254371.63 | K62: =Entrada!P51 -> Ultrapassagem de Demanda | L62: =IF(COUNTIFS($C$30:$C$200000,$K62,$H$30:$H$200000,L$2)=0,"",COUNTIFS($C$30:$C$200000,$K62,$H$30:$H$200000,L$2)) ->  | M62: 1 | N62: 1 | O62: 1 | P62: 1 | Q62: 1 | R62: 1 | S62: 1 | T62: 1 | U62: 1 | V62: 1 | W62: 1 | X62: 1 | Y62: 1 | Z62: 1 | AA62: 1
A63: 2 | B63: Arrecadação de convênios ou valores pela fatura | C63: Arrecadação de convênios ou valores pela fatura | D63: 202205 | E63: 45075 | F63: APLCVA05216_FLXPAGAMENTOS_052022_S004.XML | G63: 44682 | H63: 44682 | I63: 30545.36 | K63: =Entrada!P52 -> Excedente Reativo | M63: 1 | N63: =IF(COUNTIFS($C$30:$C$200000,$K63,$H$30:$H$200000,N$2)=0,"",COUNTIFS($C$30:$C$200000,$K63,$H$30:$H$200000,N$2)) -> 1 | O63: 1 | P63: 1 | Q63: 1 | R63: 1 | S63: 1 | T63: 1 | U63: 1 | V63: 1 | W63: 1 | X63: 1 | Y63: 1 | Z63: 1 | AA63: 1
A64: 2 | B64: Arrecadação de convênios ou valores pela fatura | C64: Arrecadação de convênios ou valores pela fatura | D64: 202205 | E64: 45075 | F64: APLCVA05216_FLXPAGAMENTOS_052022_S004.XML | G64: 44682 | H64: 44682 | I64: 219296.52
A65: 2 | B65: Arrecadação de convênios ou valores pela fatura | C65: Arrecadação de convênios ou valores pela fatura | D65: 202205 | E65: 45075 | F65: APLCVA05216_FLXPAGAMENTOS_052022_S004.XML | G65: 44682 | H65: 44682 | I65: 339635.08
A66: 2 | B66: Arrecadação de convênios ou valores pela fatura | C66: Arrecadação de convênios ou valores pela fatura | D66: 202206 | E66: 45075 | F66: APLCVA05216_FLXPAGAMENTOS_062022_S006.XML | G66: 44713 | H66: 44713 | I66: 205965.11
A67: 2 | B67: Arrecadação de convênios ou valores pela fatura | C67: Arrecadação de convênios ou valores pela fatura | D67: 202206 | E67: 45075 | F67: APLCVA05216_FLXPAGAMENTOS_062022_S006.XML | G67: 44713 | H67: 44713 | I67: 295167.98
A68: 2 | B68: Arrecadação de convênios ou valores pela fatura | C68: Arrecadação de convênios ou valores pela fatura | D68: 202206 | E68: 45075 | F68: APLCVA05216_FLXPAGAMENTOS_062022_S006.XML | G68: 44713 | H68: 44713 | I68: 28724.55
A69: 2 | B69: Arrecadação de convênios ou valores pela fatura | C69: Arrecadação de convênios ou valores pela fatura | D69: 202207 | E69: 45075 | F69: APLCVA05216_FLXPAGAMENTOS_072022_S005.XML | G69: 44743 | H69: 44743 | I69: 0
A70: 2 | B70: Arrecadação de convênios ou valores pela fatura | C70: Arrecadação de convênios ou valores pela fatura | D70: 202207 | E70: 45075 | F70: APLCVA05216_FLXPAGAMENTOS_072022_S005.XML | G70: 44743 | H70: 44743 | I70: 28511.2
A71: 2 | B71: Arrecadação de convênios ou valores pela fatura | C71: Arrecadação de convênios ou valores pela fatura | D71: 202207 | E71: 45075 | F71: APLCVA05216_FLXPAGAMENTOS_072022_S005.XML | G71: 44743 | H71: 44743 | I71: 304788.94
A72: 2 | B72: Arrecadação de convênios ou valores pela fatura | C72: Arrecadação de convênios ou valores pela fatura | D72: 202208 | E72: 45075 | F72: APLCVA05216_FLXPAGAMENTOS_082022_S006.XML | G72: 44774 | H72: 44774 | I72: 30121.2
A73: 2 | B73: Arrecadação de convênios ou valores pela fatura | C73: Arrecadação de convênios ou valores pela fatura | D73: 202208 | E73: 45075 | F73: APLCVA05216_FLXPAGAMENTOS_082022_S006.XML | G73: 44774 | H73: 44774 | I73: 0
A74: 2 | B74: Arrecadação de convênios ou valores pela fatura | C74: Arrecadação de convênios ou valores pela fatura | D74: 202208 | E74: 45075 | F74: APLCVA05216_FLXPAGAMENTOS_082022_S006.XML | G74: 44774 | H74: 44774 | I74: 262781.52
A75: 2 | B75: Arrecadação de convênios ou valores pela fatura | C75: Arrecadação de convênios ou valores pela fatura | D75: 202209 | E75: 45075 | F75: APLCVA05216_FLXPAGAMENTOS_092022_S005.XML | G75: 44805 | H75: 44805 | I75: 27806.49
A76: 2 | B76: Arrecadação de convênios ou valores pela fatura | C76: Arrecadação de convênios ou valores pela fatura | D76: 202209 | E76: 45075 | F76: APLCVA05216_FLXPAGAMENTOS_092022_S005.XML | G76: 44805 | H76: 44805 | I76: 0
A77: 2 | B77: Arrecadação de convênios ou valores pela fatura | C77: Arrecadação de convênios ou valores pela fatura | D77: 202209 | E77: 45075 | F77: APLCVA05216_FLXPAGAMENTOS_092022_S005.XML | G77: 44805 | H77: 44805 | I77: 258486.81
A78: 2 | B78: Arrecadação de convênios ou valores pela fatura | C78: Arrecadação de convênios ou valores pela fatura | D78: 202210 | E78: 45075 | F78: APLCVA05216_FLXPAGAMENTOS_102022_S006.XML | G78: 44835 | H78: 44835 | I78: 27547.75
A79: 2 | B79: Arrecadação de convênios ou valores pela fatura | C79: Arrecadação de convênios ou valores pela fatura | D79: 202210 | E79: 45075 | F79: APLCVA05216_FLXPAGAMENTOS_102022_S006.XML | G79: 44835 | H79: 44835 | I79: 0
A80: 2 | B80: Arrecadação de convênios ou valores pela fatura | C80: Arrecadação de convênios ou valores pela fatura | D80: 202210 | E80: 45075 | F80: APLCVA05216_FLXPAGAMENTOS_102022_S006.XML | G80: 44835 | H80: 44835 | I80: 286326.96
A81: 2 | B81: Arrecadação de convênios ou valores pela fatura | C81: Arrecadação de convênios ou valores pela fatura | D81: 202211 | E81: 45075 | F81: APLCVA05216_FLXPAGAMENTOS_112022_S004.XML | G81: 44866 | H81: 44866 | I81: 27975.99
A82: 2 | B82: Arrecadação de convênios ou valores pela fatura | C82: Arrecadação de convênios ou valores pela fatura | D82: 202211 | E82: 45075 | F82: APLCVA05216_FLXPAGAMENTOS_112022_S004.XML | G82: 44866 | H82: 44866 | I82: 0
A83: 2 | B83: Arrecadação de convênios ou valores pela fatura | C83: Arrecadação de convênios ou valores pela fatura | D83: 202211 | E83: 45075 | F83: APLCVA05216_FLXPAGAMENTOS_112022_S004.XML | G83: 44866 | H83: 44866 | I83: 276739.26
A84: 2 | B84: Arrecadação de convênios ou valores pela fatura | C84: Arrecadação de convênios ou valores pela fatura | D84: 202212 | E84: 45084 | F84: APLCVA05216_FLXPAGAMENTOS_122022_S004.XML | G84: 44896 | H84: 44896 | I84: 281283.99
A85: 2 | B85: Arrecadação de convênios ou valores pela fatura | C85: Arrecadação de convênios ou valores pela fatura | D85: 202212 | E85: 45084 | F85: APLCVA05216_FLXPAGAMENTOS_122022_S004.XML | G85: 44896 | H85: 44896 | I85: 27262.71
A86: 2 | B86: Arrecadação de convênios ou valores pela fatura | C86: Arrecadação de convênios ou valores pela fatura | D86: 202212 | E86: 45084 | F86: APLCVA05216_FLXPAGAMENTOS_122022_S004.XML | G86: 44896 | H86: 44896 | I86: 0
A87: 2 | B87: Arrecadação de convênios ou valores pela fatura | C87: Arrecadação de convênios ou valores pela fatura | D87: 202301 | E87: 45084 | F87: APLCVA05216_FLXPAGAMENTOS_012023_S005.XML | G87: 44927 | H87: 44927 | I87: 5386.14
A88: 2 | B88: Arrecadação de convênios ou valores pela fatura | C88: Arrecadação de convênios ou valores pela fatura | D88: 202301 | E88: 45084 | F88: APLCVA05216_FLXPAGAMENTOS_012023_S005.XML | G88: 44927 | H88: 44927 | I88: 0
A89: 2 | B89: Arrecadação de convênios ou valores pela fatura | C89: Arrecadação de convênios ou valores pela fatura | D89: 202301 | E89: 45084 | F89: APLCVA05216_FLXPAGAMENTOS_012023_S005.XML | G89: 44927 | H89: 44927 | I89: 299850.01
A90: 2 | B90: Arrecadação de convênios ou valores pela fatura | C90: Arrecadação de convênios ou valores pela fatura | D90: 202302 | E90: 45084 | F90: APLCVA05216_FLXPAGAMENTOS_022023_S006.XML | G90: 44958 | H90: 44958 | I90: 0
A91: 2 | B91: Arrecadação de convênios ou valores pela fatura | C91: Arrecadação de convênios ou valores pela fatura | D91: 202302 | E91: 45084 | F91: APLCVA05216_FLXPAGAMENTOS_022023_S006.XML | G91: 44958 | H91: 44958 | I91: 304951.19
A92: 2 | B92: Arrecadação de convênios ou valores pela fatura | C92: Arrecadação de convênios ou valores pela fatura | D92: 202302 | E92: 45084 | F92: APLCVA05216_FLXPAGAMENTOS_022023_S006.XML | G92: 44958 | H92: 44958 | I92: 26099.56
A93: 2 | B93: Arrecadação de convênios ou valores pela fatura | C93: Arrecadação de convênios ou valores pela fatura | D93: 202303 | E93: 45093 | F93: APLCVA05216_FLXPAGAMENTOS_032023_S004.XML | G93: 44986 | H93: 44986 | I93: 0
A94: 2 | B94: Arrecadação de convênios ou valores pela fatura | C94: Arrecadação de convênios ou valores pela fatura | D94: 202303 | E94: 45093 | F94: APLCVA05216_FLXPAGAMENTOS_032023_S004.XML | G94: 44986 | H94: 44986 | I94: 28329.47
A95: 2 | B95: Arrecadação de convênios ou valores pela fatura | C95: Arrecadação de convênios ou valores pela fatura | D95: 202303 | E95: 45093 | F95: APLCVA05216_FLXPAGAMENTOS_032023_S004.XML | G95: 44986 | H95: 44986 | I95: 341848.56
A96: 2 | B96: Arrecadação de convênios ou valores pela fatura | C96: Arrecadação de convênios ou valores pela fatura | D96: 202304 | E96: 45093 | F96: APLCVA05216_FLXPAGAMENTOS_042023_S003.XML | G96: 45017 | H96: 45017 | I96: 25662.22
A97: 2 | B97: Arrecadação de convênios ou valores pela fatura | C97: Arrecadação de convênios ou valores pela fatura | D97: 202304 | E97: 45093 | F97: APLCVA05216_FLXPAGAMENTOS_042023_S003.XML | G97: 45017 | H97: 45017 | I97: 287585.1
A98: 2 | B98: Arrecadação de convênios ou valores pela fatura | C98: Arrecadação de convênios ou valores pela fatura | D98: 202304 | E98: 45093 | F98: APLCVA05216_FLXPAGAMENTOS_042023_S003.XML | G98: 45017 | H98: 45017 | I98: 0
A99: 2 | B99: Arrecadação de convênios ou valores pela fatura | C99: Arrecadação de convênios ou valores pela fatura | D99: 202305 | E99: 45091 | F99: APLCVA05216_FLXPAGAMENTOS_052023_S002.XML | G99: 45047 | H99: 45047 | I99: 28810.78
A100: 2 | B100: Arrecadação de convênios ou valores pela fatura | C100: Arrecadação de convênios ou valores pela fatura | D100: 202305 | E100: 45091 | F100: APLCVA05216_FLXPAGAMENTOS_052023_S002.XML | G100: 45047 | H100: 45047 | I100: 335598.27
A101: 2 | B101: Arrecadação de convênios ou valores pela fatura | C101: Arrecadação de convênios ou valores pela fatura | D101: 202305 | E101: 45091 | F101: APLCVA05216_FLXPAGAMENTOS_052023_S002.XML | G101: 45047 | H101: 45047 | I101: 0
A102: 2 | B102: Arrecadação de convênios ou valores pela fatura | C102: Arrecadação de convênios ou valores pela fatura | D102: 202306 | E102: 45084 | F102: APLCVA05216_FLXPAGAMENTOS_062023_S000.XML | G102: 45078 | H102: 45078 | I102: 0
A103: 2 | B103: Arrecadação de convênios ou valores pela fatura | C103: Arrecadação de convênios ou valores pela fatura | D103: 202306 | E103: 45084 | F103: APLCVA05216_FLXPAGAMENTOS_062023_S000.XML | G103: 45078 | H103: 45078 | I103: 0
A104: 2 | B104: Arrecadação de convênios ou valores pela fatura | C104: Arrecadação de convênios ou valores pela fatura | D104: 202306 | E104: 45084 | F104: APLCVA05216_FLXPAGAMENTOS_062023_S000.XML | G104: 45078 | H104: 45078 | I104: 0
A105: 6 | B105: Compartilhamento de infraestrutura | C105: Compartilhamento de infraestrutura | D105: 202204 | E105: 44720 | F105: APLCVA05216_FLXPAGAMENTOS_042022_S002.XML | G105: 44652 | H105: 44652 | I105: 4619832.57
A106: 6 | B106: Compartilhamento de infraestrutura | C106: Compartilhamento de infraestrutura | D106: 202205 | E106: 45075 | F106: APLCVA05216_FLXPAGAMENTOS_052022_S004.XML | G106: 44682 | H106: 44682 | I106: 4544470.63
A107: 6 | B107: Compartilhamento de infraestrutura | C107: Compartilhamento de infraestrutura | D107: 202206 | E107: 45075 | F107: APLCVA05216_FLXPAGAMENTOS_062022_S006.XML | G107: 44713 | H107: 44713 | I107: 4685349.82
A108: 6 | B108: Compartilhamento de infraestrutura | C108: Compartilhamento de infraestrutura | D108: 202207 | E108: 45075 | F108: APLCVA05216_FLXPAGAMENTOS_072022_S005.XML | G108: 44743 | H108: 44743 | I108: 4733770.04
A109: 6 | B109: Compartilhamento de infraestrutura | C109: Compartilhamento de infraestrutura | D109: 202208 | E109: 45075 | F109: APLCVA05216_FLXPAGAMENTOS_082022_S006.XML | G109: 44774 | H109: 44774 | I109: 5104013.68
A110: 6 | B110: Compartilhamento de infraestrutura | C110: Compartilhamento de infraestrutura | D110: 202209 | E110: 45075 | F110: APLCVA05216_FLXPAGAMENTOS_092022_S005.XML | G110: 44805 | H110: 44805 | I110: 3721555.46
A111: 6 | B111: Compartilhamento de infraestrutura | C111: Compartilhamento de infraestrutura | D111: 202210 | E111: 45075 | F111: APLCVA05216_FLXPAGAMENTOS_102022_S006.XML | G111: 44835 | H111: 44835 | I111: 5121752.97
A112: 6 | B112: Compartilhamento de infraestrutura | C112: Compartilhamento de infraestrutura | D112: 202211 | E112: 45075 | F112: APLCVA05216_FLXPAGAMENTOS_112022_S004.XML | G112: 44866 | H112: 44866 | I112: 5394560.08
A113: 6 | B113: Compartilhamento de infraestrutura | C113: Compartilhamento de infraestrutura | D113: 202212 | E113: 45084 | F113: APLCVA05216_FLXPAGAMENTOS_122022_S004.XML | G113: 44896 | H113: 44896 | I113: 5517626.48
A114: 6 | B114: Compartilhamento de infraestrutura | C114: Compartilhamento de infraestrutura | D114: 202301 | E114: 45084 | F114: APLCVA05216_FLXPAGAMENTOS_012023_S005.XML | G114: 44927 | H114: 44927 | I114: 5111038.02
A115: 6 | B115: Compartilhamento de infraestrutura | C115: Compartilhamento de infraestrutura | D115: 202302 | E115: 45084 | F115: APLCVA05216_FLXPAGAMENTOS_022023_S006.XML | G115: 44958 | H115: 44958 | I115: 5186151.87
A116: 6 | B116: Compartilhamento de infraestrutura | C116: Compartilhamento de infraestrutura | D116: 202303 | E116: 45093 | F116: APLCVA05216_FLXPAGAMENTOS_032023_S004.XML | G116: 44986 | H116: 44986 | I116: 7263567.9
A117: 6 | B117: Compartilhamento de infraestrutura | C117: Compartilhamento de infraestrutura | D117: 202304 | E117: 45093 | F117: APLCVA05216_FLXPAGAMENTOS_042023_S003.XML | G117: 45017 | H117: 45017 | I117: 7285226.26
A118: 6 | B118: Compartilhamento de infraestrutura | C118: Compartilhamento de infraestrutura | D118: 202305 | E118: 45091 | F118: APLCVA05216_FLXPAGAMENTOS_052023_S002.XML | G118: 45047 | H118: 45047 | I118: 6155308.89
A119: 6 | B119: Compartilhamento de infraestrutura | C119: Compartilhamento de infraestrutura | D119: 202306 | E119: 45084 | F119: APLCVA05216_FLXPAGAMENTOS_062023_S000.XML | G119: 45078 | H119: 45078 | I119: 0
A120: 23 | B120: Ultrapassagem de Demanda | C120: Ultrapassagem de Demanda | D120: 202204 | E120: 44720 | F120: APLCVA05216_FLXPAGAMENTOS_042022_S002.XML | G120: 44652 | H120: 44652 | I120: 761337.36
A121: 23 | B121: Ultrapassagem de Demanda | C121: Ultrapassagem de Demanda | D121: 202205 | E121: 45075 | F121: APLCVA05216_FLXPAGAMENTOS_052022_S004.XML | G121: 44682 | H121: 44682 | I121: 585463.78
A122: 23 | B122: Ultrapassagem de Demanda | C122: Ultrapassagem de Demanda | D122: 202206 | E122: 45075 | F122: APLCVA05216_FLXPAGAMENTOS_062022_S006.XML | G122: 44713 | H122: 44713 | I122: 729370.72
A123: 23 | B123: Ultrapassagem de Demanda | C123: Ultrapassagem de Demanda | D123: 202207 | E123: 45075 | F123: APLCVA05216_FLXPAGAMENTOS_072022_S005.XML | G123: 44743 | H123: 44743 | I123: 1030035.7
A124: 23 | B124: Ultrapassagem de Demanda | C124: Ultrapassagem de Demanda | D124: 202208 | E124: 45075 | F124: APLCVA05216_FLXPAGAMENTOS_082022_S006.XML | G124: 44774 | H124: 44774 | I124: 889496.79
A125: 23 | B125: Ultrapassagem de Demanda | C125: Ultrapassagem de Demanda | D125: 202209 | E125: 45075 | F125: APLCVA05216_FLXPAGAMENTOS_092022_S005.XML | G125: 44805 | H125: 44805 | I125: 837772.52
A126: 23 | B126: Ultrapassagem de Demanda | C126: Ultrapassagem de Demanda | D126: 202210 | E126: 45075 | F126: APLCVA05216_FLXPAGAMENTOS_102022_S006.XML | G126: 44835 | H126: 44835 | I126: 1057776.52
A127: 23 | B127: Ultrapassagem de Demanda | C127: Ultrapassagem de Demanda | D127: 202211 | E127: 45075 | F127: APLCVA05216_FLXPAGAMENTOS_112022_S004.XML | G127: 44866 | H127: 44866 | I127: 983837.92
A128: 23 | B128: Ultrapassagem de Demanda | C128: Ultrapassagem de Demanda | D128: 202212 | E128: 45084 | F128: APLCVA05216_FLXPAGAMENTOS_122022_S004.XML | G128: 44896 | H128: 44896 | I128: 1177061.85
A129: 23 | B129: Ultrapassagem de Demanda | C129: Ultrapassagem de Demanda | D129: 202301 | E129: 45084 | F129: APLCVA05216_FLXPAGAMENTOS_012023_S005.XML | G129: 44927 | H129: 44927 | I129: 1144778.37
A130: 23 | B130: Ultrapassagem de Demanda | C130: Ultrapassagem de Demanda | D130: 202302 | E130: 45084 | F130: APLCVA05216_FLXPAGAMENTOS_022023_S006.XML | G130: 44958 | H130: 44958 | I130: 969549.87
A131: 23 | B131: Ultrapassagem de Demanda | C131: Ultrapassagem de Demanda | D131: 202303 | E131: 45093 | F131: APLCVA05216_FLXPAGAMENTOS_032023_S004.XML | G131: 44986 | H131: 44986 | I131: 1123194.91
A132: 23 | B132: Ultrapassagem de Demanda | C132: Ultrapassagem de Demanda | D132: 202304 | E132: 45093 | F132: APLCVA05216_FLXPAGAMENTOS_042023_S003.XML | G132: 45017 | H132: 45017 | I132: 1223004.52
A133: 23 | B133: Ultrapassagem de Demanda | C133: Ultrapassagem de Demanda | D133: 202305 | E133: 45091 | F133: APLCVA05216_FLXPAGAMENTOS_052023_S002.XML | G133: 45047 | H133: 45047 | I133: 1330064.35
A134: 23 | B134: Ultrapassagem de Demanda | C134: Ultrapassagem de Demanda | D134: 202306 | E134: 45084 | F134: APLCVA05216_FLXPAGAMENTOS_062023_S000.XML | G134: 45078 | H134: 45078 | I134: 0
A135: 24 | B135: Excedente Reativo | C135: Excedente Reativo | D135: 202204 | E135: 44720 | F135: APLCVA05216_FLXPAGAMENTOS_042022_S002.XML | G135: 44652 | H135: 44652 | I135: 1870538.38
A136: 24 | B136: Excedente Reativo | C136: Excedente Reativo | D136: 202205 | E136: 45075 | F136: APLCVA05216_FLXPAGAMENTOS_052022_S004.XML | G136: 44682 | H136: 44682 | I136: 1620506.67
A137: 24 | B137: Excedente Reativo | C137: Excedente Reativo | D137: 202206 | E137: 45075 | F137: APLCVA05216_FLXPAGAMENTOS_062022_S006.XML | G137: 44713 | H137: 44713 | I137: 1481120.99
A138: 24 | B138: Excedente Reativo | C138: Excedente Reativo | D138: 202207 | E138: 45075 | F138: APLCVA05216_FLXPAGAMENTOS_072022_S005.XML | G138: 44743 | H138: 44743 | I138: 1472581.29
A139: 24 | B139: Excedente Reativo | C139: Excedente Reativo | D139: 202208 | E139: 45075 | F139: APLCVA05216_FLXPAGAMENTOS_082022_S006.XML | G139: 44774 | H139: 44774 | I139: 1424305.85
A140: 24 | B140: Excedente Reativo | C140: Excedente Reativo | D140: 202209 | E140: 45075 | F140: APLCVA05216_FLXPAGAMENTOS_092022_S005.XML | G140: 44805 | H140: 44805 | I140: 1559767.2
A141: 24 | B141: Excedente Reativo | C141: Excedente Reativo | D141: 202210 | E141: 45075 | F141: APLCVA05216_FLXPAGAMENTOS_102022_S006.XML | G141: 44835 | H141: 44835 | I141: 1511142.14
A142: 24 | B142: Excedente Reativo | C142: Excedente Reativo | D142: 202211 | E142: 45075 | F142: APLCVA05216_FLXPAGAMENTOS_112022_S004.XML | G142: 44866 | H142: 44866 | I142: 1726051.01
A143: 24 | B143: Excedente Reativo | C143: Excedente Reativo | D143: 202212 | E143: 45084 | F143: APLCVA05216_FLXPAGAMENTOS_122022_S004.XML | G143: 44896 | H143: 44896 | I143: 1401407.89
A144: 24 | B144: Excedente Reativo | C144: Excedente Reativo | D144: 202301 | E144: 45084 | F144: APLCVA05216_FLXPAGAMENTOS_012023_S005.XML | G144: 44927 | H144: 44927 | I144: 1664319.25
A145: 24 | B145: Excedente Reativo | C145: Excedente Reativo | D145: 202302 | E145: 45084 | F145: APLCVA05216_FLXPAGAMENTOS_022023_S006.XML | G145: 44958 | H145: 44958 | I145: 1669362.87
A146: 24 | B146: Excedente Reativo | C146: Excedente Reativo | D146: 202303 | E146: 45093 | F146: APLCVA05216_FLXPAGAMENTOS_032023_S004.XML | G146: 44986 | H146: 44986 | I146: 1773138.95
A147: 24 | B147: Excedente Reativo | C147: Excedente Reativo | D147: 202304 | E147: 45093 | F147: APLCVA05216_FLXPAGAMENTOS_042023_S003.XML | G147: 45017 | H147: 45017 | I147: 2046388.91
A148: 24 | B148: Excedente Reativo | C148: Excedente Reativo | D148: 202305 | E148: 45091 | F148: APLCVA05216_FLXPAGAMENTOS_052023_S002.XML | G148: 45047 | H148: 45047 | I148: 2078757.05
A149: 24 | B149: Excedente Reativo | C149: Excedente Reativo | D149: 202306 | E149: 45084 | F149: APLCVA05216_FLXPAGAMENTOS_062023_S000.XML | G149: 45078 | H149: 45078 | I149: 0

Sheet BD
B1: Banco de Dados | M1: Anexo II | N1: =Resultado!$D$6 -> 0.08279603217
B2: =CAPA!B6 -> ESS | M2: Anexo I | N2: =Resultado!$D$8 -> 0.1179756419
B5: Informações do ano anterior | G5: Dados de abertura (Neutralidade e CVA saldo a compensar) | L5: Dados de Energia | S5: Dados para Revisão | AA5: BMP_RIT | AK5: Avaliação Parcela B
B7: Encargos | G7: Encargo | H7: Valor | I7: Norma | L7: Cotas | M7: Valor da "Cota" | N7: Ano | O7: Custo Médio da Cota | P7: Energia MWh | S7: item | T7: Descrição | U7: Detalhe | V7: Valor | AA7: IDAGENTE | AB7: ANO | AC7: SIGLA | AD7: ContaPrincipal | AE7: ContaDetalhada | AF7: CONTA | AG7: SALDO | AK7: Ano | AL7: DataRevREa | AM7: item | AN7: valor
B8: CDE Covid TE | C8: 19496229.96 | G8: CDE Eletrobras | H8: -6807363.714 | I8: DSP 1.120/2023 | L8: Angra | M8: 0.0103751642 | N8: 2023 | O8: 347.5 | P8: 139196.6919 | AK8: 2022 | AL8: 22838 | AM8: ANEXO II | AN8: 0.1641375592
B9: CDE Covid TUSD | C9: 19527362.6 | G9: CDE | H9: 330693092.5 | I9: REH 3.175/2023 | AK9: 2022 | AL9: 22838 | AM9: CONSUMIDOR DISTRIBUIÇÃO | AN9: 70006.835
B10: TFSEE | C10: 2010828.128 | G10: CFURH | AK10: 2022 | AL10: 22838 | AM10: CONSUMIDOR LIVRE | AN10: 1285466.467
B11: CDE | C11: 350941004.2 | G11: ESS/EER | H11: 64438279.01 | I11: DSP 1.141/2023 | L11: Ano | M11: Cota Itaipu | AK11: 2022 | AL11: 22838 | AM11: ENCARGO | AN11: 495203581.7
B12: ESS/ERR | C12: 76934435.76 | G12: PROINFA | H12: 51785584.51 | I12: ReH 3.147/2022 | L12: 2021 | M12: 0.01384534586 | AK12: 2022 | AL12: 22838 | AM12: ENERGIA | AN12: 876859139.4
B13: PROINFA | C13: 61452707.37 | G13: ONS | H13: 99480.10679 | I13: Contribuição 2023 | L13: 2022 | M13: 0.01370368219 | AK13: 2022 | AL13: 22838 | AM13: FATOR X | AN13: -0.005079257165
B14: P&D | C14: 18311013.66 | G14: TFSEE | L14: 2023 | M14: 0.014019 | AK14: 2022 | AL14: 22838 | AM14: Fornecimento | AN14: 3250734.652
B15: ONS | C15: 0 | G15: EER | H15: 63192371.83 | I15: DSP 1.141/2023 | L15: 2024 | M15: 0.01422016 | AK15: 2022 | AL15: 22838 | AM15: IGPM | AN15: 0.1070423609
B16: CDE Eletrobras | C16: -53470000 | G16: TFSEE Fator de Carga | H16: 0.902 | AK16: 2022 | AL16: 22838 | AM16: IPCA | AN16: 0.1161239546
G17: CDE Covid | H17: 39023592.56 | I17: DSP 939/2021 | AK17: 2022 | AL17: 22838 | AM17: Parcela B | AN17: 499585097.4
B18: Pmix | C18: 233.4998363 | G18: CDE Covid TE% | H18: 0.4996011048 | AK18: 2022 | AL18: 22838 | AM18: Receita Irrecuperável | AN18: 14323524.54
B19: PN2022 | C19: 0.003651 | G19: CDE Covid TUSD% | H19: 0.5003988952 | AK19: 2022 | AL19: 22838 | AM19: Revisão ou Reajuste (1-REVI,0-Reaj) | AN19: 0
B20: PN2023 | C20: 0.003651 | G20: CDE Escassez Hidrica | H20: 22125221.04 | I20: DSP 510/2023 | J20: DSP 510/2023 | AK20: 2022 | AL20: 22838 | AM20: SUPRIMENTO (Mercado TUSD) | AN20: 45389.623
B21: PT2021 | C21: 0.06631 | G21: CDE Escassez Hidr TE% | H21: 0.9302176908 | AK21: 2022 | AL21: 22838 | AM21: TRANSPORTE TERCEIROS | AN21: 329931951.3
B22: Perda RB total | C22: 0.01815482629 | G22: CDE Escassez Hidr TUSD% | H22: 0.06978230922 | L22: Mês | M22: Potência | N22: Tarifa | O22: Perdas | P22: Energia
G23: CDE GD | H23: 19140767.74 | I23: REH 3.175/2023 | L23: 45108 | M23: 147.970545 | N23: 20.23 | O23: 0.05794699743 | P23: 64977.34692
B24: CVA RB | C24: 8122480.47 | L24: 45139 | M24: 142.110603 | N24: 20.23 | O24: 0.05794699743 | P24: 64977.34692
B25: CVA CCC | C25: 0 | G25: Informações de Postergação | L25: 45170 | M25: 140.680665 | N25: 20.23 | O25: 0.05794699743 | P25: 62881.30347
B26: CVA CDE | C26: 51529992.56 | L26: 45200 | M26: 137.175915 | N26: 20.23 | O26: 0.05794699743 | P26: 64977.34692
B27: CVA CFURH | G27: Tipo | H27: Valor | L27: 45231 | M27: 137.035725 | N27: 20.23 | O27: 0.05794699743 | P27: 62881.30347
B28: CVA ESS\ERR | C28: 21115482.68 | G28: Data Postergada | H28: 45119 | L28: 45261 | M28: 133.110405 | N28: 20.23 | O28: 0.05794699743 | P28: 64977.34692
B29: CVA PROINFA | C29: 12257050.54 | G29: Data Anterior | H29: 45119 | L29: 45292 | M29: 135.5892256 | N29: 20.23 | O29: 0.05794699743 | P29: 65909.71322
B30: CVA TRANS. ITAIPU | C30: 4588477.316 | G30: Diferença de Dias | H30: 0 | L30: 45323 | M30: 135.5892256 | N30: 20.23 | O30: 0.05794699743 | P30: 59531.35387
B31: CVA ENERGIA | C31: 81735857.59 | G31: MesesAdin | H31: 0 | L31: 45352 | M31: 139.8552736 | N31: 20.23 | O31: 0.05794699743 | P31: 65909.71322
B32: CVA CDE Covid | C32: 1250004.583 | G32: Reversão Subvenção CDE | L32: 45383 | M32: 143.5525152 | N32: 20.23 | O32: 0.05794699743 | P32: 63783.59343
G33: Data 4CRT | H33: 44389 | L33: 45413 | M33: 148.3873696 | N33: 20.23 | O33: 0.05794699743 | P33: 65909.71322
L34: 45444 | M34: 150.0937888 | N34: 20.23 | O34: 0.05794699743 | P34: 63783.59343
G35: Nome | H35: Valor | I35: Coluna1
G36: TUSDg Export DRP | H36: 0 | L36: Mês | M36: Potência | N36: Tarifa DRA | O36: Tarifa DRP | P36: Colunas1 | Q36: Colunas2
G37: TUSDg ONS DRP | H37: 1001557.22 | I37: <- provisório | K37: 11738.14 | L37: 44743 | M37: 147.6571756 | N37: 11925.08 | O37: 16835.23
G38: TUSDg ONS DRA | H38: 1047202.28 | K38: 11738.14 | L38: 44774 | M38: 142.9979236 | N38: 11925.08 | O38: 16835.23
B39: Transporte | G39: TUSDg Export DRA | H39: 0 | K39: 11738.14 | L39: 44805 | M39: 142.3127395 | N39: 11925.08 | O39: 16835.23
B40: Conexao | C40: 4286179.53 | K40: 11738.14 | L40: 44835 | M40: 140.2571872 | N40: 11925.08 | O40: 16835.23
K41: 11738.14 | L41: 44866 | M41: 139.5720031 | N41: 11925.08 | O41: 16835.23
G42: Fator X | H42: Valor | K42: 11738.14 | L42: 44896 | M42: 136.1460825 | N42: 11925.08 | O42: 16835.23
G43: fatorx_t | H43: -0.014 | K43: 11738.14 | L43: 44927 | M43: 133.671165 | N43: 11925.08 | O43: 16835.23
B44: Mercado | G44: fatorx_pd | H44: 0 | K44: 11738.14 | L44: 44958 | M44: 133.671165 | N44: 11925.08 | O44: 16835.23
B45: RA0_MWh_Tusd | C45: 4651597.577 | K45: 11738.14 | L45: 44986 | M45: 137.876865 | N45: 11925.08 | O45: 16835.23
B46: RA1_R$ | C46: 2215903294 | G46: DecFec Processo Anterior | H46: Valor | K46: 11738.14 | L46: 45017 | M46: 141.521805 | N46: 11925.08 | O46: 16835.23
B47: Proinfa | G47: DEC A-2 | K47: 11738.14 | L47: 45047 | M47: 146.288265 | N47: 11925.08 | O47: 16835.23
B48: 2023 | C48: 75051.2188 | G48: DEC A-1 | K48: 11738.14 | L48: 45078 | M48: 147.970545 | N48: 11925.08 | O48: 16835.23
B49: Detalhamento de Encargos ESS e CDE | G49: FEC A-2
G50: FEC A-1 | L50: Dado | M50: Valor | N50: Início | O50: Fim | P50: Coluna1
K51: 7844 | L51: MUST | M51: 7880 | N51: 44743 | O51: 45107
G52: Dados de dólar | H52: Valor | L52: MUST | M52: 7915 | N52: 45108 | O52: 45473
B53: Ciclo de Revisão | C53: 5 | G53: Dólar médio | H53: 4.885465 | I53: <-Valor final | L53: Potência Max | M53: 10775 | N53: 44562 | O53: 44926
G54: Data Inicial | H54: 45075 | L54: Potência Max | M54: 10555 | N54: 44927 | O54: 45291
G55: Data Final | H55: 45103
G56: Último Dado Diponível | H56: 45104 | L56: Dados de perda | M56: Valor | O56: Agente | P56: Ressarcimento P&D
B57: Subsídios Concedidos (sem ajuste) | L57: Perdas RB | M57: 51643.1586
B58: Mês de Início | C58: Carga Fonte | D58: Geração | E58: Distribuição | F58: Água, Esgoto e Saneamento | G58: Rural | H58: Irrigante/Aquicultor | I58: SCEE | J58: Lei 14299/20222 | L58: Perdas DITs | M58: 64964.7146
B59: 2022-07-01 | C59: 4614749.487 | D59: 632219.6083 | E59: 820222.4417 | F59: 209650.0442 | G59: 972251.0958 | H59: 742758.4992
L62: Informações de DR1
L63: fator PB1 | M63: 1.102307322
L64: Informações de RI
B65: Data | C65: Tipo | D65: Valor | E65: Valor IGPM | F65: Valor IPCA | G65: EixoRef
B66: =DATE(YEAR(CAPA!C10),MONTH(CAPA!C10),1) -> 2023-07-01 | C66: =IF(CAPA!C7="Revisão",1,0) -> 0 | D66: =Resultado!L11 -> 688.1053531 | E66: =IFERROR(VLOOKUP(EDATE($B66,-1),Índices!$B$6:$F$500,2,FALSE)/VLOOKUP(EDATE(MIN($B$67:$B$81),-1),Índices!$B$6:$F$500,2,FALSE)*VLOOKUP(MIN($B$67:$B$81),$B$67:$D$81,3,FALSE),0) -> 0 | F66: =IFERROR(VLOOKUP(EDATE($B66,-1),Índices!$B$6:$F$500,3,FALSE)/VLOOKUP(EDATE(MIN($B$67:$B$81),-1),Índices!$B$6:$F$500,3,FALSE)*VLOOKUP(MIN($B$67:$B$81),$B$67:$D$81,3,FALSE),0) -> 0 | G66: =IF(B66<>"",150+1,"") -> 151 | L66: Tipo | M66: % RI | O66: Data | P66: Fat Bandeiras
L67: PctRIResidencial | M67: 0.0064 | O67: 44743 | P67: 9137.62
L68: PctRIIndustrial | M68: 0.0035 | O68: 44774 | P68: 14883.5
L69: PctRICOMERCIAL | M69: 0.004 | O69: 44805 | P69: -16571.53
L70: PctRIRURAL | M70: 0.002 | O70: 44835 | P70: 7371.04
L71: PctRILUMPUBLICA | M71: 0 | O71: 44866 | P71: 1327.94
L72: PctRIPODERPUBLICO | M72: 0.0001 | O72: 44896 | P72: -18136.42
L73: PctRISERVPUBLICO | M73: 0 | O73: 44927 | P73: 4086.83
O74: 44958 | P74: 0
L75: Tipo | M75: % RI Anterior | O75: 44986 | P75: 3706.03
L76: PctRIResidencial | M76: 0.0064 | N76: 0.0064 | O76: 45017 | P76: 3783.36
L77: PctRIIndustrial | M77: 0.0035 | N77: 0.0035 | O77: 45047 | P77: 3449.62
L78: PctRICOMERCIAL | M78: 0.004 | N78: 0.004 | O78: 45078 | P78: 3449.62
L79: PctRIRURAL | M79: 0.002 | N79: 0.002
L80: PctRILUMPUBLICA | M80: 0 | N80: 0
L81: PctRIPODERPUBLICO | M81: 0.0001 | N81: 0.0001
L82: PctRISERVPUBLICO | M82: 0 | N82: 0
B84: Tabela de Resumo de Montante DRP ano anterior/ Montante Apurado pelo Mercado
B85: detalhe_grupo | C85: GrupoTarifa | D85: tipoBase | E85: tipofatura | F85: ValorCTAnterior_Sum | G85: ValorAnt_Sum | L85: Prcesso Anterior | N85: RTE
L86: MWh | M86: R$ | N86: MWh | O86: R$ | S86: DthEfetivaPagamento | T86: VlrGarantiaFinanceira | V86: Conta Escassez | W86: Valor | X86: Legislacao
I87: BILATERAL | K87: valor | L87: 601848 | M87: 209403392.4 | S87: 44713 | T87: 97901.74 | V87: IMPORTACAO | W87: -7898702.94
I88: CCEAR-DISP | J88: Alternativa | K88: valor | L88: 51293.09572 | M88: 14388991.88 | S88: 44743 | T88: 97901.74 | V88: BONUS_RED_VOLUNT | W88: -16188590.08
I89: CCEAR-DISP | J89: Nova | K89: valor | L89: 513985.4902 | M89: 167453748.2 | S89: 44774 | T89: 109386.74 | V89: DIFERIMENTOS | W89: -20310139.72
I90: CCEAR-QTD | J90: Alternativa | K90: valor | L90: 4057.024 | M90: 1172614.66 | S90: 44805 | T90: 109386.74 | X90: DSP 1177/2022
I91: CCEAR-QTD | J91: Belo Monte | K91: valor | L91: 478811.271 | M91: 73934562.91 | S91: 44835 | T91: 109386.74
I92: CCEAR-QTD | J92: Madeira | K92: valor | L92: 168323.488 | M92: 27949548.32 | S92: 44866 | T92: 109386.74
I93: CCEAR-QTD | J93: Nova | K93: valor | L93: 361669.3877 | M93: 77883019.63 | S93: 44896 | T93: 109386.74
I94: CCEN | K94: valor | L94: 137326.7024 | M94: 47947618.15 | S94: 44927 | T94: 109386.74
I95: CCGF | K95: valor | L95: 1002327.647 | M95: 137399073.8 | S95: 44958 | T95: 108656.74
I96: ITAIPU | K96: valor | L96: 742887.6811 | M96: 211419705.6 | S96: 44986 | T96: 108656.74
I97: PROINFA | K97: valor | L97: 78877.47159 | S97: 45017 | T97: 108656.74
I98: SOBRA/EXPOSIÇÃO | K98: valor | L98: -386119.2325 | M98: -92093136.19 | S98: 45047 | T98: 108656.74
S99: 45078 | T99: 108656.74
V105: Empresa | W105: AT | X105: MT | Y105: BT
V106: 167 | W106: 0.02134 | X106: 0.35825 | Y106: 0.62041
V107: 102 | W107: 0.064 | X107: 0.32003 | Y107: 0.61596
V108: 103 | W108: 0.02996 | X108: 0.27106 | Y108: 0.69898
V109: 104 | W109: 0.07171 | X109: 0.2909 | Y109: 0.63739
V110: 105 | W110: 0.00823 | X110: 0.24677 | Y110: 0.745
I111: Agente | J111: idagente | K111: indexador | L111: database | M111: RAP do ciclo | N111: Colunas1 | O111: RAP atualizada | V111: 165 | W111: 0.00795 | X111: 0.22554 | Y111: 0.76651
O112: =M112*VLOOKUP(CAPA!C15,Índices!$B$6:$F$626,IF(BD!K112="IPCA",3,2),FALSE)/VLOOKUP(L112,Índices!$B$6:$F$626,IF(BD!K112="IPCA",3,2),FALSE) ->  | V112: 108 | W112: 0.06098 | X112: 0.1711 | Y112: 0.76792
O113: =M113*VLOOKUP(CAPA!C16,Índices!$B$6:$F$626,IF(BD!K113="IPCA",3,2),FALSE)/VLOOKUP(L113,Índices!$B$6:$F$626,IF(BD!K113="IPCA",3,2),FALSE) ->  | V113: 109 | W113: 0.01034 | X113: 0.24366 | Y113: 0.746
O114: =M114*VLOOKUP(CAPA!C17,Índices!$B$6:$F$626,IF(BD!K114="IPCA",3,2),FALSE)/VLOOKUP(L114,Índices!$B$6:$F$626,IF(BD!K114="IPCA",3,2),FALSE) ->  | V114: 110 | W114: 0.01165 | X114: 0.24322 | Y114: 0.74513
O115: =M115*VLOOKUP(CAPA!C18,Índices!$B$6:$F$626,IF(BD!K115="IPCA",3,2),FALSE)/VLOOKUP(L115,Índices!$B$6:$F$626,IF(BD!K115="IPCA",3,2),FALSE) ->  | V115: 111 | W115: 0.03791 | X115: 0.37961 | Y115: 0.58248
O116: =M116*VLOOKUP(CAPA!C19,Índices!$B$6:$F$626,IF(BD!K116="IPCA",3,2),FALSE)/VLOOKUP(L116,Índices!$B$6:$F$626,IF(BD!K116="IPCA",3,2),FALSE) ->  | V116: 112 | W116: 0.02273 | X116: 0.26361 | Y116: 0.71367
O117: =M117*VLOOKUP(CAPA!C20,Índices!$B$6:$F$626,IF(BD!K117="IPCA",3,2),FALSE)/VLOOKUP(L117,Índices!$B$6:$F$626,IF(BD!K117="IPCA",3,2),FALSE) ->  | V117: 113 | W117: 0.01263 | X117: 0.23345 | Y117: 0.75392
O118: =M118*VLOOKUP(CAPA!C21,Índices!$B$6:$F$626,IF(BD!K118="IPCA",3,2),FALSE)/VLOOKUP(L118,Índices!$B$6:$F$626,IF(BD!K118="IPCA",3,2),FALSE) ->  | V118: 114 | W118: 0.01726 | X118: 0.23794 | Y118: 0.7448
O119: =M119*VLOOKUP(CAPA!C22,Índices!$B$6:$F$626,IF(BD!K119="IPCA",3,2),FALSE)/VLOOKUP(L119,Índices!$B$6:$F$626,IF(BD!K119="IPCA",3,2),FALSE) ->  | V119: 115 | W119: 0.00993 | X119: 0.23087 | Y119: 0.7592
O120: =M120*VLOOKUP(CAPA!C23,Índices!$B$6:$F$626,IF(BD!K120="IPCA",3,2),FALSE)/VLOOKUP(L120,Índices!$B$6:$F$626,IF(BD!K120="IPCA",3,2),FALSE) ->  | S120: iddet1 | T120: valor | V120: 116 | W120: 0.00806 | X120: 0.16835 | Y120: 0.82359
O121: =M121*VLOOKUP(CAPA!C24,Índices!$B$6:$F$626,IF(BD!K121="IPCA",3,2),FALSE)/VLOOKUP(L121,Índices!$B$6:$F$626,IF(BD!K121="IPCA",3,2),FALSE) ->  | S121: 56 | T121: 45096 | V121: 117 | W121: 0.03028 | X121: 0.29131 | Y121: 0.67841
O122: =M122*VLOOKUP(CAPA!C25,Índices!$B$6:$F$626,IF(BD!K122="IPCA",3,2),FALSE)/VLOOKUP(L122,Índices!$B$6:$F$626,IF(BD!K122="IPCA",3,2),FALSE) ->  | S122: 57 | T122: 45092 | V122: 118 | W122: 0.04215 | X122: 0.2081 | Y122: 0.74975
O123: =M123*VLOOKUP(CAPA!C26,Índices!$B$6:$F$626,IF(BD!K123="IPCA",3,2),FALSE)/VLOOKUP(L123,Índices!$B$6:$F$626,IF(BD!K123="IPCA",3,2),FALSE) ->  | S123: 58 | T123: 45047 | V123: 119 | W123: 0.01807 | X123: 0.11713 | Y123: 0.8648
O124: =M124*VLOOKUP(CAPA!C27,Índices!$B$6:$F$626,IF(BD!K124="IPCA",3,2),FALSE)/VLOOKUP(L124,Índices!$B$6:$F$626,IF(BD!K124="IPCA",3,2),FALSE) ->  | V124: 120 | W124: - | X124: 0.17688 | Y124: 0.82312
O125: =M125*VLOOKUP(CAPA!C28,Índices!$B$6:$F$626,IF(BD!K125="IPCA",3,2),FALSE)/VLOOKUP(L125,Índices!$B$6:$F$626,IF(BD!K125="IPCA",3,2),FALSE) ->  | V125: 123 | W125: - | X125: 0.13612 | Y125: 0.86388
O126: =M126*VLOOKUP(CAPA!C29,Índices!$B$6:$F$626,IF(BD!K126="IPCA",3,2),FALSE)/VLOOKUP(L126,Índices!$B$6:$F$626,IF(BD!K126="IPCA",3,2),FALSE) ->  | V126: 166 | W126: 0.04257 | X126: 0.29652 | Y126: 0.66092
O127: =M127*VLOOKUP(CAPA!C30,Índices!$B$6:$F$626,IF(BD!K127="IPCA",3,2),FALSE)/VLOOKUP(L127,Índices!$B$6:$F$626,IF(BD!K127="IPCA",3,2),FALSE) ->  | V127: 128 | W127: - | X127: 0.40427 | Y127: 0.59573
O128: =M128*VLOOKUP(CAPA!C31,Índices!$B$6:$F$626,IF(BD!K128="IPCA",3,2),FALSE)/VLOOKUP(L128,Índices!$B$6:$F$626,IF(BD!K128="IPCA",3,2),FALSE) ->  | V128: 129 | W128: 0.02905 | X128: 0.24895 | Y128: 0.722
O129: =M129*VLOOKUP(CAPA!C32,Índices!$B$6:$F$626,IF(BD!K129="IPCA",3,2),FALSE)/VLOOKUP(L129,Índices!$B$6:$F$626,IF(BD!K129="IPCA",3,2),FALSE) ->  | V129: 130 | W129: 0.0175 | X129: 0.14397 | Y129: 0.83853
O130: =M130*VLOOKUP(CAPA!C33,Índices!$B$6:$F$626,IF(BD!K130="IPCA",3,2),FALSE)/VLOOKUP(L130,Índices!$B$6:$F$626,IF(BD!K130="IPCA",3,2),FALSE) ->  | S130: Nível | T130: Mercado Faturado A-6 | V130: 131 | W130: - | X130: 0.30099 | Y130: 0.69901
O131: =M131*VLOOKUP(CAPA!C34,Índices!$B$6:$F$626,IF(BD!K131="IPCA",3,2),FALSE)/VLOOKUP(L131,Índices!$B$6:$F$626,IF(BD!K131="IPCA",3,2),FALSE) ->  | S131: AT | T131: 344788.326 | V131: 132 | W131: 0.02757 | X131: 0.26424 | Y131: 0.70819
O132: =M132*VLOOKUP(CAPA!C35,Índices!$B$6:$F$626,IF(BD!K132="IPCA",3,2),FALSE)/VLOOKUP(L132,Índices!$B$6:$F$626,IF(BD!K132="IPCA",3,2),FALSE) ->  | S132: BT | T132: 2467606.644 | V132: 133 | W132: 0.01856 | X132: 0.19536 | Y132: 0.78608
S133: MT | T133: 1464131.374 | V133: 135 | W133: 0.04788 | X133: 0.27054 | Y133: 0.68158
V134: 136 | W134: 0.06732 | X134: 0.35547 | Y134: 0.57721
V135: 138 | W135: - | X135: 0.07651 | Y135: 0.92349
V136: 139 | W136: - | X136: 0.35483 | Y136: 0.64517
V137: 140 | W137: 0.01004 | X137: 0.21058 | Y137: 0.77938
V138: 143 | W138: - | X138: 0.20409 | Y138: 0.79591
V139: 144 | W139: - | X139: 0.48131 | Y139: 0.51869
A140: NumBar | B140: Nome Conexão | C140: Tensão | D140: Posto Tarifário | E140: Tarifas RB - DRA | F140: Tarifa RB - DRP | G140: Tarifas Fronteira - DRA | H140: Tarifa Fronteira - DRP | I140: M01 | J140: M02 | K140: M03 | L140: M04 | M140: M05 | N140: M06 | O140: M07 | P140: M08 | Q140: M09 | R140: M10 | S140: M11 | T140: M12 | V140: 145 | W140: 0.03725 | X140: 0.29306 | Y140: 0.66969
A141: 3180 | B141: ALTO ALEGRE - 138 kV (A) | C141: 138 | D141: Ponta | E141: 5539 | F141: 6718 | G141: 6279 | H141: 6825 | I141: 3 | J141: 3 | K141: 3 | L141: 3 | M141: 3 | N141: 3 | O141: 3 | P141: 3 | Q141: 3 | R141: 3 | S141: 3 | T141: 3 | W141: - | X141: 0.14124 | Y141: 0.85876
A142: 3190 | B142: BASTOS - 138 kV (A) | C142: 138 | D142: Ponta | E142: 5635 | F142: 6804 | G142: 6279 | H142: 6825 | I142: 15.5 | J142: 15.5 | K142: 15.5 | L142: 15.5 | M142: 15.5 | N142: 15.5 | O142: 15.5 | P142: 15.5 | Q142: 15.5 | R142: 15.5 | S142: 15.5 | T142: 15.5 | V142: 147 | W142: - | X142: 0.20977 | Y142: 0.79023
A143: 3155 | B143: BORBOREMA - 138 kV (A) | C143: 138 | D143: Ponta | E143: 6096 | F143: 7239 | G143: 6279 | H143: 6825 | I143: 23.9 | J143: 23.9 | K143: 23.9 | L143: 23.9 | M143: 23.9 | N143: 23.9 | O143: 23.9 | P143: 23.9 | Q143: 23.9 | R143: 23.9 | S143: 23.9 | T143: 23.9 | V143: 148 | W143: 0.03455 | X143: 0.23757 | Y143: 0.72788
A144: 3158 | B144: BRA. PAULISTA - 138 kV (A) | C144: 138 | D144: Ponta | E144: 6799 | F144: 7946 | G144: 6279 | H144: 6825 | I144: 164.1 | J144: 164.1 | K144: 164.1 | L144: 164.1 | M144: 164.1 | N144: 164.1 | O144: 164.1 | P144: 164.1 | Q144: 164.1 | R144: 164.1 | S144: 164.1 | T144: 164.1 | V144: 149 | W144: - | X144: 0.17399 | Y144: 0.82601
B145: BRANCO PERES138kVA | C145: 138 | D145: Ponta | F145: 6712 | H145: 6825 | I145: 0 | J145: 0 | K145: 1.6 | L145: 1.6 | M145: 1.6 | N145: 1.6 | O145: 4.285 | P145: 4.285 | Q145: 4.285 | R145: 4.285 | S145: 4.285 | T145: 4.285 | V145: 150 | W145: 0.03635 | X145: 0.17413 | Y145: 0.78952
A146: 550 | B146: CAPIVARA - 138 kV (A) | C146: 138 | D146: Ponta | E146: 5646 | F146: 6896 | G146: 7 | H146: 10 | I146: 5.7 | J146: 5.7 | K146: 5.7 | L146: 5.7 | M146: 5.7 | N146: 5.7 | O146: 6 | P146: 6 | Q146: 6 | R146: 6 | S146: 6 | T146: 6 | V146: 151 | W146: 0.02735 | X146: 0.28351 | Y146: 0.68915
A147: 638 | B147: CATANDUVA - 138 kV (A) | C147: 138 | D147: Ponta | E147: 5946 | F147: 7073 | G147: 6279 | H147: 6825 | I147: 83.5 | J147: 83.5 | K147: 83.5 | L147: 83.5 | M147: 83.5 | N147: 83.5 | O147: 83.5 | P147: 83.5 | Q147: 83.5 | R147: 83.5 | S147: 83.5 | T147: 83.5 | V147: 152 | W147: 0.00215 | X147: 0.1412 | Y147: 0.85665
A148: 3175 | B148: ENEIDA - 138 kV (A) | C148: 138 | D148: Ponta | E148: 5539 | F148: 6718 | G148: 6279 | H148: 6825 | I148: 2.8 | J148: 2.8 | K148: 2.8 | L148: 2.8 | M148: 2.8 | N148: 2.8 | O148: 2.8 | P148: 2.8 | Q148: 2.8 | R148: 2.8 | S148: 2.8 | T148: 2.8 | V148: 153 | W148: 0.03606 | X148: 0.17601 | Y148: 0.78793
B149: OSVALDO CRUZ - 138 kV (A) | C149: 138 | D149: Ponta | F149: 6775 | H149: 6825 | I149: 19 | J149: 19 | K149: 19 | L149: 19 | M149: 19 | N149: 19 | O149: 23 | P149: 23 | Q149: 23 | R149: 23 | S149: 23 | T149: 23 | V149: 154 | W149: 0.12913 | X149: 0.26626 | Y149: 0.60462
A150: 659 | B150: P.PRUDENTE 2138kVA | C150: 138 | D150: Ponta | E150: 5654 | F150: 6910 | G150: 6279 | H150: 6825 | I150: 18.5 | J150: 18.5 | K150: 18.5 | L150: 18.5 | M150: 18.5 | N150: 18.5 | O150: 18.5 | P150: 18.5 | Q150: 18.5 | R150: 18.5 | S150: 18.5 | T150: 18.5 | V150: 155 | W150: 0.04008 | X150: 0.23225 | Y150: 0.72768
A151: 3172 | B151: PRE.PRUDENTE4 - 138 kV (A) | C151: 138 | D151: Ponta | E151: 5654 | F151: 6910 | G151: 6279 | H151: 6825 | I151: 31 | J151: 31 | K151: 31 | L151: 31 | M151: 31 | N151: 31 | O151: 31 | P151: 31 | Q151: 31 | R151: 31 | S151: 31 | T151: 31 | V151: 156 | W151: - | X151: 0.35985 | Y151: 0.64015
A152: 3178 | B152: PRE.PRUDENTE5 - 138 kV (A) | C152: 138 | D152: Ponta | E152: 5642 | F152: 6896 | G152: 6279 | H152: 6825 | I152: 66 | J152: 66 | K152: 66 | L152: 66 | M152: 66 | N152: 66 | O152: 66 | P152: 66 | Q152: 66 | R152: 66 | S152: 66 | T152: 66 | V152: 157 | W152: - | X152: 0.15963 | Y152: 0.84037
B153: PRE.VENCESLAU - 138 kV (A) | C153: 138 | D153: Ponta | F153: 6789 | H153: 6825 | I153: 63.5 | J153: 63.5 | K153: 63.5 | L153: 63.5 | M153: 63.5 | N153: 63.5 | O153: 64.1 | P153: 64.1 | Q153: 64.1 | R153: 64.1 | S153: 64.1 | T153: 64.1 | V153: 158 | W153: - | X153: 0.33049 | Y153: 0.66951
A154: 3159 | B154: STA.TEREZINHA - 138 kV (A) | C154: 138 | D154: Ponta | E154: 6789 | F154: 7935 | G154: 6279 | H154: 6825 | I154: 35 | J154: 35 | K154: 35 | L154: 35 | M154: 35 | N154: 35 | O154: 36.3 | P154: 36.3 | Q154: 36.3 | R154: 36.3 | S154: 36.3 | T154: 36.3 | V154: 160 | W154: 0.1013 | X154: 0.22818 | Y154: 0.67051
A155: 3191 | B155: TUPA - 138 kV (A) | C155: 138 | D155: Ponta | E155: 5669 | F155: 6835 | G155: 6279 | H155: 6825 | I155: 32.2 | J155: 32.2 | K155: 32.2 | L155: 33.1 | M155: 33.1 | N155: 33.1 | O155: 33.1 | P155: 33.1 | Q155: 33.1 | R155: 33.1 | S155: 33.1 | T155: 33.1 | V155: 161 | W155: - | X155: 0.28355 | Y155: 0.71645
A156: 3164 | B156: URUPES - 138 kV (A) | C156: 138 | D156: Ponta | E156: 5922 | F156: 7052 | G156: 6279 | H156: 6825 | I156: 25.4 | J156: 25.4 | K156: 25.4 | L156: 25.4 | M156: 25.4 | N156: 25.4 | O156: 25.4 | P156: 25.4 | Q156: 25.4 | R156: 25.4 | S156: 25.4 | T156: 25.4 | V156: 163 | W156: 0.03507 | X156: 0.1664 | Y156: 0.79853
A157: 642 | B157: FLOR.PAULISTA - 69 kV (A) | C157: 69 | D157: Ponta | E157: 5544 | F157: 6721 | G157: 6279 | H157: 6825 | I157: 20.9 | J157: 20.9 | K157: 20.9 | L157: 22.5 | M157: 22.5 | N157: 22.5 | O157: 22.5 | P157: 22.5 | Q157: 22.5 | R157: 22.5 | S157: 22.5 | T157: 22.5 | V157: 164 | W157: - | X157: 0.12897 | Y157: 0.87103
A158: 672 | B158: UBARANA - 69 kV (A) | C158: 69 | D158: Ponta | E158: 5878 | F158: 7015 | G158: 6279 | H158: 6825 | I158: 19.9 | J158: 19.9 | K158: 19.9 | L158: 19.9 | M158: 19.9 | N158: 19.9 | O158: 20.8 | P158: 20.8 | Q158: 20.8 | R158: 20.8 | S158: 20.8 | T158: 20.8
A159: 3192 | B159: ASSIS I - 88 kV (A) | C159: 88 | D159: Ponta | E159: 6114 | F159: 7482 | G159: 6279 | H159: 6825 | I159: 31.5 | J159: 31.5 | K159: 31.5 | L159: 31.5 | M159: 31.5 | N159: 31.5 | O159: 36 | P159: 36 | Q159: 36 | R159: 36 | S159: 36 | T159: 36
A160: 3193 | B160: ASSIS III - 88 kV (A) | C160: 88 | D160: Ponta | E160: 6106 | F160: 7474 | G160: 6279 | H160: 6825 | I160: 30.9 | J160: 30.9 | K160: 30.9 | L160: 30.9 | M160: 32.7 | N160: 32.7 | O160: 32.7 | P160: 32.7 | Q160: 32.7 | R160: 32.7 | S160: 32.7 | T160: 32.7
A161: 3197 | B161: CANDIDO MOTA - 88 kV (A) | C161: 88 | D161: Ponta | E161: 6293 | F161: 7654 | G161: 6279 | H161: 6825 | I161: 15.9 | J161: 15.9 | K161: 15.9 | L161: 15.9 | M161: 15.9 | N161: 15.9 | O161: 15.9 | P161: 15.9 | Q161: 15.9 | R161: 15.9 | S161: 15.9 | T161: 15.9
A162: 9112 | B162: DECASA - 88 kV (A) | C162: 88 | D162: Ponta | E162: 6203 | F162: 7567 | G162: 6279 | H162: 6825 | I162: 2.5 | J162: 2.5 | K162: 2.5 | L162: 2.5 | M162: 2.5 | N162: 2.5 | O162: 2.5 | P162: 2.5 | Q162: 2.5 | R162: 2.5 | S162: 2.5 | T162: 2.5
A163: 3184 | B163: HALOTEK FADEL - 88 kV (A) | C163: 88 | D163: Ponta | E163: 6165 | F163: 7531 | G163: 6279 | H163: 6825 | I163: 7 | J163: 7 | K163: 7 | L163: 7 | M163: 7 | N163: 7 | O163: 7 | P163: 7 | Q163: 7 | R163: 7 | S163: 7 | T163: 7 | V163: Tab_EnergiaConsumidaMWh
A164: 3199 | B164: IBIRAREMA - 88 kV (A) | C164: 88 | D164: Ponta | E164: 6228 | F164: 7591 | G164: 6279 | H164: 6825 | I164: 11 | J164: 11 | K164: 11 | L164: 11 | M164: 11 | N164: 11 | O164: 12 | P164: 12 | Q164: 12 | R164: 12 | S164: 12 | T164: 12 | V164: Competencia | W164: EnergiaConsumidaMWh | X164: EnergiaFaturadaMWh | Y164: Dif_Consumida_FaturadaMWh
A165: 9519 | B165: MARACAI - 88 kV (A) | C165: 88 | D165: Ponta | E165: 6056 | F165: 7414 | G165: 6279 | H165: 6825 | I165: 6.5 | J165: 6.5 | K165: 6.5 | L165: 6.5 | M165: 6.5 | N165: 6.5 | O165: 6.5 | P165: 6.5 | Q165: 6.5 | R165: 6.5 | S165: 6.5 | T165: 6.5 | V165: 44743 | W165: 22695.965 | X165: 10180.302 | Y165: 12515.663
B166: MARTINOPOLIS - 88 kV (A) | C166: 88 | D166: Ponta | F166: 7058 | H166: 6825 | I166: 15.4 | J166: 15.4 | K166: 15.4 | L166: 15.4 | M166: 15.4 | N166: 15.4 | O166: 17 | P166: 17 | Q166: 17 | R166: 17 | S166: 17 | T166: 17 | V166: 44774 | W166: 24452.499 | X166: 11201.022 | Y166: 13251.477
A167: 3198 | B167: PALMITAL - 88 kV (A) | C167: 88 | D167: Ponta | E167: 6173 | F167: 7538 | G167: 6279 | H167: 6825 | I167: 9.8 | J167: 9.8 | K167: 9.8 | L167: 9.8 | M167: 9.8 | N167: 9.8 | O167: 10.2 | P167: 10.2 | Q167: 10.2 | R167: 10.2 | S167: 10.2 | T167: 10.2 | V167: 44805 | W167: 26234.065 | X167: 11330.173 | Y167: 14903.892
A168: 3194 | B168: PAR.PAULISTA2 - 88 kV (A) | C168: 88 | D168: Ponta | E168: 6029 | F168: 7382 | G168: 6279 | H168: 6825 | I168: 21.3 | J168: 21.3 | K168: 21.3 | L168: 21.3 | M168: 21.3 | N168: 21.3 | O168: 21.8 | P168: 21.8 | Q168: 21.8 | R168: 21.8 | S168: 21.8 | T168: 21.8 | V168: 44835 | W168: 27620.833 | X168: 11739.293 | Y168: 15881.54
A169: 3171 | B169: PRE.PRUDENTE1 - 88 kV (A) | C169: 88 | D169: Ponta | E169: 5698 | F169: 6966 | G169: 6279 | H169: 6825 | I169: 59.6 | J169: 59.6 | K169: 59.6 | L169: 59.6 | M169: 59.6 | N169: 59.6 | O169: 61.3 | P169: 61.3 | Q169: 61.3 | R169: 61.3 | S169: 61.3 | T169: 61.3 | V169: 44866 | W169: 28355.354 | X169: 11059.926 | Y169: 17295.428
A170: 9521 | B170: QUATA II - 88 kV (A) | C170: 88 | D170: Ponta | E170: 5951 | F170: 7283 | G170: 6279 | H170: 6825 | I170: 14.6 | J170: 14.6 | K170: 14.6 | L170: 15.1 | M170: 22.5 | N170: 22.5 | O170: 22.5 | P170: 22.5 | Q170: 22.5 | R170: 22.5 | S170: 22.5 | T170: 22.5 | V170: 44896 | W170: 34900.465 | X170: 13667.571 | Y170: 21232.894
A171: 3196 | B171: RANCHARIA - 88 kV (A) | C171: 88 | D171: Ponta | E171: 5880 | F171: 7194 | G171: 6279 | H171: 6825 | I171: 17.8 | J171: 17.8 | K171: 17.8 | L171: 17.8 | M171: 17.8 | N171: 17.8 | O171: 17.8 | P171: 17.8 | Q171: 17.8 | R171: 17.8 | S171: 17.8 | T171: 17.8 | V171: 44927 | W171: 34158.527 | X171: 14756.043 | Y171: 19402.484
A172: 3195 | B172: SANTA LINA - 88 kV (A) | C172: 88 | D172: Ponta | E172: 5965 | F172: 7302 | G172: 6279 | H172: 6825 | I172: 7.3 | J172: 7.3 | K172: 7.3 | L172: 7.3 | M172: 7.3 | N172: 7.3 | O172: 8.2 | P172: 8.2 | Q172: 8.2 | R172: 8.2 | S172: 8.2 | T172: 8.2 | V172: 44958 | W172: 36435.422 | X172: 15382.819 | Y172: 21052.603
A173: 9513 | B173: UTE COCAL - 88 kV (A) | C173: 88 | D173: Ponta | E173: 6025 | F173: 7377 | G173: 6279 | H173: 6825 | I173: 4 | J173: 4 | K173: 4 | L173: 4 | M173: 4 | N173: 4 | O173: 4 | P173: 4 | Q173: 4 | R173: 4 | S173: 4 | T173: 4 | V173: 44986 | W173: 40496.164 | X173: 17082.965 | Y173: 23413.199
A174: 3180 | B174: ALTO ALEGRE - 138 kV (A) | C174: 138 | D174: Fora Ponta | E174: 5414 | F174: 6553 | G174: 6279 | H174: 6825 | I174: 3.5 | J174: 3.5 | K174: 3.5 | L174: 3.5 | M174: 3.5 | N174: 3.5 | O174: 3.5 | P174: 3.5 | Q174: 3.5 | R174: 3.5 | S174: 3.5 | T174: 3.5 | V174: 45017 | W174: 40558.619 | X174: 19073.035 | Y174: 21485.584
A175: 3190 | B175: BASTOS - 138 kV (A) | C175: 138 | D175: Fora Ponta | E175: 5521 | F175: 6650 | G175: 6279 | H175: 6825 | I175: 19 | J175: 19 | K175: 19 | L175: 19 | M175: 19 | N175: 19 | O175: 19 | P175: 19 | Q175: 19 | R175: 19 | S175: 19 | T175: 19 | V175: 45047 | W175: 37068.249 | X175: 15415.452 | Y175: 21652.797
A176: 3155 | B176: BORBOREMA - 138 kV (A) | C176: 138 | D176: Fora Ponta | E176: 6042 | F176: 7148 | G176: 6279 | H176: 6825 | I176: 24.4 | J176: 24.4 | K176: 24.4 | L176: 24.4 | M176: 24.4 | N176: 24.4 | O176: 24.4 | P176: 24.4 | Q176: 24.4 | R176: 24.4 | S176: 24.4 | T176: 24.4 | V176: 45078 | W176: 37068.249 | X176: 15415.452 | Y176: 21652.797
A177: 3158 | B177: BRA. PAULISTA - 138 kV (A) | C177: 138 | D177: Fora Ponta | E177: 6813 | F177: 7941 | G177: 6279 | H177: 6825 | I177: 170.3 | J177: 170.3 | K177: 170.3 | L177: 170.3 | M177: 170.3 | N177: 170.3 | O177: 170.3 | P177: 170.3 | Q177: 170.3 | R177: 170.3 | S177: 170.3 | T177: 170.3
B178: BRANCO PERES138kVA | C178: 138 | D178: Fora Ponta | F178: 6544 | H178: 6825 | I178: 0 | J178: 0 | K178: 1.6 | L178: 1.6 | M178: 1.6 | N178: 1.6 | O178: 4.285 | P178: 4.285 | Q178: 4.285 | R178: 4.285 | S178: 4.285 | T178: 4.285
A179: 550 | B179: CAPIVARA - 138 kV (A) | C179: 138 | D179: Fora Ponta | E179: 5544 | F179: 6767 | G179: 7 | H179: 10 | I179: 6.3 | J179: 6.3 | K179: 6.3 | L179: 6.3 | M179: 6.3 | N179: 6.3 | O179: 6.5 | P179: 6.5 | Q179: 6.5 | R179: 6.5 | S179: 6.5 | T179: 6.5
A180: 638 | B180: CATANDUVA - 138 kV (A) | C180: 138 | D180: Fora Ponta | E180: 5864 | F180: 6957 | G180: 6279 | H180: 6825 | I180: 93.5 | J180: 93.5 | K180: 93.5 | L180: 93.5 | M180: 93.5 | N180: 93.5 | O180: 93.5 | P180: 93.5 | Q180: 93.5 | R180: 93.5 | S180: 93.5 | T180: 93.5
A181: 3175 | B181: ENEIDA - 138 kV (A) | C181: 138 | D181: Fora Ponta | E181: 5414 | F181: 6553 | G181: 6279 | H181: 6825 | I181: 2.8 | J181: 2.8 | K181: 2.8 | L181: 2.8 | M181: 2.8 | N181: 2.8 | O181: 2.8 | P181: 2.8 | Q181: 2.8 | R181: 2.8 | S181: 2.8 | T181: 2.8
B182: OSVALDO CRUZ - 138 kV (A) | C182: 138 | D182: Fora Ponta | F182: 6617 | H182: 6825 | I182: 20.5 | J182: 20.5 | K182: 20.5 | L182: 20.5 | M182: 20.5 | N182: 20.5 | O182: 22.8 | P182: 22.8 | Q182: 22.8 | R182: 22.8 | S182: 22.8 | T182: 22.8
A183: 659 | B183: P.PRUDENTE 2138kVA | C183: 138 | D183: Fora Ponta | E183: 5553 | F183: 6783 | G183: 6279 | H183: 6825 | I183: 18.5 | J183: 18.5 | K183: 18.5 | L183: 18.5 | M183: 18.5 | N183: 18.5 | O183: 18.5 | P183: 18.5 | Q183: 18.5 | R183: 18.5 | S183: 18.5 | T183: 18.5
A184: 3172 | B184: PRE.PRUDENTE4 - 138 kV (A) | C184: 138 | D184: Fora Ponta | E184: 5553 | F184: 6783 | G184: 6279 | H184: 6825 | I184: 36 | J184: 36 | K184: 36 | L184: 36 | M184: 36 | N184: 36 | O184: 36 | P184: 36 | Q184: 36 | R184: 36 | S184: 36 | T184: 36
A185: 3178 | B185: PRE.PRUDENTE5 - 138 kV (A) | C185: 138 | D185: Fora Ponta | E185: 5539 | F185: 6767 | G185: 6279 | H185: 6825 | I185: 67.2 | J185: 67.2 | K185: 67.2 | L185: 67.2 | M185: 67.2 | N185: 67.2 | O185: 67.2 | P185: 67.2 | Q185: 67.2 | R185: 67.2 | S185: 67.2 | T185: 67.2
B186: PRE.VENCESLAU - 138 kV (A) | C186: 138 | D186: Fora Ponta | F186: 6640 | H186: 6825 | I186: 73.3 | J186: 73.3 | K186: 73.3 | L186: 73.3 | M186: 73.3 | N186: 73.3 | O186: 73.6 | P186: 73.6 | Q186: 73.6 | R186: 73.6 | S186: 73.6 | T186: 73.6
A187: 3159 | B187: STA.TEREZINHA - 138 kV (A) | C187: 138 | D187: Fora Ponta | E187: 6804 | F187: 7930 | G187: 6279 | H187: 6825 | I187: 37 | J187: 37 | K187: 37 | L187: 37 | M187: 37 | N187: 37 | O187: 37 | P187: 37 | Q187: 37 | R187: 37 | S187: 37 | T187: 37
A188: 3191 | B188: TUPA - 138 kV (A) | C188: 138 | D188: Fora Ponta | E188: 5559 | F188: 6685 | G188: 6279 | H188: 6825 | I188: 33.6 | J188: 33.6 | K188: 33.6 | L188: 35.8 | M188: 35.8 | N188: 35.8 | O188: 35.8 | P188: 35.8 | Q188: 35.8 | R188: 35.8 | S188: 35.8 | T188: 35.8
A189: 3164 | B189: URUPES - 138 kV (A) | C189: 138 | D189: Fora Ponta | E189: 5837 | F189: 6932 | G189: 6279 | H189: 6825 | I189: 27 | J189: 27 | K189: 27 | L189: 27 | M189: 27 | N189: 27 | O189: 27 | P189: 27 | Q189: 27 | R189: 27 | S189: 27 | T189: 27
A190: 642 | B190: FLOR.PAULISTA - 69 kV (A) | C190: 69 | D190: Fora Ponta | E190: 5419 | F190: 6556 | G190: 6279 | H190: 6825 | I190: 22.6 | J190: 22.6 | K190: 22.6 | L190: 23.4 | M190: 23.4 | N190: 23.4 | O190: 23.6 | P190: 23.6 | Q190: 23.6 | R190: 23.6 | S190: 23.6 | T190: 23.6
A191: 672 | B191: UBARANA - 69 kV (A) | C191: 69 | D191: Fora Ponta | E191: 5789 | F191: 6889 | G191: 6279 | H191: 6825 | I191: 23.4 | J191: 23.4 | K191: 23.4 | L191: 23.4 | M191: 23.4 | N191: 23.4 | O191: 24.4 | P191: 24.4 | Q191: 24.4 | R191: 24.4 | S191: 24.4 | T191: 24.4
A192: 3192 | B192: ASSIS I - 88 kV (A) | C192: 88 | D192: Fora Ponta | E192: 6122 | F192: 7453 | G192: 6279 | H192: 6825 | I192: 31.2 | J192: 31.2 | K192: 31.2 | L192: 31.2 | M192: 31.2 | N192: 31.2 | O192: 35.7 | P192: 35.7 | Q192: 35.7 | R192: 35.7 | S192: 35.7 | T192: 35.7
A193: 3193 | B193: ASSIS III - 88 kV (A) | C193: 88 | D193: Fora Ponta | E193: 6113 | F193: 7443 | G193: 6279 | H193: 6825 | I193: 32.9 | J193: 32.9 | K193: 32.9 | L193: 32.9 | M193: 32.9 | N193: 32.9 | O193: 32.9 | P193: 32.9 | Q193: 32.9 | R193: 32.9 | S193: 32.9 | T193: 32.9
A194: 3197 | B194: CANDIDO MOTA - 88 kV (A) | C194: 88 | D194: Fora Ponta | E194: 6329 | F194: 7653 | G194: 6279 | H194: 6825 | I194: 17.1 | J194: 17.1 | K194: 17.1 | L194: 17.1 | M194: 17.1 | N194: 17.1 | O194: 17.1 | P194: 17.1 | Q194: 17.1 | R194: 17.1 | S194: 17.1 | T194: 17.1
A195: 9112 | B195: DECASA - 88 kV (A) | C195: 88 | D195: Fora Ponta | E195: 6225 | F195: 7552 | G195: 6279 | H195: 6825 | I195: 2.5 | J195: 2.5 | K195: 2.5 | L195: 2.5 | M195: 2.5 | N195: 2.5 | O195: 2.5 | P195: 2.5 | Q195: 2.5 | R195: 2.5 | S195: 2.5 | T195: 2.5
A196: 3184 | B196: HALOTEK FADEL - 88 kV (A) | C196: 88 | D196: Fora Ponta | E196: 6181 | F196: 7510 | G196: 6279 | H196: 6825 | I196: 7 | J196: 7 | K196: 7 | L196: 7 | M196: 7 | N196: 7 | O196: 7 | P196: 7 | Q196: 7 | R196: 7 | S196: 7 | T196: 7
A197: 3199 | B197: IBIRAREMA - 88 kV (A) | C197: 88 | D197: Fora Ponta | E197: 6254 | F197: 7581 | G197: 6279 | H197: 6825 | I197: 10.8 | J197: 10.8 | K197: 10.8 | L197: 10.8 | M197: 10.8 | N197: 10.8 | O197: 12 | P197: 12 | Q197: 12 | R197: 12 | S197: 12 | T197: 12
A198: 9519 | B198: MARACAI - 88 kV (A) | C198: 88 | D198: Fora Ponta | E198: 6050 | F198: 7373 | G198: 6279 | H198: 6825 | I198: 6.5 | J198: 6.5 | K198: 6.5 | L198: 6.5 | M198: 6.5 | N198: 6.5 | O198: 6.5 | P198: 6.5 | Q198: 6.5 | R198: 6.5 | S198: 6.5 | T198: 6.5
B199: MARTINOPOLIS - 88 kV (A) | C199: 88 | D199: Fora Ponta | F199: 6956 | H199: 6825 | I199: 15.5 | J199: 15.5 | K199: 15.5 | L199: 15.5 | M199: 15.5 | N199: 15.5 | O199: 18.2 | P199: 18.2 | Q199: 18.2 | R199: 18.2 | S199: 18.2 | T199: 18.2
A200: 3198 | B200: PALMITAL - 88 kV (A) | C200: 88 | D200: Fora Ponta | E200: 6190 | F200: 7519 | G200: 6279 | H200: 6825 | I200: 9.6 | J200: 9.6 | K200: 9.6 | L200: 10.1 | M200: 10.1 | N200: 10.1 | O200: 11 | P200: 11 | Q200: 11 | R200: 11 | S200: 11 | T200: 11
A201: 3194 | B201: PAR.PAULISTA2 - 88 kV (A) | C201: 88 | D201: Fora Ponta | E201: 6017 | F201: 7335 | G201: 6279 | H201: 6825 | I201: 21.7 | J201: 21.7 | K201: 21.7 | L201: 21.7 | M201: 21.7 | N201: 21.7 | O201: 21.7 | P201: 21.7 | Q201: 21.7 | R201: 21.7 | S201: 21.7 | T201: 21.7
A202: 3171 | B202: PRE.PRUDENTE1 - 88 kV (A) | C202: 88 | D202: Fora Ponta | E202: 5608 | F202: 6849 | G202: 6279 | H202: 6825 | I202: 68.4 | J202: 68.4 | K202: 68.4 | L202: 68.4 | M202: 68.4 | N202: 68.4 | O202: 70.4 | P202: 70.4 | Q202: 70.4 | R202: 70.4 | S202: 70.4 | T202: 70.4
A203: 9521 | B203: QUATA II - 88 kV (A) | C203: 88 | D203: Fora Ponta | E203: 5920 | F203: 7220 | G203: 6279 | H203: 6825 | I203: 14.6 | J203: 14.6 | K203: 14.6 | L203: 15.1 | M203: 22.5 | N203: 22.5 | O203: 22.5 | P203: 22.5 | Q203: 22.5 | R203: 22.5 | S203: 22.5 | T203: 22.5
A204: 3196 | B204: RANCHARIA - 88 kV (A) | C204: 88 | D204: Fora Ponta | E204: 5833 | F204: 7116 | G204: 6279 | H204: 6825 | I204: 18.6 | J204: 18.6 | K204: 18.6 | L204: 18.6 | M204: 18.6 | N204: 18.6 | O204: 19.1 | P204: 19.1 | Q204: 19.1 | R204: 19.1 | S204: 19.1 | T204: 19.1
A205: 3195 | B205: SANTA LINA - 88 kV (A) | C205: 88 | D205: Fora Ponta | E205: 5938 | F205: 7242 | G205: 6279 | H205: 6825 | I205: 6.8 | J205: 6.8 | K205: 6.8 | L205: 6.8 | M205: 6.8 | N205: 6.8 | O205: 8.7 | P205: 8.7 | Q205: 8.7 | R205: 8.7 | S205: 8.7 | T205: 8.7
A206: 9513 | B206: UTE COCAL - 88 kV (A) | C206: 88 | D206: Fora Ponta | E206: 6012 | F206: 7330 | G206: 6279 | H206: 6825 | I206: 4 | J206: 4 | K206: 4 | L206: 4 | M206: 4 | N206: 4 | O206: 4 | P206: 4 | Q206: 4 | R206: 4 | S206: 4 | T206: 4
B469: Transmissora | C469: Indice de atualização | D469: ENCARGO DE CONEXÃO repassável | E469: Instalações com Estabelecimento de RAP que entraram em operação | F469: PA para repasse a tarifa | G469: PA Qualidade DIT | H469: ENCARGO DE CONEXÃO ou PA não rapassável a tarifa (REN 67/2004 ou 68/2004) | I469: PA Empreendimento Autorizado sem estabelecimento prévio de RAP | J469: Contrato | K469: Estimativa Total do Encargo de Conexão
B470: CTEEP | C470: IPCA | D470: 5071089.57 | E470: 0 | F470: 1126102.77 | G470: 0 | H470: 0 | I470: 0 | J470: 059/2001
B498: Tabela de Financeiros para o cálculo da Neutralidade | G498: Tabela de Financeiros para o cálculo da Neutralidade de RB | M498: Tabela de Financeiros para o cálculo da Neutralidade CVA processamento
B499: Grupo Tarifa | C499: Detalhe Grupo | D499: Valor | E499: Percentual | G499: Tipo | H499: Detalhe | I499: Posto | J499: Unidade | K499: Valor | M499: Grupo Tarifa | N499: Detalhe Grupo | O499: Valor | P499: Percentual
B500: ENCARGO | C500: CDE | D500: 273504.2707 | G500: CUSTO | H500: CONEXÃO D | J500: R$ | K500: 0 | M500: ENCARGO | N500: CDE | O500: 54932100.79
... 32 more rows

Sheet Entrada
B1: Entrada de parâmetros para cálculo tarifário
B4: Energia | D4: Últ. Atualização | F4: Parâmetros para Revisão | P4: ="Caso de OR para a empresa é: " &IF(BD!C53=4,"caso 1","caso 3") -> Caso de OR para a empresa é: caso 3
D6: 44825 | F6: CAPEX - Ativos de Distribuição | J6: Custo Operacional Real do(s) último(s) ano(s) | P6: Outras Receitas - Caso 1 e 2 | AC6: =" Diferenças em relação ao RTA "&YEAR(AC7) -> Diferenças em relação ao RTA 2022 | AG6: ="Valores RTA "&YEAR(AG7) -> Valores RTA 2022
B7: Montante de Geração Própria | D7: 44825 | F7: (1) Ativo Imobilizado em Serviço (Valor Novo de Reposição) | G7: =G71*VLOOKUP(DATE(YEAR(CAPA!$C$10),MONTH(CAPA!$C$10)-1,1),Índices!$B$135:$D$638,3,0)/VLOOKUP(DATE(YEAR($G$70),MONTH($G$70)-1,1),Índices!$B$135:$D$638,3,0) ->  | J7: Ano do Custo Operacional | L7: =MAX(Tab_RIT_BMP[ANO])-1 -> -1 | M7: =MAX(Tab_RIT_BMP[ANO]) -> 0 | P7: Tipo de Receita | Q7: =DATE(YEAR(LnkTxtDRPData),MONTH(LnkTxtDRPData)-1,1) -> 2023-06-01 | R7: =DATE(YEAR(Q7),MONTH(Q7)-1,1) -> 2023-05-01 | S7: =DATE(YEAR(R7),MONTH(R7)-1,1) -> 2023-04-01 | T7: 2023-03-01 | U7: 2023-02-01 | V7: 2023-01-01 | W7: 2022-12-01 | X7: 2022-11-01 | Y7: 2022-10-01 | Z7: 2022-09-01 | AA7: 2022-08-01 | AB7: 2022-07-01 | AC7: =EDATE(AB7,-1) -> 2022-06-01 | AD7: =EDATE(AC7,-1) -> 2022-05-01 | AE7: 2022-04-01 | AF7: =AC7 -> 2022-06-01 | AG7: =AD7 -> 2022-05-01 | AH7: 2022-04-01 | AI7: =UDEROR!Y12 -> 00:00:00 | AJ7: =UDEROR!Z12 -> 00:00:00 | AK7: =UDEROR!AA12 -> 00:00:00 | AL7: =UDEROR!AB12 -> 00:00:00 | AM7: =UDEROR!AC12 -> 00:00:00 | AN7: =UDEROR!AD12 -> 00:00:00 | AO7: =UDEROR!AE12 -> 00:00:00 | AP7: =UDEROR!AF12 -> 00:00:00 | AQ7: =UDEROR!AG12 -> 00:00:00 | AR7: =UDEROR!AH12 -> 00:00:00 | AS7: =UDEROR!AI12 -> 00:00:00 | AT7: =UDEROR!AJ12 -> 00:00:00 | AU7: =UDEROR!AK12 -> 00:00:00 | AV7: =UDEROR!AL12 -> 00:00:00 | AW7: =UDEROR!AM12 -> 00:00:00 | AX7: =UDEROR!AN12 -> 00:00:00 | AY7: =UDEROR!AO12 -> 00:00:00 | AZ7: =UDEROR!AP12 -> 00:00:00 | BA7: =UDEROR!AQ12 -> 00:00:00 | BB7: =UDEROR!AR12 -> 00:00:00 | BC7: =UDEROR!AS12 -> 00:00:00 | BD7: =UDEROR!AT12 -> 00:00:00
B8: Custo médio da Geração Própria | D8: 44825 | F8: (2) Índice de Aproveitamento Integral | G8: =G72*VLOOKUP(DATE(YEAR(CAPA!$C$10),MONTH(CAPA!$C$10)-1,1),Índices!$B$135:$D$638,3,0)/VLOOKUP(DATE(YEAR($G$70),MONTH($G$70)-1,1),Índices!$B$135:$D$638,3,0) ->  | J8: CONTA PESSOAL | P8: Serviços Cobráveis | Q8: =SUMIFS(Tab_Uderor[R$],Tab_Uderor[Competencia],Entrada!Q$7,Tab_Uderor[TipoReceita],Entrada!$P8)*0+R8 -> 158561.32 | R8: =SUMIFS(Tab_Uderor[R$],Tab_Uderor[Competencia],Entrada!R$7,Tab_Uderor[TipoReceita],Entrada!$P8) -> 158561.32 | S8: =SUMIFS(Tab_Uderor[R$],Tab_Uderor[Competencia],Entrada!S$7,Tab_Uderor[TipoReceita],Entrada!$P8) -> 131503.49 | T8: =SUMIFS(Tab_Uderor[R$],Tab_Uderor[Competencia],Entrada!T$7,Tab_Uderor[TipoReceita],Entrada!$P8) -> 107403.09 | U8: =SUMIFS(Tab_Uderor[R$],Tab_Uderor[Competencia],Entrada!U$7,Tab_Uderor[TipoReceita],Entrada!$P8) -> 112535.15 | V8: =SUMIFS(Tab_Uderor[R$],Tab_Uderor[Competencia],Entrada!V$7,Tab_Uderor[TipoReceita],Entrada!$P8) -> 136043.07 | W8: =SUMIFS(Tab_Uderor[R$],Tab_Uderor[Competencia],Entrada!W$7,Tab_Uderor[TipoReceita],Entrada!$P8) -> 180290.46 | X8: =SUMIFS(Tab_Uderor[R$],Tab_Uderor[Competencia],Entrada!X$7,Tab_Uderor[TipoReceita],Entrada!$P8) -> 136144.92 | Y8: =SUMIFS(Tab_Uderor[R$],Tab_Uderor[Competencia],Entrada!Y$7,Tab_Uderor[TipoReceita],Entrada!$P8) -> 147127.23 | Z8: =SUMIFS(Tab_Uderor[R$],Tab_Uderor[Competencia],Entrada!Z$7,Tab_Uderor[TipoReceita],Entrada!$P8) -> 171911.47 | AA8: =SUMIFS(Tab_Uderor[R$],Tab_Uderor[Competencia],Entrada!AA$7,Tab_Uderor[TipoReceita],Entrada!$P8) -> 175947.13 | AB8: =SUMIFS(Tab_Uderor[R$],Tab_Uderor[Competencia],Entrada!AB$7,Tab_Uderor[TipoReceita],Entrada!$P8) -> 172289.02 | AC8: =SUMIFS(Tab_Uderor[R$],Tab_Uderor[Competencia],Entrada!AC$7,Tab_Uderor[TipoReceita],Entrada!$P8)-AF8 -> -6203.11 | AD8: =SUMIFS(Tab_Uderor[R$],Tab_Uderor[Competencia],Entrada!AD$7,Tab_Uderor[TipoReceita],Entrada!$P8)-AG8 -> 0 | AE8: =SUMIFS(Tab_Uderor[R$],Tab_Uderor[Competencia],Entrada!AE$7,Tab_Uderor[TipoReceita],Entrada!$P8)-AH8 -> 0 | AF8: 175334.6 | AG8: 175334.6 | AH8: 98619.1
D9: 44825 | F9: (3) Obrigações Especiais Bruta | G9: =G73*VLOOKUP(DATE(YEAR(CAPA!$C$10),MONTH(CAPA!$C$10)-1,1),Índices!$B$135:$D$638,3,0)/VLOOKUP(DATE(YEAR($G$70),MONTH($G$70)-1,1),Índices!$B$135:$D$638,3,0) ->  | J9: BMP - 610530501; 610550501; 610532501; 610552501 | K9: Remuneração | L9: =SUMIFS(Tab_RIT_BMP[SALDO],Tab_RIT_BMP[CONTA],610530501,Tab_RIT_BMP[ANO],$L$7)+SUMIFS(Tab_RIT_BMP[SALDO],Tab_RIT_BMP[CONTA],610550501,Tab_RIT_BMP[ANO],$L$7)+ SUMIFS(Tab_RIT_BMP[SALDO],Tab_RIT_BMP[CONTA],610532501,Tab_RIT_BMP[ANO],$L$7)+SUMIFS(Tab_RIT_BMP[SALDO],Tab_RIT_BMP[CONTA],610552501,Tab_RIT_BMP[ANO],$L$7) -> 0 | M9: =SUMIFS(Tab_RIT_BMP[SALDO],Tab_RIT_BMP[CONTA],610530501,Tab_RIT_BMP[ANO],$M$7)+SUMIFS(Tab_RIT_BMP[SALDO],Tab_RIT_BMP[CONTA],610550501,Tab_RIT_BMP[ANO],$M$7)+ SUMIFS(Tab_RIT_BMP[SALDO],Tab_RIT_BMP[CONTA],610532501,Tab_RIT_BMP[ANO],$M$7)+SUMIFS(Tab_RIT_BMP[SALDO],Tab_RIT_BMP[CONTA],610552501,Tab_RIT_BMP[ANO],$M$7) -> 0 | P9: Arrecadação de convênios ou valores pela fatura | Q9: =SUMIFS(Tab_Uderor[R$],Tab_Uderor[Competencia],Entrada!Q$7,Tab_Uderor[TipoReceita],Entrada!$P9)*0+R9 -> 364409.05 | R9: =SUMIFS(Tab_Uderor[R$],Tab_Uderor[Competencia],Entrada!R$7,Tab_Uderor[TipoReceita],Entrada!$P9) -> 364409.05 | S9: =SUMIFS(Tab_Uderor[R$],Tab_Uderor[Competencia],Entrada!S$7,Tab_Uderor[TipoReceita],Entrada!$P9) -> 313247.32 | T9: =SUMIFS(Tab_Uderor[R$],Tab_Uderor[Competencia],Entrada!T$7,Tab_Uderor[TipoReceita],Entrada!$P9) -> 370178.03 | U9: =SUMIFS(Tab_Uderor[R$],Tab_Uderor[Competencia],Entrada!U$7,Tab_Uderor[TipoReceita],Entrada!$P9) -> 331050.75 | V9: =SUMIFS(Tab_Uderor[R$],Tab_Uderor[Competencia],Entrada!V$7,Tab_Uderor[TipoReceita],Entrada!$P9) -> 305236.15 | W9: =SUMIFS(Tab_Uderor[R$],Tab_Uderor[Competencia],Entrada!W$7,Tab_Uderor[TipoReceita],Entrada!$P9) -> 308546.7 | X9: =SUMIFS(Tab_Uderor[R$],Tab_Uderor[Competencia],Entrada!X$7,Tab_Uderor[TipoReceita],Entrada!$P9) -> 304715.25 | Y9: =SUMIFS(Tab_Uderor[R$],Tab_Uderor[Competencia],Entrada!Y$7,Tab_Uderor[TipoReceita],Entrada!$P9) -> 313874.71 | Z9: =SUMIFS(Tab_Uderor[R$],Tab_Uderor[Competencia],Entrada!Z$7,Tab_Uderor[TipoReceita],Entrada!$P9) -> 286293.3 | AA9: =SUMIFS(Tab_Uderor[R$],Tab_Uderor[Competencia],Entrada!AA$7,Tab_Uderor[TipoReceita],Entrada!$P9) -> 292902.72 | AB9: =SUMIFS(Tab_Uderor[R$],Tab_Uderor[Competencia],Entrada!AB$7,Tab_Uderor[TipoReceita],Entrada!$P9) -> 333300.14 | AC9: =SUMIFS(Tab_Uderor[R$],Tab_Uderor[Competencia],Entrada!AC$7,Tab_Uderor[TipoReceita],Entrada!$P9)-AF9 -> -59619.32 | AD9: =SUMIFS(Tab_Uderor[R$],Tab_Uderor[Competencia],Entrada!AD$7,Tab_Uderor[TipoReceita],Entrada!$P9)-AG9 -> 0 | AE9: =SUMIFS(Tab_Uderor[R$],Tab_Uderor[Competencia],Entrada!AE$7,Tab_Uderor[TipoReceita],Entrada!$P9)-AH9 -> 0 | AF9: 589476.96 | AG9: 589476.96 | AH9: 514823.84
D10: 44825 | F10: (4) Bens Totalmente Depreciados | G10: =G74*VLOOKUP(DATE(YEAR(CAPA!$C$10),MONTH(CAPA!$C$10)-1,1),Índices!$B$135:$D$638,3,0)/VLOOKUP(DATE(YEAR($G$70),MONTH($G$70)-1,1),Índices!$B$135:$D$638,3,0) ->  | J10: BMP - 610530502; 610550502; 610532502; 610552502 | K10: Encargos | L10: =SUMIFS(Tab_RIT_BMP[SALDO],Tab_RIT_BMP[CONTA],610530502,Tab_RIT_BMP[ANO],$L$7)+SUMIFS(Tab_RIT_BMP[SALDO],Tab_RIT_BMP[CONTA],610550502,Tab_RIT_BMP[ANO],$L$7)+ SUMIFS(Tab_RIT_BMP[SALDO],Tab_RIT_BMP[CONTA],610532502,Tab_RIT_BMP[ANO],$L$7)+SUMIFS(Tab_RIT_BMP[SALDO],Tab_RIT_BMP[CONTA],610552502,Tab_RIT_BMP[ANO],$L$7) -> 0 | M10: =SUMIFS(Tab_RIT_BMP[SALDO],Tab_RIT_BMP[CONTA],610530502,Tab_RIT_BMP[ANO],$M$7)+SUMIFS(Tab_RIT_BMP[SALDO],Tab_RIT_BMP[CONTA],610550502,Tab_RIT_BMP[ANO],$M$7)+ SUMIFS(Tab_RIT_BMP[SALDO],Tab_RIT_BMP[CONTA],610532502,Tab_RIT_BMP[ANO],$M$7)+SUMIFS(Tab_RIT_BMP[SALDO],Tab_RIT_BMP[CONTA],610552502,Tab_RIT_BMP[ANO],$M$7) -> 0 | P10: Arrecadação de faturas de terceiros por estrutura própria | Q10: =SUMIFS(Tab_Uderor[R$],Tab_Uderor[Competencia],Entrada!Q$7,Tab_Uderor[TipoReceita],Entrada!$P10)*0+R10 -> 0 | R10: =SUMIFS(Tab_Uderor[R$],Tab_Uderor[Competencia],Entrada!R$7,Tab_Uderor[TipoReceita],Entrada!$P10) -> 0 | S10: =SUMIFS(Tab_Uderor[R$],Tab_Uderor[Competencia],Entrada!S$7,Tab_Uderor[TipoReceita],Entrada!$P10) -> 0 | T10: =SUMIFS(Tab_Uderor[R$],Tab_Uderor[Competencia],Entrada!T$7,Tab_Uderor[TipoReceita],Entrada!$P10) -> 0 | U10: =SUMIFS(Tab_Uderor[R$],Tab_Uderor[Competencia],Entrada!U$7,Tab_Uderor[TipoReceita],Entrada!$P10) -> 0 | V10: =SUMIFS(Tab_Uderor[R$],Tab_Uderor[Competencia],Entrada!V$7,Tab_Uderor[TipoReceita],Entrada!$P10) -> 0 | W10: =SUMIFS(Tab_Uderor[R$],Tab_Uderor[Competencia],Entrada!W$7,Tab_Uderor[TipoReceita],Entrada!$P10) -> 0 | X10: =SUMIFS(Tab_Uderor[R$],Tab_Uderor[Competencia],Entrada!X$7,Tab_Uderor[TipoReceita],Entrada!$P10) -> 0 | Y10: =SUMIFS(Tab_Uderor[R$],Tab_Uderor[Competencia],Entrada!Y$7,Tab_Uderor[TipoReceita],Entrada!$P10) -> 0 | Z10: =SUMIFS(Tab_Uderor[R$],Tab_Uderor[Competencia],Entrada!Z$7,Tab_Uderor[TipoReceita],Entrada!$P10) -> 0 | AA10: =SUMIFS(Tab_Uderor[R$],Tab_Uderor[Competencia],Entrada!AA$7,Tab_Uderor[TipoReceita],Entrada!$P10) -> 0 | AB10: =SUMIFS(Tab_Uderor[R$],Tab_Uderor[Competencia],Entrada!AB$7,Tab_Uderor[TipoReceita],Entrada!$P10) -> 0 | AC10: =SUMIFS(Tab_Uderor[R$],Tab_Uderor[Competencia],Entrada!AC$7,Tab_Uderor[TipoReceita],Entrada!$P10)-AF10 -> 0 | AD10: =SUMIFS(Tab_Uderor[R$],Tab_Uderor[Competencia],Entrada!AD$7,Tab_Uderor[TipoReceita],Entrada!$P10)-AG10 -> 0 | AE10: =SUMIFS(Tab_Uderor[R$],Tab_Uderor[Competencia],Entrada!AE$7,Tab_Uderor[TipoReceita],Entrada!$P10)-AH10 -> 0
F11: (5) Base de Remuneração Bruta = (1)-(2)-(3)-(4) | G11: =G7-G8-G9-G10 ->  | J11: BMP - 610530503; 610550503; 610532503; 610552503 | K11: Previdência Privada - Corrente | L11: =SUMIFS(Tab_RIT_BMP[SALDO],Tab_RIT_BMP[CONTA],610530503,Tab_RIT_BMP[ANO],$L$7)+SUMIFS(Tab_RIT_BMP[SALDO],Tab_RIT_BMP[CONTA],610550503,Tab_RIT_BMP[ANO],$L$7)+ SUMIFS(Tab_RIT_BMP[SALDO],Tab_RIT_BMP[CONTA],610532503,Tab_RIT_BMP[ANO],$L$7)+SUMIFS(Tab_RIT_BMP[SALDO],Tab_RIT_BMP[CONTA],610552503,Tab_RIT_BMP[ANO],$L$7) -> 0 | M11: =SUMIFS(Tab_RIT_BMP[SALDO],Tab_RIT_BMP[CONTA],610530503,Tab_RIT_BMP[ANO],$M$7)+SUMIFS(Tab_RIT_BMP[SALDO],Tab_RIT_BMP[CONTA],610550503,Tab_RIT_BMP[ANO],$M$7)+ SUMIFS(Tab_RIT_BMP[SALDO],Tab_RIT_BMP[CONTA],610532503,Tab_RIT_BMP[ANO],$M$7)+SUMIFS(Tab_RIT_BMP[SALDO],Tab_RIT_BMP[CONTA],610552503,Tab_RIT_BMP[ANO],$M$7) -> 0 | P11: Veiculação de publicidade | Q11: =SUMIFS(Tab_Uderor[R$],Tab_Uderor[Competencia],Entrada!Q$7,Tab_Uderor[TipoReceita],Entrada!$P11)*0+R11 -> 0 | R11: =SUMIFS(Tab_Uderor[R$],Tab_Uderor[Competencia],Entrada!R$7,Tab_Uderor[TipoReceita],Entrada!$P11) -> 0 | S11: =SUMIFS(Tab_Uderor[R$],Tab_Uderor[Competencia],Entrada!S$7,Tab_Uderor[TipoReceita],Entrada!$P11) -> 0 | T11: =SUMIFS(Tab_Uderor[R$],Tab_Uderor[Competencia],Entrada!T$7,Tab_Uderor[TipoReceita],Entrada!$P11) -> 0 | U11: =SUMIFS(Tab_Uderor[R$],Tab_Uderor[Competencia],Entrada!U$7,Tab_Uderor[TipoReceita],Entrada!$P11) -> 0 | V11: =SUMIFS(Tab_Uderor[R$],Tab_Uderor[Competencia],Entrada!V$7,Tab_Uderor[TipoReceita],Entrada!$P11) -> 0 | W11: =SUMIFS(Tab_Uderor[R$],Tab_Uderor[Competencia],Entrada!W$7,Tab_Uderor[TipoReceita],Entrada!$P11) -> 0 | X11: =SUMIFS(Tab_Uderor[R$],Tab_Uderor[Competencia],Entrada!X$7,Tab_Uderor[TipoReceita],Entrada!$P11) -> 0 | Y11: =SUMIFS(Tab_Uderor[R$],Tab_Uderor[Competencia],Entrada!Y$7,Tab_Uderor[TipoReceita],Entrada!$P11) -> 0 | Z11: =SUMIFS(Tab_Uderor[R$],Tab_Uderor[Competencia],Entrada!Z$7,Tab_Uderor[TipoReceita],Entrada!$P11) -> 0 | AA11: =SUMIFS(Tab_Uderor[R$],Tab_Uderor[Competencia],Entrada!AA$7,Tab_Uderor[TipoReceita],Entrada!$P11) -> 0 | AB11: =SUMIFS(Tab_Uderor[R$],Tab_Uderor[Competencia],Entrada!AB$7,Tab_Uderor[TipoReceita],Entrada!$P11) -> 0 | AC11: =SUMIFS(Tab_Uderor[R$],Tab_Uderor[Competencia],Entrada!AC$7,Tab_Uderor[TipoReceita],Entrada!$P11)-AF11 -> 0 | AD11: =SUMIFS(Tab_Uderor[R$],Tab_Uderor[Competencia],Entrada!AD$7,Tab_Uderor[TipoReceita],Entrada!$P11)-AG11 -> 0 | AE11: =SUMIFS(Tab_Uderor[R$],Tab_Uderor[Competencia],Entrada!AE$7,Tab_Uderor[TipoReceita],Entrada!$P11)-AH11 -> 0
F12: (6) Depreciação Acumulada | G12: =G76*VLOOKUP(DATE(YEAR(CAPA!$C$10),MONTH(CAPA!$C$10)-1,1),Índices!$B$135:$D$638,3,0)/VLOOKUP(DATE(YEAR($G$70),MONTH($G$70)-1,1),Índices!$B$135:$D$638,3,0) ->  | J12: BMP - 610530508; 610550508; 610532508; 610552508 | K12: Outros Benefícios | L12: =SUMIFS(Tab_RIT_BMP[SALDO],Tab_RIT_BMP[CONTA],610530508,Tab_RIT_BMP[ANO],$L$7)+SUMIFS(Tab_RIT_BMP[SALDO],Tab_RIT_BMP[CONTA],610550508,Tab_RIT_BMP[ANO],$L$7)+ SUMIFS(Tab_RIT_BMP[SALDO],Tab_RIT_BMP[CONTA],610532508,Tab_RIT_BMP[ANO],$L$7)+SUMIFS(Tab_RIT_BMP[SALDO],Tab_RIT_BMP[CONTA],610552508,Tab_RIT_BMP[ANO],$L$7) -> 0 | M12: =SUMIFS(Tab_RIT_BMP[SALDO],Tab_RIT_BMP[CONTA],610530508,Tab_RIT_BMP[ANO],$M$7)+SUMIFS(Tab_RIT_BMP[SALDO],Tab_RIT_BMP[CONTA],610550508,Tab_RIT_BMP[ANO],$M$7)+ SUMIFS(Tab_RIT_BMP[SALDO],Tab_RIT_BMP[CONTA],610532508,Tab_RIT_BMP[ANO],$M$7)+SUMIFS(Tab_RIT_BMP[SALDO],Tab_RIT_BMP[CONTA],610552508,Tab_RIT_BMP[ANO],$M$7) -> 0 | P12: Aluguel ou cessão onerosa de imóveis e espaços físicos | Q12: =SUMIFS(Tab_Uderor[R$],Tab_Uderor[Competencia],Entrada!Q$7,Tab_Uderor[TipoReceita],Entrada!$P12)*0+R12 -> 0 | R12: =SUMIFS(Tab_Uderor[R$],Tab_Uderor[Competencia],Entrada!R$7,Tab_Uderor[TipoReceita],Entrada!$P12) -> 0 | S12: =SUMIFS(Tab_Uderor[R$],Tab_Uderor[Competencia],Entrada!S$7,Tab_Uderor[TipoReceita],Entrada!$P12) -> 0 | T12: =SUMIFS(Tab_Uderor[R$],Tab_Uderor[Competencia],Entrada!T$7,Tab_Uderor[TipoReceita],Entrada!$P12) -> 0 | U12: =SUMIFS(Tab_Uderor[R$],Tab_Uderor[Competencia],Entrada!U$7,Tab_Uderor[TipoReceita],Entrada!$P12) -> 0 | V12: =SUMIFS(Tab_Uderor[R$],Tab_Uderor[Competencia],Entrada!V$7,Tab_Uderor[TipoReceita],Entrada!$P12) -> 0 | W12: =SUMIFS(Tab_Uderor[R$],Tab_Uderor[Competencia],Entrada!W$7,Tab_Uderor[TipoReceita],Entrada!$P12) -> 0 | X12: =SUMIFS(Tab_Uderor[R$],Tab_Uderor[Competencia],Entrada!X$7,Tab_Uderor[TipoReceita],Entrada!$P12) -> 0 | Y12: =SUMIFS(Tab_Uderor[R$],Tab_Uderor[Competencia],Entrada!Y$7,Tab_Uderor[TipoReceita],Entrada!$P12) -> 0 | Z12: =SUMIFS(Tab_Uderor[R$],Tab_Uderor[Competencia],Entrada!Z$7,Tab_Uderor[TipoReceita],Entrada!$P12) -> 0 | AA12: =SUMIFS(Tab_Uderor[R$],Tab_Uderor[Competencia],Entrada!AA$7,Tab_Uderor[TipoReceita],Entrada!$P12) -> 0 | AB12: =SUMIFS(Tab_Uderor[R$],Tab_Uderor[Competencia],Entrada!AB$7,Tab_Uderor[TipoReceita],Entrada!$P12) -> 0 | AC12: =SUMIFS(Tab_Uderor[R$],Tab_Uderor[Competencia],Entrada!AC$7,Tab_Uderor[TipoReceita],Entrada!$P12)-AF12 -> 0 | AD12: =SUMIFS(Tab_Uderor[R$],Tab_Uderor[Competencia],Entrada!AD$7,Tab_Uderor[TipoReceita],Entrada!$P12)-AG12 -> 0 | AE12: =SUMIFS(Tab_Uderor[R$],Tab_Uderor[Competencia],Entrada!AE$7,Tab_Uderor[TipoReceita],Entrada!$P12)-AH12 -> 0
F13: (7) AIS Líquido (Valor de Mercado em Uso) | G13: =G7-G12 ->  | J13: BMP - 610530506; 610550506; 610532506; 610552506 | K13: Despesas Rescisórias | L13: =SUMIFS(Tab_RIT_BMP[SALDO],Tab_RIT_BMP[CONTA],610530506,Tab_RIT_BMP[ANO],$L$7)+SUMIFS(Tab_RIT_BMP[SALDO],Tab_RIT_BMP[CONTA],610550506,Tab_RIT_BMP[ANO],$L$7)+ SUMIFS(Tab_RIT_BMP[SALDO],Tab_RIT_BMP[CONTA],610532506,Tab_RIT_BMP[ANO],$L$7)+SUMIFS(Tab_RIT_BMP[SALDO],Tab_RIT_BMP[CONTA],610552506,Tab_RIT_BMP[ANO],$L$7) -> 0 | M13: =SUMIFS(Tab_RIT_BMP[SALDO],Tab_RIT_BMP[CONTA],610530506,Tab_RIT_BMP[ANO],$M$7)+SUMIFS(Tab_RIT_BMP[SALDO],Tab_RIT_BMP[CONTA],610550506,Tab_RIT_BMP[ANO],$M$7)+ SUMIFS(Tab_RIT_BMP[SALDO],Tab_RIT_BMP[CONTA],610532506,Tab_RIT_BMP[ANO],$M$7)+SUMIFS(Tab_RIT_BMP[SALDO],Tab_RIT_BMP[CONTA],610552506,Tab_RIT_BMP[ANO],$M$7) -> 0 | P13: Compartilhamento de infraestrutura | Q13: =SUMIFS(Tab_Uderor[R$],Tab_Uderor[Competencia],Entrada!Q$7,Tab_Uderor[TipoReceita],Entrada!$P13)*0+R13 -> 6155308.89 | R13: =SUMIFS(Tab_Uderor[R$],Tab_Uderor[Competencia],Entrada!R$7,Tab_Uderor[TipoReceita],Entrada!$P13) -> 6155308.89 | S13: =SUMIFS(Tab_Uderor[R$],Tab_Uderor[Competencia],Entrada!S$7,Tab_Uderor[TipoReceita],Entrada!$P13) -> 7285226.26 | T13: =SUMIFS(Tab_Uderor[R$],Tab_Uderor[Competencia],Entrada!T$7,Tab_Uderor[TipoReceita],Entrada!$P13) -> 7263567.9 | U13: =SUMIFS(Tab_Uderor[R$],Tab_Uderor[Competencia],Entrada!U$7,Tab_Uderor[TipoReceita],Entrada!$P13) -> 5186151.87 | V13: =SUMIFS(Tab_Uderor[R$],Tab_Uderor[Competencia],Entrada!V$7,Tab_Uderor[TipoReceita],Entrada!$P13) -> 5111038.02 | W13: =SUMIFS(Tab_Uderor[R$],Tab_Uderor[Competencia],Entrada!W$7,Tab_Uderor[TipoReceita],Entrada!$P13) -> 5517626.48 | X13: =SUMIFS(Tab_Uderor[R$],Tab_Uderor[Competencia],Entrada!X$7,Tab_Uderor[TipoReceita],Entrada!$P13) -> 5394560.08 | Y13: =SUMIFS(Tab_Uderor[R$],Tab_Uderor[Competencia],Entrada!Y$7,Tab_Uderor[TipoReceita],Entrada!$P13) -> 5121752.97 | Z13: =SUMIFS(Tab_Uderor[R$],Tab_Uderor[Competencia],Entrada!Z$7,Tab_Uderor[TipoReceita],Entrada!$P13) -> 3721555.46 | AA13: =SUMIFS(Tab_Uderor[R$],Tab_Uderor[Competencia],Entrada!AA$7,Tab_Uderor[TipoReceita],Entrada!$P13) -> 5104013.68 | AB13: =SUMIFS(Tab_Uderor[R$],Tab_Uderor[Competencia],Entrada!AB$7,Tab_Uderor[TipoReceita],Entrada!$P13) -> 4733770.04 | AC13: =SUMIFS(Tab_Uderor[R$],Tab_Uderor[Competencia],Entrada!AC$7,Tab_Uderor[TipoReceita],Entrada!$P13)-AF13 -> 140879.19 | AD13: =SUMIFS(Tab_Uderor[R$],Tab_Uderor[Competencia],Entrada!AD$7,Tab_Uderor[TipoReceita],Entrada!$P13)-AG13 -> 0 | AE13: =SUMIFS(Tab_Uderor[R$],Tab_Uderor[Competencia],Entrada!AE$7,Tab_Uderor[TipoReceita],Entrada!$P13)-AH13 -> 0 | AF13: 4544470.63 | AG13: 4544470.63 | AH13: 4619832.57
F14: (8) Índice de Aproveitamento Depreciado | G14: =G78*VLOOKUP(DATE(YEAR(CAPA!$C$10),MONTH(CAPA!$C$10)-1,1),Índices!$B$135:$D$638,3,0)/VLOOKUP(DATE(YEAR($G$70),MONTH($G$70)-1,1),Índices!$B$135:$D$638,3,0) ->  | J14: BMP - 610530507; 610550507; 610532507; 610552507 | K14: Participação nos Lucros e Resultados - PLR | L14: =SUMIFS(Tab_RIT_BMP[SALDO],Tab_RIT_BMP[CONTA],610530507,Tab_RIT_BMP[ANO],$L$7)+SUMIFS(Tab_RIT_BMP[SALDO],Tab_RIT_BMP[CONTA],610550507,Tab_RIT_BMP[ANO],$L$7)+SUMIFS(Tab_RIT_BMP[SALDO],Tab_RIT_BMP[CONTA],610532507,Tab_RIT_BMP[ANO],$L$7)+SUMIFS(Tab_RIT_BMP[SALDO],Tab_RIT_BMP[CONTA],610552507,Tab_RIT_BMP[ANO],$L$7) -> 0 | M14: =SUMIFS(Tab_RIT_BMP[SALDO],Tab_RIT_BMP[CONTA],610530507,Tab_RIT_BMP[ANO],$M$7)+SUMIFS(Tab_RIT_BMP[SALDO],Tab_RIT_BMP[CONTA],610550507,Tab_RIT_BMP[ANO],$M$7)+ SUMIFS(Tab_RIT_BMP[SALDO],Tab_RIT_BMP[CONTA],610532507,Tab_RIT_BMP[ANO],$M$7)+SUMIFS(Tab_RIT_BMP[SALDO],Tab_RIT_BMP[CONTA],610552507,Tab_RIT_BMP[ANO],$M$7) -> 0 | P14: Serviços de avaliação técnica e aferição de medidores. | Q14: =SUMIFS(Tab_Uderor[R$],Tab_Uderor[Competencia],Entrada!Q$7,Tab_Uderor[TipoReceita],Entrada!$P14)*0+R14 -> 0 | R14: =SUMIFS(Tab_Uderor[R$],Tab_Uderor[Competencia],Entrada!R$7,Tab_Uderor[TipoReceita],Entrada!$P14) -> 0 | S14: =SUMIFS(Tab_Uderor[R$],Tab_Uderor[Competencia],Entrada!S$7,Tab_Uderor[TipoReceita],Entrada!$P14) -> 0 | T14: =SUMIFS(Tab_Uderor[R$],Tab_Uderor[Competencia],Entrada!T$7,Tab_Uderor[TipoReceita],Entrada!$P14) -> 0 | U14: =SUMIFS(Tab_Uderor[R$],Tab_Uderor[Competencia],Entrada!U$7,Tab_Uderor[TipoReceita],Entrada!$P14) -> 0 | V14: =SUMIFS(Tab_Uderor[R$],Tab_Uderor[Competencia],Entrada!V$7,Tab_Uderor[TipoReceita],Entrada!$P14) -> 0 | W14: =SUMIFS(Tab_Uderor[R$],Tab_Uderor[Competencia],Entrada!W$7,Tab_Uderor[TipoReceita],Entrada!$P14) -> 0 | X14: =SUMIFS(Tab_Uderor[R$],Tab_Uderor[Competencia],Entrada!X$7,Tab_Uderor[TipoReceita],Entrada!$P14) -> 0 | Y14: =SUMIFS(Tab_Uderor[R$],Tab_Uderor[Competencia],Entrada!Y$7,Tab_Uderor[TipoReceita],Entrada!$P14) -> 0 | Z14: =SUMIFS(Tab_Uderor[R$],Tab_Uderor[Competencia],Entrada!Z$7,Tab_Uderor[TipoReceita],Entrada!$P14) -> 0 | AA14: =SUMIFS(Tab_Uderor[R$],Tab_Uderor[Competencia],Entrada!AA$7,Tab_Uderor[TipoReceita],Entrada!$P14) -> 0 | AB14: =SUMIFS(Tab_Uderor[R$],Tab_Uderor[Competencia],Entrada!AB$7,Tab_Uderor[TipoReceita],Entrada!$P14) -> 0 | AC14: =SUMIFS(Tab_Uderor[R$],Tab_Uderor[Competencia],Entrada!AC$7,Tab_Uderor[TipoReceita],Entrada!$P14)-AF14 -> 0 | AD14: =SUMIFS(Tab_Uderor[R$],Tab_Uderor[Competencia],Entrada!AD$7,Tab_Uderor[TipoReceita],Entrada!$P14)-AG14 -> 0 | AE14: =SUMIFS(Tab_Uderor[R$],Tab_Uderor[Competencia],Entrada!AE$7,Tab_Uderor[TipoReceita],Entrada!$P14)-AH14 -> 0
F15: (9) Valor da Base de Remuneração (VBR) | G15: =G13-G14 ->  | J15: BMP - 610530599; 610550599; 610532599; 610552599 | K15: Outros | L15: =SUMIFS(Tab_RIT_BMP[SALDO],Tab_RIT_BMP[CONTA],610530599,Tab_RIT_BMP[ANO],$L$7)+SUMIFS(Tab_RIT_BMP[SALDO],Tab_RIT_BMP[CONTA],610550599,Tab_RIT_BMP[ANO],$L$7)+ SUMIFS(Tab_RIT_BMP[SALDO],Tab_RIT_BMP[CONTA],610532599,Tab_RIT_BMP[ANO],$L$7)+SUMIFS(Tab_RIT_BMP[SALDO],Tab_RIT_BMP[CONTA],610552599,Tab_RIT_BMP[ANO],$L$7) -> 0 | M15: =SUMIFS(Tab_RIT_BMP[SALDO],Tab_RIT_BMP[CONTA],610530599,Tab_RIT_BMP[ANO],$M$7)+SUMIFS(Tab_RIT_BMP[SALDO],Tab_RIT_BMP[CONTA],610550599,Tab_RIT_BMP[ANO],$M$7)+ SUMIFS(Tab_RIT_BMP[SALDO],Tab_RIT_BMP[CONTA],610532599,Tab_RIT_BMP[ANO],$M$7)+SUMIFS(Tab_RIT_BMP[SALDO],Tab_RIT_BMP[CONTA],610552599,Tab_RIT_BMP[ANO],$M$7) -> 0 | P15: Operacionalização de serviço de créditos tributários | Q15: =SUMIFS(Tab_Uderor[R$],Tab_Uderor[Competencia],Entrada!Q$7,Tab_Uderor[TipoReceita],Entrada!$P15)*0+R15 -> 0 | R15: =SUMIFS(Tab_Uderor[R$],Tab_Uderor[Competencia],Entrada!R$7,Tab_Uderor[TipoReceita],Entrada!$P15) -> 0 | S15: =SUMIFS(Tab_Uderor[R$],Tab_Uderor[Competencia],Entrada!S$7,Tab_Uderor[TipoReceita],Entrada!$P15) -> 0 | T15: =SUMIFS(Tab_Uderor[R$],Tab_Uderor[Competencia],Entrada!T$7,Tab_Uderor[TipoReceita],Entrada!$P15) -> 0 | U15: =SUMIFS(Tab_Uderor[R$],Tab_Uderor[Competencia],Entrada!U$7,Tab_Uderor[TipoReceita],Entrada!$P15) -> 0 | V15: =SUMIFS(Tab_Uderor[R$],Tab_Uderor[Competencia],Entrada!V$7,Tab_Uderor[TipoReceita],Entrada!$P15) -> 0 | W15: =SUMIFS(Tab_Uderor[R$],Tab_Uderor[Competencia],Entrada!W$7,Tab_Uderor[TipoReceita],Entrada!$P15) -> 0 | X15: =SUMIFS(Tab_Uderor[R$],Tab_Uderor[Competencia],Entrada!X$7,Tab_Uderor[TipoReceita],Entrada!$P15) -> 0 | Y15: =SUMIFS(Tab_Uderor[R$],Tab_Uderor[Competencia],Entrada!Y$7,Tab_Uderor[TipoReceita],Entrada!$P15) -> 0 | Z15: =SUMIFS(Tab_Uderor[R$],Tab_Uderor[Competencia],Entrada!Z$7,Tab_Uderor[TipoReceita],Entrada!$P15) -> 0 | AA15: =SUMIFS(Tab_Uderor[R$],Tab_Uderor[Competencia],Entrada!AA$7,Tab_Uderor[TipoReceita],Entrada!$P15) -> 0 | AB15: =SUMIFS(Tab_Uderor[R$],Tab_Uderor[Competencia],Entrada!AB$7,Tab_Uderor[TipoReceita],Entrada!$P15) -> 0 | AC15: =SUMIFS(Tab_Uderor[R$],Tab_Uderor[Competencia],Entrada!AC$7,Tab_Uderor[TipoReceita],Entrada!$P15)-AF15 -> 0 | AD15: =SUMIFS(Tab_Uderor[R$],Tab_Uderor[Competencia],Entrada!AD$7,Tab_Uderor[TipoReceita],Entrada!$P15)-AG15 -> 0 | AE15: =SUMIFS(Tab_Uderor[R$],Tab_Uderor[Competencia],Entrada!AE$7,Tab_Uderor[TipoReceita],Entrada!$P15)-AH15 -> 0
F16: (10) Almoxarifado em Operação | G16: =G80*VLOOKUP(DATE(YEAR(CAPA!$C$10),MONTH(CAPA!$C$10)-1,1),Índices!$B$135:$D$638,3,0)/VLOOKUP(DATE(YEAR($G$70),MONTH($G$70)-1,1),Índices!$B$135:$D$638,3,0) ->  | J16: BMP - 610530510; 610550510; 610532510; 610552510 | K16: (-) Créditos de Tributos Recuperáveis | L16: =SUMIFS(Tab_RIT_BMP[SALDO],Tab_RIT_BMP[CONTA],610530510,Tab_RIT_BMP[ANO],$L$7)+SUMIFS(Tab_RIT_BMP[SALDO],Tab_RIT_BMP[CONTA],610550510,Tab_RIT_BMP[ANO],$L$7)+ SUMIFS(Tab_RIT_BMP[SALDO],Tab_RIT_BMP[CONTA],610532510,Tab_RIT_BMP[ANO],$L$7)+SUMIFS(Tab_RIT_BMP[SALDO],Tab_RIT_BMP[CONTA],610552510,Tab_RIT_BMP[ANO],$L$7) -> 0 | M16: =SUMIFS(Tab_RIT_BMP[SALDO],Tab_RIT_BMP[CONTA],610530510,Tab_RIT_BMP[ANO],$M$7)+SUMIFS(Tab_RIT_BMP[SALDO],Tab_RIT_BMP[CONTA],610550510,Tab_RIT_BMP[ANO],$M$7)+ SUMIFS(Tab_RIT_BMP[SALDO],Tab_RIT_BMP[CONTA],610532510,Tab_RIT_BMP[ANO],$M$7)+SUMIFS(Tab_RIT_BMP[SALDO],Tab_RIT_BMP[CONTA],610552510,Tab_RIT_BMP[ANO],$M$7) -> 0 | P16: Elaboração de projeto, construção, operação, manutenção ou reforma de: | Q16: =SUMIFS(Tab_Uderor[R$],Tab_Uderor[Competencia],Entrada!Q$7,Tab_Uderor[TipoReceita],Entrada!$P16)*0+R16 -> 0 | R16: =SUMIFS(Tab_Uderor[R$],Tab_Uderor[Competencia],Entrada!R$7,Tab_Uderor[TipoReceita],Entrada!$P16) -> 0 | S16: =SUMIFS(Tab_Uderor[R$],Tab_Uderor[Competencia],Entrada!S$7,Tab_Uderor[TipoReceita],Entrada!$P16) -> 0 | T16: =SUMIFS(Tab_Uderor[R$],Tab_Uderor[Competencia],Entrada!T$7,Tab_Uderor[TipoReceita],Entrada!$P16) -> 0 | U16: =SUMIFS(Tab_Uderor[R$],Tab_Uderor[Competencia],Entrada!U$7,Tab_Uderor[TipoReceita],Entrada!$P16) -> 0 | V16: =SUMIFS(Tab_Uderor[R$],Tab_Uderor[Competencia],Entrada!V$7,Tab_Uderor[TipoReceita],Entrada!$P16) -> 0 | W16: =SUMIFS(Tab_Uderor[R$],Tab_Uderor[Competencia],Entrada!W$7,Tab_Uderor[TipoReceita],Entrada!$P16) -> 0 | X16: =SUMIFS(Tab_Uderor[R$],Tab_Uderor[Competencia],Entrada!X$7,Tab_Uderor[TipoReceita],Entrada!$P16) -> 0 | Y16: =SUMIFS(Tab_Uderor[R$],Tab_Uderor[Competencia],Entrada!Y$7,Tab_Uderor[TipoReceita],Entrada!$P16) -> 0 | Z16: =SUMIFS(Tab_Uderor[R$],Tab_Uderor[Competencia],Entrada!Z$7,Tab_Uderor[TipoReceita],Entrada!$P16) -> 0 | AA16: =SUMIFS(Tab_Uderor[R$],Tab_Uderor[Competencia],Entrada!AA$7,Tab_Uderor[TipoReceita],Entrada!$P16) -> 0 | AB16: =SUMIFS(Tab_Uderor[R$],Tab_Uderor[Competencia],Entrada!AB$7,Tab_Uderor[TipoReceita],Entrada!$P16) -> 0 | AC16: =SUMIFS(Tab_Uderor[R$],Tab_Uderor[Competencia],Entrada!AC$7,Tab_Uderor[TipoReceita],Entrada!$P16)-AF16 -> 0 | AD16: =SUMIFS(Tab_Uderor[R$],Tab_Uderor[Competencia],Entrada!AD$7,Tab_Uderor[TipoReceita],Entrada!$P16)-AG16 -> 0 | AE16: =SUMIFS(Tab_Uderor[R$],Tab_Uderor[Competencia],Entrada!AE$7,Tab_Uderor[TipoReceita],Entrada!$P16)-AH16 -> 0
F17: (11) Ativo Diferido | G17: =G81*VLOOKUP(DATE(YEAR(CAPA!$C$10),MONTH(CAPA!$C$10)-1,1),Índices!$B$135:$D$638,3,0)/VLOOKUP(DATE(YEAR($G$70),MONTH($G$70)-1,1),Índices!$B$135:$D$638,3,0) ->  | J17: BMP - 6105306; 6105506; 6105326; 6105526 | K17: Administradores | L17: =SUMIFS(Tab_RIT_BMP[SALDO],Tab_RIT_BMP[CONTA],6105306,Tab_RIT_BMP[ANO],$L$7)+SUMIFS(Tab_RIT_BMP[SALDO],Tab_RIT_BMP[CONTA],6105506,Tab_RIT_BMP[ANO],$L$7)+ SUMIFS(Tab_RIT_BMP[SALDO],Tab_RIT_BMP[CONTA],6105326,Tab_RIT_BMP[ANO],$L$7)+SUMIFS(Tab_RIT_BMP[SALDO],Tab_RIT_BMP[CONTA],6105526,Tab_RIT_BMP[ANO],$L$7) -> 0 | M17: =SUMIFS(Tab_RIT_BMP[SALDO],Tab_RIT_BMP[CONTA],6105306,Tab_RIT_BMP[ANO],$M$7)+SUMIFS(Tab_RIT_BMP[SALDO],Tab_RIT_BMP[CONTA],6105506,Tab_RIT_BMP[ANO],$M$7)+ SUMIFS(Tab_RIT_BMP[SALDO],Tab_RIT_BMP[CONTA],6105326,Tab_RIT_BMP[ANO],$M$7)+SUMIFS(Tab_RIT_BMP[SALDO],Tab_RIT_BMP[CONTA],6105526,Tab_RIT_BMP[ANO],$M$7) -> 0 | P17: (1) redes de distribuição de energia elétrica destinadas à regularização fundiária de interesse específico e ao atendimento dos empreendimentos de múltiplas unidades consumidoras; | Q17: =SUMIFS(Tab_Uderor[R$],Tab_Uderor[Competencia],Entrada!Q$7,Tab_Uderor[TipoReceita],Entrada!$P17)*0+R17 -> 0 | R17: =SUMIFS(Tab_Uderor[R$],Tab_Uderor[Competencia],Entrada!R$7,Tab_Uderor[TipoReceita],Entrada!$P17) -> 0 | S17: =SUMIFS(Tab_Uderor[R$],Tab_Uderor[Competencia],Entrada!S$7,Tab_Uderor[TipoReceita],Entrada!$P17) -> 0 | T17: =SUMIFS(Tab_Uderor[R$],Tab_Uderor[Competencia],Entrada!T$7,Tab_Uderor[TipoReceita],Entrada!$P17) -> 0 | U17: =SUMIFS(Tab_Uderor[R$],Tab_Uderor[Competencia],Entrada!U$7,Tab_Uderor[TipoReceita],Entrada!$P17) -> 0 | V17: =SUMIFS(Tab_Uderor[R$],Tab_Uderor[Competencia],Entrada!V$7,Tab_Uderor[TipoReceita],Entrada!$P17) -> 0 | W17: =SUMIFS(Tab_Uderor[R$],Tab_Uderor[Competencia],Entrada!W$7,Tab_Uderor[TipoReceita],Entrada!$P17) -> 0 | X17: =SUMIFS(Tab_Uderor[R$],Tab_Uderor[Competencia],Entrada!X$7,Tab_Uderor[TipoReceita],Entrada!$P17) -> 0 | Y17: =SUMIFS(Tab_Uderor[R$],Tab_Uderor[Competencia],Entrada!Y$7,Tab_Uderor[TipoReceita],Entrada!$P17) -> 0 | Z17: =SUMIFS(Tab_Uderor[R$],Tab_Uderor[Competencia],Entrada!Z$7,Tab_Uderor[TipoReceita],Entrada!$P17) -> 0 | AA17: =SUMIFS(Tab_Uderor[R$],Tab_Uderor[Competencia],Entrada!AA$7,Tab_Uderor[TipoReceita],Entrada!$P17) -> 0 | AB17: =SUMIFS(Tab_Uderor[R$],Tab_Uderor[Competencia],Entrada!AB$7,Tab_Uderor[TipoReceita],Entrada!$P17) -> 0 | AC17: =SUMIFS(Tab_Uderor[R$],Tab_Uderor[Competencia],Entrada!AC$7,Tab_Uderor[TipoReceita],Entrada!$P17)-AF17 -> 0 | AD17: =SUMIFS(Tab_Uderor[R$],Tab_Uderor[Competencia],Entrada!AD$7,Tab_Uderor[TipoReceita],Entrada!$P17)-AG17 -> 0 | AE17: =SUMIFS(Tab_Uderor[R$],Tab_Uderor[Competencia],Entrada!AE$7,Tab_Uderor[TipoReceita],Entrada!$P17)-AH17 -> 0
F18: (12) Obrigações Especiais Líquida | G18: =G82*VLOOKUP(DATE(YEAR(CAPA!$C$10),MONTH(CAPA!$C$10)-1,1),Índices!$B$135:$D$638,3,0)/VLOOKUP(DATE(YEAR($G$70),MONTH($G$70)-1,1),Índices!$B$135:$D$638,3,0) ->  | K18: Subtotal | L18: =SUM(L9:L17) -> 0 | M18: =SUM(M9:M17) -> 0 | P18: (2) redes de energia elétrica destinadas ao acesso dos sistemas de distribuição ou transmissão; | Q18: =SUMIFS(Tab_Uderor[R$],Tab_Uderor[Competencia],Entrada!Q$7,Tab_Uderor[TipoReceita],Entrada!$P18)*0+R18 -> 0 | R18: =SUMIFS(Tab_Uderor[R$],Tab_Uderor[Competencia],Entrada!R$7,Tab_Uderor[TipoReceita],Entrada!$P18) -> 0 | S18: =SUMIFS(Tab_Uderor[R$],Tab_Uderor[Competencia],Entrada!S$7,Tab_Uderor[TipoReceita],Entrada!$P18) -> 0 | T18: =SUMIFS(Tab_Uderor[R$],Tab_Uderor[Competencia],Entrada!T$7,Tab_Uderor[TipoReceita],Entrada!$P18) -> 0 | U18: =SUMIFS(Tab_Uderor[R$],Tab_Uderor[Competencia],Entrada!U$7,Tab_Uderor[TipoReceita],Entrada!$P18) -> 0 | V18: =SUMIFS(Tab_Uderor[R$],Tab_Uderor[Competencia],Entrada!V$7,Tab_Uderor[TipoReceita],Entrada!$P18) -> 0 | W18: =SUMIFS(Tab_Uderor[R$],Tab_Uderor[Competencia],Entrada!W$7,Tab_Uderor[TipoReceita],Entrada!$P18) -> 0 | X18: =SUMIFS(Tab_Uderor[R$],Tab_Uderor[Competencia],Entrada!X$7,Tab_Uderor[TipoReceita],Entrada!$P18) -> 0 | Y18: =SUMIFS(Tab_Uderor[R$],Tab_Uderor[Competencia],Entrada!Y$7,Tab_Uderor[TipoReceita],Entrada!$P18) -> 0 | Z18: =SUMIFS(Tab_Uderor[R$],Tab_Uderor[Competencia],Entrada!Z$7,Tab_Uderor[TipoReceita],Entrada!$P18) -> 0 | AA18: =SUMIFS(Tab_Uderor[R$],Tab_Uderor[Competencia],Entrada!AA$7,Tab_Uderor[TipoReceita],Entrada!$P18) -> 0 | AB18: =SUMIFS(Tab_Uderor[R$],Tab_Uderor[Competencia],Entrada!AB$7,Tab_Uderor[TipoReceita],Entrada!$P18) -> 0 | AC18: =SUMIFS(Tab_Uderor[R$],Tab_Uderor[Competencia],Entrada!AC$7,Tab_Uderor[TipoReceita],Entrada!$P18)-AF18 -> 0 | AD18: =SUMIFS(Tab_Uderor[R$],Tab_Uderor[Competencia],Entrada!AD$7,Tab_Uderor[TipoReceita],Entrada!$P18)-AG18 -> 0 | AE18: =SUMIFS(Tab_Uderor[R$],Tab_Uderor[Competencia],Entrada!AE$7,Tab_Uderor[TipoReceita],Entrada!$P18)-AH18 -> 0
F19: (13) Terrenos e Servidões | G19: =G83*VLOOKUP(DATE(YEAR(CAPA!$C$10),MONTH(CAPA!$C$10)-1,1),Índices!$B$135:$D$638,3,0)/VLOOKUP(DATE(YEAR($G$70),MONTH($G$70)-1,1),Índices!$B$135:$D$638,3,0) ->  | J19: CONTA MATERIAIS | P19: (3) subestações de energia; | Q19: =SUMIFS(Tab_Uderor[R$],Tab_Uderor[Competencia],Entrada!Q$7,Tab_Uderor[TipoReceita],Entrada!$P19)*0+R19 -> 0 | R19: =SUMIFS(Tab_Uderor[R$],Tab_Uderor[Competencia],Entrada!R$7,Tab_Uderor[TipoReceita],Entrada!$P19) -> 0 | S19: =SUMIFS(Tab_Uderor[R$],Tab_Uderor[Competencia],Entrada!S$7,Tab_Uderor[TipoReceita],Entrada!$P19) -> 0 | T19: =SUMIFS(Tab_Uderor[R$],Tab_Uderor[Competencia],Entrada!T$7,Tab_Uderor[TipoReceita],Entrada!$P19) -> 0 | U19: =SUMIFS(Tab_Uderor[R$],Tab_Uderor[Competencia],Entrada!U$7,Tab_Uderor[TipoReceita],Entrada!$P19) -> 0 | V19: =SUMIFS(Tab_Uderor[R$],Tab_Uderor[Competencia],Entrada!V$7,Tab_Uderor[TipoReceita],Entrada!$P19) -> 0 | W19: =SUMIFS(Tab_Uderor[R$],Tab_Uderor[Competencia],Entrada!W$7,Tab_Uderor[TipoReceita],Entrada!$P19) -> 0 | X19: =SUMIFS(Tab_Uderor[R$],Tab_Uderor[Competencia],Entrada!X$7,Tab_Uderor[TipoReceita],Entrada!$P19) -> 0 | Y19: =SUMIFS(Tab_Uderor[R$],Tab_Uderor[Competencia],Entrada!Y$7,Tab_Uderor[TipoReceita],Entrada!$P19) -> 0 | Z19: =SUMIFS(Tab_Uderor[R$],Tab_Uderor[Competencia],Entrada!Z$7,Tab_Uderor[TipoReceita],Entrada!$P19) -> 0 | AA19: =SUMIFS(Tab_Uderor[R$],Tab_Uderor[Competencia],Entrada!AA$7,Tab_Uderor[TipoReceita],Entrada!$P19) -> 0 | AB19: =SUMIFS(Tab_Uderor[R$],Tab_Uderor[Competencia],Entrada!AB$7,Tab_Uderor[TipoReceita],Entrada!$P19) -> 0 | AC19: =SUMIFS(Tab_Uderor[R$],Tab_Uderor[Competencia],Entrada!AC$7,Tab_Uderor[TipoReceita],Entrada!$P19)-AF19 -> 0 | AD19: =SUMIFS(Tab_Uderor[R$],Tab_Uderor[Competencia],Entrada!AD$7,Tab_Uderor[TipoReceita],Entrada!$P19)-AG19 -> 0 | AE19: =SUMIFS(Tab_Uderor[R$],Tab_Uderor[Competencia],Entrada!AE$7,Tab_Uderor[TipoReceita],Entrada!$P19)-AH19 -> 0
F20: (14) Base de Rem. Líquida Total = (1)-(6)-(8)+(10)+(11)-(12)+(13) | G20: =G15+G16+G17-G18+G19 ->  | J20: BMP - 610530701; 610550701; 610532701; 610552701 | K20: Materiais | L20: =SUMIFS(Tab_RIT_BMP[SALDO],Tab_RIT_BMP[CONTA],610530701,Tab_RIT_BMP[ANO],$L$7)+SUMIFS(Tab_RIT_BMP[SALDO],Tab_RIT_BMP[CONTA],610550701,Tab_RIT_BMP[ANO],$L$7)+ SUMIFS(Tab_RIT_BMP[SALDO],Tab_RIT_BMP[CONTA],610532701,Tab_RIT_BMP[ANO],$L$7)+SUMIFS(Tab_RIT_BMP[SALDO],Tab_RIT_BMP[CONTA],610552701,Tab_RIT_BMP[ANO],$L$7) -> 0 | M20: =SUMIFS(Tab_RIT_BMP[SALDO],Tab_RIT_BMP[CONTA],610530701,Tab_RIT_BMP[ANO],$M$7)+SUMIFS(Tab_RIT_BMP[SALDO],Tab_RIT_BMP[CONTA],610550701,Tab_RIT_BMP[ANO],$M$7)+ SUMIFS(Tab_RIT_BMP[SALDO],Tab_RIT_BMP[CONTA],610532701,Tab_RIT_BMP[ANO],$M$7)+SUMIFS(Tab_RIT_BMP[SALDO],Tab_RIT_BMP[CONTA],610552701,Tab_RIT_BMP[ANO],$M$7) -> 0 | P20: (4) instalações elétricas internas de unidades consumidoras; | Q20: =SUMIFS(Tab_Uderor[R$],Tab_Uderor[Competencia],Entrada!Q$7,Tab_Uderor[TipoReceita],Entrada!$P20)*0+R20 -> 0 | R20: =SUMIFS(Tab_Uderor[R$],Tab_Uderor[Competencia],Entrada!R$7,Tab_Uderor[TipoReceita],Entrada!$P20) -> 0 | S20: =SUMIFS(Tab_Uderor[R$],Tab_Uderor[Competencia],Entrada!S$7,Tab_Uderor[TipoReceita],Entrada!$P20) -> 0 | T20: =SUMIFS(Tab_Uderor[R$],Tab_Uderor[Competencia],Entrada!T$7,Tab_Uderor[TipoReceita],Entrada!$P20) -> 0 | U20: =SUMIFS(Tab_Uderor[R$],Tab_Uderor[Competencia],Entrada!U$7,Tab_Uderor[TipoReceita],Entrada!$P20) -> 0 | V20: =SUMIFS(Tab_Uderor[R$],Tab_Uderor[Competencia],Entrada!V$7,Tab_Uderor[TipoReceita],Entrada!$P20) -> 0 | W20: =SUMIFS(Tab_Uderor[R$],Tab_Uderor[Competencia],Entrada!W$7,Tab_Uderor[TipoReceita],Entrada!$P20) -> 0 | X20: =SUMIFS(Tab_Uderor[R$],Tab_Uderor[Competencia],Entrada!X$7,Tab_Uderor[TipoReceita],Entrada!$P20) -> 0 | Y20: =SUMIFS(Tab_Uderor[R$],Tab_Uderor[Competencia],Entrada!Y$7,Tab_Uderor[TipoReceita],Entrada!$P20) -> 0 | Z20: =SUMIFS(Tab_Uderor[R$],Tab_Uderor[Competencia],Entrada!Z$7,Tab_Uderor[TipoReceita],Entrada!$P20) -> 0 | AA20: =SUMIFS(Tab_Uderor[R$],Tab_Uderor[Competencia],Entrada!AA$7,Tab_Uderor[TipoReceita],Entrada!$P20) -> 0 | AB20: =SUMIFS(Tab_Uderor[R$],Tab_Uderor[Competencia],Entrada!AB$7,Tab_Uderor[TipoReceita],Entrada!$P20) -> 0 | AC20: =SUMIFS(Tab_Uderor[R$],Tab_Uderor[Competencia],Entrada!AC$7,Tab_Uderor[TipoReceita],Entrada!$P20)-AF20 -> 0 | AD20: =SUMIFS(Tab_Uderor[R$],Tab_Uderor[Competencia],Entrada!AD$7,Tab_Uderor[TipoReceita],Entrada!$P20)-AG20 -> 0 | AE20: =SUMIFS(Tab_Uderor[R$],Tab_Uderor[Competencia],Entrada!AE$7,Tab_Uderor[TipoReceita],Entrada!$P20)-AH20 -> 0
F21: (15) Saldo RGR PLPT | G21: =G85*VLOOKUP(DATE(YEAR(CAPA!$C$10),MONTH(CAPA!$C$10)-1,1),Índices!$B$135:$D$638,3,0)/VLOOKUP(DATE(YEAR($G$70),MONTH($G$70)-1,1),Índices!$B$135:$D$638,3,0) ->  | J21: BMP - 610530799; 610550799; 610532799; 610552799 | K21: Outros | L21: =SUMIFS(Tab_RIT_BMP[SALDO],Tab_RIT_BMP[CONTA],610530799,Tab_RIT_BMP[ANO],$L$7)+SUMIFS(Tab_RIT_BMP[SALDO],Tab_RIT_BMP[CONTA],610550799,Tab_RIT_BMP[ANO],$L$7)+ SUMIFS(Tab_RIT_BMP[SALDO],Tab_RIT_BMP[CONTA],610532799,Tab_RIT_BMP[ANO],$L$7)+SUMIFS(Tab_RIT_BMP[SALDO],Tab_RIT_BMP[CONTA],610552799,Tab_RIT_BMP[ANO],$L$7) -> 0 | M21: =SUMIFS(Tab_RIT_BMP[SALDO],Tab_RIT_BMP[CONTA],610530799,Tab_RIT_BMP[ANO],$M$7)+SUMIFS(Tab_RIT_BMP[SALDO],Tab_RIT_BMP[CONTA],610550799,Tab_RIT_BMP[ANO],$M$7)+ SUMIFS(Tab_RIT_BMP[SALDO],Tab_RIT_BMP[CONTA],610532799,Tab_RIT_BMP[ANO],$M$7)+SUMIFS(Tab_RIT_BMP[SALDO],Tab_RIT_BMP[CONTA],610552799,Tab_RIT_BMP[ANO],$M$7) -> 0 | P21: (5) banco de capacitores; | Q21: =SUMIFS(Tab_Uderor[R$],Tab_Uderor[Competencia],Entrada!Q$7,Tab_Uderor[TipoReceita],Entrada!$P21)*0+R21 -> 0 | R21: =SUMIFS(Tab_Uderor[R$],Tab_Uderor[Competencia],Entrada!R$7,Tab_Uderor[TipoReceita],Entrada!$P21) -> 0 | S21: =SUMIFS(Tab_Uderor[R$],Tab_Uderor[Competencia],Entrada!S$7,Tab_Uderor[TipoReceita],Entrada!$P21) -> 0 | T21: =SUMIFS(Tab_Uderor[R$],Tab_Uderor[Competencia],Entrada!T$7,Tab_Uderor[TipoReceita],Entrada!$P21) -> 0 | U21: =SUMIFS(Tab_Uderor[R$],Tab_Uderor[Competencia],Entrada!U$7,Tab_Uderor[TipoReceita],Entrada!$P21) -> 0 | V21: =SUMIFS(Tab_Uderor[R$],Tab_Uderor[Competencia],Entrada!V$7,Tab_Uderor[TipoReceita],Entrada!$P21) -> 0 | W21: =SUMIFS(Tab_Uderor[R$],Tab_Uderor[Competencia],Entrada!W$7,Tab_Uderor[TipoReceita],Entrada!$P21) -> 0 | X21: =SUMIFS(Tab_Uderor[R$],Tab_Uderor[Competencia],Entrada!X$7,Tab_Uderor[TipoReceita],Entrada!$P21) -> 0 | Y21: =SUMIFS(Tab_Uderor[R$],Tab_Uderor[Competencia],Entrada!Y$7,Tab_Uderor[TipoReceita],Entrada!$P21) -> 0 | Z21: =SUMIFS(Tab_Uderor[R$],Tab_Uderor[Competencia],Entrada!Z$7,Tab_Uderor[TipoReceita],Entrada!$P21) -> 0 | AA21: =SUMIFS(Tab_Uderor[R$],Tab_Uderor[Competencia],Entrada!AA$7,Tab_Uderor[TipoReceita],Entrada!$P21) -> 0 | AB21: =SUMIFS(Tab_Uderor[R$],Tab_Uderor[Competencia],Entrada!AB$7,Tab_Uderor[TipoReceita],Entrada!$P21) -> 0 | AC21: =SUMIFS(Tab_Uderor[R$],Tab_Uderor[Competencia],Entrada!AC$7,Tab_Uderor[TipoReceita],Entrada!$P21)-AF21 -> 0 | AD21: =SUMIFS(Tab_Uderor[R$],Tab_Uderor[Competencia],Entrada!AD$7,Tab_Uderor[TipoReceita],Entrada!$P21)-AG21 -> 0 | AE21: =SUMIFS(Tab_Uderor[R$],Tab_Uderor[Competencia],Entrada!AE$7,Tab_Uderor[TipoReceita],Entrada!$P21)-AH21 -> 0
F22: (16) Saldo RGR Demais Investimentos | G22: =G86*VLOOKUP(DATE(YEAR(CAPA!$C$10),MONTH(CAPA!$C$10)-1,1),Índices!$B$135:$D$638,3,0)/VLOOKUP(DATE(YEAR($G$70),MONTH($G$70)-1,1),Índices!$B$135:$D$638,3,0) ->  | J22: BMP - 610530710; 610550710; 610532710; 610552710 | K22: (-) Créditos de Tributos Recuperáveis | L22: =SUMIFS(Tab_RIT_BMP[SALDO],Tab_RIT_BMP[CONTA],610530710,Tab_RIT_BMP[ANO],$L$7)+SUMIFS(Tab_RIT_BMP[SALDO],Tab_RIT_BMP[CONTA],610550710,Tab_RIT_BMP[ANO],$L$7)+ SUMIFS(Tab_RIT_BMP[SALDO],Tab_RIT_BMP[CONTA],610532710,Tab_RIT_BMP[ANO],$L$7)+SUMIFS(Tab_RIT_BMP[SALDO],Tab_RIT_BMP[CONTA],610552710,Tab_RIT_BMP[ANO],$L$7) -> 0 | M22: =SUMIFS(Tab_RIT_BMP[SALDO],Tab_RIT_BMP[CONTA],610530710,Tab_RIT_BMP[ANO],$M$7)+SUMIFS(Tab_RIT_BMP[SALDO],Tab_RIT_BMP[CONTA],610550710,Tab_RIT_BMP[ANO],$M$7)+ SUMIFS(Tab_RIT_BMP[SALDO],Tab_RIT_BMP[CONTA],610532710,Tab_RIT_BMP[ANO],$M$7)+SUMIFS(Tab_RIT_BMP[SALDO],Tab_RIT_BMP[CONTA],610552710,Tab_RIT_BMP[ANO],$M$7) -> 0 | P22: (6) padrões de entrada de unidades consumidoras atendidas em baixa tensão; | Q22: =SUMIFS(Tab_Uderor[R$],Tab_Uderor[Competencia],Entrada!Q$7,Tab_Uderor[TipoReceita],Entrada!$P22)*0+R22 -> 0 | R22: =SUMIFS(Tab_Uderor[R$],Tab_Uderor[Competencia],Entrada!R$7,Tab_Uderor[TipoReceita],Entrada!$P22) -> 0 | S22: =SUMIFS(Tab_Uderor[R$],Tab_Uderor[Competencia],Entrada!S$7,Tab_Uderor[TipoReceita],Entrada!$P22) -> 0 | T22: =SUMIFS(Tab_Uderor[R$],Tab_Uderor[Competencia],Entrada!T$7,Tab_Uderor[TipoReceita],Entrada!$P22) -> 0 | U22: =SUMIFS(Tab_Uderor[R$],Tab_Uderor[Competencia],Entrada!U$7,Tab_Uderor[TipoReceita],Entrada!$P22) -> 0 | V22: =SUMIFS(Tab_Uderor[R$],Tab_Uderor[Competencia],Entrada!V$7,Tab_Uderor[TipoReceita],Entrada!$P22) -> 0 | W22: =SUMIFS(Tab_Uderor[R$],Tab_Uderor[Competencia],Entrada!W$7,Tab_Uderor[TipoReceita],Entrada!$P22) -> 0 | X22: =SUMIFS(Tab_Uderor[R$],Tab_Uderor[Competencia],Entrada!X$7,Tab_Uderor[TipoReceita],Entrada!$P22) -> 0 | Y22: =SUMIFS(Tab_Uderor[R$],Tab_Uderor[Competencia],Entrada!Y$7,Tab_Uderor[TipoReceita],Entrada!$P22) -> 0 | Z22: =SUMIFS(Tab_Uderor[R$],Tab_Uderor[Competencia],Entrada!Z$7,Tab_Uderor[TipoReceita],Entrada!$P22) -> 0 | AA22: =SUMIFS(Tab_Uderor[R$],Tab_Uderor[Competencia],Entrada!AA$7,Tab_Uderor[TipoReceita],Entrada!$P22) -> 0 | AB22: =SUMIFS(Tab_Uderor[R$],Tab_Uderor[Competencia],Entrada!AB$7,Tab_Uderor[TipoReceita],Entrada!$P22) -> 0 | AC22: =SUMIFS(Tab_Uderor[R$],Tab_Uderor[Competencia],Entrada!AC$7,Tab_Uderor[TipoReceita],Entrada!$P22)-AF22 -> 0 | AD22: =SUMIFS(Tab_Uderor[R$],Tab_Uderor[Competencia],Entrada!AD$7,Tab_Uderor[TipoReceita],Entrada!$P22)-AG22 -> 0 | AE22: =SUMIFS(Tab_Uderor[R$],Tab_Uderor[Competencia],Entrada!AE$7,Tab_Uderor[TipoReceita],Entrada!$P22)-AH22 -> 0
F23: (17) Taxa de Depreciação | G23: =G87 -> 0 | K23: Subtotal | L23: =SUM(L20:L22) -> 0 | M23: =SUM(M20:M22) -> 0 | P23: (7) sistemas de medição de energia elétrica; | Q23: =SUMIFS(Tab_Uderor[R$],Tab_Uderor[Competencia],Entrada!Q$7,Tab_Uderor[TipoReceita],Entrada!$P23)*0+R23 -> 0 | R23: =SUMIFS(Tab_Uderor[R$],Tab_Uderor[Competencia],Entrada!R$7,Tab_Uderor[TipoReceita],Entrada!$P23) -> 0 | S23: =SUMIFS(Tab_Uderor[R$],Tab_Uderor[Competencia],Entrada!S$7,Tab_Uderor[TipoReceita],Entrada!$P23) -> 0 | T23: =SUMIFS(Tab_Uderor[R$],Tab_Uderor[Competencia],Entrada!T$7,Tab_Uderor[TipoReceita],Entrada!$P23) -> 0 | U23: =SUMIFS(Tab_Uderor[R$],Tab_Uderor[Competencia],Entrada!U$7,Tab_Uderor[TipoReceita],Entrada!$P23) -> 0 | V23: =SUMIFS(Tab_Uderor[R$],Tab_Uderor[Competencia],Entrada!V$7,Tab_Uderor[TipoReceita],Entrada!$P23) -> 0 | W23: =SUMIFS(Tab_Uderor[R$],Tab_Uderor[Competencia],Entrada!W$7,Tab_Uderor[TipoReceita],Entrada!$P23) -> 0 | X23: =SUMIFS(Tab_Uderor[R$],Tab_Uderor[Competencia],Entrada!X$7,Tab_Uderor[TipoReceita],Entrada!$P23) -> 0 | Y23: =SUMIFS(Tab_Uderor[R$],Tab_Uderor[Competencia],Entrada!Y$7,Tab_Uderor[TipoReceita],Entrada!$P23) -> 0 | Z23: =SUMIFS(Tab_Uderor[R$],Tab_Uderor[Competencia],Entrada!Z$7,Tab_Uderor[TipoReceita],Entrada!$P23) -> 0 | AA23: =SUMIFS(Tab_Uderor[R$],Tab_Uderor[Competencia],Entrada!AA$7,Tab_Uderor[TipoReceita],Entrada!$P23) -> 0 | AB23: =SUMIFS(Tab_Uderor[R$],Tab_Uderor[Competencia],Entrada!AB$7,Tab_Uderor[TipoReceita],Entrada!$P23) -> 0 | AC23: =SUMIFS(Tab_Uderor[R$],Tab_Uderor[Competencia],Entrada!AC$7,Tab_Uderor[TipoReceita],Entrada!$P23)-AF23 -> 0 | AD23: =SUMIFS(Tab_Uderor[R$],Tab_Uderor[Competencia],Entrada!AD$7,Tab_Uderor[TipoReceita],Entrada!$P23)-AG23 -> 0 | AE23: =SUMIFS(Tab_Uderor[R$],Tab_Uderor[Competencia],Entrada!AE$7,Tab_Uderor[TipoReceita],Entrada!$P23)-AH23 -> 0
F24: (18) Quota de Reintegração Regulatória = (5) * (17) | G24: =G23*G11 ->  | J24: CONTA TERCEIROS | P24: (8) geradores, incluindo-se unidades de microgeração e minigeração distribuída; | Q24: =SUMIFS(Tab_Uderor[R$],Tab_Uderor[Competencia],Entrada!Q$7,Tab_Uderor[TipoReceita],Entrada!$P24)*0+R24 -> 0 | R24: =SUMIFS(Tab_Uderor[R$],Tab_Uderor[Competencia],Entrada!R$7,Tab_Uderor[TipoReceita],Entrada!$P24) -> 0 | S24: =SUMIFS(Tab_Uderor[R$],Tab_Uderor[Competencia],Entrada!S$7,Tab_Uderor[TipoReceita],Entrada!$P24) -> 0 | T24: =SUMIFS(Tab_Uderor[R$],Tab_Uderor[Competencia],Entrada!T$7,Tab_Uderor[TipoReceita],Entrada!$P24) -> 0 | U24: =SUMIFS(Tab_Uderor[R$],Tab_Uderor[Competencia],Entrada!U$7,Tab_Uderor[TipoReceita],Entrada!$P24) -> 0 | V24: =SUMIFS(Tab_Uderor[R$],Tab_Uderor[Competencia],Entrada!V$7,Tab_Uderor[TipoReceita],Entrada!$P24) -> 0 | W24: =SUMIFS(Tab_Uderor[R$],Tab_Uderor[Competencia],Entrada!W$7,Tab_Uderor[TipoReceita],Entrada!$P24) -> 0 | X24: =SUMIFS(Tab_Uderor[R$],Tab_Uderor[Competencia],Entrada!X$7,Tab_Uderor[TipoReceita],Entrada!$P24) -> 0 | Y24: =SUMIFS(Tab_Uderor[R$],Tab_Uderor[Competencia],Entrada!Y$7,Tab_Uderor[TipoReceita],Entrada!$P24) -> 0 | Z24: =SUMIFS(Tab_Uderor[R$],Tab_Uderor[Competencia],Entrada!Z$7,Tab_Uderor[TipoReceita],Entrada!$P24) -> 0 | AA24: =SUMIFS(Tab_Uderor[R$],Tab_Uderor[Competencia],Entrada!AA$7,Tab_Uderor[TipoReceita],Entrada!$P24) -> 0 | AB24: =SUMIFS(Tab_Uderor[R$],Tab_Uderor[Competencia],Entrada!AB$7,Tab_Uderor[TipoReceita],Entrada!$P24) -> 0 | AC24: =SUMIFS(Tab_Uderor[R$],Tab_Uderor[Competencia],Entrada!AC$7,Tab_Uderor[TipoReceita],Entrada!$P24)-AF24 -> 0 | AD24: =SUMIFS(Tab_Uderor[R$],Tab_Uderor[Competencia],Entrada!AD$7,Tab_Uderor[TipoReceita],Entrada!$P24)-AG24 -> 0 | AE24: =SUMIFS(Tab_Uderor[R$],Tab_Uderor[Competencia],Entrada!AE$7,Tab_Uderor[TipoReceita],Entrada!$P24)-AH24 -> 0
J25: RIT - RP 800 - Célula F20 | K25: Manut. e Conserv. Bens e Instalações vinculadas ao Serviço Concedido | L25: =SUMIFS(Tab_RIT_BMP[SALDO],Tab_RIT_BMP[CONTA],1,Tab_RIT_BMP[ANO],$L$7) -> 0 | M25: =SUMIFS(Tab_RIT_BMP[SALDO],Tab_RIT_BMP[CONTA],1,Tab_RIT_BMP[ANO],$M$7) -> 0 | P25: (9) sistemas de iluminação pública. | Q25: =SUMIFS(Tab_Uderor[R$],Tab_Uderor[Competencia],Entrada!Q$7,Tab_Uderor[TipoReceita],Entrada!$P25)*0+R25 -> 0 | R25: =SUMIFS(Tab_Uderor[R$],Tab_Uderor[Competencia],Entrada!R$7,Tab_Uderor[TipoReceita],Entrada!$P25) -> 0 | S25: =SUMIFS(Tab_Uderor[R$],Tab_Uderor[Competencia],Entrada!S$7,Tab_Uderor[TipoReceita],Entrada!$P25) -> 0 | T25: =SUMIFS(Tab_Uderor[R$],Tab_Uderor[Competencia],Entrada!T$7,Tab_Uderor[TipoReceita],Entrada!$P25) -> 0 | U25: =SUMIFS(Tab_Uderor[R$],Tab_Uderor[Competencia],Entrada!U$7,Tab_Uderor[TipoReceita],Entrada!$P25) -> 0 | V25: =SUMIFS(Tab_Uderor[R$],Tab_Uderor[Competencia],Entrada!V$7,Tab_Uderor[TipoReceita],Entrada!$P25) -> 0 | W25: =SUMIFS(Tab_Uderor[R$],Tab_Uderor[Competencia],Entrada!W$7,Tab_Uderor[TipoReceita],Entrada!$P25) -> 0 | X25: =SUMIFS(Tab_Uderor[R$],Tab_Uderor[Competencia],Entrada!X$7,Tab_Uderor[TipoReceita],Entrada!$P25) -> 0 | Y25: =SUMIFS(Tab_Uderor[R$],Tab_Uderor[Competencia],Entrada!Y$7,Tab_Uderor[TipoReceita],Entrada!$P25) -> 0 | Z25: =SUMIFS(Tab_Uderor[R$],Tab_Uderor[Competencia],Entrada!Z$7,Tab_Uderor[TipoReceita],Entrada!$P25) -> 0 | AA25: =SUMIFS(Tab_Uderor[R$],Tab_Uderor[Competencia],Entrada!AA$7,Tab_Uderor[TipoReceita],Entrada!$P25) -> 0 | AB25: =SUMIFS(Tab_Uderor[R$],Tab_Uderor[Competencia],Entrada!AB$7,Tab_Uderor[TipoReceita],Entrada!$P25) -> 0 | AC25: =SUMIFS(Tab_Uderor[R$],Tab_Uderor[Competencia],Entrada!AC$7,Tab_Uderor[TipoReceita],Entrada!$P25)-AF25 -> 0 | AD25: =SUMIFS(Tab_Uderor[R$],Tab_Uderor[Competencia],Entrada!AD$7,Tab_Uderor[TipoReceita],Entrada!$P25)-AG25 -> 0 | AE25: =SUMIFS(Tab_Uderor[R$],Tab_Uderor[Competencia],Entrada!AE$7,Tab_Uderor[TipoReceita],Entrada!$P25)-AH25 -> 0
F26: Gasto do Conselho de Consumidores | J26: RIT - RP 800 - Célula F21 | K26: Auditoria e Consultoria | L26: =SUMIFS(Tab_RIT_BMP[SALDO],Tab_RIT_BMP[CONTA],2,Tab_RIT_BMP[ANO],$L$7) -> 0 | M26: =SUMIFS(Tab_RIT_BMP[SALDO],Tab_RIT_BMP[CONTA],2,Tab_RIT_BMP[ANO],$M$7) -> 0 | P26: (10) estações de recarga de veículos elétricos, incluindo a prestação de serviços aos usuários | Q26: =SUMIFS(Tab_Uderor[R$],Tab_Uderor[Competencia],Entrada!Q$7,Tab_Uderor[TipoReceita],Entrada!$P26)*0+R26 -> 0 | R26: =SUMIFS(Tab_Uderor[R$],Tab_Uderor[Competencia],Entrada!R$7,Tab_Uderor[TipoReceita],Entrada!$P26) -> 0 | S26: =SUMIFS(Tab_Uderor[R$],Tab_Uderor[Competencia],Entrada!S$7,Tab_Uderor[TipoReceita],Entrada!$P26) -> 0 | T26: =SUMIFS(Tab_Uderor[R$],Tab_Uderor[Competencia],Entrada!T$7,Tab_Uderor[TipoReceita],Entrada!$P26) -> 0 | U26: =SUMIFS(Tab_Uderor[R$],Tab_Uderor[Competencia],Entrada!U$7,Tab_Uderor[TipoReceita],Entrada!$P26) -> 0 | V26: =SUMIFS(Tab_Uderor[R$],Tab_Uderor[Competencia],Entrada!V$7,Tab_Uderor[TipoReceita],Entrada!$P26) -> 0 | W26: =SUMIFS(Tab_Uderor[R$],Tab_Uderor[Competencia],Entrada!W$7,Tab_Uderor[TipoReceita],Entrada!$P26) -> 0 | X26: =SUMIFS(Tab_Uderor[R$],Tab_Uderor[Competencia],Entrada!X$7,Tab_Uderor[TipoReceita],Entrada!$P26) -> 0 | Y26: =SUMIFS(Tab_Uderor[R$],Tab_Uderor[Competencia],Entrada!Y$7,Tab_Uderor[TipoReceita],Entrada!$P26) -> 0 | Z26: =SUMIFS(Tab_Uderor[R$],Tab_Uderor[Competencia],Entrada!Z$7,Tab_Uderor[TipoReceita],Entrada!$P26) -> 0 | AA26: =SUMIFS(Tab_Uderor[R$],Tab_Uderor[Competencia],Entrada!AA$7,Tab_Uderor[TipoReceita],Entrada!$P26) -> 0 | AB26: =SUMIFS(Tab_Uderor[R$],Tab_Uderor[Competencia],Entrada!AB$7,Tab_Uderor[TipoReceita],Entrada!$P26) -> 0 | AC26: =SUMIFS(Tab_Uderor[R$],Tab_Uderor[Competencia],Entrada!AC$7,Tab_Uderor[TipoReceita],Entrada!$P26)-AF26 -> 0 | AD26: =SUMIFS(Tab_Uderor[R$],Tab_Uderor[Competencia],Entrada!AD$7,Tab_Uderor[TipoReceita],Entrada!$P26)-AG26 -> 0 | AE26: =SUMIFS(Tab_Uderor[R$],Tab_Uderor[Competencia],Entrada!AE$7,Tab_Uderor[TipoReceita],Entrada!$P26)-AH26 -> 0
F27: =Indexador!D132 -> Despesa 2022 | J27: RIT - RP 800 - Célula F22 | K27: Serviços Jurídicos | L27: =SUMIFS(Tab_RIT_BMP[SALDO],Tab_RIT_BMP[CONTA],3,Tab_RIT_BMP[ANO],$L$7) -> 0 | M27: =SUMIFS(Tab_RIT_BMP[SALDO],Tab_RIT_BMP[CONTA],3,Tab_RIT_BMP[ANO],$M$7) -> 0 | P27: Eficientização do consumo de energia elétrica e instalação de cogeração qualificada, desde que não enquadráveis nos projetos de Pesquisa e Desenvolvimento (P&D) ou de Eficiência Energética estabelecidos em lei | Q27: =SUMIFS(Tab_Uderor[R$],Tab_Uderor[Competencia],Entrada!Q$7,Tab_Uderor[TipoReceita],Entrada!$P27)*0+R27 -> 0 | R27: =SUMIFS(Tab_Uderor[R$],Tab_Uderor[Competencia],Entrada!R$7,Tab_Uderor[TipoReceita],Entrada!$P27) -> 0 | S27: =SUMIFS(Tab_Uderor[R$],Tab_Uderor[Competencia],Entrada!S$7,Tab_Uderor[TipoReceita],Entrada!$P27) -> 0 | T27: =SUMIFS(Tab_Uderor[R$],Tab_Uderor[Competencia],Entrada!T$7,Tab_Uderor[TipoReceita],Entrada!$P27) -> 0 | U27: =SUMIFS(Tab_Uderor[R$],Tab_Uderor[Competencia],Entrada!U$7,Tab_Uderor[TipoReceita],Entrada!$P27) -> 0 | V27: =SUMIFS(Tab_Uderor[R$],Tab_Uderor[Competencia],Entrada!V$7,Tab_Uderor[TipoReceita],Entrada!$P27) -> 0 | W27: =SUMIFS(Tab_Uderor[R$],Tab_Uderor[Competencia],Entrada!W$7,Tab_Uderor[TipoReceita],Entrada!$P27) -> 0 | X27: =SUMIFS(Tab_Uderor[R$],Tab_Uderor[Competencia],Entrada!X$7,Tab_Uderor[TipoReceita],Entrada!$P27) -> 0 | Y27: =SUMIFS(Tab_Uderor[R$],Tab_Uderor[Competencia],Entrada!Y$7,Tab_Uderor[TipoReceita],Entrada!$P27) -> 0 | Z27: =SUMIFS(Tab_Uderor[R$],Tab_Uderor[Competencia],Entrada!Z$7,Tab_Uderor[TipoReceita],Entrada!$P27) -> 0 | AA27: =SUMIFS(Tab_Uderor[R$],Tab_Uderor[Competencia],Entrada!AA$7,Tab_Uderor[TipoReceita],Entrada!$P27) -> 0 | AB27: =SUMIFS(Tab_Uderor[R$],Tab_Uderor[Competencia],Entrada!AB$7,Tab_Uderor[TipoReceita],Entrada!$P27) -> 0 | AC27: =SUMIFS(Tab_Uderor[R$],Tab_Uderor[Competencia],Entrada!AC$7,Tab_Uderor[TipoReceita],Entrada!$P27)-AF27 -> 0 | AD27: =SUMIFS(Tab_Uderor[R$],Tab_Uderor[Competencia],Entrada!AD$7,Tab_Uderor[TipoReceita],Entrada!$P27)-AG27 -> 0 | AE27: =SUMIFS(Tab_Uderor[R$],Tab_Uderor[Competencia],Entrada!AE$7,Tab_Uderor[TipoReceita],Entrada!$P27)-AH27 -> 0
F28: =Indexador!E132 -> Despesa 2021 | J28: RIT - RP 800 - Célula F23 | K28: Serviços de Informática | L28: =SUMIFS(Tab_RIT_BMP[SALDO],Tab_RIT_BMP[CONTA],4,Tab_RIT_BMP[ANO],$L$7)+SUMIFS(Tab_RIT_BMP[SALDO],Tab_RIT_BMP[CONTA],5,Tab_RIT_BMP[ANO],$L$7) -> 0 | M28: =SUMIFS(Tab_RIT_BMP[SALDO],Tab_RIT_BMP[CONTA],4,Tab_RIT_BMP[ANO],$M$7)+SUMIFS(Tab_RIT_BMP[SALDO],Tab_RIT_BMP[CONTA],5,Tab_RIT_BMP[ANO],$M$7) -> 0 | P28: Serviços de comunicação de dados | Q28: =SUMIFS(Tab_Uderor[R$],Tab_Uderor[Competencia],Entrada!Q$7,Tab_Uderor[TipoReceita],Entrada!$P28)*0+R28 -> 0 | R28: =SUMIFS(Tab_Uderor[R$],Tab_Uderor[Competencia],Entrada!R$7,Tab_Uderor[TipoReceita],Entrada!$P28) -> 0 | S28: =SUMIFS(Tab_Uderor[R$],Tab_Uderor[Competencia],Entrada!S$7,Tab_Uderor[TipoReceita],Entrada!$P28) -> 0 | T28: =SUMIFS(Tab_Uderor[R$],Tab_Uderor[Competencia],Entrada!T$7,Tab_Uderor[TipoReceita],Entrada!$P28) -> 0 | U28: =SUMIFS(Tab_Uderor[R$],Tab_Uderor[Competencia],Entrada!U$7,Tab_Uderor[TipoReceita],Entrada!$P28) -> 0 | V28: =SUMIFS(Tab_Uderor[R$],Tab_Uderor[Competencia],Entrada!V$7,Tab_Uderor[TipoReceita],Entrada!$P28) -> 0 | W28: =SUMIFS(Tab_Uderor[R$],Tab_Uderor[Competencia],Entrada!W$7,Tab_Uderor[TipoReceita],Entrada!$P28) -> 0 | X28: =SUMIFS(Tab_Uderor[R$],Tab_Uderor[Competencia],Entrada!X$7,Tab_Uderor[TipoReceita],Entrada!$P28) -> 0 | Y28: =SUMIFS(Tab_Uderor[R$],Tab_Uderor[Competencia],Entrada!Y$7,Tab_Uderor[TipoReceita],Entrada!$P28) -> 0 | Z28: =SUMIFS(Tab_Uderor[R$],Tab_Uderor[Competencia],Entrada!Z$7,Tab_Uderor[TipoReceita],Entrada!$P28) -> 0 | AA28: =SUMIFS(Tab_Uderor[R$],Tab_Uderor[Competencia],Entrada!AA$7,Tab_Uderor[TipoReceita],Entrada!$P28) -> 0 | AB28: =SUMIFS(Tab_Uderor[R$],Tab_Uderor[Competencia],Entrada!AB$7,Tab_Uderor[TipoReceita],Entrada!$P28) -> 0 | AC28: =SUMIFS(Tab_Uderor[R$],Tab_Uderor[Competencia],Entrada!AC$7,Tab_Uderor[TipoReceita],Entrada!$P28)-AF28 -> 0 | AD28: =SUMIFS(Tab_Uderor[R$],Tab_Uderor[Competencia],Entrada!AD$7,Tab_Uderor[TipoReceita],Entrada!$P28)-AG28 -> 0 | AE28: =SUMIFS(Tab_Uderor[R$],Tab_Uderor[Competencia],Entrada!AE$7,Tab_Uderor[TipoReceita],Entrada!$P28)-AH28 -> 0
F29: =Indexador!F132 -> Despesa 2020 | J29: RIT - RP 800 - Célula F26 | K29: Viagens (Passagens Aéreas, etc) | L29: =SUMIFS(Tab_RIT_BMP[SALDO],Tab_RIT_BMP[CONTA],6,Tab_RIT_BMP[ANO],$L$7) -> 0 | M29: =SUMIFS(Tab_RIT_BMP[SALDO],Tab_RIT_BMP[CONTA],6,Tab_RIT_BMP[ANO],$M$7) -> 0 | P29: Serviços de consultoria | Q29: =SUMIFS(Tab_Uderor[R$],Tab_Uderor[Competencia],Entrada!Q$7,Tab_Uderor[TipoReceita],Entrada!$P29)*0+R29 -> 0 | R29: =SUMIFS(Tab_Uderor[R$],Tab_Uderor[Competencia],Entrada!R$7,Tab_Uderor[TipoReceita],Entrada!$P29) -> 0 | S29: =SUMIFS(Tab_Uderor[R$],Tab_Uderor[Competencia],Entrada!S$7,Tab_Uderor[TipoReceita],Entrada!$P29) -> 0 | T29: =SUMIFS(Tab_Uderor[R$],Tab_Uderor[Competencia],Entrada!T$7,Tab_Uderor[TipoReceita],Entrada!$P29) -> 0 | U29: =SUMIFS(Tab_Uderor[R$],Tab_Uderor[Competencia],Entrada!U$7,Tab_Uderor[TipoReceita],Entrada!$P29) -> 0 | V29: =SUMIFS(Tab_Uderor[R$],Tab_Uderor[Competencia],Entrada!V$7,Tab_Uderor[TipoReceita],Entrada!$P29) -> 0 | W29: =SUMIFS(Tab_Uderor[R$],Tab_Uderor[Competencia],Entrada!W$7,Tab_Uderor[TipoReceita],Entrada!$P29) -> 0 | X29: =SUMIFS(Tab_Uderor[R$],Tab_Uderor[Competencia],Entrada!X$7,Tab_Uderor[TipoReceita],Entrada!$P29) -> 0 | Y29: =SUMIFS(Tab_Uderor[R$],Tab_Uderor[Competencia],Entrada!Y$7,Tab_Uderor[TipoReceita],Entrada!$P29) -> 0 | Z29: =SUMIFS(Tab_Uderor[R$],Tab_Uderor[Competencia],Entrada!Z$7,Tab_Uderor[TipoReceita],Entrada!$P29) -> 0 | AA29: =SUMIFS(Tab_Uderor[R$],Tab_Uderor[Competencia],Entrada!AA$7,Tab_Uderor[TipoReceita],Entrada!$P29) -> 0 | AB29: =SUMIFS(Tab_Uderor[R$],Tab_Uderor[Competencia],Entrada!AB$7,Tab_Uderor[TipoReceita],Entrada!$P29) -> 0 | AC29: =SUMIFS(Tab_Uderor[R$],Tab_Uderor[Competencia],Entrada!AC$7,Tab_Uderor[TipoReceita],Entrada!$P29)-AF29 -> 0 | AD29: =SUMIFS(Tab_Uderor[R$],Tab_Uderor[Competencia],Entrada!AD$7,Tab_Uderor[TipoReceita],Entrada!$P29)-AG29 -> 0 | AE29: =SUMIFS(Tab_Uderor[R$],Tab_Uderor[Competencia],Entrada!AE$7,Tab_Uderor[TipoReceita],Entrada!$P29)-AH29 -> 0
F30: =Indexador!G132 -> Despesa 2019 | J30: RIT - RP 800 - Célula F27 | K30: Transportes (inclui Fretes) | L30: =SUMIFS(Tab_RIT_BMP[SALDO],Tab_RIT_BMP[CONTA],7,Tab_RIT_BMP[ANO],$L$7) -> 0 | M30: =SUMIFS(Tab_RIT_BMP[SALDO],Tab_RIT_BMP[CONTA],7,Tab_RIT_BMP[ANO],$M$7) -> 0 | P30: Receita proveniente da comercialização de resultados de projetos de P&D COM comprovação | Q30: =SUMIFS(Tab_Uderor[R$],Tab_Uderor[Competencia],Entrada!Q$7,Tab_Uderor[TipoReceita],Entrada!$P30)*0+R30 -> 0 | R30: =SUMIFS(Tab_Uderor[R$],Tab_Uderor[Competencia],Entrada!R$7,Tab_Uderor[TipoReceita],Entrada!$P30) -> 0 | S30: =SUMIFS(Tab_Uderor[R$],Tab_Uderor[Competencia],Entrada!S$7,Tab_Uderor[TipoReceita],Entrada!$P30) -> 0 | T30: =SUMIFS(Tab_Uderor[R$],Tab_Uderor[Competencia],Entrada!T$7,Tab_Uderor[TipoReceita],Entrada!$P30) -> 0 | U30: =SUMIFS(Tab_Uderor[R$],Tab_Uderor[Competencia],Entrada!U$7,Tab_Uderor[TipoReceita],Entrada!$P30) -> 0 | V30: =SUMIFS(Tab_Uderor[R$],Tab_Uderor[Competencia],Entrada!V$7,Tab_Uderor[TipoReceita],Entrada!$P30) -> 0 | W30: =SUMIFS(Tab_Uderor[R$],Tab_Uderor[Competencia],Entrada!W$7,Tab_Uderor[TipoReceita],Entrada!$P30) -> 0 | X30: =SUMIFS(Tab_Uderor[R$],Tab_Uderor[Competencia],Entrada!X$7,Tab_Uderor[TipoReceita],Entrada!$P30) -> 0 | Y30: =SUMIFS(Tab_Uderor[R$],Tab_Uderor[Competencia],Entrada!Y$7,Tab_Uderor[TipoReceita],Entrada!$P30) -> 0 | Z30: =SUMIFS(Tab_Uderor[R$],Tab_Uderor[Competencia],Entrada!Z$7,Tab_Uderor[TipoReceita],Entrada!$P30) -> 0 | AA30: =SUMIFS(Tab_Uderor[R$],Tab_Uderor[Competencia],Entrada!AA$7,Tab_Uderor[TipoReceita],Entrada!$P30) -> 0 | AB30: =SUMIFS(Tab_Uderor[R$],Tab_Uderor[Competencia],Entrada!AB$7,Tab_Uderor[TipoReceita],Entrada!$P30) -> 0 | AC30: =SUMIFS(Tab_Uderor[R$],Tab_Uderor[Competencia],Entrada!AC$7,Tab_Uderor[TipoReceita],Entrada!$P30)-AF30 -> 0 | AD30: =SUMIFS(Tab_Uderor[R$],Tab_Uderor[Competencia],Entrada!AD$7,Tab_Uderor[TipoReceita],Entrada!$P30)-AG30 -> 0 | AE30: =SUMIFS(Tab_Uderor[R$],Tab_Uderor[Competencia],Entrada!AE$7,Tab_Uderor[TipoReceita],Entrada!$P30)-AH30 -> 0
F31: =Indexador!H132 -> Despesa 2018 | J31: RIT - RP 800 - Célula F28 | K31: Propaganda e Publicidade (exceto Publicações Oficiais) | L31: =SUMIFS(Tab_RIT_BMP[SALDO],Tab_RIT_BMP[CONTA],8,Tab_RIT_BMP[ANO],$L$7) -> 0 | M31: =SUMIFS(Tab_RIT_BMP[SALDO],Tab_RIT_BMP[CONTA],8,Tab_RIT_BMP[ANO],$M$7) -> 0 | P31: Receita proveniente da comercialização de resultados de projetos de P&D SEM comprovação | Q31: =SUMIFS(Tab_Uderor[R$],Tab_Uderor[Competencia],Entrada!Q$7,Tab_Uderor[TipoReceita],Entrada!$P31)*0+R31 -> 0 | R31: =SUMIFS(Tab_Uderor[R$],Tab_Uderor[Competencia],Entrada!R$7,Tab_Uderor[TipoReceita],Entrada!$P31) -> 0 | S31: =SUMIFS(Tab_Uderor[R$],Tab_Uderor[Competencia],Entrada!S$7,Tab_Uderor[TipoReceita],Entrada!$P31) -> 0 | T31: =SUMIFS(Tab_Uderor[R$],Tab_Uderor[Competencia],Entrada!T$7,Tab_Uderor[TipoReceita],Entrada!$P31) -> 0 | U31: =SUMIFS(Tab_Uderor[R$],Tab_Uderor[Competencia],Entrada!U$7,Tab_Uderor[TipoReceita],Entrada!$P31) -> 0 | V31: =SUMIFS(Tab_Uderor[R$],Tab_Uderor[Competencia],Entrada!V$7,Tab_Uderor[TipoReceita],Entrada!$P31) -> 0 | W31: =SUMIFS(Tab_Uderor[R$],Tab_Uderor[Competencia],Entrada!W$7,Tab_Uderor[TipoReceita],Entrada!$P31) -> 0 | X31: =SUMIFS(Tab_Uderor[R$],Tab_Uderor[Competencia],Entrada!X$7,Tab_Uderor[TipoReceita],Entrada!$P31) -> 0 | Y31: =SUMIFS(Tab_Uderor[R$],Tab_Uderor[Competencia],Entrada!Y$7,Tab_Uderor[TipoReceita],Entrada!$P31) -> 0 | Z31: =SUMIFS(Tab_Uderor[R$],Tab_Uderor[Competencia],Entrada!Z$7,Tab_Uderor[TipoReceita],Entrada!$P31) -> 0 | AA31: =SUMIFS(Tab_Uderor[R$],Tab_Uderor[Competencia],Entrada!AA$7,Tab_Uderor[TipoReceita],Entrada!$P31) -> 0 | AB31: =SUMIFS(Tab_Uderor[R$],Tab_Uderor[Competencia],Entrada!AB$7,Tab_Uderor[TipoReceita],Entrada!$P31) -> 0 | AC31: =SUMIFS(Tab_Uderor[R$],Tab_Uderor[Competencia],Entrada!AC$7,Tab_Uderor[TipoReceita],Entrada!$P31)-AF31 -> 0 | AD31: =SUMIFS(Tab_Uderor[R$],Tab_Uderor[Competencia],Entrada!AD$7,Tab_Uderor[TipoReceita],Entrada!$P31)-AG31 -> 0 | AE31: =SUMIFS(Tab_Uderor[R$],Tab_Uderor[Competencia],Entrada!AE$7,Tab_Uderor[TipoReceita],Entrada!$P31)-AH31 -> 0
F32: Perdas Regulatórias | J32: RIT - RP 800 - Célula F29 | K32: Publicações Oficiais | L32: =SUMIFS(Tab_RIT_BMP[SALDO],Tab_RIT_BMP[CONTA],9,Tab_RIT_BMP[ANO],$L$7) -> 0 | M32: =SUMIFS(Tab_RIT_BMP[SALDO],Tab_RIT_BMP[CONTA],9,Tab_RIT_BMP[ANO],$M$7) -> 0
F33: Perdas Não Técnicas | J33: RIT - RP 800 - Célula F30 | K33: Serviço de Engenharia e Supervisão de Obras | L33: =SUMIFS(Tab_RIT_BMP[SALDO],Tab_RIT_BMP[CONTA],10,Tab_RIT_BMP[ANO],$L$7) -> 0 | M33: =SUMIFS(Tab_RIT_BMP[SALDO],Tab_RIT_BMP[CONTA],10,Tab_RIT_BMP[ANO],$M$7) -> 0
F34: Perdas Técnicas | J34: RIT - RP 800 - Célula F31 | K34: Gestão Comercial | L34: =SUMIFS(Tab_RIT_BMP[SALDO],Tab_RIT_BMP[CONTA],11,Tab_RIT_BMP[ANO],$L$7) -> 0 | M34: =SUMIFS(Tab_RIT_BMP[SALDO],Tab_RIT_BMP[CONTA],11,Tab_RIT_BMP[ANO],$M$7) -> 0 | P34: Outras Receitas - Caso 3
J35: RIT - RP 800 - Célula F32 | K35: Outros Serviços Terceirizados | L35: =SUMIFS(Tab_RIT_BMP[SALDO],Tab_RIT_BMP[CONTA],12,Tab_RIT_BMP[ANO],$L$7) -> 0 | M35: =SUMIFS(Tab_RIT_BMP[SALDO],Tab_RIT_BMP[CONTA],12,Tab_RIT_BMP[ANO],$M$7) -> 0 | P35: Alíquota ISS
F36: Dados da Revisão Anterior - Componente Pd | J36: RIT - RP 800 - Célula F33 - BMP - 610530810,610550810,610532810,610552810 | K36: (-) Créditos de Tributos Recuperáveis | L36: =SUMIFS(Tab_RIT_BMP[SALDO],Tab_RIT_BMP[CONTA],610530810,Tab_RIT_BMP[ANO],$L$7)+SUMIFS(Tab_RIT_BMP[SALDO],Tab_RIT_BMP[CONTA],610550810,Tab_RIT_BMP[ANO],$L$7)+ SUMIFS(Tab_RIT_BMP[SALDO],Tab_RIT_BMP[CONTA],610532810,Tab_RIT_BMP[ANO],$L$7)+SUMIFS(Tab_RIT_BMP[SALDO],Tab_RIT_BMP[CONTA],610552810,Tab_RIT_BMP[ANO],$L$7) -> 0 | M36: =SUMIFS(Tab_RIT_BMP[SALDO],Tab_RIT_BMP[CONTA],610530810,Tab_RIT_BMP[ANO],$M$7)+SUMIFS(Tab_RIT_BMP[SALDO],Tab_RIT_BMP[CONTA],610550810,Tab_RIT_BMP[ANO],$M$7)+ SUMIFS(Tab_RIT_BMP[SALDO],Tab_RIT_BMP[CONTA],610532810,Tab_RIT_BMP[ANO],$M$7)+SUMIFS(Tab_RIT_BMP[SALDO],Tab_RIT_BMP[CONTA],610552810,Tab_RIT_BMP[ANO],$M$7) -> 0
F37: Data Base Ativos e Consumidores | J37: RIT - RP 800 - Célula F34 - BMP - 610532801,610552801 | K37: Transferências da Administração Central | L37: =SUMIFS(Tab_RIT_BMP[SALDO],Tab_RIT_BMP[CONTA],610532801,Tab_RIT_BMP[ANO],$L$7)+SUMIFS(Tab_RIT_BMP[SALDO],Tab_RIT_BMP[CONTA],610552801,Tab_RIT_BMP[ANO],$M$7) -> 0 | M37: =SUMIFS(Tab_RIT_BMP[SALDO],Tab_RIT_BMP[CONTA],610532801,Tab_RIT_BMP[ANO],$M$7)+SUMIFS(Tab_RIT_BMP[SALDO],Tab_RIT_BMP[CONTA],610552801,Tab_RIT_BMP[ANO],$L$7) -> 0 | P37: Tipo de Receita | Q37: =Q7 -> 2023-06-01 | R37: 2023-05-01 | S37: 2023-04-01 | T37: 2023-03-01 | U37: 2023-02-01 | V37: 2023-01-01 | W37: 2022-12-01 | X37: 2022-11-01 | Y37: 2022-10-01 | Z37: 2022-09-01 | AA37: 2022-08-01 | AB37: 2022-07-01
F38: Mercado AT (MWh) | K38: Subtotal | L38: =SUM(L25:L37) -> 0 | M38: =SUM(M25:M37) -> 0 | P38: Serviços Cobráveis
F39: Mercado MT (MWh) | J39: CONTA SEGUROS | P39: Encargos de Conexão
F40: Mercado BT (MWh) | J40: BMP - 610531001; 610551001; 610533001; 610553001 | K40: Seguros | L40: =SUMIFS(Tab_RIT_BMP[SALDO],Tab_RIT_BMP[CONTA],610531001,Tab_RIT_BMP[ANO],$L$7)+SUMIFS(Tab_RIT_BMP[SALDO],Tab_RIT_BMP[CONTA],610551001,Tab_RIT_BMP[ANO],$L$7)+ SUMIFS(Tab_RIT_BMP[SALDO],Tab_RIT_BMP[CONTA],610533001,Tab_RIT_BMP[ANO],$L$7)+SUMIFS(Tab_RIT_BMP[SALDO],Tab_RIT_BMP[CONTA],610553001,Tab_RIT_BMP[ANO],$L$7) -> 0 | M40: =SUMIFS(Tab_RIT_BMP[SALDO],Tab_RIT_BMP[CONTA],610531001,Tab_RIT_BMP[ANO],$M$7)+SUMIFS(Tab_RIT_BMP[SALDO],Tab_RIT_BMP[CONTA],610551001,Tab_RIT_BMP[ANO],$M$7)+ SUMIFS(Tab_RIT_BMP[SALDO],Tab_RIT_BMP[CONTA],610533001,Tab_RIT_BMP[ANO],$M$7)+SUMIFS(Tab_RIT_BMP[SALDO],Tab_RIT_BMP[CONTA],610553001,Tab_RIT_BMP[ANO],$M$7) -> 0 | P40: Compartilhamento de Infraestrutura
F41: Número de unidades consumidoras | J41: BMP - 610531099; 610551099; 610533099; 610553099 | K41: Outros | L41: =SUMIFS(Tab_RIT_BMP[SALDO],Tab_RIT_BMP[CONTA],610531099,Tab_RIT_BMP[ANO],$L$7)+SUMIFS(Tab_RIT_BMP[SALDO],Tab_RIT_BMP[CONTA],610551099,Tab_RIT_BMP[ANO],$L$7)+ SUMIFS(Tab_RIT_BMP[SALDO],Tab_RIT_BMP[CONTA],610533099,Tab_RIT_BMP[ANO],$L$7)+SUMIFS(Tab_RIT_BMP[SALDO],Tab_RIT_BMP[CONTA],610553099,Tab_RIT_BMP[ANO],$L$7) -> 0 | M41: =SUMIFS(Tab_RIT_BMP[SALDO],Tab_RIT_BMP[CONTA],610531099,Tab_RIT_BMP[ANO],$M$7)+SUMIFS(Tab_RIT_BMP[SALDO],Tab_RIT_BMP[CONTA],610551099,Tab_RIT_BMP[ANO],$M$7)+ SUMIFS(Tab_RIT_BMP[SALDO],Tab_RIT_BMP[CONTA],610533099,Tab_RIT_BMP[ANO],$M$7)+SUMIFS(Tab_RIT_BMP[SALDO],Tab_RIT_BMP[CONTA],610553099,Tab_RIT_BMP[ANO],$M$7) -> 0 | P41: Sistemas de Comunicação (PLC)
J42: BMP - 610531010; 610551010; 610533010; 610553010 | K42: (-) Créditos de Tributos Recuperáveis | L42: =SUMIFS(Tab_RIT_BMP[SALDO],Tab_RIT_BMP[CONTA],610531010,Tab_RIT_BMP[ANO],$L$7)+SUMIFS(Tab_RIT_BMP[SALDO],Tab_RIT_BMP[CONTA],610551010,Tab_RIT_BMP[ANO],$L$7)+ SUMIFS(Tab_RIT_BMP[SALDO],Tab_RIT_BMP[CONTA],610533010,Tab_RIT_BMP[ANO],$L$7)+SUMIFS(Tab_RIT_BMP[SALDO],Tab_RIT_BMP[CONTA],610553010,Tab_RIT_BMP[ANO],$L$7) -> 0 | M42: =SUMIFS(Tab_RIT_BMP[SALDO],Tab_RIT_BMP[CONTA],610531010,Tab_RIT_BMP[ANO],$M$7)+SUMIFS(Tab_RIT_BMP[SALDO],Tab_RIT_BMP[CONTA],610551010,Tab_RIT_BMP[ANO],$M$7)+ SUMIFS(Tab_RIT_BMP[SALDO],Tab_RIT_BMP[CONTA],610533010,Tab_RIT_BMP[ANO],$M$7)+SUMIFS(Tab_RIT_BMP[SALDO],Tab_RIT_BMP[CONTA],610553010,Tab_RIT_BMP[ANO],$M$7) -> 0 | P42: Serviços de Consultoria
F43: OPEX | K43: Subtotal | L43: =SUM(L40:L42) -> 0 | M43: =SUM(M40:M42) -> 0 | P43: Serviços de O&M
F44: Extensão de redes subterrâneas (Km) | J44: CONTA TRIBUTOS | P44: Serviços de Comunicação
F45: Extensão de rede de distribuição aérea (Km) | J45: BMP - 6105316; 6105516; 6105336; 6105536 | K45: Tributos | L45: =SUMIFS(Tab_RIT_BMP[SALDO],Tab_RIT_BMP[CONTA],6105316,Tab_RIT_BMP[ANO],$L$7)+SUMIFS(Tab_RIT_BMP[SALDO],Tab_RIT_BMP[CONTA],6105516,Tab_RIT_BMP[ANO],$L$7)+ SUMIFS(Tab_RIT_BMP[SALDO],Tab_RIT_BMP[CONTA],6105336,Tab_RIT_BMP[ANO],$L$7)+SUMIFS(Tab_RIT_BMP[SALDO],Tab_RIT_BMP[CONTA],6105536,Tab_RIT_BMP[ANO],$L$7) -> 0 | M45: =SUMIFS(Tab_RIT_BMP[SALDO],Tab_RIT_BMP[CONTA],6105316,Tab_RIT_BMP[ANO],$M$7)+SUMIFS(Tab_RIT_BMP[SALDO],Tab_RIT_BMP[CONTA],6105516,Tab_RIT_BMP[ANO],$M$7)+ SUMIFS(Tab_RIT_BMP[SALDO],Tab_RIT_BMP[CONTA],6105336,Tab_RIT_BMP[ANO],$M$7)+SUMIFS(Tab_RIT_BMP[SALDO],Tab_RIT_BMP[CONTA],6105536,Tab_RIT_BMP[ANO],$M$7) -> 0 | P45: Serviços de Engenharia
F46: Extensão de rede de alta tensão (Km) | K46: (+) Créditos de Tributos Recuperáveis | L46: =L45 -> 0 | M46: =M45 -> 0 | P46: Convênios
F47: ="% PNT / BT Real de "&IF(MONTH(LnkTxtDRPData)>6,YEAR(LnkTxtDRPData)-1,YEAR(LnkTxtDRPData)-2) & " (Medido)" -> % PNT / BT Real de 2022 (Medido) | J47: CONTA OUTROS
F48: ="% PNT / BT Real de "&IF(MONTH(LnkTxtDRPData)>6,YEAR(LnkTxtDRPData)-1,YEAR(LnkTxtDRPData)-2)-1 & " (Medido)" -> % PNT / BT Real de 2021 (Medido) | J48: BMP - 610531901; 610551901; 610533901; 610553901 | K48: Indenização por Perdas e Danos | L48: =SUMIFS(Tab_RIT_BMP[SALDO],Tab_RIT_BMP[CONTA],610531901,Tab_RIT_BMP[ANO],$L$7)+SUMIFS(Tab_RIT_BMP[SALDO],Tab_RIT_BMP[CONTA],610551901,Tab_RIT_BMP[ANO],$L$7)+ SUMIFS(Tab_RIT_BMP[SALDO],Tab_RIT_BMP[CONTA],610533901,Tab_RIT_BMP[ANO],$L$7)+SUMIFS(Tab_RIT_BMP[SALDO],Tab_RIT_BMP[CONTA],610553901,Tab_RIT_BMP[ANO],$L$7) -> 0 | M48: =SUMIFS(Tab_RIT_BMP[SALDO],Tab_RIT_BMP[CONTA],610531901,Tab_RIT_BMP[ANO],$M$7)+SUMIFS(Tab_RIT_BMP[SALDO],Tab_RIT_BMP[CONTA],610551901,Tab_RIT_BMP[ANO],$M$7)+ SUMIFS(Tab_RIT_BMP[SALDO],Tab_RIT_BMP[CONTA],610533901,Tab_RIT_BMP[ANO],$M$7)+SUMIFS(Tab_RIT_BMP[SALDO],Tab_RIT_BMP[CONTA],610553901,Tab_RIT_BMP[ANO],$M$7) -> 0 | P48: UDER
F49: ="% PNT / BT Real de "&IF(MONTH(LnkTxtDRPData)>6,YEAR(LnkTxtDRPData)-1,YEAR(LnkTxtDRPData)-2)-2 & " (Medido)" -> % PNT / BT Real de 2020 (Medido) | J49: BMP - 610531902; 610551902; 610533902; 610553902 | K49: Consumo Próprio de Energia | L49: =SUMIFS(Tab_RIT_BMP[SALDO],Tab_RIT_BMP[CONTA],610531902,Tab_RIT_BMP[ANO],$L$7)+SUMIFS(Tab_RIT_BMP[SALDO],Tab_RIT_BMP[CONTA],610551902,Tab_RIT_BMP[ANO],$L$7)+ SUMIFS(Tab_RIT_BMP[SALDO],Tab_RIT_BMP[CONTA],610533902,Tab_RIT_BMP[ANO],$L$7)+SUMIFS(Tab_RIT_BMP[SALDO],Tab_RIT_BMP[CONTA],610553902,Tab_RIT_BMP[ANO],$L$7) -> 0 | M49: =SUMIFS(Tab_RIT_BMP[SALDO],Tab_RIT_BMP[CONTA],610531902,Tab_RIT_BMP[ANO],$M$7)+SUMIFS(Tab_RIT_BMP[SALDO],Tab_RIT_BMP[CONTA],610551902,Tab_RIT_BMP[ANO],$M$7)+ SUMIFS(Tab_RIT_BMP[SALDO],Tab_RIT_BMP[CONTA],610533902,Tab_RIT_BMP[ANO],$M$7)+SUMIFS(Tab_RIT_BMP[SALDO],Tab_RIT_BMP[CONTA],610553902,Tab_RIT_BMP[ANO],$M$7) -> 0 | AC49: =AC6 -> Diferenças em relação ao RTA 2022 | AG49: =AG6 -> Valores RTA 2022
F50: ="DEC Apurado "&IF(MONTH(LnkTxtDRPData)>3,YEAR(LnkTxtDRPData)-1,YEAR(LnkTxtDRPData)-2) -> DEC Apurado 2022 | J50: BMP - 610531905 | K50: Despesas com Conselho de Consumidores | L50: =SUMIFS(Tab_RIT_BMP[SALDO],Tab_RIT_BMP[CONTA],610531905,Tab_RIT_BMP[ANO],$L$7) -> 0 | M50: =SUMIFS(Tab_RIT_BMP[SALDO],Tab_RIT_BMP[CONTA],610531905,Tab_RIT_BMP[ANO],$M$7) -> 0 | Q50: =$Q$7 -> 2023-06-01 | R50: =DATE(YEAR(Q50),MONTH(Q50)-1,1) -> 2023-05-01 | S50: =DATE(YEAR(R50),MONTH(R50)-1,1) -> 2023-04-01 | T50: 2023-03-01 | U50: 2023-02-01 | V50: 2023-01-01 | W50: 2022-12-01 | X50: 2022-11-01 | Y50: 2022-10-01 | Z50: 2022-09-01 | AA50: 2022-08-01 | AB50: 2022-07-01 | AC50: =EDATE(AB50,-1) -> 2022-06-01 | AD50: =EDATE(AC50,-1) -> 2022-05-01 | AE50: 2022-04-01 | AF50: =AC50 -> 2022-06-01 | AG50: =AD50 -> 2022-05-01 | AH50: 2022-04-01
F51: ="DEC Apurado "&IF(MONTH(LnkTxtDRPData)>3,YEAR(LnkTxtDRPData)-1,YEAR(LnkTxtDRPData)-2)-1 -> DEC Apurado 2021 | J51: BMP - 610531903; 610551903; 610533903; 610553903 | K51: Taxa de Arrecadação | L51: =SUMIFS(Tab_RIT_BMP[SALDO],Tab_RIT_BMP[CONTA],610531903,Tab_RIT_BMP[ANO],$L$7)+SUMIFS(Tab_RIT_BMP[SALDO],Tab_RIT_BMP[CONTA],610551903,Tab_RIT_BMP[ANO],$L$7)+ SUMIFS(Tab_RIT_BMP[SALDO],Tab_RIT_BMP[CONTA],610533903,Tab_RIT_BMP[ANO],$L$7)+SUMIFS(Tab_RIT_BMP[SALDO],Tab_RIT_BMP[CONTA],610553903,Tab_RIT_BMP[ANO],$L$7) -> 0 | M51: =SUMIFS(Tab_RIT_BMP[SALDO],Tab_RIT_BMP[CONTA],610531903,Tab_RIT_BMP[ANO],$M$7)+SUMIFS(Tab_RIT_BMP[SALDO],Tab_RIT_BMP[CONTA],610551903,Tab_RIT_BMP[ANO],$M$7)+ SUMIFS(Tab_RIT_BMP[SALDO],Tab_RIT_BMP[CONTA],610533903,Tab_RIT_BMP[ANO],$M$7)+SUMIFS(Tab_RIT_BMP[SALDO],Tab_RIT_BMP[CONTA],610553903,Tab_RIT_BMP[ANO],$M$7) -> 0 | P51: Ultrapassagem de Demanda | Q51: =SUMIFS(Tab_Uderor[R$],Tab_Uderor[Competencia],Entrada!Q$50,Tab_Uderor[TipoReceita],Entrada!$P$51)*0+R51 -> 1330064.35 | R51: =SUMIFS(Tab_Uderor[R$],Tab_Uderor[Competencia],Entrada!R$50,Tab_Uderor[TipoReceita],Entrada!$P$51) -> 1330064.35 | S51: =SUMIFS(Tab_Uderor[R$],Tab_Uderor[Competencia],Entrada!S$50,Tab_Uderor[TipoReceita],Entrada!$P$51) -> 1223004.52 | T51: =SUMIFS(Tab_Uderor[R$],Tab_Uderor[Competencia],Entrada!T$50,Tab_Uderor[TipoReceita],Entrada!$P$51) -> 1123194.91 | U51: =SUMIFS(Tab_Uderor[R$],Tab_Uderor[Competencia],Entrada!U$50,Tab_Uderor[TipoReceita],Entrada!$P$51) -> 969549.87 | V51: =SUMIFS(Tab_Uderor[R$],Tab_Uderor[Competencia],Entrada!V$50,Tab_Uderor[TipoReceita],Entrada!$P$51) -> 1144778.37 | W51: =SUMIFS(Tab_Uderor[R$],Tab_Uderor[Competencia],Entrada!W$50,Tab_Uderor[TipoReceita],Entrada!$P$51) -> 1177061.85 | X51: =SUMIFS(Tab_Uderor[R$],Tab_Uderor[Competencia],Entrada!X$50,Tab_Uderor[TipoReceita],Entrada!$P$51) -> 983837.92 | Y51: =SUMIFS(Tab_Uderor[R$],Tab_Uderor[Competencia],Entrada!Y$50,Tab_Uderor[TipoReceita],Entrada!$P$51) -> 1057776.52 | Z51: =SUMIFS(Tab_Uderor[R$],Tab_Uderor[Competencia],Entrada!Z$50,Tab_Uderor[TipoReceita],Entrada!$P$51) -> 837772.52 | AA51: =SUMIFS(Tab_Uderor[R$],Tab_Uderor[Competencia],Entrada!AA$50,Tab_Uderor[TipoReceita],Entrada!$P$51) -> 889496.79 | AB51: =SUMIFS(Tab_Uderor[R$],Tab_Uderor[Competencia],Entrada!AB$50,Tab_Uderor[TipoReceita],Entrada!$P$51) -> 1030035.7 | AC51: =SUMIFS(Tab_Uderor[R$],Tab_Uderor[Competencia],Entrada!AC$50,Tab_Uderor[TipoReceita],Entrada!$P51)-AF51 -> 143906.94 | AD51: =SUMIFS(Tab_Uderor[R$],Tab_Uderor[Competencia],Entrada!AD$50,Tab_Uderor[TipoReceita],Entrada!$P51)-AG51 -> 0 | AE51: =SUMIFS(Tab_Uderor[R$],Tab_Uderor[Competencia],Entrada!AE$50,Tab_Uderor[TipoReceita],Entrada!$P51)-AH51 -> 0 | AF51: 585463.78 | AG51: 585463.78 | AH51: 761337.36
F52: ="DEC Apurado "&IF(MONTH(LnkTxtDRPData)>3,YEAR(LnkTxtDRPData)-1,YEAR(LnkTxtDRPData)-2)-2 -> DEC Apurado 2020 | J52: BMP - 610531904; 610551904; 610533904; 610553904 | K52: Taxas Bancárias | L52: =SUMIFS(Tab_RIT_BMP[SALDO],Tab_RIT_BMP[CONTA],610531904,Tab_RIT_BMP[ANO],$L$7)+SUMIFS(Tab_RIT_BMP[SALDO],Tab_RIT_BMP[CONTA],610551904,Tab_RIT_BMP[ANO],$L$7)+ SUMIFS(Tab_RIT_BMP[SALDO],Tab_RIT_BMP[CONTA],610533904,Tab_RIT_BMP[ANO],$L$7)+SUMIFS(Tab_RIT_BMP[SALDO],Tab_RIT_BMP[CONTA],610553904,Tab_RIT_BMP[ANO],$L$7) -> 0 | M52: =SUMIFS(Tab_RIT_BMP[SALDO],Tab_RIT_BMP[CONTA],610531904,Tab_RIT_BMP[ANO],$M$7)+SUMIFS(Tab_RIT_BMP[SALDO],Tab_RIT_BMP[CONTA],610551904,Tab_RIT_BMP[ANO],$M$7)+ SUMIFS(Tab_RIT_BMP[SALDO],Tab_RIT_BMP[CONTA],610533904,Tab_RIT_BMP[ANO],$M$7)+SUMIFS(Tab_RIT_BMP[SALDO],Tab_RIT_BMP[CONTA],610553904,Tab_RIT_BMP[ANO],$M$7) -> 0 | P52: Excedente Reativo | Q52: =SUMIFS(Tab_Uderor[R$],Tab_Uderor[Competencia],Entrada!Q$50,Tab_Uderor[TipoReceita],Entrada!$P$51)*0+R52 -> 2078757.05 | R52: =SUMIFS(Tab_Uderor[R$],Tab_Uderor[Competencia],Entrada!R$50,Tab_Uderor[TipoReceita],Entrada!$P$52) -> 2078757.05 | S52: =SUMIFS(Tab_Uderor[R$],Tab_Uderor[Competencia],Entrada!S$50,Tab_Uderor[TipoReceita],Entrada!$P$52) -> 2046388.91 | T52: =SUMIFS(Tab_Uderor[R$],Tab_Uderor[Competencia],Entrada!T$50,Tab_Uderor[TipoReceita],Entrada!$P$52) -> 1773138.95 | U52: =SUMIFS(Tab_Uderor[R$],Tab_Uderor[Competencia],Entrada!U$50,Tab_Uderor[TipoReceita],Entrada!$P$52) -> 1669362.87 | V52: =SUMIFS(Tab_Uderor[R$],Tab_Uderor[Competencia],Entrada!V$50,Tab_Uderor[TipoReceita],Entrada!$P$52) -> 1664319.25 | W52: =SUMIFS(Tab_Uderor[R$],Tab_Uderor[Competencia],Entrada!W$50,Tab_Uderor[TipoReceita],Entrada!$P$52) -> 1401407.89 | X52: =SUMIFS(Tab_Uderor[R$],Tab_Uderor[Competencia],Entrada!X$50,Tab_Uderor[TipoReceita],Entrada!$P$52) -> 1726051.01 | Y52: =SUMIFS(Tab_Uderor[R$],Tab_Uderor[Competencia],Entrada!Y$50,Tab_Uderor[TipoReceita],Entrada!$P$52) -> 1511142.14 | Z52: =SUMIFS(Tab_Uderor[R$],Tab_Uderor[Competencia],Entrada!Z$50,Tab_Uderor[TipoReceita],Entrada!$P$52) -> 1559767.2 | AA52: =SUMIFS(Tab_Uderor[R$],Tab_Uderor[Competencia],Entrada!AA$50,Tab_Uderor[TipoReceita],Entrada!$P$52) -> 1424305.85 | AB52: =SUMIFS(Tab_Uderor[R$],Tab_Uderor[Competencia],Entrada!AB$50,Tab_Uderor[TipoReceita],Entrada!$P$52) -> 1472581.29 | AC52: =SUMIFS(Tab_Uderor[R$],Tab_Uderor[Competencia],Entrada!AC$50,Tab_Uderor[TipoReceita],Entrada!$P52)-AF52 -> -139385.68 | AD52: =SUMIFS(Tab_Uderor[R$],Tab_Uderor[Competencia],Entrada!AD$50,Tab_Uderor[TipoReceita],Entrada!$P52)-AG52 -> 0 | AE52: =SUMIFS(Tab_Uderor[R$],Tab_Uderor[Competencia],Entrada!AE$50,Tab_Uderor[TipoReceita],Entrada!$P52)-AH52 -> 0 | AF52: 1620506.67 | AG52: 1620506.67 | AH52: 1870538.38
F53: Meta de % PNT / BT (Medido) | J53: BMP - 610531910; 610551910; 610533910; 610553910 | K53: (-) Créditos de Tributos Recuperáveis | L53: =SUMIFS(Tab_RIT_BMP[SALDO],Tab_RIT_BMP[CONTA],610531910,Tab_RIT_BMP[ANO],$L$7)+SUMIFS(Tab_RIT_BMP[SALDO],Tab_RIT_BMP[CONTA],610551910,Tab_RIT_BMP[ANO],$L$7)+ SUMIFS(Tab_RIT_BMP[SALDO],Tab_RIT_BMP[CONTA],610533910,Tab_RIT_BMP[ANO],$L$7)+SUMIFS(Tab_RIT_BMP[SALDO],Tab_RIT_BMP[CONTA],610553910,Tab_RIT_BMP[ANO],$L$7) -> 0 | M53: =SUMIFS(Tab_RIT_BMP[SALDO],Tab_RIT_BMP[CONTA],610531910,Tab_RIT_BMP[ANO],$M$7)+SUMIFS(Tab_RIT_BMP[SALDO],Tab_RIT_BMP[CONTA],610551910,Tab_RIT_BMP[ANO],$M$7)+ SUMIFS(Tab_RIT_BMP[SALDO],Tab_RIT_BMP[CONTA],610533910,Tab_RIT_BMP[ANO],$M$7)+SUMIFS(Tab_RIT_BMP[SALDO],Tab_RIT_BMP[CONTA],610553910,Tab_RIT_BMP[ANO],$M$7) -> 0
F54: DEC 8 anos (Limite V8) | K54: Subtotal | L54: =SUM(L48:L53) -> 0 | M54: =SUM(M48:M53) -> 0
J55: Demais | P55: UDER "Limbo"
K56: Condenações Trabalhistas
F57: Dados da última Revisão Tarifária | K57: Gastos com CCEE | P57: Preenchimento necessário apenas para cálculos de concessionárias que passaram por alteração contratual, conforme parágrafo 38 do Proret 2.1A.
F58: Custos Operacionais (CO3) | J58: BMP - 611511401 | K58: Perdas na Alienação e Desativação | L58: =SUMIFS(Tab_RIT_BMP[SALDO],Tab_RIT_BMP[CONTA],611511401,Tab_RIT_BMP[ANO],$L$7) -> 0 | M58: =SUMIFS(Tab_RIT_BMP[SALDO],Tab_RIT_BMP[CONTA],611511401,Tab_RIT_BMP[ANO],$M$7) -> 0 | P58: Mês correspondente à Data de Referência de Alteração Contratual - DRAC | Q58: 2017-02-01
F59: Receitas Irrecuperáveis - Encargos Setoriais (Vi) | J59: BMP - 611112103 | K59: Ganhos na Alienação de Materiais | L59: =SUMIFS(Tab_RIT_BMP[SALDO],Tab_RIT_BMP[CONTA],611112103,Tab_RIT_BMP[ANO],$L$7) -> 0 | M59: =SUMIFS(Tab_RIT_BMP[SALDO],Tab_RIT_BMP[CONTA],611112103,Tab_RIT_BMP[ANO],$M$7) -> 0 | P59: Sexto mês anterior à data da última RTP
F60: Demais Receitas Irrecuperáveis (Vse)
F61: Remuneração do Capital (RC) | P61: Preenchimento necessário apenas para cálculos de concessionárias que passaram por alteração contratual, conforme parágrafo 38 do Proret 2.1A.
F62: Quota de Reintegração Regulatória (QRR) | Q62: =Q58 -> 2017-02-01 | R62: =DATE(YEAR(Q62),MONTH(Q62)-1,1) -> 2017-01-01 | S62: 2016-12-01 | T62: 2016-11-01 | U62: 2016-10-01 | V62: 2016-09-01 | W62: 2016-08-01 | X62: =DATE(YEAR(W62),MONTH(W62)-1,1) -> 2016-07-01 | Y62: =DATE(YEAR(X62),MONTH(X62)-1,1) -> 2016-06-01 | Z62: =DATE(YEAR(Y62),MONTH(Y62)-1,1) -> 2016-05-01 | AA62: =DATE(YEAR(Z62),MONTH(Z62)-1,1) -> 2016-04-01 | AB62: =DATE(YEAR(AA62),MONTH(AA62)-1,1) -> 2016-03-01 | AC62: =DATE(YEAR(AB62),MONTH(AB62)-1,1) -> 2016-02-01 | AD62: =DATE(YEAR(AC62),MONTH(AC62)-1,1) -> 2016-01-01 | AE62: =DATE(YEAR(AD62),MONTH(AD62)-1,1) -> 2015-12-01 | AF62: =DATE(YEAR(AE62),MONTH(AE62)-1,1) -> 2015-11-01 | AG62: =DATE(YEAR(AF62),MONTH(AF62)-1,1) -> 2015-10-01 | AH62: =DATE(YEAR(AG62),MONTH(AG62)-1,1) -> 2015-09-01 | AI62: =DATE(YEAR(AH62),MONTH(AH62)-1,1) -> 2015-08-01
F63: Custo anual das instalações móveis e imóveis (CAIMI) | P63: Ultrapassagem de Demanda (valores brutos)
F64: Ajuste em função dos investimentos realizados (valor negativo) | P64: Excedente Reativo (valores brutos)
F65: Índice de Produtividade + Mecanismo de Qualidade
F66: UDEROR (inserir o valor positivo)
F67: Componente T - Última Revisão
F70: Base de Ativios - SFF
F71: (1) Ativo Imobilizado em Serviço (Valor Novo de Reposição)
F72: (2) Índice de Aproveitamento Integral
F73: (3) Obrigações Especiais Bruta
F74: (4) Bens Totalmente Depreciados
F75: (5) Base de Remuneração Bruta = (1)-(2)-(3)-(4) | G75: =G71-G72-G73-G74 -> 0
F76: (6) Depreciação Acumulada
F77: (7) AIS Líquido (Valor de Mercado em Uso) | G77: =G71-G76 -> 0
F78: (8) Índice de Aproveitamento Depreciado
F79: (9) Valor da Base de Remuneração (VBR) | G79: =G77-G78 -> 0
F80: (10) Almoxarifado em Operação
F81: (11) Ativo Diferido | G81: =G102*I81 -> 0
F82: (12) Obrigações Especiais Líquida
F83: (13) Terrenos e Servidões
F84: (14) Base de Rem. Líquida Total = (9)+(10)+(11)-(12)+(13) | G84: =G79+G80+G81-G82+G83 -> 0
F85: (15) Saldo RGR PLPT
F86: (16) Saldo RGR Demais Investimentos
F87: (17) Taxa de Depreciação
F88: (18) Quota de Reintegração Regulatória = (5) * (17) | G88: =G87*G75 -> 0
F91: Base de Ativios - Ciclo anterior
F92: (1) Ativo Imobilizado em Serviço (Valor Novo de Reposição)
F93: (2) Índice de Aproveitamento Integral
F94: (3) Obrigações Especiais Bruta
F95: (4) Bens Totalmente Depreciados
F96: (5) Base de Remuneração Bruta = (1)-(2)-(3)-(4) | G96: =G92-G93-G94-G95 -> 0
F97: (6) Depreciação Acumulada
F98: (7) AIS Líquido (Valor de Mercado em Uso)
F99: (8) Índice de Aproveitamento Depreciado
F100: (9) Valor da Base de Remuneração (VBR)
F101: (10) Almoxarifado em Operação
F102: (11) Ativo Diferido
F103: (12) Obrigações Especiais Líquida
F104: (13) Terrenos e Servidões
F105: (14) Base de Rem. Líquida Total = (1)-(6)-(8)+(10)+(11)-(12)+(13) | G105: =G92-G97-G99+G101+G102-G103+G104 -> 0
F106: (15) Saldo RGR PLPT
F107: (16) Saldo RGR Demais Investimentos
F109: (17) Taxa de Depreciação
F110: (18) Quota de Reintegração Regulatória = (5) * (17) | G110: =G96*G109 -> 0
F111: Base de Anuidade Regulatória (BAR)
F113: Dados do último Reajuste Anual - Contrato Novo
F114: Parcela B sem desconto UDEROR | G114: =SUM(G115:G118) -> 0
F115: Outras Receitas (OR)
F116: Excedente de Reativos (ER)
F117: Ultrapassagem de Demanda (UD)
F118: Parcela B
F119: Fator PB | G119: =G114/G118 -> 
F121: Dados do último Ciclo - Contrato Novo
F122: Número de processos até o primeiro reajuste contrato novo
F123: Número de processos no contrato novo antes da atual revisão
F125: Participação dos componentes da Parcela B no Ano Teste
F126: Descrição | G126: Valor
F127: Custos Operacionais | G127: =(G58*(1-G65)-(SUM(G58:G63)*(1-G65)-G66)*(1-(1-G67)^G122)-((SUM(G58:G63)*(1-G65)-G66)*(1-G67)^G122+G66-SUM(G59:G60)*(1-G65))*(1-(1-G67)^G123))/((((SUM(G58:G63)*(1-G65)-G66)*(1-G67)^G122)+G66-SUM(G59:G60)*(1-G65))*(1-G67)^G123) -> 
F128: Anuidades | G128: =(G63*(1-G65)/((((SUM(G58:G63)*(1-G65)-G66)*(1-G67)^G122)+G66-SUM(G59:G60)*(1-G65))*(1-G67)^G123)) -> 
F129: Remuneração | G129: =(G61*(1-G65)/((((SUM(G58:G63)*(1-G65)-G66)*(1-G67)^G122)+G66-SUM(G59:G60)*(1-G65))*(1-G67)^G123)) -> 
F130: Depreciação | G130: =(G62*(1-G65)/((((SUM(G58:G63)*(1-G65)-G66)*(1-G67)^G122)+G66-SUM(G59:G60)*(1-G65))*(1-G67)^G123)) -> 

Sheet Resultado
B1: =LnkTxtNomeCompleto -> Energisa Sul-Sudeste - Distribuidora de Energia S.A.
B2: Resultado
E3: BD20
B4: RA1 | D4: =D40+D45 -> 2330466163 | E4: 2329379001 | H4: =D4-E4 -> 1087161.655 | K4: Última versão enviada: | L4: 21
B5: RA0 | D5: =Mercado!D24 -> 2152266995 | E5: 2152266995 | H5: =D5-E5 -> 0 | K5: Data de envio | L5: 2023-07-04T08:59:04
B6: Índice de Reposição/Reajuste | D6: =D4/D5-1 -> 0.08279603217 | E6: 0.08229090819 | H6: 0.0005051239728
B7: Componentes Financeiros | D7: =Financeiros!E8 -> 0.03517960974 | E7: 0.03517961103 | H7: -1.291762336e-09 | K7: Efeito Consumidor | L7: Efeito
B8: Índice de Reposição/Reajuste com Financeiros | D8: =D6+D7 -> 0.1179756419 | E8: 0.1174705192 | H8: 0.000505122681 | K8: Efeito Grupo A - Alta tensão | L8: 0.08582659051
K9: Efeito Grupo B - Baixa tensão | L9: 0.1157930558
C10: DRA | D10: DRP | E10: DRP | K10: Efeito tarifário médio AT+BT | L10: 0.1064994472
B11: TOTAL (Parcela A + Parcela B) | C11: =C45+C40 -> 2202947215 | D11: =D45+D40 -> 2330466163 | E11: 2329379001 | H11: 1087161.655 | K11: Tarifa B1 - Residencial (R$) | L11: 688.1053531
B12: Financeiros | D12: =Financeiros!D8 -> 75715912.94 | E12: 75715915.72 | H12: -2.780217469
B13: Total com financeiros | D13: =D11+D12 -> 2406182075 | E13: 2405094917 | H13: 1087158.875 | K13: Subvenção da CDE para descontos tarifários (Valores anuais) | M13: Ano anterior
K14: SUBSIDIO CARGA FONTE INCENTIVADA | L14: 78726820.73 | M14: 55376993.84
K15: SUBSIDIO GERAÇÃO FONTE INCENTIVADA | L15: 7933246.405 | M15: 7586635.302
B16: Parcela A | K16: SUBSIDIO DISTRIBUIÇÃO | L16: 254064.161 | M16: 9842669.305
K17: SUBSIDIO ÁGUA, ESGOTO E SANEAMENTO | L17: 0 | M17: 2515800.526
C18: Processo Anterior | D18: Processo Atual | E18: Processo Atual | K18: SUBSIDIO RURAL | L18: 1065448.379 | M18: 11667013.15
B19: ENCARGOS | C19: =SUM(C20:C28) -> 532064789.3 | D19: =SUM(D20:D28) -> 542305295 | E19: 542294531.1 | H19: 10763.94926 | K19: SUBSIDIO IRRIGANTE/AQUICULTOR | L19: 7516594.182 | M19: 8913101.99
B20: Reserva Global de Reversão – RGR | D20: =Encargos!C16 -> 0 | E20: 0 | H20: 0 | K20: SUBSIDIO BAIXA RENDA | L20: 37407734.47 | M20: 29456550.52
B21: Conta de Consumo de Combustíveis – CCC | D21: =Encargos!C9 -> 0 | E21: 0 | H21: 0 | K21: SUBSIDIO SCEE | L21: 0
B22: Taxa de Fisc. de Serviços de E.E. – TFSEE | C22: ='Votos e NTs'!BM274 -> 1966247.787 | D22: =Encargos!C17 -> 2024442.546 | E22: 2024442.546 | H22: 0 | K22: SUBSIDIO LEI 14.299/22 | L22: 0
B23: Conta de Desenvolvimento Energético – CDE | C23: ='Votos e NTs'!BM275+'Votos e NTs'!BM276+'Votos e NTs'!BM277 -> 379422573.8 | D23: =Encargos!C10 -> 404175310.1 | E23: 404175310.1 | H23: 0
B24: Compensação financeira - CFURH | C24: ='Votos e NTs'!BM282 -> 0 | D24: =Encargos!C11 -> 0 | E24: 0 | H24: 0
B25: Encargos Serv. Sist. - ESS e Energ. Reserv. - EER | C25: ='Votos e NTs'!BM283 -> 72920405.83 | D25: =Encargos!C12 -> 64438279.01 | E25: 64438279.01 | H25: 0 | K25: Versão de Mercado
B26: PROINFA | C26: ='Votos e NTs'!BM284 -> 60183077.77 | D26: =Encargos!C13 -> 51785584.51 | E26: 51785584.51 | H26: 0 | K26: Status de Sincronização de BDL | L26: Sincronizado
B27: P&D e Eficiência Energética | C27: ='Votos e NTs'!BM285 -> 17572484.14 | D27: =Encargos!C15 -> 19881678.84 | E27: 19870914.89 | H27: 10763.94926 | K27: Última Sincronização | L27: 2023-06-20T16:55:34
H28: 0
B29: TRANSPORTE | C29: =SUM(C30:C37) -> 331687439.1 | D29: =SUM(D30:D37) -> 430423807.9 | E29: 429353150.1 | H29: 1070657.82
B30: Rede Básica | C30: ='Votos e NTs'!BM288 -> 128730374.3 | D30: ='RB e Conexão'!E6 -> 161881234.3 | E30: 161881234.3 | H30: 0
B31: Rede Básica Fronteira | C31: ='Votos e NTs'!BM289 -> 110555219 | D31: ='RB e Conexão'!E7 -> 152189551.5 | E31: 152189551.5 | H31: 0
B32: Rede Básica ONS (A2) | C32: ='Votos e NTs'!BM290 -> 981888.2655 | D32: =VLOOKUP("TUSDg ONS DRP",TUSDG[],2,FALSE) -> 1001557.22 | E32: 1001557.22 | H32: 0
B33: Rede Básica Export. (A2) | C33: ='Votos e NTs'!BM291 -> 0 | D33: =VLOOKUP("TUSDg Export DRP",TUSDG[],2,FALSE) -> 0 | E33: 0 | H33: 0
B34: MUST Itaipu | C34: ='Votos e NTs'!BM292 -> 13340426.26 | D34: ='RB e Conexão'!E8 -> 14039360.45 | E34: 14039360.45 | H34: 0
B35: Transporte de Itaipu | C35: ='Votos e NTs'!BM293 -> 19144943.31 | D35: =SUMPRODUCT(itaiputransporte[Potência],itaiputransporte[Tarifa DRP]) -> 28450577.77 | E35: 28450577.77 | H35: 0
B36: Conexão | C36: ='Votos e NTs'!BM294 -> 4317201.541 | D36: ='RB e Conexão'!E9 -> 6215616.593 | E36: 5144958.772 | H36: 1070657.82
B37: Uso do sistema de distribuição e CCD | C37: ='Votos e NTs'!BM295 -> 54617386.39 | D37: =CUSD!D14+CUSD!E14 -> 66645910.13 | E37: 66645910.13 | H37: 0
B38: ENERGIA | C38: ='Votos e NTs'!BM296 -> 833393271.8 | D38: =Energia!D15 -> 841793164.8 | E38: 841793164.8 | H38: 0
B39: RECEITA IRRECUPERÁVEL | C39: ='Votos e NTs'!BM297 -> 14009229.34 | D39: =Mercado!H38 -> 12710050.98 | E39: 12704311.1 | H39: 5739.885309
B40: VPA (ENCARGO + TRANSPORTE + ENERGIA+RI) | C40: =C19+C29+C38+C39 -> 1711154730 | D40: =D19+D29+D38+D39 -> 1827232319 | E40: 1826145157 | H40: 1087161.655
B42: Parcela B
D44: VPB1 | E44: VPB1
B45: ="Parcela B "&IF(CAPA!C7="Revisão","(menos Outras Receitas)",) -> Parcela B | C45: ='Votos e NTs'!BM298 -> 491792485.2 | D45: =IF(CAPA!$C$7="Revisão",Resultado!$G$32,'VPB1'!$C$43) -> 503233843.8 | E45: 503233843.8 | H45: 0

Sheet Subvenção Permissionária (hidden)
A1: Cooperativa
S2: Outras Receitas
A3: Cálculo PB | D3: Receita Agregada | K3: Subvenção
A4: UC | D4: Subgrupo | E4: Modalidade | F4: Classe | G4: Mercado TUSD | H4: Tarifa Fio B eco | I4: Receita | K4: Subvenção | R4: OUTRAS RECEITAS (R$) | W4: 44013 | X4: 43983 | Y4: 43952 | Z4: 43922 | AA4: 43891 | AB4: 43862 | AC4: 43831 | AD4: 43800 | AE4: 43770 | AF4: 43739 | AG4: 43709 | AH4: 43678
A5: Data Base | D5: A3 | E5: Azul | F5: Demanda azul P | I5: =G5*H5 -> 0 | K5: PB COM COOPERATIVA | L5: ='VPB e Fator X - Subvenção'!C26 ->  | R5: Tipo de Receita | Y5: 3 meses antes | Z5: 4 meses antes | AA5: 5 meses antes | AB5: 6 meses antes | AC5: 7 meses antes | AD5: 8 meses antes | AE5: 9 meses antes | AF5: 10 meses antes | AG5: 11 meses antes | AH5: 12 meses antes
A6: (1) Ativo Imobilizado em Serviço (Valor Novo de Reposição) | F6: Demanda azul FP | I6: =G6*H6 -> 0 | K6: PB ORIGINAL SUPRIDORA | L6: =Resultado!D45 -> 503233843.8 | R6: Serviços Cobráveis | V6: Atividade inerente ao serviço
A7: (2) Obrigações Especiais Bruta | F7: Energia TUSD azul | I7: 0 | K7: Diferença | L7: =L5-L6 ->  | R7: Arrecadação de convênios ou valores pela fatura | V7: Atividades acessórias próprias
A8: (3) Bens Totalmente Depreciados | E8: Geração | F8: Demanda Geração | I8: 0 | K8: Receita Agregada | L8: =I24 -> 0 | R8: Arrecadação de faturas de terceiros por estrutura própria
A9: (4) Base de Remuneração Bruta = (1)-(2)-(3) | K9: Subvenção | L9: =L7-L8 ->  | R9: Veiculação de publicidade
A10: (5) Depreciação Acumulada | D10: A4 | E10: Azul | F10: Demanda azul P | I10: 0 | R10: Aluguel ou cessão onerosa de imóveis e espaços físicos
A11: (6) Valor da Base de Remuneração (VBR) | F11: Demanda azul FP | I11: 0 | K11: subvenção de 2016 | R11: Compartilhamento de infraestrutura
A12: (7) Obrigações Especiais Líquida | F12: Energia TUSD azul E | I12: 0 | L12: =L9/L11-1 ->  | R12: Serviços de avaliação técnica e aferição de medidores.
A13: (8) Terrenos e Servidões | E13: Verde | F13: Demanda verde | I13: 0 | R13: Operacionalização de serviço de créditos tributários
A14: (9) Almoxarifado em Operação | F14: Energia TUSD verde EP | I14: 0 | K14: Item | L14: 2023 | M14: Calculo anterior | N14: variação | R14: Elaboração de projeto, construção, operação, manutenção ou reforma de: | V14: Atividades acessórias complementares
A15: (10) Base de Remuneração Líquida Total = (1)-(5)-(7)+(8)+(9) | F15: Energia TUSD verde EFP | I15: 0 | K15: Densidade Cooperativa | L15: =G24/B21 ->  | N15: =L15/M15-1 ->  | R15: (1) redes de distribuição de energia elétrica destinadas à regularização fundiária de interesse específico e ao atendimento dos empreendimentos de múltiplas unidades consumidoras;
A16: (11) Taxa de Depreciação | E16: Geração | F16: Demanda geração | I16: 0 | K16: Densidade Supridora | L16: =(Mercado!C24-Mercado!C17)/(Entrada!G44+Entrada!G45+Entrada!G46) ->  | N16: =L16/M16-1 ->  | R16: (2) redes de energia elétrica destinadas ao acesso dos sistemas de distribuição ou transmissão;
A17: (12) Quota de Reintegração Regulatória | K17: Mercado | L17: =G24 -> 0 | R17: (3) subestações de energia;
A18: (13) Remuneração de Capital (RC) = BRR líq x WACC | D18: BT | E18: Convencional | F18: Energia TUSD B | I18: =G18*H18 -> 0 | K18: Km de rede | L18: =B21 -> 0 | R18: (4) instalações elétricas internas de unidades consumidoras;
E19: Branca | F19: Ponta | I19: 0 | R19: (5) banco de capacitores:
B20: Valores | E20: Branca | F20: Fora Ponta | I20: 0 | R20: (6) padrões de entrada de unidades consumidoras atendidas em baixa tensão;
A21: Total de km de rede (linhas e redes de distribuição) | E21: Branca | F21: Intermediário | I21: 0 | R21: (7) sistemas de medição de energia elétrica;
E22: Iluminação | F22: Energia TUSD B4a | I22: 0 | R22: (8) geradores, incluindo-se unidades de microgeração e minigeração distribuída;
F23: Energia TUSD B4b | I23: =G23*H23 -> 0 | R23: (9) sistemas de iluminação pública.
D24: Total Energia | G24: =G7+G12+G14+G15+G18+G22+G23 -> 0 | H24: Receita total | I24: =SUM(I5:I23) -> 0 | R24: Eficientização do consumo de energia elétrica e instalação de cogeração qualificada, desde que não enquadráveis nos projetos de Pesquisa e Desenvolvimento (P&D) ou de Eficiência Energética estabelecidos em lei
D25: Total demanda | G25: =G5+G6+G8+G10+G11+G13+G16 -> 0 | R25: Serviços de comunicação de dados
R26: Serviços de consultoria

Sheet VPB e Fator X - Subvenção (hidden)
B2: Cálculo da Parcela B de Revisão | G2: Anexo II | H2: =Resultado!$D$6 -> 0.08279603217
G3: Anexo I | H3: =Resultado!$D$8 -> 0.1179756419
B5: Parâmetros | E5: Parcela A
B6: Descrição | C6: Valor | E6: Descrição | F6: Valor
B7: Número de anos no Ciclo anterior | C7: =VLOOKUP(0,Dados_Revisao[],4,FALSE) ->  | E7: Encargos | F7: =Resultado!D19 -> 542305295
B8: Data da Revisão | C8: =CAPA!C10 -> 45119 | E8: Transporte | F8: =Resultado!D29 -> 430423807.9
B9: Data Base Ativos, Consumidores e Mercado da Revisao Anterior | C9: =Entrada!G37 -> 0 | E9: Energia | F9: =Resultado!D38 -> 841793164.8
B10: Data Base Ativos, Consumidores e Mercado da Revisão Atual | C10: =DATE(YEAR(C8),MONTH(C8)-5,0) -> 44957 | E10: VPA | F10: =Resultado!D40 -> 1827232319
B11: Número de anos do próximo Ciclo | C11: =VLOOKUP(401,Dados_Revisao[],4,FALSE) -> 
B12: Formação da Parcela B (resumo)
B13: Descrição | C13: Valor
B14: Custo de Administração, Operação e Manutenção (CAOM) | C14: =SUM(C15:C17) -> 
B15: Custos Operacionais (CO) | C15: ='VPB e Fator X'!C15+'VPB e Fator X - Subvenção'!H158 -> 
B16: ONS | C16: =IF(LnkTxtDRAData<VLOOKUP(LnkTxtNomeResumido,TabEmpresas[],9,FALSE),VLOOKUP("ONS",EncargoDRP[],2,FALSE),0) -> 0
B18: Custo Anual dos Ativos (CAA) | C18: =SUM(C19:C21) -> 
B19: Remuneração do Capital (RC) | C19: =C95 -> 
B20: Quota de Reintegração Regulatória (QRR) | C20: =C77 -> 
B21: Custo anual das instalações móveis e imóveis (CAIMI) | C21: =C67 -> 
B22: CAOM + CAA | C22: =C18+C14 -> 
B23: Fator de Ajuste do Mercado | C23: =C33 -> 0.003660291812
B24: Mecanismo de Incentivo à Qualidade | C24: =C40 -> 0.003160670631
B25: Outras Receitas (OR)+ ER+UD | C25: =UDEROR!D38+UDEROR!C6+UDEROR!C7 -> 62014502.81
B26: VPB | C26: =(1-C23-C24)*C22-C25 -> 
B29: Fator X
B31: Fator X
B32: Descrição | C32: Valor
B33: Componente Pd | C33: =0.663%+0.317*(C34-1.521%) -> 0.003660291812
B34: MWhXT-6 | C34: =(POWER(1 +_xlfn.SINGLE( IFERROR(LN(DSUM(MercadoBase,"TUSD_E",C45:C48)/VLOOKUP("AT",TabMercado6[],2,FALSE))*VLOOKUP(CAPA!$C$23,TaBTodososPesos[],2,FALSE),0)) + _xlfn.SINGLE( IFERROR(LN(DSUM(MercadoBase,"TUSD_E",D45:D48)/VLOOKUP("MT",TabMercado6[],2,FALSE))*VLOOKUP(CAPA!$C$23,TaBTodososPesos[],3,FALSE),0)) + _xlfn.SINGLE( (LN(DSUM(MercadoBase,"TUSD_E",E45:E46)/VLOOKUP("BT",TabMercado6[],2,FALSE))*VLOOKUP(CAPA!$C$23,TaBTodososPesos[],4,FALSE))),1/5) - 1) -> 0.00584183537
B36: Componente T | C36: =(1-(C39/C38)^(1/(C11-1)))*(C38/C37) -> 
B37: VPB | C37: =C26 ->  | E37: Ajuste de Custos Operacionais para Calculo do Componente T
B38: Custos Operacionais | C38: =C121+G41 ->  | E38: Descrição | G38: Valor
B39: Meta de Custos Operacionais | C39: =C120+G41 ->  | E39: Valor de Ajuste da Parcela B [VPB- (CAOM+CAA)] | G39: =C26-C22 -> 
B40: Componente Q (Fator de Qualidade) | C40: ='VPB1'!F42 -> 0.003160670631 | E40: Participação dos CO no VPB antes do Ajuste | G40: =C15/C22 -> 
B41: Fator X Revisão | C41: =C33+C36+C40 ->  | E41: Valor de Ajuste dos Custos Operacionais | G41: =G40*G39 -> 
B43: Variação de Mercado e Unidades Consumidoras
B44: Descrição | C44: Mercado AT (MWh) | D44: Mercado MT (MWh) | E44: Mercado BT (MWh) | F44: Total | G44: Unidades Consumidoras
B45: Critérios | C45: Subgrupo | D45: Subgrupo | E45: Subgrupo | F45: - | G45: AnoMes
C46: ="=A1" -> =A1 | D46: ="=A3a" -> =A3a | E46: B | F46: - | G46: =DATE(YEAR(CAPA!C10),MONTH(CAPA!C10)-6,1) -> 44927
C47: ="=A2" -> =A2 | D47: ="=A4" -> =A4 | E47: B | F47: -
C48: ="=A3" -> =A3 | D48: ="=As" -> =As | E48: B | F48: -
B49: Revisão Atual | C49: =DSUM(MercadoBase,"TUSD_E",C45:C48) -> 463863.092 | D49: =DSUM(MercadoBase,"TUSD_E",D45:D48) -> 1647209.034 | E49: =DSUM(MercadoBase,"TUSD_E",E45:E46) -> 2469606.104 | F49: =SUM(C49:E49) -> 4580678.23 | G49: =DSUM(MercadoBase,"UC",G45:G46)+'Subvenção Permissionária'!B4 -> 857095
B50: Revisão Anterior | C50: =Entrada!G38 -> 0 | D50: =Entrada!G39 -> 0 | E50: =Entrada!G40 -> 0 | F50: =SUM(C50:E50) -> 0 | G50: =Entrada!G41 -> 0
B51: Variação | C51: =IFERROR((C49/C50-1),0) -> 0 | D51: =IFERROR((D49/D50-1),0) -> 0 | E51: =IFERROR((E49/E50-1),0) -> 0 | F51: =IFERROR((F49/F50-1),0) -> 0 | G51: =IFERROR((G49/G50-1),0) -> 0
B52: Peso | C52: =VLOOKUP(201,Dados_Revisao[#Data],4,FALSE) ->  | D52: =VLOOKUP(202,Dados_Revisao[#Data],4,FALSE) ->  | E52: =VLOOKUP(203,Dados_Revisao[#Data],4,FALSE) ->  | F52: 0 | G52: -
B53: Participação na Variação de Mercado | C53: =IFERROR(LN(C49/C50)*C52,0) -> 0 | D53: =IFERROR(LN(D49/D50)*D52,0) -> 0 | E53: =IFERROR(LN(E49/E50)*E52,0) -> 0 | F53: =SUM(C53:E53) -> 0 | G53: -
B56: Custo Anual do Ativos (CAA)
B58: Custo Anual das Instalações Móveis e Imóveis (CAIMI)
B59: Descrição | C59: Valores
B60: (1) Base de Anuidade Regulatória (BAR) | C60: =2.7159*(Entrada!G7-Entrada!G8+'Subvenção Permissionária'!B6)^(-0.167+1)*(VLOOKUP((DATE(YEAR(CAPA!C10),MONTH(CAPA!C10)-1,1)),Índices!B82:D10000,3,FALSE)/VLOOKUP(DATE(2014,12,1),Índices!B82:D10000,3,FALSE))^0.167 -> 
B61: (2) Base de Anuidade - Infraestrutura de imóveis e móveis administrativos (BARA) | C61: =C60*0.45 -> 
B62: (3) Base de Anuidade - Veículos (BARV) | C62: =C60*0.12 -> 
B63: (4) Base de Anuidade - Sistemas de Informática (BARI) | C63: =C60*0.43 -> 
B64: (5) Anuidade - Infraestrutura de imóveis e móveis administrativos (CAL) | C64: =C61*(1/19.5+F81/2) -> 
B65: (6) Anuidade - Veículos (CAV) | C65: =C62*(1/7+F81/2) -> 
B66: (7) Anuidade - Sistemas de Informática (CAI) | C66: =C63*(1/5.3+F81/2) -> 
B67: (8) CAIMI = (5)+(6)+(7) | C67: =SUM(C64:C66) -> 
B69: Base de Remuneração Bruta e Quota de Reintegração Regulatória (QRR)
B70: Descrição | C70: Valor
B71: (1) Ativo Imobilizado em Serviço (Valor Novo de Reposição) | C71: =Entrada!G7+'Subvenção Permissionária'!B6 -> 
B72: (2) Índice de Aproveitamento Integral | C72: =Entrada!G8 -> 
B73: (3) Obrigações Especiais Bruta | C73: =Entrada!G9+'Subvenção Permissionária'!B7 -> 
B74: (4) Bens Totalmente Depreciados | C74: =Entrada!G10+'Subvenção Permissionária'!B8 -> 
B75: (5) Base de Remuneração Bruta | C75: =C71-C72-C73-C74 -> 
B76: (17) Taxa de Depreciação | C76: =Entrada!G23 -> 0
B77: (18) Quota de Reintegração Regulatória | C77: =C75*C76 -> 
B79: Base de Remuneração Líquida e Remuneração do Capital (RC) | E79: Custo Médio do Capital | I79: Cálculo do Beta (Res. Normativa 473)
B80: Descrição | C80: Valor | E80: Tipo | F80: Valor | G80: Norma | I80: Descrição | J80: Valor
B81: (1) Ativo Imobilizado em Serviço (Valor Novo de Reposição) | C81: =C71 ->  | E81: WACC real antes de impostos | F81: ='VPB e Fator X'!F81 -> 0.1082749759 | G81: ='VPB e Fator X'!G81 -> Despacho n° 544/2022, 22/02/2022 | I81: Depreciação AIS | J81: =SUM(C61/27.9,C62/7,C63/5.3) -> 
B82: (6) Depreciação Acumulada | C82: =Entrada!G12+'Subvenção Permissionária'!B10 ->  | E82: Taxa RGR/PLPT real | F82: ='VPB e Fator X'!F82 -> 0.00677460118 | G82: ='VPB e Fator X'!G82 -> Despacho n° 544/2022, 22/02/2022 | I82: Remuneração AIS | J82: =SUM(C61,C62,C63)*(F81/2) -> 
B83: (7) AIS Líquido (Valor de Mercado em Uso) | C83: =Entrada!G13+'Subvenção Permissionária'!B6-'Subvenção Permissionária'!B10 ->  | E83: Taxa RGR Demais Investimentos | F83: ='VPB e Fator X'!F83 -> 0.00677460118 | G83: ='VPB e Fator X'!G83 -> Despacho n° 544/2022, 22/02/2022 | I83: Remuneração de Capital Bruta pós pd | J83: =(C95+J82)*Resultado!G28/Resultado!G25 -> 
B84: (8) Índice de Aproveitamento Depreciado | C84: =Entrada!G14 ->  | I84: Quota de Reintegração Bruta pós pd | J84: =(C77+J81)*(Resultado!G28/Resultado!G25) -> 
B85: (9) Valor da Base de Remuneração (VBR) | C85: =Entrada!G15+'Subvenção Permissionária'!B11 ->  | I85: Custo Operacional pós pd | J85: =Resultado!G19*(Resultado!G28/Resultado!G25) -> 
B86: (10) Almoxarifado em Operação | C86: =Entrada!G16+'Subvenção Permissionária'!B14 ->  | I86: Outras Receitas (OR) proporcional RCB | J86: =C25*(J83/(J85+J84+J83)) -> 
B87: (11) Ativo Diferido | C87: =Entrada!G17 ->  | E87: Remuneração sobre Obrigações Especiais | I87: Remuenração de Capital Bruta - OR proporcional | J87: =J83-J86 -> 
B88: (12) Obrigações Especiais Líquida | C88: =Entrada!G18+'Subvenção Permissionária'!B7 ->  | E88: Descrição | G88: Valor | I88: Beta | J88: =J87/Resultado!G28 -> 
B89: (13) Terrenos e Servidões | C89: =Entrada!G19+'Subvenção Permissionária'!B13 ->  | E89: CAA-RCOE | G89: =C77+C93+C67 -> 
B90: (14) Base de Remuneração Líquida | C90: =C81-C82-C84+C86+C87-C88+C89 ->  | E90: CAOM / (CAOM+CAA-RCOE) | G90: =(C14+H158)/(C14+G89+H158) -> 
B91: (15) Saldo RGR PLPT | C91: =Entrada!G21 ->  | E91: Obrigações Especiais Bruta (OESb) | G91: =C73 -> 
B92: (16) Saldo RGR Demais Investimentos | C92: =Entrada!G22 ->  | E92: Participação do Capital Próprio | G92: ='VPB e Fator X'!G92 -> 0.5175497253
B93: (19) RC sem Obrigações Especiais | C93: =$F$83*$C$92+$C$91*$F$82+($C$90-$C$91-$C$92)*$F$81 ->  | E93: Prêmio de Risco do negócio e financeiro após impostos | G93: ='VPB e Fator X'!G93 -> 0.09532232
B94: (20) Remuneração de Obrigações Especiais | C94: =G95 ->  | E94: Impostos e Contribuições sobre a Renda (t) | G94: ='VPB e Fator X'!G94 -> 0.34
B95: (21) Remuneração do Capital (RC) | C95: =C94+C93 ->  | E95: RC Obrigações Especiais | G95: =(G93)/(1-G94)*0.5*G92*G90*G91 -> 
B98: Custo de Administração, Operação e Manutenção (CAOM)
B100: Receita de Custos Operacionais no Ano Teste
B101: Descrição | C101: Valor
B102: Receita de Parcela B no Ano Teste (Receita Verificada) | C102: =(SUM(INDIRECT("DADOS_MercadoBase[DISTRIBUICAO]")))*Entrada!$G$119 -> 
B103: Custos Operacionais da Última Revisão com Ajustes | C103: =Entrada!G58 -> 0
B104: VPB da Última Revisão com Ajustes | C104: =SUM(Entrada!G58:G63) -> 0
B105: Componente T da Última Revisão (TRev) | C105: =Entrada!G67 -> 0
B106: Fator (1-TRev)N-1 | C106: =(1-C105)^(C7-1) -> 
B107: Receita de Custos Operacionais no Ano Teste | C107: =(C103+(C104*C106-C104))/(C104*C106)*C102 -> 
B109: Meta e Custos Operacionais Regulatórios | E109: Custos Operacionais Reais (Opex) - Valores Atualizados
B110: Descrição | C110: Valor | F110: =Entrada!L7 -> -1 | G110: =IF(Entrada!M7=0,2013,Entrada!M7) -> 2013
B111: Custo Operacional no Ano Teste | C111: =C107 ->  | E111: IPCA junho | F111: =VLOOKUP(DATE($F$110,6,1),Índices!$B:$D,3,FALSE) ->  | G111: =VLOOKUP(DATE($G$110,6,1),Índices!$B:$D,3,FALSE) -> 3715.92
B112: Limite Superior dos Custos Operacionais Eficientes | C112: =C135 ->  | E112: IPCA dezembro | F112: =VLOOKUP(DATE(F110,12,1),Índices!$B:$F,3,FALSE) ->  | G112: =VLOOKUP(DATE(G110,12,1),Índices!$B:$F,3,FALSE) -> 3815.39
B113: Limite Inferior dos Custos Operacionais Eficientes | C113: =C136 ->  | E113: Conta Pessoal | F113: =Entrada!L18*$F$112/$F$111 ->  | G113: =Entrada!M18*$G$112/$G$111 -> 0
B114: Custo Operacional Eficiente | C114: =MIN(MAX(C111,C113),C112) ->  | E114: Conta Materiais | F114: =Entrada!L23*$F$112/$F$111 ->  | G114: =Entrada!M23*$G$112/$G$111 -> 0
B115: Variação Anual dos Custos Operacionais - Sem limite | C115: =((C114/C111)^(1/C11)-1) ->  | E115: Conta Terceiros | F115: =Entrada!L38*$F$112/$F$111 ->  | G115: =Entrada!M38*$G$112/$G$111 -> 0
B116: Variação Anual dos Custos Operacionais - Limitada a ±5% | C116: =MIN(ABS(C115),5%)*SIGN(C115) ->  | E116: Conta Seguros | F116: =Entrada!L43*$F$112/$F$111 ->  | G116: =Entrada!M43*$G$112/$G$111 -> 0
B117: Meta Custos Operacionais sem Compartilhamento | C117: =C111*(1+C116)^C11 ->  | E117: Conta Tributos | F117: =Entrada!L46*$F$112/$F$111 ->  | G117: =Entrada!M46*$G$112/$G$111 -> 0
B118: Média dos Custos Operacionais Reais (Opex medio) | C118: =(F121+G121)/2 ->  | E118: Conta Outros | F118: =Entrada!L54*$F$112/$F$111 ->  | G118: =Entrada!M54*$G$112/$G$111 -> 0
B119: Razão entre CO regulatórios Ajustado e Custos Operacionais Reais Médios | C119: =C117/C118 ->  | E119: Demais Custos | F119: =(Entrada!L56+Entrada!L57+Entrada!L58+Entrada!L59)*$F$112/$F$111 ->  | G119: =(Entrada!M56+Entrada!M57+Entrada!M58+Entrada!M59)*$G$112/$G$111 -> 0
B120: Meta Custos Operacionais Regulatórios | C120: =IF(C119>1.2,(1.2+C119)/2,C119)*C118 ->  | E120: Custo Operacional | F120: =IF(F110=2013,(VLOOKUP(119,Dados_Revisao[#Data],4,FALSE))*1000+F119,SUM(F113:F119)) ->  | G120: =IF(G110=2013,(VLOOKUP(119,Dados_Revisao[#Data],4,FALSE))*1000+G119,SUM(G113:G119)) -> 
B121: Custos Operacionais Regulatórios | C121: =C111+(C120-C111)/C11 ->  | E121: Custo Operacional Atualizado | F121: =F120*C125/F112 ->  | G121: =G120*C125/G112 -> 
B123: Intervalo de Custos Eficientes
B124: Descrição | C124: Valor
B125: Número índice do IPCA no mês anterior à data base da revisão tarifária | C125: =VLOOKUP(DATE(YEAR(C8),MONTH(C8)-1,1),Índices!$B:$F,3,FALSE) -> 6685.095877
B126: Número índice do IPCA no mês anterior à data base do cálculo da eficiência | C126: =VLOOKUP(DATE(2016,12,1),Índices!B:D,3,FALSE) -> 4775.7
B127: Custo eficiente estimado na data base do cálculo da eficiência | C127: =(VLOOKUP(106,Dados_Revisao[#Data],4,FALSE)*1000)*C131 -> 
B128: Custo eficiente estimado na data da revisão tarifária | C128: =F157 -> 
B129: Fator de Atualização (α) | C129: =(C128/C127)*(C125/C126) -> 
B130: Referência de eficiência média | C130: =VLOOKUP(104,Dados_Revisao[],4,FALSE) -> 
B131: Eficiência apurada para a empresa | C131: =VLOOKUP(102,Dados_Revisao[#Data],4,FALSE) -> 
B132: Limite superor do intervalo de eficiência | C132: =VLOOKUP(103,Dados_Revisao[#Data],4,FALSE) -> 
B133: Limite inferior do intervalo de eficiência | C133: =VLOOKUP(101,Dados_Revisao[#Data],4,FALSE) -> 
B134: Custo operacional real usado no estudo de eficiência | C134: =VLOOKUP(105,Dados_Revisao[#Data],4,FALSE)*1000 ->  | E134: Custo atual do encardo de ONS | G134: =VLOOKUP("ONS",EncargoDRP[],2,FALSE) -> 99480.10679
B135: Limite Superior dos Custos Operacionais Eficientes | C135: =$C$129*(C132/$C$130)*$C$134+G135 ->  | E135: Delta custo de ONS no limite superior | G135: =C132/C130*G134 -> 
B136: Limite Inferior dos Custos Operacionais Eficientes | C136: =$C$129*(C133/$C$130)*$C$134+G136 ->  | E136: Delta custo de ONS no limite inferior | G136: =C133/C130*G134 -> 
B138: Custo Eficiente Estimado
B139: Parametros | D139: Valor
B140: Indicador médio de perdas não técnicas (% PNT / BT) | D140: =AVERAGE(Entrada!G47:G49) -> 
B141: Meta (% PNT / BT) | D141: =Entrada!G53 -> 0
B142: DEC Global Médio realizado | D142: =AVERAGE(Entrada!G50:G52) -> 
B143: Limite V8 global | D143: =Entrada!G54 -> 0
B144: Peso do Insumo (u) | D144: =VLOOKUP(108,Dados_Revisao[#Data],4,FALSE) -> 
B145: Produto | D145: Valor | E145: Peso | F145: Custo (R$) | H145: Custo Operacional agregado pela Permissionária
B146: "Fator de escala" da empresa | D146: =VLOOKUP(107,Dados_Revisao[#Data],4,FALSE) ->  | E146: 1 | F146: =(E146*D146)*1000/$D$144 ->  | H146: 0
B147: Extensão de redes subterrâneas (Km) | D147: =Entrada!G44 -> 0 | E147: =VLOOKUP(109,Dados_Revisao[#Data],4,FALSE) ->  | H147: 0
B148: Extensão de rede de distribuição aérea (Km) | D148: =Entrada!G45 -> 0 | E148: =VLOOKUP(110,Dados_Revisao[#Data],4,FALSE) ->  | G148: ='Subvenção Permissionária'!B21 -> 0 | H148: =(E148*G148)*1000/$D$144 -> 
B149: Extensão de rede de alta tensão (Km) | D149: =Entrada!G46 -> 0 | E149: =VLOOKUP(111,Dados_Revisao[#Data],4,FALSE) ->  | H149: 0
B150: Número de consumidores | D150: =DSUM(Mercado_Receita!A:AAA,"UC",G45:G46) -> 857095 | E150: =VLOOKUP(112,Dados_Revisao[#Data],4,FALSE) ->  | G150: ='Subvenção Permissionária'!B4 -> 0 | H150: =(E150*G150)*1000/$D$144 -> 
B151: Perdas Não Técnicas Ajustadas (MWh) | D151: =-MAX((D140-D141)*D156,0) ->  | E151: =VLOOKUP(114,Dados_Revisao[#Data],4,FALSE) ->  | H151: 0
B152: Consumidor Hora Interrompido Ajustado (horas) | D152: =-MAX((D142-D143)*D150,0) ->  | E152: =VLOOKUP(115,Dados_Revisao[#Data],4,FALSE) ->  | H152: 0
B153: Mercado Ponderado (MWh) | D153: =D154*E154+D155*E155+D156*E156 ->  | E153: =VLOOKUP(113,Dados_Revisao[#Data],4,FALSE) ->  | H153: 0
B154: Mercado AT (MWh) | D154: =DSUM(MercadoBase,"TUSD_E",C45:C48) -> 463863.092 | E154: =VLOOKUP(116,Dados_Revisao[#Data],4,FALSE) ->  | H154: 0
B155: Mercado MT (MWh) | D155: =DSUM(MercadoBase,"TUSD_E",D45:D48) -> 1647209.034 | E155: =VLOOKUP(117,Dados_Revisao[#Data],4,FALSE) ->  | H155: 0
B156: Mercado BT (MWh) | D156: =DSUM(MercadoBase,"TUSD_E",E45:E48) -> 2469606.104 | E156: =VLOOKUP(118,Dados_Revisao[#Data],4,FALSE) ->  | H156: 0
B157: Custo Eficiente Estimado | F157: =SUM(F146:F153) ->  | H157: =SUM(H147:H156) -> 
H158: =IFERROR(H157*C125/C126/C130,0) -> 0
B165: UDER "Limbo"
B168: Aliquota ICMS (industrial cativo) | C168: =SUMIFS(Mercado_Receita!$BK:$BK,Mercado_Receita!$E:$E,"Industrial",Mercado_Receita!$J:$J,"CATIVO")/(SUMIFS(Mercado_Receita!$BI:$BI,Mercado_Receita!$E:$E,"Industrial",Mercado_Receita!$J:$J,"CATIVO")+SUMIFS(Mercado_Receita!$BJ:$BJ,Mercado_Receita!$E:$E,"Industrial",Mercado_Receita!$J:$J,"CATIVO")+SUMIFS(Mercado_Receita!$CI:$CI,Mercado_Receita!$E:$E,"Industrial",Mercado_Receita!$J:$J,"CATIVO")+SUMIFS(Mercado_Receita!$BK:$BK,Mercado_Receita!$E:$E,"Industrial",Mercado_Receita!$J:$J,"CATIVO")) -> 0.1711442773
B169: Aliquota PIS/COFINS (industrial cativo) | C169: =(SUMIFS(Mercado_Receita!$BI:$BI,Mercado_Receita!$E:$E,"Industrial",Mercado_Receita!$J:$J,"CATIVO")+SUMIFS(Mercado_Receita!$BJ:$BJ,Mercado_Receita!$E:$E,"Industrial",Mercado_Receita!$J:$J,"CATIVO"))/(SUMIFS(Mercado_Receita!$BI:$BI,Mercado_Receita!$E:$E,"Industrial",Mercado_Receita!$J:$J,"CATIVO")+SUMIFS(Mercado_Receita!$BJ:$BJ,Mercado_Receita!$E:$E,"Industrial",Mercado_Receita!$J:$J,"CATIVO")+SUMIFS(Mercado_Receita!$CI:$CI,Mercado_Receita!$E:$E,"Industrial",Mercado_Receita!$J:$J,"CATIVO")+SUMIFS(Mercado_Receita!$BK:$BK,Mercado_Receita!$E:$E,"Industrial",Mercado_Receita!$J:$J,"CATIVO")) -> 0.03505340131
B170: Receita Irrecuperável (industrial cativo) | C170: =BD!$M$68 -> 0.0035
B171: RR (parágrafo 41 Proret 2.1A) | C171: 0.035
B172: IRPJ/CSLL | C172: 0.34
B176: Ultrapassagem de Demanda e Excedente de Reativos (Valores atualizados e média)
D177: Saldo Acumulado Líquido | E177: Compartilhamento | F177: Valor médio anual de receitas de UDER a ser deduzido da Parcela B | G177: =Entrada!Q62 -> 2017-02-01 | H177: =Entrada!R62 -> 2017-01-01 | I177: =Entrada!S62 -> 2016-12-01 | J177: =Entrada!T62 -> 2016-11-01 | K177: =Entrada!U62 -> 2016-10-01 | L177: =Entrada!V62 -> 2016-09-01 | M177: =Entrada!W62 -> 2016-08-01 | N177: =Entrada!X62 -> 2016-07-01 | O177: =Entrada!Y62 -> 2016-06-01 | P177: =Entrada!Z62 -> 2016-05-01 | Q177: =Entrada!AA62 -> 2016-04-01 | R177: =Entrada!AB62 -> 2016-03-01 | S177: =Entrada!AC62 -> 2016-02-01 | T177: =Entrada!AD62 -> 2016-01-01 | U177: =Entrada!AE62 -> 2015-12-01 | V177: =Entrada!AF62 -> 2015-11-01 | W177: =Entrada!AG62 -> 2015-10-01
B178: Fator IPCA | F178: =VLOOKUP(CAPA!C15,Índices!$B$7:$F$626,5,FALSE) -> 75.64059436 | G178: =IF(G177="","",VLOOKUP(EDATE(G177,-1),Índices!$B$7:$F$626,5,FALSE)) -> 48.01801795 | H178: =IF(H177="","",VLOOKUP(EDATE(H177,-1),Índices!$B$7:$F$626,5,FALSE)) -> 47.50208804 | I178: =IF(I177="","",VLOOKUP(EDATE(I177,-1),Índices!$B$7:$F$626,5,FALSE)) -> 46.97441751 | J178: =IF(J177="","",VLOOKUP(EDATE(J177,-1),Índices!$B$7:$F$626,5,FALSE)) -> 46.49170051 | K178: =IF(K177="","",VLOOKUP(EDATE(K177,-1),Índices!$B$7:$F$626,5,FALSE)) -> 46.00913737 | L178: =IF(L177="","",VLOOKUP(EDATE(L177,-1),Índices!$B$7:$F$626,5,FALSE)) -> 45.50450817 | M178: =IF(M177="","",VLOOKUP(EDATE(M177,-1),Índices!$B$7:$F$626,5,FALSE)) -> 44.9581674 | N178: =IF(N177="","",VLOOKUP(EDATE(N177,-1),Índices!$B$7:$F$626,5,FALSE)) -> 44.46506526 | O178: =IF(O177="","",VLOOKUP(EDATE(O177,-1),Índices!$B$7:$F$626,5,FALSE)) -> 43.95428185 | P178: =IF(P177="","",VLOOKUP(EDATE(P177,-1),Índices!$B$7:$F$626,5,FALSE)) -> 43.47219035 | Q178: =IF(Q177="","",VLOOKUP(EDATE(Q177,-1),Índices!$B$7:$F$626,5,FALSE)) -> 43.01797235 | R178: =IF(R177="","",VLOOKUP(EDATE(R177,-1),Índices!$B$7:$F$626,5,FALSE)) -> 42.52381213 | S178: =IF(S177="","",VLOOKUP(EDATE(S177,-1),Índices!$B$7:$F$626,5,FALSE)) -> 42.10160801 | T178: =IF(T177="","",VLOOKUP(EDATE(T177,-1),Índices!$B$7:$F$626,5,FALSE)) -> 41.6617105 | U178: =IF(U177="","",VLOOKUP(EDATE(U177,-1),Índices!$B$7:$F$626,5,FALSE)) -> 41.18313006 | V178: =IF(V177="","",VLOOKUP(EDATE(V177,-1),Índices!$B$7:$F$626,5,FALSE)) -> 40.75282924 | W178: =IF(W177="","",VLOOKUP(EDATE(W177,-1),Índices!$B$7:$F$626,5,FALSE)) -> 40.30585134
B179: Ultrapassagem de Demanda | D179: =E179*F179 -> 0 | E179: 1 | F179: =SUM(G179:BF179)/5 -> 0 | G179: =IFERROR(IF(Entrada!Q63="","",Entrada!Q63*$F$178/G$178)*((1-$C$168-$C$169)*(1-$C$170)*(1-$C$171)*(1-$C$172)),0) -> 0 | H179: =IFERROR(IF(Entrada!R63="","",Entrada!R63*$F$178/H$178)*((1-$C$168-$C$169)*(1-$C$170)*(1-$C$171)*(1-$C$172)),0) -> 0 | I179: =IFERROR(IF(Entrada!S63="","",Entrada!S63*$F$178/I$178)*((1-$C$168-$C$169)*(1-$C$170)*(1-$C$171)*(1-$C$172)),0) -> 0 | J179: =IFERROR(IF(Entrada!T63="","",Entrada!T63*$F$178/J$178)*((1-$C$168-$C$169)*(1-$C$170)*(1-$C$171)*(1-$C$172)),0) -> 0 | K179: =IFERROR(IF(Entrada!U63="","",Entrada!U63*$F$178/K$178)*((1-$C$168-$C$169)*(1-$C$170)*(1-$C$171)*(1-$C$172)),0) -> 0 | L179: =IFERROR(IF(Entrada!V63="","",Entrada!V63*$F$178/L$178)*((1-$C$168-$C$169)*(1-$C$170)*(1-$C$171)*(1-$C$172)),0) -> 0 | M179: =IFERROR(IF(Entrada!W63="","",Entrada!W63*$F$178/M$178)*((1-$C$168-$C$169)*(1-$C$170)*(1-$C$171)*(1-$C$172)),0) -> 0 | N179: =IFERROR(IF(Entrada!X63="","",Entrada!X63*$F$178/N$178)*((1-$C$168-$C$169)*(1-$C$170)*(1-$C$171)*(1-$C$172)),0) -> 0 | O179: =IFERROR(IF(Entrada!Y63="","",Entrada!Y63*$F$178/O$178)*((1-$C$168-$C$169)*(1-$C$170)*(1-$C$171)*(1-$C$172)),0) -> 0 | P179: =IFERROR(IF(Entrada!Z63="","",Entrada!Z63*$F$178/P$178)*((1-$C$168-$C$169)*(1-$C$170)*(1-$C$171)*(1-$C$172)),0) -> 0 | Q179: =IFERROR(IF(Entrada!AA63="","",Entrada!AA63*$F$178/Q$178)*((1-$C$168-$C$169)*(1-$C$170)*(1-$C$171)*(1-$C$172)),0) -> 0 | R179: =IFERROR(IF(Entrada!AB63="","",Entrada!AB63*$F$178/R$178)*((1-$C$168-$C$169)*(1-$C$170)*(1-$C$171)*(1-$C$172)),0) -> 0 | S179: =IFERROR(IF(Entrada!AC63="","",Entrada!AC63*$F$178/S$178)*((1-$C$168-$C$169)*(1-$C$170)*(1-$C$171)*(1-$C$172)),0) -> 0 | T179: =IFERROR(IF(Entrada!AD63="","",Entrada!AD63*$F$178/T$178)*((1-$C$168-$C$169)*(1-$C$170)*(1-$C$171)*(1-$C$172)),0) -> 0 | U179: =IFERROR(IF(Entrada!AE63="","",Entrada!AE63*$F$178/U$178)*((1-$C$168-$C$169)*(1-$C$170)*(1-$C$171)*(1-$C$172)),0) -> 0 | V179: =IFERROR(IF(Entrada!AF63="","",Entrada!AF63*$F$178/V$178)*((1-$C$168-$C$169)*(1-$C$170)*(1-$C$171)*(1-$C$172)),0) -> 0 | W179: =IFERROR(IF(Entrada!AG63="","",Entrada!AG63*$F$178/W$178)*((1-$C$168-$C$169)*(1-$C$170)*(1-$C$171)*(1-$C$172)),0) -> 0
B180: Excedente de Reativos | D180: =E180*F180 -> 0 | E180: 1 | F180: =SUM(G180:BF180)/5 -> 0 | G180: =IFERROR(IF(Entrada!Q64="","",Entrada!Q64*$F$178/G$178)*((1-$C$168-$C$169)*(1-$C$170)*(1-$C$171)*(1-$C$172)),0) -> 0 | H180: =IFERROR(IF(Entrada!R64="","",Entrada!R64*$F$178/H$178)*((1-$C$168-$C$169)*(1-$C$170)*(1-$C$171)*(1-$C$172)),0) -> 0 | I180: =IFERROR(IF(Entrada!S64="","",Entrada!S64*$F$178/I$178)*((1-$C$168-$C$169)*(1-$C$170)*(1-$C$171)*(1-$C$172)),0) -> 0 | J180: =IFERROR(IF(Entrada!T64="","",Entrada!T64*$F$178/J$178)*((1-$C$168-$C$169)*(1-$C$170)*(1-$C$171)*(1-$C$172)),0) -> 0 | K180: =IFERROR(IF(Entrada!U64="","",Entrada!U64*$F$178/K$178)*((1-$C$168-$C$169)*(1-$C$170)*(1-$C$171)*(1-$C$172)),0) -> 0 | L180: =IFERROR(IF(Entrada!V64="","",Entrada!V64*$F$178/L$178)*((1-$C$168-$C$169)*(1-$C$170)*(1-$C$171)*(1-$C$172)),0) -> 0 | M180: =IFERROR(IF(Entrada!W64="","",Entrada!W64*$F$178/M$178)*((1-$C$168-$C$169)*(1-$C$170)*(1-$C$171)*(1-$C$172)),0) -> 0 | N180: =IFERROR(IF(Entrada!X64="","",Entrada!X64*$F$178/N$178)*((1-$C$168-$C$169)*(1-$C$170)*(1-$C$171)*(1-$C$172)),0) -> 0 | O180: =IFERROR(IF(Entrada!Y64="","",Entrada!Y64*$F$178/O$178)*((1-$C$168-$C$169)*(1-$C$170)*(1-$C$171)*(1-$C$172)),0) -> 0 | P180: =IFERROR(IF(Entrada!Z64="","",Entrada!Z64*$F$178/P$178)*((1-$C$168-$C$169)*(1-$C$170)*(1-$C$171)*(1-$C$172)),0) -> 0 | Q180: =IFERROR(IF(Entrada!AA64="","",Entrada!AA64*$F$178/Q$178)*((1-$C$168-$C$169)*(1-$C$170)*(1-$C$171)*(1-$C$172)),0) -> 0 | R180: =IFERROR(IF(Entrada!AB64="","",Entrada!AB64*$F$178/R$178)*((1-$C$168-$C$169)*(1-$C$170)*(1-$C$171)*(1-$C$172)),0) -> 0 | S180: =IFERROR(IF(Entrada!AC64="","",Entrada!AC64*$F$178/S$178)*((1-$C$168-$C$169)*(1-$C$170)*(1-$C$171)*(1-$C$172)),0) -> 0 | T180: =IFERROR(IF(Entrada!AD64="","",Entrada!AD64*$F$178/T$178)*((1-$C$168-$C$169)*(1-$C$170)*(1-$C$171)*(1-$C$172)),0) -> 0 | U180: =IFERROR(IF(Entrada!AE64="","",Entrada!AE64*$F$178/U$178)*((1-$C$168-$C$169)*(1-$C$170)*(1-$C$171)*(1-$C$172)),0) -> 0 | V180: =IFERROR(IF(Entrada!AF64="","",Entrada!AF64*$F$178/V$178)*((1-$C$168-$C$169)*(1-$C$170)*(1-$C$171)*(1-$C$172)),0) -> 0 | W180: =IFERROR(IF(Entrada!AG64="","",Entrada!AG64*$F$178/W$178)*((1-$C$168-$C$169)*(1-$C$170)*(1-$C$171)*(1-$C$172)),0) -> 0
B181: Total | D181: =D179+D180 -> 0 | F181: =F179+F180 -> 0 | G181: =IFERROR(G179+G180,"") -> 0 | H181: =IFERROR(H179+H180,"") -> 0 | I181: 0 | J181: 0 | K181: 0 | L181: 0 | M181: 0 | N181: 0 | O181: 0 | P181: 0 | Q181: 0 | R181: 0 | S181: 0 | T181: 0
B189: Receitas Irrecuperáveis
B191: Receitas Irrecuperáveis
B192: Descrição | C192: Valor
B193: Receitas Irrecuperáveis de Encargos Setoriais | C193: =IFERROR(C196*C194/(1-C195),0) -> 0
B194: Encargos DRP | C194: =F7 -> 542305295
B195: Carga Tributária (por dentro) | C195: =SUM(Mercado!$G$9:$G$10) -> 0.1966726546
B196: Limite RI Encargos | C196: =G213 -> 
B197: Demais Receitas Irrecuperáveis (Vse) | C197: =IFERROR(C201*(C198+C199+C200+C26)/(1-SUM(Mercado!$G$9:$G$10)),0) -> 0
B198: Receita Adicional de Bandeira (12 meses) | C198: =AVERAGE(C228:N228)*Mercado!C9 -> 11573108.49
B199: Energia Comprada (CE) | C199: =F9 -> 841793164.8
B200: Tranporte de Enegia (CT) | C200: =F8 -> 430423807.9
B201: Limite Demais RI | C201: =D213 -> 
B202: Receitas Irrecuperáveis (Total) | C202: =C193+C197 -> 0
B204: Limites para Receitas Irrecuperávesi
C205: Participação no Consumo | D205: Limite Demais RI | E205: Mediana das inadimplências | F205: Limite Neutralidade | G205: Limite Considerado p/ RI Encargos
B206: 1.Residencial | C206: =Mercado!D30 -> 0.4231208819 | D206: =VLOOKUP( 11,Dados_Revisao[#Data],4,FALSE) ->  | E206: =MEDIAN(C217:N217) ->  | F206: =VLOOKUP( 1,Dados_Revisao[#Data],4,FALSE) ->  | G206: =MIN(E206:F206) -> 
B207: 2.Industrial | C207: =Mercado!D31 -> 0.2004787965 | D207: =VLOOKUP( 12,Dados_Revisao[#Data],4,FALSE) ->  | F207: =VLOOKUP(2,Dados_Revisao[#Data],4,FALSE) -> 
B208: 3.Comercial | C208: =Mercado!D32 -> 0.1730494671 | D208: =VLOOKUP( 13,Dados_Revisao[#Data],4,FALSE) ->  | F208: =VLOOKUP(3,Dados_Revisao[#Data],4,FALSE) -> 
B209: 4.Rural | C209: =Mercado!D33 -> 0.0803351326 | D209: =VLOOKUP( 14,Dados_Revisao[#Data],4,FALSE) ->  | F209: =VLOOKUP(4,Dados_Revisao[#Data],4,FALSE) -> 
B210: 5.Poder Público | C210: =Mercado!D35 -> 0.03361073055 | D210: =VLOOKUP( 15,Dados_Revisao[#Data],4,FALSE) ->  | F210: =VLOOKUP(5,Dados_Revisao[#Data],4,FALSE) -> 
B211: 6.Iluminação Pública | C211: =Mercado!D34 -> 0.02746268847 | D211: =VLOOKUP( 16,Dados_Revisao[#Data],4,FALSE) ->  | F211: =VLOOKUP(6,Dados_Revisao[#Data],4,FALSE) -> 
B212: 7.Serviço Público | C212: =Mercado!D36 -> 0.03751088644 | D212: =VLOOKUP( 17,Dados_Revisao[#Data],4,FALSE) ->  | F212: =VLOOKUP(7,Dados_Revisao[#Data],4,FALSE) -> 
B213: Limite RI Ponderado pelo Mercado | D213: =SUMPRODUCT(C206:C212,D206:D212) ->  | G213: =SUMPRODUCT(C206:C212,G206:G212) -> 
B215: Inadimplências no Período de 49 a 60 meses
C216: 49 | D216: 50 | E216: 51 | F216: 52 | G216: 53 | H216: 54 | I216: 55 | J216: 56 | K216: 57 | L216: 58 | M216: 59 | N216: 60
B217: 1.Residencial | C217: =Entrada!#REF!/Entrada!R38 ->  | D217: =Entrada!#REF!/Entrada!S38 ->  | E217: =Entrada!#REF!/Entrada!T38 ->  | F217: =Entrada!#REF!/Entrada!U38 ->  | G217: =Entrada!#REF!/Entrada!V38 ->  | H217: =Entrada!#REF!/Entrada!W38 ->  | I217: =Entrada!#REF!/Entrada!X38 ->  | J217: =Entrada!#REF!/Entrada!Y38 ->  | K217: =Entrada!#REF!/Entrada!Z38 ->  | L217: =Entrada!#REF!/Entrada!AA38 ->  | M217: =Entrada!#REF!/Entrada!AB38 ->  | N217: =Entrada!AC46/Entrada!AC36 -> 
B218: 2.Industrial | C218: =Entrada!R47/Entrada!R39 ->  | D218: =Entrada!S47/Entrada!S39 ->  | E218: =Entrada!T47/Entrada!T39 ->  | F218: =Entrada!U47/Entrada!U39 ->  | G218: =Entrada!V47/Entrada!V39 ->  | H218: =Entrada!W47/Entrada!W39 ->  | I218: =Entrada!X47/Entrada!X39 ->  | J218: =Entrada!Y47/Entrada!Y39 ->  | K218: =Entrada!Z47/Entrada!Z39 ->  | L218: =Entrada!AA47/Entrada!AA39 ->  | M218: =Entrada!AB47/Entrada!AB39 ->  | N218: =Entrada!AC47/Entrada!AC37 -> 
B219: 3.Comercial | C219: =Entrada!R50/Entrada!R40 ->  | D219: =Entrada!S50/Entrada!S40 ->  | E219: =Entrada!T50/Entrada!T40 ->  | F219: =Entrada!U50/Entrada!U40 ->  | G219: =Entrada!V50/Entrada!V40 ->  | H219: =Entrada!W50/Entrada!W40 ->  | I219: =Entrada!X50/Entrada!X40 ->  | J219: =Entrada!Y50/Entrada!Y40 ->  | K219: =Entrada!Z50/Entrada!Z40 ->  | L219: =Entrada!AA50/Entrada!AA40 ->  | M219: =Entrada!AB50/Entrada!AB40 ->  | N219: =Entrada!AC50/Entrada!AC38 -> 
B220: 4.Rural | C220: =Entrada!R51/Entrada!R41 ->  | D220: =Entrada!S51/Entrada!S41 ->  | E220: =Entrada!T51/Entrada!T41 ->  | F220: =Entrada!U51/Entrada!U41 ->  | G220: =Entrada!V51/Entrada!V41 ->  | H220: =Entrada!W51/Entrada!W41 ->  | I220: =Entrada!X51/Entrada!X41 ->  | J220: =Entrada!Y51/Entrada!Y41 ->  | K220: =Entrada!Z51/Entrada!Z41 ->  | L220: =Entrada!AA51/Entrada!AA41 ->  | M220: =Entrada!AB51/Entrada!AB41 ->  | N220: =Entrada!AC51/Entrada!AC39 -> 
B221: 5.Poder Público | C221: =Entrada!R52/Entrada!R42 ->  | D221: =Entrada!S52/Entrada!S42 ->  | E221: =Entrada!T52/Entrada!T42 ->  | F221: =Entrada!U52/Entrada!U42 ->  | G221: =Entrada!V52/Entrada!V42 ->  | H221: =Entrada!W52/Entrada!W42 ->  | I221: =Entrada!X52/Entrada!X42 ->  | J221: =Entrada!Y52/Entrada!Y42 ->  | K221: =Entrada!Z52/Entrada!Z42 ->  | L221: =Entrada!AA52/Entrada!AA42 ->  | M221: =Entrada!AB52/Entrada!AB42 ->  | N221: =Entrada!AC52/Entrada!AC40 -> 
B222: 6.Iluminação Pública | C222: =Entrada!R53/Entrada!R43 ->  | D222: =Entrada!S53/Entrada!S43 ->  | E222: =Entrada!T53/Entrada!T43 ->  | F222: =Entrada!U53/Entrada!U43 ->  | G222: =Entrada!V53/Entrada!V43 ->  | H222: =Entrada!W53/Entrada!W43 ->  | I222: =Entrada!X53/Entrada!X43 ->  | J222: =Entrada!Y53/Entrada!Y43 ->  | K222: =Entrada!Z53/Entrada!Z43 ->  | L222: =Entrada!AA53/Entrada!AA43 ->  | M222: =Entrada!AB53/Entrada!AB43 ->  | N222: =Entrada!AC53/Entrada!AC41 -> 
B223: 7.Serviço Público | C223: =Entrada!R54/Entrada!R44 ->  | D223: =Entrada!S54/Entrada!S44 ->  | E223: =Entrada!T54/Entrada!T44 ->  | F223: =Entrada!U54/Entrada!U44 ->  | G223: =Entrada!V54/Entrada!V44 ->  | H223: =Entrada!W54/Entrada!W44 ->  | I223: =Entrada!X54/Entrada!X44 ->  | J223: =Entrada!Y54/Entrada!Y44 ->  | K223: =Entrada!Z54/Entrada!Z44 ->  | L223: =Entrada!AA54/Entrada!AA44 ->  | M223: =Entrada!AB54/Entrada!AB44 ->  | N223: =Entrada!AC54/Entrada!AC42 -> 
B225: Custo de Bandeira no Período de 49 a 60 meses
C226: 49 | D226: 50 | E226: 51 | F226: 52 | G226: 53 | H226: 54 | I226: 55 | J226: 56 | K226: 57 | L226: 58 | M226: 59 | N226: 60
B227: Valor Máximo da Projeção ONS | C227: =MAX(Entrada!Q58:Q61) -> 42767 | D227: =MAX(Entrada!R58:R61) -> 0 | E227: =MAX(Entrada!S58:S61) -> 0 | F227: =MAX(Entrada!T58:T61) -> 0 | G227: =MAX(Entrada!U58:U61) -> 0 | H227: =MAX(Entrada!V58:V61) -> 0 | I227: =MAX(Entrada!W58:W61) -> 0 | J227: =MAX(Entrada!X58:X61) -> 0 | K227: =MAX(Entrada!Y58:Y61) -> 0 | L227: =MAX(Entrada!Z58:Z61) -> 0 | M227: =MAX(Entrada!AA58:AA61) -> 0 | N227: =MAX(Entrada!AB58:AB61) -> 0
B228: Custo p/ Adicional de Bandeira (R$/MWh) | C228: =IF(AND(C227>=211.28,C227<422.56),15,IF(AND(C227>=422.56,C227<610),30,IF(C227>=610,45,0))) -> 45 | D228: 0 | E228: 0 | F228: 0 | G228: 0 | H228: 0 | I228: 0 | J228: 0 | K228: 0 | L228: 0 | M228: 0 | N228: 0

Sheet Votos e NTs
B2: Tabelas | D2: Gráficos
B4: Consumidores | D4: Análise de Impacto da RTA na Tarfia | K4: Composição da Receita | P4: Composição da Receita com Tributos | U4: Composição da Receita com detalhamento de Encargos | Z4: Evolução da Tarifa B1 Residencial
B5: Mercado
B6: Encargos
B7: Custo do Transporte de Energia
B8: Perdas
B9: Energia Requerida
B10: Energia na DRA
B11: Contratos
B12: Fator X
B13: Parcela B
B14: CVA em Processamento
B15: Financeiros
B16: Subsídios
B17: Efeito Médio AT + BT
B18: Avaliação RTA
B19: Variação do Custo de Energia
B20: Dados dos Gráficos
E23: Impacto da RTA na Tarifa | K23: Composição da Receita | P23: Composição da Receita com Tributos | U23: Composição da Receita com detalhamento de Encargos | Z23: Data | AA23: Tipo | AC23: B1 - Residencial | AD23: IGPM | AE23: IPCA | AF23: Data
E24: Encargos Setoriais | H24: =IF(CAPA!C7="Reajuste",BP273,#REF!) -> 0.02830537542 | K24: Custo de Distribuição | M24: =Resultado!D45 -> 503233843.8 | P24: Distribuição | R24: =M24/$R$32 -> 0.1734680874 | U24: Custo de Distribuição | W24: =Resultado!D45 -> 503233843.8 | Z24: =YEAR(BD!B79) -> 1900 | AA24: =(BD!C79) -> 0 | AB24: =CONCATENATE(AA24," ",Z24) -> 0 1900 | AC24: =BD!D79 -> 0 | AD24: =AC24 -> 0 | AE24: =AD24 -> 0 | AF24: =DATE(YEAR(BD!B79),MONTH(BD!B79)-1,1) -> 
E25: Custo de Transporte | H25: =IF(CAPA!C7="Reajuste",BP287,#REF!) -> 0.04587552059 | K25: Custo de Energia | M25: =Resultado!D38 -> 841793164.8 | P25: Energia | R25: =M25/$R$32 -> 0.2901717602 | U25: Custo de Energia | W25: =Resultado!D38 -> 841793164.8 | Z25: =YEAR(BD!B78) -> 1900 | AA25: =(BD!C78) -> 0 | AB25: 0 1900 | AC25: =BD!D78 -> 0 | AD25: =AD24*VLOOKUP(AF25,Índices!$B$135:$F$627,2,0)/VLOOKUP(AF24,Índices!$B$135:$F$627,2,0) ->  | AE25: =AE24*VLOOKUP(AF25,Índices!$B$135:$F$627,3,0)/VLOOKUP(AF24,Índices!$B$135:$F$627,3,0) ->  | AF25: =DATE(YEAR(BD!B78),MONTH(BD!B78)-1,1) -> 
E26: Custo de Energia | H26: =IF(CAPA!C7="Reajuste",BP296,#REF!) -> 0.003902811779 | K26: Custo de Transporte | M26: =Resultado!D29 -> 430423807.9 | P26: Transmissão | R26: =M26/$R$32 -> 0.1483699788 | U26: Custo de Transmissão | W26: =Resultado!D29 -> 430423807.9 | Z26: =YEAR(BD!B77) -> 1900 | AA26: =(BD!C77) -> 0 | AB26: 0 1900 | AC26: =BD!D77 -> 0 | AD26: =AD25*VLOOKUP(AF26,Índices!$B$135:$F$627,2,0)/VLOOKUP(AF25,Índices!$B$135:$F$627,2,0) ->  | AE26: =AE25*VLOOKUP(AF26,Índices!$B$135:$F$627,3,0)/VLOOKUP(AF25,Índices!$B$135:$F$627,3,0) ->  | AF26: =DATE(YEAR(BD!B77),MONTH(BD!B77)-1,1) -> 
E27: Receitas Irrecuperáveis | H27: =IF(CAPA!C7="Reajuste",BP297,#REF!) -> -0.0006036325239 | K27: Encargos Setoriais | M27: =Resultado!D19 -> 542305295 | P27: Encargos | R27: =M27/$R$32 -> 0.1869362791 | U27: Receitas Irrecuperáveis | W27: =Resultado!D39 -> 12710050.98 | Z27: =YEAR(BD!B76) -> 1900 | AA27: =(BD!C76) -> 0 | AB27: 0 1900 | AC27: =BD!D76 -> 0 | AD27: =AD26*VLOOKUP(AF27,Índices!$B$135:$F$627,2,0)/VLOOKUP(AF26,Índices!$B$135:$F$627,2,0) ->  | AE27: =AE26*VLOOKUP(AF27,Índices!$B$135:$F$627,3,0)/VLOOKUP(AF26,Índices!$B$135:$F$627,3,0) ->  | AF27: =DATE(YEAR(BD!B76),MONTH(BD!B76)-1,1) -> 
E28: Distribuição | H28: =IF(CAPA!C7="Reajuste",BP298,#REF!) -> 0.005315956902 | K28: Receitas Irrecuperáveis | M28: =Resultado!D39 -> 12710050.98 | P28: RI | R28: =M28/R32 -> 0.004381239977 | U28: PROINFA | W28: =Resultado!D26 -> 51785584.51 | Z28: =YEAR(BD!B75) -> 1900 | AA28: =(BD!C75) -> 0 | AB28: 0 1900 | AC28: =BD!D75 -> 0 | AD28: =AD27*VLOOKUP(AF28,Índices!$B$135:$F$627,2,0)/VLOOKUP(AF27,Índices!$B$135:$F$627,2,0) ->  | AE28: =AE27*VLOOKUP(AF28,Índices!$B$135:$F$627,3,0)/VLOOKUP(AF27,Índices!$B$135:$F$627,3,0) ->  | AF28: =DATE(YEAR(BD!B75),MONTH(BD!B75)-1,1) -> 
E29: Componentes Financeiros | H29: =IF(CAPA!C7="Reajuste",BP301,#REF!) -> 0.03517960974 | P29: ICMS | R29: =Mercado!G9 -> 0.1599152847 | U29: CDE | W29: =Resultado!D23 -> 404175310.1 | Z29: =YEAR(BD!B74) -> 1900 | AA29: =(BD!C74) -> 0 | AB29: 0 1900 | AC29: =BD!D74 -> 0 | AD29: =AD28*VLOOKUP(AF29,Índices!$B$135:$F$627,2,0)/VLOOKUP(AF28,Índices!$B$135:$F$627,2,0) ->  | AE29: =AE28*VLOOKUP(AF29,Índices!$B$135:$F$627,3,0)/VLOOKUP(AF28,Índices!$B$135:$F$627,3,0) ->  | AF29: =DATE(YEAR(BD!B74),MONTH(BD!B74)-1,1) -> 
E30: Retirada dos Financeiros Anteriores | H30: =IF(CAPA!C7="Reajuste",BP353,#REF!) -> -0.01147619472 | P30: PIS/COFINS | R30: =Mercado!$G$10 -> 0.0367573699 | U30: ESS/EER | W30: =Resultado!D25 -> 64438279.01 | Z30: =YEAR(BD!B73) -> 1900 | AA30: =(BD!C73) -> 0 | AB30: 0 1900 | AC30: =BD!D73 -> 0 | AD30: =AD29*VLOOKUP(AF30,Índices!$B$135:$F$627,2,0)/VLOOKUP(AF29,Índices!$B$135:$F$627,2,0) ->  | AE30: =AE29*VLOOKUP(AF30,Índices!$B$135:$F$627,3,0)/VLOOKUP(AF29,Índices!$B$135:$F$627,3,0) ->  | AF30: =DATE(YEAR(BD!B73),MONTH(BD!B73)-1,1) -> 
E31: Efeito Médio Consumidor | H31: =BP354 -> 0.1064994472 | P31: Tributos por dentro | R31: =LnkTxtPisCofins+LnkTxtICMS -> 0.1966726546 | U31: Outros | W31: =Resultado!D27+Resultado!D28+Resultado!D24+Resultado!D22 -> 21906121.38 | Z31: =YEAR(BD!B72) -> 1900 | AA31: =(BD!C72) -> 0 | AB31: 0 1900 | AC31: =BD!D72 -> 0 | AD31: =AD30*VLOOKUP(AF31,Índices!$B$135:$F$627,2,0)/VLOOKUP(AF30,Índices!$B$135:$F$627,2,0) ->  | AE31: =AE30*VLOOKUP(AF31,Índices!$B$135:$F$627,3,0)/VLOOKUP(AF30,Índices!$B$135:$F$627,3,0) ->  | AF31: =DATE(YEAR(BD!B72),MONTH(BD!B72)-1,1) -> 
P32: Receita com Tributos | R32: =SUM(W24:W31)/(1-R29-R30) -> 2901016847 | Z32: =YEAR(BD!B71) -> 1900 | AA32: =(BD!C71) -> 0 | AB32: 0 1900 | AC32: =BD!D71 -> 0 | AD32: =AD31*VLOOKUP(AF32,Índices!$B$135:$F$627,2,0)/VLOOKUP(AF31,Índices!$B$135:$F$627,2,0) ->  | AE32: =AE31*VLOOKUP(AF32,Índices!$B$135:$F$627,3,0)/VLOOKUP(AF31,Índices!$B$135:$F$627,3,0) ->  | AF32: =DATE(YEAR(BD!B71),MONTH(BD!B71)-1,1) -> 
P33: Tributos Totais por Fora | R33: =(R29+R30)/(1-R29-R30) -> 0.2448225567 | Z33: =YEAR(BD!B70) -> 1900 | AA33: =(BD!C70) -> 0 | AB33: 0 1900 | AC33: =BD!D70 -> 0 | AD33: =AD32*VLOOKUP(AF33,Índices!$B$135:$F$627,2,0)/VLOOKUP(AF32,Índices!$B$135:$F$627,2,0) ->  | AE33: =AE32*VLOOKUP(AF33,Índices!$B$135:$F$627,3,0)/VLOOKUP(AF32,Índices!$B$135:$F$627,3,0) ->  | AF33: =DATE(YEAR(BD!B70),MONTH(BD!B70)-1,1) -> 
Z34: =YEAR(BD!B69) -> 1900 | AA34: =(BD!C69) -> 0 | AB34: 0 1900 | AC34: =BD!D69 -> 0 | AD34: =AD33*VLOOKUP(AF34,Índices!$B$135:$F$627,2,0)/VLOOKUP(AF33,Índices!$B$135:$F$627,2,0) ->  | AE34: =AE33*VLOOKUP(AF34,Índices!$B$135:$F$627,3,0)/VLOOKUP(AF33,Índices!$B$135:$F$627,3,0) ->  | AF34: =DATE(YEAR(BD!B69),MONTH(BD!B69)-1,1) -> 
Z35: =YEAR(BD!B68) -> 1900 | AA35: =(BD!C68) -> 0 | AB35: 0 1900 | AC35: =BD!D68 -> 0 | AD35: =AD34*VLOOKUP(AF35,Índices!$B$135:$F$627,2,0)/VLOOKUP(AF34,Índices!$B$135:$F$627,2,0) ->  | AE35: =AE34*VLOOKUP(AF35,Índices!$B$135:$F$627,3,0)/VLOOKUP(AF34,Índices!$B$135:$F$627,3,0) ->  | AF35: =DATE(YEAR(BD!B68),MONTH(BD!B68)-1,1) -> 
Z36: =YEAR(BD!B67) -> 1900 | AA36: =(BD!C67) -> 0 | AB36: 0 1900 | AC36: =BD!D67 -> 0 | AD36: =AD35*VLOOKUP(AF36,Índices!$B$135:$F$627,2,0)/VLOOKUP(AF35,Índices!$B$135:$F$627,2,0) ->  | AE36: =AE35*VLOOKUP(AF36,Índices!$B$135:$F$627,3,0)/VLOOKUP(AF35,Índices!$B$135:$F$627,3,0) ->  | AF36: =DATE(YEAR(BD!B67),MONTH(BD!B67)-1,1) -> 
Z37: =YEAR(BD!B66) -> 2023 | AA37: =(BD!C66) -> 0 | AB37: =CONCATENATE(IF(AA37=1,"Revisão","Reajuste")," ",Z37) -> Reajuste 2023 | AC37: =BD!D66 -> 688.1053531 | AD37: =AD36*VLOOKUP(AF37,Índices!$B$135:$F$627,2,0)/VLOOKUP(AF36,Índices!$B$135:$F$627,2,0) ->  | AE37: =AE36*VLOOKUP(AF37,Índices!$B$135:$F$627,3,0)/VLOOKUP(AF36,Índices!$B$135:$F$627,3,0) ->  | AF37: =DATE(YEAR(BD!B66),MONTH(BD!B66)-1,1) -> 2023-06-01
AC38: =AC37/AC24-1 ->  | AD38: =AD37/AD24-1 -> 
B40: TabCons | E40: Voltar
B41: Classe de Consumo | C41: Nº de Unidades Consumidoras* | D41: Consumo de Energia (MWh) | E41: Participação no Consumo (%)
B42: Residencial | C42: =Mercado!E30 -> 738890 | D42: =Mercado!F30 -> 121161.145 | E42: =D42/$D$50 -> 0.3270770716
B43: Industrial | C43: =Mercado!E31 -> 4500 | D43: =Mercado!F31 -> 134087.29 | E43: 0.3619714732
B44: Comercial | C44: =Mercado!E32 -> 65426 | D44: =Mercado!F32 -> 47355.141 | E44: 0.127836204
B45: Rural | C45: =Mercado!E33 -> 43452 | D45: =Mercado!F33 -> 22317.73 | E45: 0.06024718381
B46: Iluminação Pública | C46: =Mercado!E34 -> 783 | D46: =Mercado!F34 -> 14517.724 | E46: 0.03919090276
B47: Poder Público | C47: =Mercado!E35 -> 7334 | D47: =Mercado!F35 -> 9647.944 | E47: 0.02604482873
B48: Serviço Público | C48: =Mercado!E36 -> 1271 | D48: =Mercado!F36 -> 12370.574 | E48: 0.03339462596
B49: Demais classes | C49: =Mercado!E37 -> 185 | D49: =Mercado!F37 -> 8978.522 | E49: 0.0242377099
B50: Total | C50: =SUM(C42:C49) -> 861841 | D50: =SUM(D42:D49) -> 370436.07 | E50: =SUM(E42:E49) -> 1
B51: * Nota: dados do último mês informado pela empresa
G53: TabMercado | I53: Voltar
G54: Subgrupos | H54: Mercado (MWh) | I54: Receita (R$) | J54: Colunas1
G55: Fornecimento | H55: =SUM(H56:H62) -> 3086162.264 | I55: =SUM(I56:I62) -> 1801043014 | J55: =IF(ABS(H55)+ABS(I55)>0,1,0) -> 1
G56: A1 (230 kV ou mais) | H56: =Mercado!C10 -> 0 | I56: =Mercado!D10 -> 0 | J56: 0
G57: A2 (88 a 138 kV) | H57: =Mercado!C11 -> 5711.609 | I57: =Mercado!D11 -> 3711787.2 | J57: 1
G58: A3 (69 kV) | H58: =Mercado!C12 -> 2217.13 | I58: =Mercado!D12 -> 1142998.863 | J58: 1
G59: A3a (30 kV a 44 kV) | H59: =Mercado!C13 -> 4953.876 | I59: =Mercado!D13 -> 4724349.368 | J59: 1
G60: A4 (2,3 kV a 25 kV) | H60: =Mercado!C14 -> 603673.545 | I60: =Mercado!D14 -> 341045427.5 | J60: 1
G61: As | H61: =Mercado!C15 -> 0 | I61: =Mercado!D15 -> 0 | J61: 0
G62: BT (menor que 2,3 kV) | H62: =Mercado!C16 -> 2469606.104 | I62: =Mercado!D16 -> 1450418451 | J62: 1
G63: Suprimento | H63: =Mercado!C17 -> 41448.611 | I63: =Mercado!D17 -> 12579806.96 | J63: 1
G64: Livres A1 | H64: =Mercado!C18 -> 0 | I64: =Mercado!D18 -> 0 | J64: 0
G65: Demais Livres | H65: =Mercado!C19 -> 1377558.625 | I65: =Mercado!D19 -> 300859220.1 | J65: 1
G66: Distribuição | H66: =Mercado!C20 -> 75508.73 | I66: =Mercado!D20 -> 7705882.667 | J66: 1
G67: Geração | H67: =Mercado!C21 -> 0 | I67: =Mercado!D21 -> 30079071.82 | J67: 1
G68: Total | H68: =SUM(H56:H67) -> 4580678.23 | I68: =SUM(I56:I67) -> 2152266995
K70: TabEnc | N70: Voltar
K71: Encargos Setoriais | L71: Processo Anterior (R$) | M71: Processo Atual (R$) | N71: Dispositivo Legal | O71: Colunas1
K72: Taxa de Fisc. de Serviços de E.E. – TFSEE | L72: =Resultado!C22 -> 1966247.787 | M72: =Resultado!D22 -> 2024442.546 | N72: =Encargos!D17 -> Conforme módulo 5.5 do PRORET | O72: =IF(ABS(L72)+ABS(M72)>0,1,0) -> 1
K73: Conta de Desenv. Energético – CDE (USO) | L73: =BM275 -> 341918243.1 | M73: =BN275 -> 330693092.5 | N73: =VLOOKUP("CDE",EncargoDRP[],3,FALSE) -> REH 3.175/2023 | O73: 1
K74: Conta de Desenv. Energético – CDE Conta-Covid | L74: =BM276+BM277 -> 37504330.65 | M74: =BN276+BN277 -> 39023592.56 | N74: =VLOOKUP("CDE Covid",EncargoDRP[],3,FALSE) -> DSP 939/2021 | O74: =IF(ABS(L74)+ABS(M74)>0,1,0) -> 1
K75: Conta de Desenv. Energético – CDE Eletrobrás | L75: =BM278 -> -50680219.61 | M75: =BN278 -> -6807363.714 | N75: =VLOOKUP("CDE Eletrobras",EncargoDRP[],3,FALSE) -> DSP 1.120/2023 | O75: =IF(ABS(L75)+ABS(M75)>0,1,0) -> 1
K76: Conta de Desenv. Energético – CDE Conta-Escassez Hídrica | L76: =BM279+BM280 -> 0 | M76: =BN279+BN280 -> 22125221.04 | N76: =VLOOKUP("CDE Escassez Hidrica",EncargoDRP[],3,FALSE) -> DSP 510/2023 | O76: =IF(ABS(L76)+ABS(M76)>0,1,0) -> 1
K77: Conta de Desenv. Energético – CDE GD | L77: =BM281 -> 0 | M77: =BN281 -> 19140767.74 | N77: =VLOOKUP("CDE GD",EncargoDRP[],3,FALSE) -> REH 3.175/2023 | O77: =IF(ABS(L77)+ABS(M77)>0,1,0) -> 1
K78: Compensação financeira - CFURH | L78: 0 | M78: 0 | N78: 0 | O78: 0
K79: Encargos Serv. Sist. - ESS e Energ. Reserv. - EER | L79: =Resultado!C25 -> 72920405.83 | M79: =Resultado!D25 -> 64438279.01 | N79: =Encargos!D12 -> DSP 1.141/2023 | O79: 1
K80: PROINFA | L80: =Resultado!C26 -> 60183077.77 | M80: =Resultado!D26 -> 51785584.51 | N80: =Encargos!$D$13 -> ReH 3.147/2022 | O80: 1
K81: P&D e Eficiência Energética | L81: =Resultado!C27 -> 17572484.14 | M81: =Resultado!D27 -> 19881678.84 | N81: Res. Normativa nº 316/2008 | O81: 1
K82: Contribuição ONS | L82: 0 | M82: 0 | N82: 0 | O82: 0
K83: Total de Encargos Tarifários | L83: =SUM(L72:L82) -> 481384569.7 | M83: =SUM(M72:M82) -> 542305295
P85: TabTrans | R85: Voltar
P86: Componente | Q86: Processo Anterior (R$) | R86: Processo Atual (R$) | S86: Colunas1
P87: Rede Básica | Q87: =+Resultado!C30 -> 128730374.3 | R87: =+Resultado!D30 -> 161881234.3 | S87: =IF(ABS(Q87)+ABS(R87)>0,1,0) -> 1
P88: Rede Básica Fronteira | Q88: =+Resultado!C31 -> 110555219 | R88: =+Resultado!D31 -> 152189551.5 | S88: 1
P89: Rede Básica ONS (A2) | Q89: =+Resultado!C32 -> 981888.2655 | R89: =+Resultado!D32 -> 1001557.22 | S89: 1
P90: Rede Básica Export. (A2) | Q90: =+Resultado!C33 -> 0 | R90: =+Resultado!D33 -> 0 | S90: 0
P91: MUST Itaipu | Q91: =+Resultado!C34 -> 13340426.26 | R91: =+Resultado!D34 -> 14039360.45 | S91: 1
P92: Transporte de Itaipu | Q92: =+Resultado!C35 -> 19144943.31 | R92: =+Resultado!D35 -> 28450577.77 | S92: 1
P93: Conexão | Q93: =+Resultado!C36 -> 4317201.541 | R93: =+Resultado!D36 -> 6215616.593 | S93: 1
P94: Uso do sistema de distribuição | Q94: =+Resultado!C37 -> 54617386.39 | R94: =+Resultado!D37 -> 66645910.13 | S94: 1
P95: Total dos Custos de Transporte | Q95: =SUM(Q87:Q94) -> 331687439.1 | R95: =SUM(R87:R94) -> 430423807.9
T97: TabPerdas | W97: Voltar
T98: Perdas | U98: DRA | V98: DRP | W98: Referência
T99: Não Técnica (s/ Baixa Tensão) | U99: =Neutralidade!H14 -> 0.003651 | V99: =Energia!H13 -> 0.003651 | W99: REH 2.893/2021
T100: Técnica (s/ merc. injetado) | U100: =Neutralidade!H15 -> 0.06631 | V100: =Energia!H14 -> 0.06631 | W100: =W99 -> REH 2.893/2021
T101: Rede Básica (s/ merc. Injetado) | U101: =Neutralidade!H16 -> 0.01462843235 | V101: =Energia!H15 -> 0.01462843235 | W101: CCEE (últimos 12 meses)
T102: Mercado Baixa Tensão (MWh) | U102: =Mercado!$C$16 -> 2469606.104 | V102: =Mercado!$C$16 -> 2469606.104 | W102: SAMP
Y104: TabEnergia | AA104: Voltar
Y105: Descrição | Z105: Processo Anterior (MWh) | AA105: Processo Atual (MWh)
Y106: Mercado Total (Cativo + Livres) | Z106: =AA106 -> 4580678.23 | AA106: =SUM(AA107:AA110) -> 4580678.23 | AB106: Colunas1
Y107: Fornecimento | Z107: =Energia!H5 -> 3086162.264 | AA107: =Z107 -> 3086162.264 | AB107: =IF(Z107<>0,1,0) -> 1
Y108: Suprimento | Z108: =Energia!H6 -> 41448.611 | AA108: =Z108 -> 41448.611 | AB108: =IF(Z108<>0,1,0) -> 1
Y109: Consumidores Livres | Z109: =Energia!H7 -> 1453067.355 | AA109: =Z109 -> 1453067.355 | AB109: =IF(Z109<>0,1,0) -> 1
Y110: Consumidores Rede B. | Z110: =Energia!H8 -> 0 | AA110: =Z110 -> 0 | AB110: =IF(Z110<>0,1,0) -> 0
Y111: Perdas Totais | Z111: =Z112+Z113 -> 451348.82 | AA111: =AA112+AA113 -> 467471.1452 | AB111: =IF(Z111<>0,1,0) -> 1
Y112: Perdas Rede Básica | Z112: =SUM(Neutralidade!H19:H20) -> 51410.71455 | AA112: =SUM(Energia!H18:H19) -> 51643.1586 | AB112: 1
Y113: Perdas na Distribuição | Z113: =SUM(Z114:Z115) -> 399938.1055 | AA113: =SUM(AA114:AA115) -> 415827.9866 | AB113: 1
Y114: Perda Não Técnica | Z114: =Neutralidade!H17 -> 9016.531886 | AA114: =Energia!H16 -> 9016.531886 | AB114: 1
Y115: Perda Técnica | Z115: =Neutralidade!H18 -> 390921.5736 | AA115: =Energia!H17 -> 406811.4547 | AB115: 1
Y116: Energia Requerida (Cativo + Perdas) | Z116: =Z107+Z108+Z110+Z111 -> 3578959.695 | AA116: =AA107+AA108+AA110+AA111 -> 3595082.02
AC118: TabEDRA | AE118: Voltar
AC119: Energia Requerida (MWh) | AD119: Tarifa Média (R$/MWh) | AE119: Energia Requerida (R$)
AC120: ='Votos e NTs'!Z116 -> 3578959.695 | AD120: =Energia!C14 -> 233.4998363 | AE120: =AD120*AC120 -> 835686502.9
AG122: TabContratos | AK122: Voltar
AG123: Contratos | AH123: Montante Contratado (MWh) | AI123: Montante Considerado (MWh) | AJ123: Tarifa (R$/MWh) | AK123: Despesa (R$) | AL123: Colunas1
AG124: AMBIENTE REGULADO - CCEAR | AH124: =SUM(AH125:AH129) -> 1654993.116 | AI124: =SUM(AI125:AI129) -> 1503542.748 | AJ124: =AK124/AI124 -> 233.7458252 | AK124: =SUM(AK125:AK129) -> 351446840.3 | AL124: =IF(AH124=0,0,1) -> 1
AG125: Existente - CCEAR-DSP | AH125: =SUMPRODUCT((Energia!$J$49:$J$140),(Energia!$T$49:$T$140=18)*(INT(Energia!$S$49:$S$140/10000)=2)) -> 0 | AI125: =SUMPRODUCT((Energia!$K$49:$K$140),(Energia!$T$49:$T$140=18)*(INT(Energia!$S$49:$S$140/10000)=2)) -> 0 | AJ125: =IFERROR(AK125/AI125,"") ->  | AK125: =(SUMPRODUCT((Energia!$L$49:$L$140),(Energia!$T$49:$T$140=18)*(INT(Energia!$S$49:$S$140/10000)=2))) -> 0 | AL125: 0
AG126: Existente - CCEAR-QTD | AH126: =SUMPRODUCT((Energia!$J$49:$J$140),(Energia!$T$49:$T$140=1)*(INT(Energia!$S$49:$S$140/10000)=2)) -> 0 | AI126: =SUMPRODUCT((Energia!$K$49:$K$140),(Energia!$T$49:$T$140=1)*(INT(Energia!$S$49:$S$140/10000)=2)) -> 0 | AJ126: =IFERROR(AK126/AI126,"") ->  | AK126: =(SUMPRODUCT((Energia!$L$49:$L$140),(Energia!$T$49:$T$140=1)*(INT(Energia!$S$49:$S$140/10000)=2))) -> 0 | AL126: 0
AG127: Nova e Alternativa- CCEAR-DSP | AH127: =SUMPRODUCT((Energia!$J$49:$J$140),(Energia!$T$49:$T$140=18)*(INT(Energia!$S$49:$S$140/10000)=1))+SUMPRODUCT((Energia!$J$49:$J$140),(Energia!$T$49:$T$140=18)*(INT(Energia!$S$49:$S$140/10000)=3)) -> 569207.0133 | AI127: =SUMPRODUCT((Energia!$K$49:$K$140),(Energia!$T$49:$T$140=18)*(INT(Energia!$S$49:$S$140/10000)=1))+SUMPRODUCT((Energia!$K$49:$K$140),(Energia!$T$49:$T$140=18)*(INT(Energia!$S$49:$S$140/10000)=3)) -> 517118.2096 | AJ127: 322.157873 | AK127: =(SUMPRODUCT((Energia!$L$49:$L$140),(Energia!$T$49:$T$140=18)*(INT(Energia!$S$49:$S$140/10000)=1))+SUMPRODUCT((Energia!$L$49:$L$140),(Energia!$T$49:$T$140=18)*(INT(Energia!$S$49:$S$140/10000)=3))) -> 166593702.5 | AL127: 1
AG128: Nova e Alternativa- CCEAR-QTD | AH128: =SUMPRODUCT((Energia!$J$49:$J$140),(Energia!$T$49:$T$140=1)*(INT(Energia!$S$49:$S$140/10000)=1))+SUMPRODUCT((Energia!$J$49:$J$140),(Energia!$T$49:$T$140=1)*(INT(Energia!$S$49:$S$140/10000)=3)) -> 436878.3701 | AI128: =SUMPRODUCT((Energia!$K$49:$K$140),(Energia!$T$49:$T$140=1)*(INT(Energia!$S$49:$S$140/10000)=1))+SUMPRODUCT((Energia!$K$49:$K$140),(Energia!$T$49:$T$140=1)*(INT(Energia!$S$49:$S$140/10000)=3)) -> 396899.1162 | AJ128: 213.7858274 | AK128: =(SUMPRODUCT((Energia!$L$49:$L$140),(Energia!$T$49:$T$140=1)*(INT(Energia!$S$49:$S$140/10000)=1))+SUMPRODUCT((Energia!$L$49:$L$140),(Energia!$T$49:$T$140=1)*(INT(Energia!$S$49:$S$140/10000)=3))) -> 84851405.97 | AL128: 1
AG129: Madeira e Belo Monte | AH129: =SUMPRODUCT((Energia!$J$49:$J$140)*(INT(Energia!$S$49:$S$140/10000)=5)) -> 648907.7325 | AI129: =SUMPRODUCT((Energia!$K$49:$K$140)*(INT(Energia!$S$49:$S$140/10000)=5)) -> 589525.4221 | AJ129: 169.6309066 | AK129: =(SUMPRODUCT((Energia!L49:L140)*(INT(Energia!S49:S140/10000)=5))) -> 100001731.8 | AL129: 1
AG130: Bilaterais | AH130: =AH131 -> 601848 | AI130: =SUM(AI131:AI146) -> 546772.1812 | AJ130: =AK130/AI130 -> 342.1060727 | AK130: =SUM(AK131:AK146) -> 187054083.5 | AL130: 1
AG131: =Energia!B145 -> Rede Lajeado Energia S.A. | AH131: =Energia!H145 -> 601848 | AI131: =Energia!M145 -> 546772.1812 | AJ131: =Energia!L145 -> 342.1060727 | AK131: =AJ131*AI131 -> 187054083.5 | AL131: 1
AG132: =Energia!B146 -> 0 | AH132: =Energia!H146 -> 0 | AI132: =Energia!M146 -> 0 | AJ132: =Energia!L146 -> 0 | AK132: =AJ132*AI132 -> 0 | AL132: 0
AG133: =Energia!B147 -> 0 | AH133: =Energia!H147 -> 0 | AI133: =Energia!M147 -> 0 | AJ133: =Energia!L147 -> 0 | AK133: 0 | AL133: 0
AG134: =Energia!B148 -> 0 | AH134: =Energia!H148 -> 0 | AI134: =Energia!M148 -> 0 | AJ134: =Energia!L148 -> 0 | AK134: 0 | AL134: 0
AG135: =Energia!B149 -> 0 | AH135: =Energia!H149 -> 0 | AI135: =Energia!M149 -> 0 | AJ135: =Energia!L149 -> 0 | AK135: 0 | AL135: 0
AG136: =Energia!B150 -> 0 | AH136: =Energia!H150 -> 0 | AI136: =Energia!M150 -> 0 | AJ136: =Energia!L150 -> 0 | AK136: 0 | AL136: 0
AG137: =Energia!B151 -> 0 | AH137: =Energia!H151 -> 0 | AI137: =Energia!M151 -> 0 | AJ137: =Energia!L151 -> 0 | AK137: 0 | AL137: 0
AG138: =Energia!B152 -> 0 | AH138: =Energia!H152 -> 0 | AI138: =Energia!M152 -> 0 | AJ138: =Energia!L152 -> 0 | AK138: 0 | AL138: 0
AG139: =Energia!B153 -> 0 | AH139: =Energia!H153 -> 0 | AI139: =Energia!M153 -> 0 | AJ139: =Energia!L153 -> 0 | AK139: 0 | AL139: 0
AG140: =Energia!B154 -> 0 | AH140: =Energia!H154 -> 0 | AI140: =Energia!M154 -> 0 | AJ140: =Energia!L154 -> 0 | AK140: 0 | AL140: 0
AG141: =Energia!B155 -> 0 | AH141: =Energia!H155 -> 0 | AI141: =Energia!M155 -> 0 | AJ141: =Energia!L155 -> 0 | AK141: 0 | AL141: 0
AG142: =Energia!B156 -> 0 | AH142: =Energia!H156 -> 0 | AI142: =Energia!M156 -> 0 | AJ142: =Energia!L156 -> 0 | AK142: 0 | AL142: 0
AG143: =Energia!B157 -> 0 | AH143: =Energia!H157 -> 0 | AI143: =Energia!M157 -> 0 | AJ143: =Energia!L157 -> 0 | AK143: 0 | AL143: 0
AG144: =Energia!B158 -> 0 | AH144: =Energia!H158 -> 0 | AI144: =Energia!M158 -> 0 | AJ144: =Energia!L158 -> 0 | AK144: 0 | AL144: 0
AG145: 0 | AH145: =Energia!H159 -> 0 | AI145: =Energia!M159 -> 0 | AJ145: =Energia!L159 -> 0 | AK145: 0 | AL145: 0
AG146: 0 | AH146: 0 | AI146: 0 | AJ146: 0 | AK146: 0 | AL146: 0
AG147: =Energia!B20 -> Energia Base | AH147: =SUM(AH148:AH152) -> 1678378.175 | AI147: =SUM(AI148:AI152) -> 1531655.838 | AJ147: =AK147/AI147 -> 198.0159207 | AK147: =SUM(AK148:AK152) -> 303292240.9 | AL147: 1
AG148: Geração Própria | AH148: =Energia!H33 -> 0 | AI148: =Energia!C21 -> 0 | AJ148: =Energia!D21 -> 0 | AK148: =AJ148*AI148 -> 0 | AL148: 0
AG149: =Energia!B22 -> Cota Angra I/Angra II | AH149: =Energia!H34 -> 139196.6919 | AI149: =Energia!C22 -> 126458.6388 | AJ149: =Energia!D22 -> 347.5 | AK149: =AJ149*AI149 -> 43944376.97 | AL149: 1
AG150: =Energia!B23 -> Cotas Lei n º 12783/2013 | AH150: =Energia!H35 -> 738278.7319 | AI150: =Energia!C23 -> 670717.9762 | AJ150: =Energia!D23 -> 160.2785402 | AK150: =AJ150*AI150 -> 107501698.1 | AL150: 1
AG151: =Energia!B24 -> Itaipu (tirando as perdas) | AH151: =Energia!H36 -> 725851.5323 | AI151: =Energia!C24 -> 659428.0043 | AJ151: =Energia!D24 -> 230.2695136 | AK151: =AJ151*AI151 -> 151846165.8 | AL151: 1
AG152: =Energia!B25 -> PROINFA | AH152: =Energia!C25 -> 75051.2188 | AI152: =Energia!C25 -> 75051.2188 | AJ152: =Energia!D25 -> 0 | AK152: =AJ152*AI152 -> 0 | AL152: 1
AG153: Total | AH153: =AH124+AH130+AH147 -> 3935219.291 | AI153: =AI124+AI130+AI147 -> 3581970.767 | AJ153: =AK153/AI153 -> 235.0083849 | AK153: =AK124+AK130+AK147 -> 841793164.8
AM155: TabFatorX | AN155: Voltar
AM156: Componentes | AN156: Valor
AM157: Componente Pd do Fator X | AN157: ='VPB1'!F40 -> 0.003660291812
AM158: Componente T do Fator X | AN158: ='VPB1'!F41 -> -0.014
AM159: Componente Q do Fator X | AN159: ='VPB1'!F42 -> 0.003160670631
AM160: Fator X | AN160: ='VPB1'!F43 -> -0.007179037557
AP162: TabParcelaB | AR162: Voltar
AP163: Descrição | AQ163: Valores | AR163: Referência
AP164: (1) Parcela B Ano Anterior | AQ164: =+'VPB1'!C37 -> 491792485.2 | AR164: TUSD aplicada ao Mercado
AP165: (2) Fator DR1/Fator PB | AQ165: =+'VPB1'!C38 -> 1.102307322 | AR165: SGT/ANEEL
AP166: (3) Parcela B econômica = (1)*(2) | AQ166: =+'VPB1'!C39 -> 542106457.6 | AR166: SGT/ANEEL
AP167: (4) IPCA | AQ167: =+LnkTxtIPCA -> 0.03550978995 | AR167: Indicador econômico oficial
AP168: (5) Fator X | AQ168: =+AQ169+AQ170+AQ171 -> -0.007179037557
AP169: (5.1) Componente Pd do Fator X | AQ169: =+LnkTxtFatorPd -> 0.003660291812 | AR169: Pd Ex-Post | AS169: <-cuidado para verificar se é Reajuste depois de revisão. Se for reajuste pós revisão, deve se aplicar o Pd Expost.
AP170: (5.2) Componente T do Fator X | AQ170: =+LnkTxtFatorT -> -0.014 | AR170: REH 2.893/2021
AP171: (5.3) Componente Q do Fator X | AQ171: =+LnkTxtFatorQ -> 0.003160670631 | AR171: PRORET 2.5 A
AP172: (6) UDEROR | AQ172: =SUM(AQ173:AQ175) -> 62014502.81
AP173: (6.1) Outras Receitas (OR) | AQ173: =+'VPB1'!C40 -> 44703220.43 | AR173: Valores fiscalizados - SFF
AP174: (6.2) Excedente de Reativos (ER) | AQ174: =+'VPB1'!C41 -> 10468230.55 | AR174: Valores fiscalizados - SFF
AP175: (6.3) Ultrapassagem de Demanda (UD) | AQ175: =+'VPB1'!C42 -> 6843051.828 | AR175: Valores fiscalizados - SFF
AP176: (5) ONS | AQ176: 0 | AR176: REA 6.981/2018
AP177: Parcela B - DRP (R$) = (3)*[{1)+(4)-(5)]-(6) | AQ177: =Resultado!D45 -> 503233843.8
AT179: TabCVA | AW179: Voltar
AT180: Descrição | AU180: Delta (R$) | AV180: 5° Dia Útil Anterior (R$) | AW180: 12 Meses Subseqüentes (R$) | AX180: Colunas1
AT181: CVA CCC | AU181: 0 | AV181: 0 | AW181: 0 | AX181: =IF(AU181<>0,1,0) -> 0
AT182: ="CVA "&CVA!B10 -> CVA CDE | AU182: =CVA!C10 -> -8576997.549 | AV182: =CVA!D10 -> -8682977.674 | AW182: =CVA!E10 -> -9229543.488 | AX182: 1
AT183: ="CVA "&CVA!B11 -> CVA CDE Covid | AU183: =CVA!C11 -> 0 | AV183: =CVA!D11 -> 0 | AW183: =CVA!E11 -> 0 | AX183: 0
AT184: ="CVA "&CVA!B12 -> CVA Rede Básica | AU184: =CVA!C12 -> 53560258.69 | AV184: =CVA!D12 -> 57276844.24 | AW184: =CVA!E12 -> 60882239.32 | AX184: 1
AT185: ="CVA "&CVA!B13 -> CVA Compra Energia | AU185: =CVA!C13 -> -12919319.59 | AV185: =CVA!D13 -> -12205225.31 | AW185: =CVA!E13 -> -12973505.41 | AX185: 1
AT186: CVA CFURH | AU186: 0 | AV186: 0 | AW186: 0 | AX186: 0
AT187: ="CVA "&CVA!B15 -> CVA Transporte Itaipu | AU187: =CVA!C15 -> 3026257.492 | AV187: =CVA!D15 -> 3290655.734 | AW187: =CVA!E15 -> 3497792.041 | AX187: 1
AT188: ="CVA "&CVA!B16 -> CVA Proinfa | AU188: =CVA!C16 -> -5119417.168 | AV188: =CVA!D16 -> -5343915.065 | AW188: =CVA!E16 -> -5680297.513 | AX188: 1
AT189: ="CVA "&CVA!B17 -> CVA ESS/ERR | AU189: =CVA!C17 -> -2063188.536 | AV189: =CVA!D17 -> -2316187.05 | AW189: =CVA!E17 -> -2461983.654 | AX189: 1
AT190: Total | AU190: =SUM(AU181:AU189) -> 27907593.35 | AV190: =SUM(AV181:AV189) -> 32019194.87 | AW190: =SUM(AW181:AW189) -> 34034701.3
AY192: TabFin | BA192: Voltar
AY193: Componentes Financeiros | AZ193: Valor (R$) | BA193: Participação | BB193: Colunas1 | BC193: Coluna1
AY194: CVA em processamento - Energia | AZ194: =SUMIFS(Financeiros[Valor],Financeiros[idDet1],19,Financeiros[id_Grupo_TARIFA],2,Financeiros[idDet2],60,Financeiros[idDet3],999) -> -12973505.41 | BA194: =AZ194/Financeiros!$D$5 -> -0.006027832716 | BB194: =IF(AZ194<>0,1,0) -> 1
AY195: CVA em processamento - Transporte | AZ195: =SUMIFS(Financeiros[Valor],Financeiros[idDet1],19,Financeiros[id_Grupo_TARIFA],1,Financeiros[idDet2],60, Financeiros[idDet3],999) -> 64380031.36 | BA195: =AZ195/Financeiros!$D$5 -> 0.02991266024 | BB195: 1
AY196: CVA em processamento - Encargos Setoriais | AZ196: =SUMIFS(Financeiros[Valor],Financeiros[idDet1],19,Financeiros[id_Grupo_TARIFA],3,Financeiros[idDet2],60,Financeiros[idDet3],999)+SUMIFS(Financeiros[Valor],Financeiros[idDet1],19,Financeiros[id_Grupo_TARIFA],3,Financeiros[idDet2],60,Financeiros[idDet3],73)+SUMIFS(Financeiros[Valor],Financeiros[idDet1],19,Financeiros[id_Grupo_TARIFA],3,Financeiros[idDet2],60,Financeiros[idDet3],74) -> -17371824.66 | BA196: =AZ196/Financeiros!$D$5 -> -0.00807140782 | BB196: 1
AY197: Saldo a Compensar CVA-Ano Anterior + Ajustes | AZ197: =SUMIFS(Financeiros[Valor],Financeiros[idDet1],19,Financeiros[idDet2],64, Financeiros[idDet3],999)+SUMIFS(Financeiros[Valor],Financeiros[idDet1],19,Financeiros[idDet2],64, Financeiros[idDet3],73)+SUMIFS(Financeiros[Valor],Financeiros[idDet1],19,Financeiros[idDet2],64, Financeiros[idDet3],74) -> 8857881.763 | BA197: =AZ197/Financeiros!$D$5 -> 0.004115605444 | BB197: 1
AY198: Neutralidade de Parcela A- Energia | AZ198: =Financeiros!D44+Financeiros!D45+Financeiros!D46+Financeiros!D47+Financeiros!D48 -> -4527129.966 | BA198: =AZ198/Financeiros!$D$5 -> -0.00210342396 | BB198: 1
AY199: Neutralidade de Parcela A - Transporte | AZ199: =SUMIFS(Financeiros[Valor],Financeiros[idDet1],20,Financeiros[id_Grupo_TARIFA],1,Financeiros[idDet2],60, Financeiros[idDet3],999) -> 2214737.198 | BA199: =AZ199/Financeiros!$D$5 -> 0.001029025304 | BB199: 1
AY200: Neutralidade de Parcela A - Encargos Setoriais | AZ200: =SUMIFS(Financeiros[Valor],Financeiros[idDet1],20,Financeiros[id_Grupo_TARIFA],3,Financeiros[idDet2],60,Financeiros[idDet3],999)+SUMIFS(Financeiros[Valor],Financeiros[idDet1],20,Financeiros[idDet2],60,Financeiros[idDet3],73)+SUMIFS(Financeiros[Valor],Financeiros[idDet1],20,Financeiros[idDet2],60,Financeiros[idDet3],74) -> 15924788.17 | BA200: =AZ200/Financeiros!$D$5 -> 0.007399076511 | BB200: 1
AY201: Neutralidade de Parcela A - Receita Irrecuperável | AZ201: =SUMIFS(Financeiros[Valor],Financeiros[idDet1],20,Financeiros[id_Grupo_TARIFA],5,Financeiros[idDet2],60, Financeiros[idDet3],999) -> -2581121.174 | BA201: =AZ201/Financeiros!$D$5 -> -0.00119925696 | BB201: 1
AY202: Neutralidade de créditos de Pis/Cofins | AZ202: =Financeiros!D98 -> -2686158.209 | BA202: =AZ202/Financeiros!$D$5 -> -0.001248059937 | BB202: 1
AY203: Sobrecontratação/exposição de energia | AZ203: =SUMIFS(Financeiros[Valor],Financeiros[idDet1],22,Financeiros[id_Grupo_TARIFA],2,Financeiros[idDet2],60, Financeiros[idDet3],106)+SUMIFS(Financeiros[Valor],Financeiros[idDet1],22,Financeiros[id_Grupo_TARIFA],2,Financeiros[idDet2],60, Financeiros[idDet3],101) -> 120439782.6 | BA203: =AZ203/Financeiros!$D$5 -> 0.05595949891 | BB203: 1
AY204: Garantias financeiras na contratação regulada de energia (CCEAR) | AZ204: =SUMIFS(Financeiros[Valor],Financeiros[idDet1],22,Financeiros[id_Grupo_TARIFA],2,Financeiros[idDet2],60, Financeiros[idDet3],102) -> 1502194.865 | BA204: =AZ204/Financeiros!$D$5 -> 0.0006979593462 | BB204: 1
AY205: Compensação ref. acordos bilaterais de CCEAR | AZ205: =SUMIFS(Financeiros[Valor],Financeiros[idDet1],22,Financeiros[id_Grupo_TARIFA],2,Financeiros[idDet2],60, Financeiros[idDet3],230) -> 0 | BA205: =AZ205/Financeiros!$D$5 -> 0 | BB205: 0
AY206: Ajuste Liminar Abrace | AZ206: =SUMIFS(Financeiros[Valor],Financeiros[idDet1],22,Financeiros[id_Grupo_TARIFA],3,Financeiros[idDet2],85, Financeiros[idDet3],85) -> 0 | BA206: =AZ206/Financeiros!$D$5 -> 0 | BB206: 0
AY207: Ajuste ref. equilíbrio econômico-financeiro TUSDg (A3a) | AZ207: =SUMIFS(Financeiros[Valor],Financeiros[idDet1],22,Financeiros[id_Grupo_TARIFA],4,Financeiros[idDet2],60, Financeiros[idDet3],137) -> 0 | BA207: =AZ207/Financeiros!$D$5 -> 0 | BB207: 0
AY208: Repasse de ultrapassagem de Supridas/Permissionárias de Energia | AZ208: =SUMIFS(Financeiros[Valor],Financeiros[idDet1],22,Financeiros[id_Grupo_TARIFA],2,Financeiros[idDet2],60, Financeiros[idDet3],187) -> 0 | BA208: =AZ208/Financeiros!$D$5 -> 0 | BB208: 0
AY209: Reversão do Financeiro de Reperfilamento dos custos de RBSE | AZ209: =SUMIFS(Financeiros[Valor],Financeiros[idDet1],22,Financeiros[idDet2],60, Financeiros[idDet3],999,Financeiros[id_Grupo_TARIFA],1) -> 0 | BA209: =AZ209/Financeiros!$D$5 -> 0 | BB209: 0
AY210: Ajuste CUSD | AZ210: =SUMIFS(Financeiros[Valor],Financeiros[idDet1],22,Financeiros[id_Grupo_TARIFA],1,Financeiros[idDet2],60, Financeiros[idDet3],119) -> 332827.3084 | BA210: =AZ210/Financeiros!$D$5 -> 0.000154640344 | BB210: 1
AY211: Repasse de compensação DIC/FIC | AZ211: =Financeiros!D128 -> 0 | BA211: =AZ211/Financeiros!$D$5 -> 0 | BB211: 0
AY212: Previsão do Risco Hidrológico | AZ212: =SUMIFS(Financeiros[Valor],Financeiros[idDet1],22,Financeiros[id_Grupo_TARIFA],2,Financeiros[idDet2],60, Financeiros[idDet3],220) -> 80766672.52 | BA212: =AZ212/Financeiros!$D$5 -> 0.03752632583 | BB212: 1
AY213: Reversão do Risco Hidrológico | AZ213: =SUMIFS(Financeiros[Valor],Financeiros[idDet1],22,Financeiros[id_Grupo_TARIFA],2,Financeiros[idDet2],62, Financeiros[idDet3],220) -> -72237332.1 | BA213: =AZ213/Financeiros!$D$5 -> -0.03356336935 | BB213: 1
AY214: Ressarcimento de P&D | AZ214: =SUMIFS(Financeiros[Valor],Financeiros[idDet1],22,Financeiros[id_Grupo_TARIFA],3,Financeiros[idDet2],60, Financeiros[idDet3],231) -> 0 | BA214: =AZ214/Financeiros!$D$5 -> 0 | BB214: 0
AY215: Reversão Conta-Covid - CVA em processamento - Energia | AZ215: =SUMIFS(Financeiros[Valor],Financeiros[idDet1],19,Financeiros[id_Grupo_TARIFA],2,Financeiros[idDet2],60,Financeiros[idDet3],233) -> 0 | BA215: =AZ215/Financeiros!$D$5 -> 0 | BB215: 0
AY216: Reversão Conta-Covid - CVA em processamento -Transporte | AZ216: =SUMIFS(Financeiros[Valor],Financeiros[idDet1],19,Financeiros[id_Grupo_TARIFA],1,Financeiros[idDet2],60,Financeiros[idDet3],233) -> 0 | BA216: =AZ216/Financeiros!$D$5 -> 0 | BB216: 0
... 186 more rows

Sheet Apresentação
B2: Efeito Médio | L2: Efeito Médio CP x Final | U2: Composição Tarifária - Tributos | Z2: Composição Tarifária - ICMS & PIS/COFINS | AD2: Composição Tarifária - sem Tributos
U19: =Z19 -> Custo de Distribuição | W19: =AB19 -> 0.1734680874 | Z19: Custo de Distribuição | AB19: =AF19/$AB$26 -> 0.1734680874 | AD19: Custo de Distribuição | AF19: =IF(CAPA!$C$7="Reajuste",'Votos e NTs'!BN298,#REF!) -> 503233843.8
U20: =Z20 -> Custo de Energia | W20: =AB20 -> 0.2901717602 | Z20: Custo de Energia | AB20: =AF20/$AB$26 -> 0.2901717602 | AD20: Custo de Energia | AF20: =IF(CAPA!$C$7="Reajuste",'Votos e NTs'!BN296,#REF!) -> 841793164.8 | AP20: Custos Operacionais | AS20: =#REF! -> 
U21: =Z21 -> Custo de Transporte | W21: =AB21 -> 0.1483699788 | Z21: Custo de Transporte | AB21: =AF21/$AB$26 -> 0.1483699788 | AD21: Custo de Transporte | AF21: =IF(CAPA!$C$7="Reajuste",'Votos e NTs'!BN287,#REF!) -> 430423807.9 | AP21: Anuidades | AS21: =#REF! -> 
U22: =Z22 -> Encargos Setoriais | W22: =AB22 -> 0.1869362791 | Z22: Encargos Setoriais | AB22: =SUM(AF23:AF26/$AB$26) -> 0.1869362791 | AD22: Receitas Irrecuperáveis | AF22: =IF(CAPA!$C$7="Reajuste",'Votos e NTs'!BN297,#REF!) -> 12710050.98 | AP22: Remuneração | AS22: =#REF! -> 
C23: Impacto da RTA na Tarifa | M23: Impacto da RTA na Tarifa | P23: CP | Q23: Final | U23: =Z23 -> Receitas Irrecuperáveis | W23: =AB23 -> 0.004381239977 | Z23: Receitas Irrecuperáveis | AB23: =AF22/$AB$26 -> 0.004381239977 | AD23: PROINFA | AF23: =IF(CAPA!$C$7="Reajuste",'Votos e NTs'!BN284,#REF!) -> 51785584.51 | AP23: Depreciação | AS23: =#REF! -> 
C24: Encargos Setoriais | F24: =IF(CAPA!C7="Reajuste",'Votos e NTs'!BP273,#REF!) -> 0.02830537542 | M24: Encargos Setoriais | P24: =#REF! ->  | Q24: =F24 -> 0.02830537542 | U24: Tributos | W24: =AB24+AB25 -> 0.1966726546 | Z24: ICMS | AB24: ='Votos e NTs'!R29 -> 0.1599152847 | AD24: CDE | AF24: =IF(CAPA!C7="Reajuste",SUM('Votos e NTs'!BN275:BN281),SUM(#REF!)) -> 404175310.1 | AP24: UDEROR | AS24: =#REF! -> 
C25: Transporte | F25: =IF(CAPA!C7="Reajuste",'Votos e NTs'!BP287,#REF!) -> 0.04587552059 | M25: Custos de Transporte | P25: =#REF! ->  | Q25: 0.04587552059 | Z25: PIS/COFINS | AB25: ='Votos e NTs'!R30 -> 0.0367573699 | AD25: ESS/EER | AF25: =IF(CAPA!$C$7="Reajuste",'Votos e NTs'!BN283,#REF!) -> 64438279.01 | AP25: SCEE | AS25: =#REF! -> 
C26: Compra de Energia | F26: =IF(CAPA!C7="Reajuste",'Votos e NTs'!BP296,#REF!) -> 0.003902811779 | M26: Custos de Compra de Energia | P26: =#REF! ->  | Q26: 0.003902811779 | Z26: TOTAL com tributos | AB26: =AF27/(1-AB24-AB25) -> 2901016847 | AD26: Outros | AF26: =AF27-SUM(AF19:AF25) -> 21906121.38 | AP26: Parcela B | AS26: =SUM(AS20:AS25) -> 
C27: Receitas Irrecuperáveis | F27: =IF(CAPA!C7="Reajuste",'Votos e NTs'!BP296,#REF!) -> 0.003902811779 | M27: Receitas Irrecuperáveis | P27: =#REF! ->  | Q27: 0.003902811779 | AD27: TOTAL | AF27: =IF(CAPA!$C$7="Reajuste",'Votos e NTs'!BN299,#REF!) -> 2330466163
C28: Distribuição | F28: =IF(CAPA!C7="Reajuste",'Votos e NTs'!BP297,#REF!) -> -0.0006036325239 | M28: Distribuição | P28: =#REF! ->  | Q28: -0.0006036325239
C29: Componentes Financeiros | F29: =IF(CAPA!C7="Reajuste",'Votos e NTs'!BP301,#REF!)+F14 -> 0.03517960974 | M29: Componentes Financeiros | P29: =#REF! ->  | Q29: 0.03517960974
C30: Retirada dos Financeiros Anteriores | F30: =IF(CAPA!C7="Reajuste",'Votos e NTs'!BP353,#REF!) -> -0.01147619472 | M30: Efeito da Retirada dos Financeiros Anteriores | P30: =P31-SUM(P24:P29) ->  | Q30: =F30 -> -0.01147619472
C31: Efeito Médio Consumidor | F31: =IF(CAPA!C7="Reajuste",'Votos e NTs'!BP354,#REF!) -> 0.1064994472 | M31: Efeito Médio Consumidor | P31: =#REF! ->  | Q31: =F31 -> 0.1064994472
C34: Efeito Subgrupo
C35: SUBGRUPO | D35: EFEITO
C36: Grupo A | D36: =Resultado!L8 -> 0.08582659051
C37: Grupo B | D37: =Resultado!L9 -> 0.1157930558
C38: Grupos A+B | D38: =Resultado!L10 -> 0.1064994472
F40: Compra de Energia
F41: Contratos | G41: Montantes (MWh) | J41: Preço (R$/MWh) | M41: Impacto Processo
G42: Processo Anterior | H42: Processo Atual | I42: Variação | J42: Processo Anterior | K42: Processo Atual | L42: Variação | N42: Colunas1
F43: CCEAR | G43: =(SUM('Votos e NTs'!BT360:BT363)+'Votos e NTs'!BT$373*SUM('Votos e NTs'!BT360:BT363)/SUM('Votos e NTs'!BT$360:BT$371)) -> 799104.8854 | H43: =(SUM('Votos e NTs'!BU360:BU363)+'Votos e NTs'!BU$373*SUM('Votos e NTs'!BU360:BU363)/SUM('Votos e NTs'!BU$360:BU$371)) -> 914017.3258 | I43: =IFERROR(H43/G43-1,"") -> 0.143801449 | J43: =IFERROR(SUM('Votos e NTs'!BZ360:BZ363)/SUM('Votos e NTs'!BT360:BT363),"") -> 280.2330547 | K43: =IFERROR(SUM('Votos e NTs'!CA360:CA363)/SUM('Votos e NTs'!BU360:BU363),"") -> 275.0988426 | L43: =IFERROR(K43/J43-1,"") -> -0.01832122203 | M43: =SUM('Votos e NTs'!CG380:CG383) -> -0.0002636813983 | N43: =IF(G43+H43=0,0,1) -> 1
F44: Ajuste - CCEAR | G44: =('Votos e NTs'!BT364+'Votos e NTs'!BT$373*'Votos e NTs'!BT364/SUM('Votos e NTs'!$BT$360:$BT$371)) -> 0 | H44: =('Votos e NTs'!BU364+'Votos e NTs'!BU$373*'Votos e NTs'!BU364/SUM('Votos e NTs'!$BU$360:$BU$371)) -> 0 | J44: =IFERROR('Votos e NTs'!BZ364/'Votos e NTs'!BT364,"") ->  | K44: =IFERROR('Votos e NTs'!CA364/'Votos e NTs'!BU364,"") ->  | L44: =IFERROR(K44/J44-1,"") ->  | M44: ='Votos e NTs'!CG384 -> 0 | N44: 0
F45: Madeira e Belo Monte | G45: =('Votos e NTs'!BT365+'Votos e NTs'!BT$373*'Votos e NTs'!BT365/SUM('Votos e NTs'!$BT$360:$BT$371)) -> 555451.9565 | H45: =('Votos e NTs'!BU365+'Votos e NTs'!BU$373*'Votos e NTs'!BU365/SUM('Votos e NTs'!$BU$360:$BU$371)) -> 589525.4221 | I45: 0.06134367737 | J45: =IFERROR('Votos e NTs'!BZ365/'Votos e NTs'!BT365,"") -> 157.4387866 | K45: =IFERROR('Votos e NTs'!CA365/'Votos e NTs'!BU365,"") -> 169.6309066 | L45: =IFERROR(K45/J45-1,"") -> 0.07744038355 | M45: ='Votos e NTs'!CG385 -> 0.003237291573 | N45: 1
F46: Cota Angra I e Angra II | G46: =('Votos e NTs'!BT366+'Votos e NTs'!BT$373*'Votos e NTs'!BT366/SUM('Votos e NTs'!$BT$360:$BT$371)) -> 117870.9449 | H46: =('Votos e NTs'!BU366+'Votos e NTs'!BU$373*'Votos e NTs'!BU366/SUM('Votos e NTs'!$BU$360:$BU$371)) -> 126458.6388 | I46: 0.0728567489 | J46: =IFERROR('Votos e NTs'!BZ366/'Votos e NTs'!BT366,"") -> 349.15 | K46: =IFERROR('Votos e NTs'!CA366/'Votos e NTs'!BU366,"") -> 347.5 | L46: =IFERROR(K46/J46-1,"") -> -0.004725762566 | M46: ='Votos e NTs'!CG386 -> 5.02423032e-05 | N46: 1
F47: Cotas Lei n º 12.783/2013 | G47: =('Votos e NTs'!BT367+'Votos e NTs'!BT$373*'Votos e NTs'!BT367/SUM('Votos e NTs'!$BT$360:$BT$371)) -> 860322.9 | H47: =('Votos e NTs'!BU367+'Votos e NTs'!BU$373*'Votos e NTs'!BU367/SUM('Votos e NTs'!$BU$360:$BU$371)) -> 670717.9762 | I47: -0.2203880935 | J47: =IFERROR('Votos e NTs'!BZ367/'Votos e NTs'!BT367,"") -> 137.08 | K47: =IFERROR('Votos e NTs'!CA367/'Votos e NTs'!BU367,"") -> 160.2785402 | L47: =IFERROR(K47/J47-1,"") -> 0.1692335878 | M47: ='Votos e NTs'!CG387 -> 0.01672286983 | N47: 1
F48: Itaipu | G48: =('Votos e NTs'!BT368+'Votos e NTs'!BT$373*'Votos e NTs'!BT368/SUM('Votos e NTs'!$BT$360:$BT$371)) -> 637639.0855 | H48: =('Votos e NTs'!BU368+'Votos e NTs'!BU$373*'Votos e NTs'!BU368/SUM('Votos e NTs'!$BU$360:$BU$371)) -> 659428.0043 | I48: 0.03417124081 | J48: =IFERROR('Votos e NTs'!BZ368/'Votos e NTs'!BT368,"") -> 284.5917504 | K48: =IFERROR('Votos e NTs'!CA368/'Votos e NTs'!BU368,"") -> 230.2695136 | L48: -0.1908777634 | M48: ='Votos e NTs'!CG388 -> -0.01511918351 | N48: 1
F49: Bilateral | G49: =('Votos e NTs'!BT369+'Votos e NTs'!BT$373*'Votos e NTs'!BT369/SUM('Votos e NTs'!$BT$360:$BT$371)) -> 516581.1981 | H49: =('Votos e NTs'!BU369+'Votos e NTs'!BU$373*'Votos e NTs'!BU369/SUM('Votos e NTs'!$BU$360:$BU$371)) -> 546772.1812 | I49: 0.05844382877 | J49: =IFERROR('Votos e NTs'!BZ369/'Votos e NTs'!BT369,"") -> 347.9340172 | K49: =IFERROR('Votos e NTs'!CA369/'Votos e NTs'!BU369,"") -> 342.1060727 | L49: -0.01675014308 | M49: ='Votos e NTs'!CG389 -> -0.001098808698 | N49: 1
F50: Geração Própria | G50: =('Votos e NTs'!BT370+'Votos e NTs'!BT$373*'Votos e NTs'!BT370/SUM('Votos e NTs'!$BT$360:$BT$371)) -> 0 | H50: =('Votos e NTs'!BU370+'Votos e NTs'!BU$373*'Votos e NTs'!BU370/SUM('Votos e NTs'!$BU$360:$BU$371)) -> 0 | J50: =IFERROR('Votos e NTs'!BZ370/'Votos e NTs'!BT370,"") ->  | K50: =IFERROR('Votos e NTs'!CA370/'Votos e NTs'!BU370,"") ->  | M50: ='Votos e NTs'!CG390 -> 0 | N50: 0
F51: Montante de Reposição | G51: =('Votos e NTs'!BT371+'Votos e NTs'!BT$373*'Votos e NTs'!BT371/SUM('Votos e NTs'!$BT$360:$BT$371)) -> 0 | H51: =('Votos e NTs'!BU371+'Votos e NTs'!BU$373*'Votos e NTs'!BU371/SUM('Votos e NTs'!$BU$360:$BU$371)) -> 0 | J51: =IFERROR('Votos e NTs'!BZ371/'Votos e NTs'!BT371,"") ->  | K51: =IFERROR('Votos e NTs'!CA371/'Votos e NTs'!BU371,"") ->  | M51: ='Votos e NTs'!CG391 -> 0 | N51: 0
F52: Proinfa | G52: ='Votos e NTs'!BT372 -> 78877.47159 | H52: ='Votos e NTs'!BU372 -> 75051.2188 | I52: -0.04850881647 | J52: 0 | K52: 0 | M52: ='Votos e NTs'!CG392 -> 0.0003740816704 | N52: 1
F53: Total | G53: =SUM(G43:G52) -> 3565848.442 | H53: =SUM(H43:H52) -> 3581970.767 | I53: 0.004521315326 | J53: ='Votos e NTs'!BW374 -> 233.7152813 | K53: ='Votos e NTs'!BX374 -> 235.0083849 | L53: 0.005532815693 | M53: =SUM(M43:M52) -> 0.003902811779
O55: Encargos Setoriais
O56: Encargos Setoriais | P56: Processo Anterior (mil R$) | Q56: Processo Atual (mil R$) | R56: Impacto Processo | S56: Colunas1
O57: TFSEE | P57: ='Votos e NTs'!BM274/1000 -> 1966.247787 | Q57: ='Votos e NTs'!BN274/1000 -> 2024.442546 | R57: ='Votos e NTs'!BP274 -> 2.703881951e-05 | S57: =IF(P57+Q57=0,0,1) -> 1
O58: CDE (USO) | P58: ='Votos e NTs'!BM275/1000 -> 341918.2431 | Q58: ='Votos e NTs'!BN275/1000 -> 330693.0925 | R58: ='Votos e NTs'!BP275 -> -0.005215501002 | S58: 1
O59: CDE Conta Covid (TUSD) | P59: ='Votos e NTs'!BM276/1000 -> 19025.31034 | Q59: ='Votos e NTs'!BN276/1000 -> 19527.3626 | R59: ='Votos e NTs'!BP276 -> 0.0002332667222 | S59: 1
O60: CDE Conta Covid (TE) | P60: =IF('Votos e NTs'!BM277/1000<1,0,'Votos e NTs'!BM277/1000) -> 18479.02031 | Q60: ='Votos e NTs'!BN277/1000 -> 19496.22996 | R60: ='Votos e NTs'!BP277 -> 0.0004726224269 | S60: 1
O61: CDE Modicidade Eletrobrás | P61: ='Votos e NTs'!BM278/1000 -> -50680.21961 | Q61: ='Votos e NTs'!BN278/1000 -> -6807.363714 | R61: ='Votos e NTs'!BP278 -> 0.02038448575 | S61: =IF(P61+Q61=0,0,1) -> 1
O62: CDE Conta Escassez Hídrica(TUSD) | P62: ='Votos e NTs'!BM279/1000 -> 0 | Q62: ='Votos e NTs'!BN279/1000 -> 1543.949016 | R62: ='Votos e NTs'!BP279 -> 0.0007173594261 | S62: =IF(P62+Q62=0,0,1) -> 1
O63: CDE Conta Escassez Hídrica (TE) | P63: ='Votos e NTs'!BM280/1000 -> 0 | Q63: ='Votos e NTs'!BN280/1000 -> 20581.27203 | R63: ='Votos e NTs'!BP280 -> 0.0095626017 | S63: =IF(P63+Q63=0,0,1) -> 1
O64: CDE Conta GD | P64: ='Votos e NTs'!BM281/1000 -> 0 | Q64: ='Votos e NTs'!BN281/1000 -> 19140.76774 | R64: ='Votos e NTs'!BP281 -> 0.008893305424 | S64: =IF(P64+Q64=0,0,1) -> 1
O65: Compensação financeira - CFURH | P65: ='Votos e NTs'!BM282/1000 -> 0 | Q65: ='Votos e NTs'!BN282/1000 -> 0 | R65: ='Votos e NTs'!BP282 -> 0 | S65: 0
O66: ESS/EER | P66: ='Votos e NTs'!BM283/1000 -> 72920.40583 | Q66: ='Votos e NTs'!BN283/1000 -> 64438.27901 | R66: ='Votos e NTs'!BP283 -> -0.003941019792 | S66: 1
O67: PROINFA | P67: ='Votos e NTs'!BM284/1000 -> 60183.07777 | Q67: ='Votos e NTs'!BN284/1000 -> 51785.58451 | R67: ='Votos e NTs'!BP284 -> -0.003901696807 | S67: 1
O68: P&D | P68: ='Votos e NTs'!BM285/1000 -> 17572.48414 | Q68: ='Votos e NTs'!BN285/1000 -> 19881.67884 | R68: ='Votos e NTs'!BP285 -> 0.001072912749 | S68: 1
O69: ONS | P69: ='Votos e NTs'!BM286/1000 -> 0 | Q69: ='Votos e NTs'!BN286/1000 -> 0 | R69: ='Votos e NTs'!BP286 -> 0 | S69: 0
O70: Total de Encargos | P70: =SUM(P57:P69) -> 481384.5697 | Q70: =SUM(Q57:Q69) -> 542305.295 | R70: =SUM(R57:R69) -> 0.02830537542
T72: Custos de Transporte
T73: Custos de Transporte | U73: Processo Anterior (mil R$) | V73: Processo Atual (mil R$) | W73: Impacto Processo | X73: Colunas1
T74: Rede Básica | U74: ='Votos e NTs'!BM288/1000 -> 128730.3743 | V74: ='Votos e NTs'!BN288/1000 -> 161881.2343 | W74: ='Votos e NTs'!BP288 -> 0.01540276372 | X74: =IF(U74+V74=0,0,1) -> 1
T75: Rede Básica Fronteira | U75: ='Votos e NTs'!BM289/1000 -> 110555.219 | V75: ='Votos e NTs'!BN289/1000 -> 152189.5515 | W75: ='Votos e NTs'!BP289 -> 0.01934440874 | X75: 1
T76: Rede Básica ONS (A2) | U76: ='Votos e NTs'!BM290/1000 -> 981.8882655 | V76: ='Votos e NTs'!BN290/1000 -> 1001.55722 | W76: ='Votos e NTs'!BP290 -> 9.138714901e-06 | X76: 1
T77: Rede Básica Export. (A2) | U77: ='Votos e NTs'!BM291/1000 -> 0 | V77: ='Votos e NTs'!BN291/1000 -> 0 | W77: ='Votos e NTs'!BP291 -> 0 | X77: 0
T78: MUST Itaipu | U78: ='Votos e NTs'!BM292/1000 -> 13340.42626 | V78: ='Votos e NTs'!BN292/1000 -> 14039.36045 | W78: ='Votos e NTs'!BP292 -> 0.0003247432529 | X78: 1
T79: Transporte de Itaipu | U79: ='Votos e NTs'!BM293/1000 -> 19144.94331 | V79: ='Votos e NTs'!BN293/1000 -> 28450.57777 | W79: ='Votos e NTs'!BP293 -> 0.004323643156 | X79: 1
T80: Conexão | U80: ='Votos e NTs'!BM294/1000 -> 4317.201541 | V80: ='Votos e NTs'!BN294/1000 -> 6215.616593 | W80: ='Votos e NTs'!BP294 -> 0.0008820536933 | X80: 1
T81: Uso do sistema de distribuição | U81: ='Votos e NTs'!BM295/1000 -> 54617.38639 | V81: ='Votos e NTs'!BN295/1000 -> 66645.91013 | W81: ='Votos e NTs'!BP295 -> 0.005588769317 | X81: 1
T82: Total do Transporte | U82: =SUM(U74:U81) -> 331687.4391 | V82: =SUM(V74:V81) -> 430423.8079 | W82: =SUM(W74:W81) -> 0.04587552059
Y84: Parcela B - Reajuste
Y85: Descrição | AA85: Valor | AB85: Referência
Y86: (1) Parcela B Processo Anterior (mil R$) | AA86: ='Votos e NTs'!AQ164/1000 -> 491792.4852 | AB86: TUSD fio B aplicada ao Mercado
Y87: (2) Fator DR1/Fator PB | AA87: ='VPB1'!C38 -> 1.102307322 | AB87: SGT/ANEEL
Y88: (3) Parcela B Processo Anterior sem UDEROR (mil R$) | AA88: =AA86*AA87 -> 542106.4576 | AB88: SGT/ANEEL
Y89: (4) IPCA | AA89: 0.04005113905 | AB89: Indicador econômico oficial
Y90: (5) Fator X | AA90: =SUM(AA91:AA93) -> -0.007179037557 | AB90: Pd + T + Q
Y91: (5.1) Componente Pd do Fator X | AA91: ='VPB1'!F40 -> 0.003660291812 | AB91: PRORET 2.5 A
Y92: (5.2) Componente T do Fator X | AA92: ='VPB1'!F41 -> -0.014 | AB92: REH nº 2.377/2018
Y93: (5.3) Componente Q do Fator X | AA93: ='VPB1'!F42 -> 0.003160670631 | AB93: PRORET 2.5 A
Y94: (6) UDEROR | AA94: =SUM(AA95:AA97) -> 62014.50281 | AB94: UD + ER + OR
Y95: (6.1) Outras Receitas (OR) | AA95: ='Votos e NTs'!AQ173/1000 -> 44703.22043 | AB95: Valores fiscalizados - SFF
Y96: (6.2) Excedente de Reativos (ER) | AA96: ='Votos e NTs'!AQ174/1000 -> 10468.23055 | AB96: Valores fiscalizados - SFF
Y97: (6.3) Ultrapassagem de Demanda (UD) | AA97: ='Votos e NTs'!AQ175/1000 -> 6843.051828 | AB97: Valores fiscalizados - SFF
Y98: (7) ONS | AB98: 0
Y99: Parcela B Atual (mil R$) | AA99: =AA88*(1+AA89-AA90)-AA94 -> 505695.7385
AD101: Financeiros
AD102: Componentes Financeiros | AF102: Valor (mil R$) | AG102: Impacto Processo
AD103: CVA em processamento - Energia | AF103: =SUMIFS(Financeiros[Valor],Financeiros[idDet1],19,Financeiros[id_Grupo_TARIFA],2,Financeiros[idDet2],60,Financeiros[idDet3],999)/1000 -> -12973.50541 | AG103: =1000*AF103/Financeiros!$D$5 -> -0.006027832716
AD104: CVA em processamento -Transporte | AF104: =SUMIFS(Financeiros[Valor],Financeiros[idDet1],19,Financeiros[id_Grupo_TARIFA],1,Financeiros[idDet2],60,Financeiros[idDet3],999)/1000 -> 64380.03136 | AG104: =1000*AF104/Financeiros!$D$5 -> 0.02991266024
AD105: CVA em processamento - Encargos Setoriais | AF105: =SUMIFS(Financeiros[Valor],Financeiros[idDet1],19,Financeiros[id_Grupo_TARIFA],3,Financeiros[idDet2],60,Financeiros[idDet3],999)/1000 -> -17371.82466 | AG105: =1000*AF105/Financeiros!$D$5 -> -0.00807140782
AD106: Saldo a Compensar CVA-Ano Anterior + Ajustes | AF106: =SUMIFS(Financeiros[Valor],Financeiros[idDet1],19,Financeiros[idDet2],64, Financeiros[idDet3],999)/1000 -> 8795.841327 | AG106: =1000*AF106/Financeiros!$D$5 -> 0.004086779822
AD107: Neutralidade de Parcela A | AF107: =('Votos e NTs'!AZ198+'Votos e NTs'!AZ199+'Votos e NTs'!AZ200+'Votos e NTs'!AZ201)/1000 -> 11031.27423 | AG107: =1000*AF107/Financeiros!$D$5 -> 0.005125420894
AD108: Sobrecontratação/exposição de energia | AF108: =SUMIFS(Financeiros[Valor],Financeiros[idDet1],22,Financeiros[id_Grupo_TARIFA],2,Financeiros[idDet2],60, Financeiros[idDet3],106)/1000+SUMIFS(Financeiros[Valor],Financeiros[idDet1],22,Financeiros[id_Grupo_TARIFA],2,Financeiros[idDet2],60, Financeiros[idDet3],101)/1000 -> 120439.7826 | AG108: =1000*AF108/Financeiros!$D$5 -> 0.05595949891
AD109: Previsão de Risco Hidrológico | AF109: =SUMIFS(Financeiros[Valor],Financeiros[idDet1],22,Financeiros[id_Grupo_TARIFA],2,Financeiros[idDet2],60, Financeiros[idDet3],220)/1000 -> 80766.67252 | AG109: =1000*AF109/Financeiros!$D$5 -> 0.03752632583
AD110: Reversão do Risco Hidrológico | AF110: =SUMIFS(Financeiros[Valor],Financeiros[idDet1],22,Financeiros[id_Grupo_TARIFA],2,Financeiros[idDet2],62, Financeiros[idDet3],220)/1000 -> -72237.3321 | AG110: =1000*AF110/Financeiros!$D$5 -> -0.03356336935
AD111: Reversão Conta-Covid - CVA em processamento | AF111: =SUMIFS(Financeiros[Valor],Financeiros[idDet1],19,Financeiros[idDet2],60,Financeiros[idDet3],233)/1000 -> 0 | AG111: =1000*AF111/Financeiros!$D$5 -> 0
AD112: Reversão Conta-Covid - Saldo a Compensar | AF112: =SUMIFS(Financeiros[Valor],Financeiros[idDet1],19,Financeiros[idDet2],64,Financeiros[idDet3],236)/1000 -> 0 | AG112: =1000*AF112/Financeiros!$D$5 -> 0
AD113: Reversão Conta-Covid - Neutralidade de Parcela A | AF113: =SUMIFS(Financeiros[Valor],Financeiros[idDet1],20,Financeiros[idDet2],60, Financeiros[idDet3],234)/1000 -> 0 | AG113: =1000*AF113/Financeiros!$D$5 -> 0
AD114: Outro Financeiro Relevante | AF114: 0 | AG114: =1000*AF114/Financeiros!$D$5 -> 0
AD115: Diferimento (art 10 da ReH 2.706/2020) | AF115: ='Votos e NTs'!AZ224/1000 -> 0 | AG115: =1000*AF115/Financeiros!$D$5 -> 0
AD116: Outro Financeiro Relevante | AG116: =1000*AF116/Financeiros!$D$5 -> 0
AD117: Outros | AF117: =AF118-SUM(AF103:AF116) -> -107115.0269 | AG117: =1000*AF117/Financeiros!$D$5 -> -0.04976846606
AD118: Total | AF118: ='Votos e NTs'!AZ250/1000 -> 75715.91294 | AG118: =SUM(AG103:AG117) -> 0.03517960974
AI120: B1 x Inflação
AJ121: Variação
AI122: IGP-M | AJ122: ='Votos e NTs'!AD38 -> 
AI123: IPCA | AJ123: ='Votos e NTs'!AE38 -> 
AI124: Tarifa B1 | AJ124: ='Votos e NTs'!AC38 -> 
AL126: Financeiros
AL127: Resultado Bandeiras Tarifárias | AM127: Valor (mil R$) | AN127: Impacto Processo
AL128: Usinas com contrato por disponibilidade - CCEAR-D | AM128: -66519.46164 | AN128: -0.01144423021
AL129: Risco Hidrológico das usinas que repactuaram | AM129: 128197.3185 | AN129: 0.02205549458
AL130: Risco Hidrológico das usinas cotistas - CCGF | AM130: 103147.5557 | AN130: 0.01774584977
AL131: Risco Hidrológico da UHE ITAIPU | AM131: 87452.43744 | AN131: 0.01504560924
AL132: Encargos de Energia de Reserva - EER e de Serviço do Sistema - ESS | AM132: -102050.9453 | AN132: -0.01755718527
AL133: Resultado Mercado de Curto Prazo - MCP | AM133: 28529.54764 | AN133: 0.004908318602
AL134: Custo Total | AM134: 178756.4523 | AN134: 0.03075385671
AL135: Recolhimento pelas Bandeiras Tarifárias | AM135: -162443.7101 | AN135: -0.0279473581
AL136: Previsão do Risco Hidrológico no Processo Tarifário de 2018 | AM136: -162780.8718 | AN136: -0.02800536451
AL137: Receita Total | AM137: =AM135+AM136 -> -325224.5819 | AN137: =AN136+AN135 -> -0.05595272261
AL138: Custo não coberto antecipadamente | AM138: -146468.1296 | AN138: -0.0251988659
AP140: Remuneração do Capital
AP141: Descrição | AQ141: Ciclo Anterior | AR141: Ciclo Atual
AP142: Base Líquida (mil R$) | AQ142: ='Avaliação Parcela B'!J127/1000 ->  | AR142: ='Avaliação Parcela B'!K127/1000 -> 
AP143: Remuneração | AQ143: ='Avaliação Parcela B'!G128 ->  | AR143: ='Avaliação Parcela B'!H128 -> 
AT145: Quota de Reintegração
AT146: Descrição | AU146: Ciclo Anterior | AV146: Ciclo Atual
AT147: Base Bruta (mil R$) | AU147: ='Avaliação Parcela B'!J159/1000 ->  | AV147: ='Avaliação Parcela B'!K159/1000 -> 
AT148: Depreciação | AU148: ='Avaliação Parcela B'!G160 ->  | AV148: ='Avaliação Parcela B'!H160 -> 
AX150: Parcela B - Revisão
AX151: Descrição | AY151: Processo Anterior (mil R$) | AZ151: Processo Atual (mil R$) | BA151: Variação | BB151: Participação na Revisão
AX152: =#REF! ->  | AY152: =#REF!/1000 ->  | AZ152: =#REF!/1000 ->  | BA152: =#REF! ->  | BB152: =#REF! -> 
AX153: =#REF! ->  | AY153: =#REF!/1000 ->  | AZ153: =#REF!/1000 ->  | BA153: =#REF! ->  | BB153: =#REF! -> 
AX154: =#REF! ->  | AY154: =#REF!/1000 ->  | AZ154: =#REF!/1000 ->  | BA154: =#REF! ->  | BB154: =#REF! -> 
AX155: =#REF! ->  | AY155: =#REF!/1000 ->  | AZ155: =#REF!/1000 ->  | BA155: =#REF! ->  | BB155: =#REF! -> 
AX156: =#REF! ->  | AY156: =#REF!/1000 ->  | AZ156: =#REF!/1000 ->  | BA156: =#REF! ->  | BB156: =#REF! -> 
AX159: PARCELA B | AY159: =SUM(AY152:AY158) ->  | AZ159: =SUM(AZ152:AZ158) ->  | BA159: =IF(ISERROR(AZ159/AY159-1),0,AZ159/AY159-1) -> 0 | BB159: =IF(ISERROR((AZ159-AY159)/$AP$187),0,(AZ159-AY159)/$AP$187) -> 0
BD163: Enel RJ | BE163: 683.87 | BG163: 1 | BH163: Enel RJ | BJ163: 714.44
BD164: Celpa | BE164: 683.6 | BG164: 2 | BH164: Celpa | BJ164: 703.21
BD165: AmE | BE165: 664.84 | BG165: =BG164+1 -> 3 | BH165: EMS | BJ165: 700.36
BD166: Light | BE166: 663.1 | BG166: =BG165+1 -> 4 | BH166: Light | BJ166: 694.05
BD167: ENF | BE167: 649.89 | BG167: 5 | BH167: AmE | BJ167: 693.49
BD168: Eflul | BE168: 648.12 | BG168: 6 | BH168: EMT | BJ168: 690.12
BD169: EFLJC | BE169: 639.05 | BG169: 7 | BH169: ENF | BJ169: 662.44
BD170: Sulgipe | BE170: 636.31 | BG170: 8 | BH170: Forcel | BJ170: 654.63
BD171: Cemar | BE171: 630.18 | BG171: 9 | BH171: ETO | BJ171: 647.35
BD172: Cemig-D | BE172: 628.33 | BG172: 10 | BH172: Cemig | BJ172: 644.23
BD173: EMT | BE173: 626.84 | BG173: 11 | BH173: Eflul | BJ173: 641.69
BD174: Forcel | BE174: 619.01 | BG174: 12 | BH174: EFLJC | BJ174: 639.85
BD175: Roraima Energia | BE175: 617.77 | BG175: 13 | BH175: Celpe 2021 | BI175: Celpe 2021 | BJ175: 628.4189439
BD176: EMS | BE176: 608.65 | BG176: 14 | BH176: Cemar | BJ176: 628.21
BD177: Hidropan | BE177: 600.74 | BG177: 15 | BH177: EMG | BJ177: 627.73
BD178: ETO | BE178: 600.08 | BG178: 16 | BH178: Coelba | BJ178: 624.64
BD179: EMG | BE179: 595.83 | BG179: 17 | BH179: Sulgipe | BJ179: 619.22
BD180: Ceron | BE180: 576.82 | BG180: 18 | BH180: Hidropan | BJ180: 602.62
BD181: Chesp | BE181: 573.14 | BG181: 19 | BH181: CPFL Paulista | BJ181: 601.57
BD182: Uhenpal | BE182: 572.49 | BG182: 20 | BH182: Chesp | BJ182: 599.53
BD183: Eletroacre | BE183: 569.84 | BG183: 21 | BH183: Enel CE | BJ183: 594.36
BD184: Cepisa | BE184: 569.48 | BG184: 22 | BH184: ELFSM | BJ184: 593.39
BD185: RGE | BE185: 560.27 | BG185: 23 | BH185: RGE (agrupada) | BJ185: 589.57
BD186: Cocel | BE186: 557.12 | BG186: 24 | BH186: ESE | BJ186: 585.6
BD187: Coelba | BE187: 552.13 | BG187: 25 | BH187: Ceal | BJ187: 583.31
BD188: Celpe | BE188: 549.33 | BG188: 26 | BH188: Eletroacre | BJ188: 581.91
BD189: CPFL Santa Cruz | BE189: 547.69 | BG189: 27 | BH189: Cepisa | BJ189: 581.82
BD190: EPB | BE190: 545.4 | BG190: 28 | BH190: Roraima Energia | BJ190: 574.69
BD191: Eletrocar | BE191: 541.57 | BG191: 29 | BH191: Celpe 2020 | BI191: Celpe 2020 | BJ191: 574.34
BD192: CEA | BE192: 537.18 | BG192: 30 | BH192: Uhenpal | BJ192: 571.71
BD193: Ceal | BE193: 535.25 | BG193: 31 | BH193: CPFL Santa Cruz | BJ193: 564.97
BD194: Celg-D | BE194: 533.68 | BG194: 32 | BH194: Cosern | BJ194: 563.55
BD195: Elektro | BE195: 531.87 | BG195: 33 | BH195: EPB | BJ195: 562.11
BD196: ESE | BE196: 530.72 | BG196: 34 | BH196: Cocel | BJ196: 561.58
BD197: Enel CE | BE197: 529.49 | BG197: 35 | BH197: Eletrocar | BJ197: 561.45
BD198: EDP ES | BE198: 525.81 | BG198: 36 | BH198: EDP ES | BJ198: 557
BD199: EDP SP | BE199: 525.73 | BG199: 37 | BH199: Elektro | BJ199: 555.05
BD200: CPFL Paulista | BE200: 523.02 | BG200: 38 | BH200: CEEE-D | BJ200: 548.97
BD201: CEB-DIS | BE201: 518.01 | BG201: 39 | BH201: Enel GO | BJ201: 547.39
BD202: ELFSM | BE202: 517.96 | BG202: 40 | BH202: EDP SP | BJ202: 546.11
BD203: Copel-DIS | BE203: 517.61 | BG203: 41 | BH203: Demei | BJ203: 537.88
BD204: Eletropaulo | BE204: 515.59 | BG204: 42 | BH204: Enel SP | BJ204: 534.19
BD205: CEEE-D | BE205: 515.07 | BG205: 43 | BH205: CPFL Piratininga | BJ205: 533.55
BD206: Ienergia | BE206: 510.62 | BG206: 44 | BH206: MuxEnergia | BJ206: 527.79
BD207: DMED | BE207: 507.42 | BG207: 45 | BH207: DMED | BJ207: 525.57
BD208: Demei | BE208: 507.03 | BG208: 46 | BH208: CEB-DIS | BJ208: 514.78
BD209: Cosern | BE209: 505.53 | BG209: 47 | BH209: Ceron | BJ209: 514.38
BD210: EBO | BE210: 497.66 | BG210: =BG209+1 -> 48 | BH210: ESS (agrupada) | BJ210: 513.89
BD211: Sul Sudeste | BE211: 497.35 | BG211: 49 | BH211: Copel-DIS | BJ211: 512.77
BD212: CPFL Piratininga | BE212: 490.18 | BG212: 50 | BH212: Ienergia | BJ212: 512.48
BD213: MuxEnergia | BE213: 485.22 | BG213: 51 | BH213: Cooperaliança | BJ213: 512
BD214: Celesc-DIS | BE214: 469.78 | BG214: 52 | BH214: Celesc-DIS | BJ214: 505.99
BD215: Cooperaliança | BE215: 467.6 | BG215: 53 | BH215: CEA | BJ215: 505.25
BG216: 54 | BH216: EBO | BJ216: 497.66
CE219: DEC | CV219: FEC
CG220: =CH220-1 -> 2012 | CH220: 2013 | CI220: 2014 | CJ220: 2015 | CK220: 2016 | CL220: 2017 | CM220: 2018 | CN220: 2019 | CO220: =CP220-1 -> 2020 | CP220: 2021 | CQ220: =CP220+1 -> 2022 | CR220: =CQ220+1 -> 2023 | CS220: 2024 | CT220: 2025 | CX220: =CY220-1 -> 2012 | CY220: 2013 | CZ220: 2014 | DA220: 2015 | DB220: 2016 | DC220: 2017 | DD220: 2018 | DE220: 2019 | DF220: =DG220-1 -> 2020 | DG220: 2021 | DH220: =DG220+1 -> 2022 | DI220: =DH220+1 -> 2023 | DJ220: 2024 | DK220: 2025
CE221: DEC Apurado | CH221: 23.76 | CI221: 25.51 | CJ221: 19.31 | CK221: 15.8 | CL221: 16.98 | CM221: 12.51 | CN221: 11.96 | CO221: 12.41 | CV221: FEC Apurado | CY221: 8.87 | CZ221: 8.84 | DA221: 8.12 | DB221: 7.13 | DC221: 7.56 | DD221: 8.97 | DE221: 5.69 | DF221: 5.56
CE222: DEC Limite | CH222: 16.39 | CI222: 16.39 | CJ222: 15.48 | CK222: 14.71 | CL222: 13.91 | CM222: 13.82 | CN222: 13.67 | CO222: 13.35 | CP222: 13.22 | CV222: FEC Limite | CY222: 12.48 | CZ222: 12.05 | DA222: 11.04 | DB222: 10.19 | DC222: 9.35 | DD222: 9.26 | DE222: 8.7 | DF222: 8.33 | DG222: 8.1
CE223: DEC Limite Proposto | CQ223: 12.92 | CR223: 12.33 | CS223: 11.86 | CT223: 11.48 | CV223: FEC Limite Proposto | DH223: 8.05 | DI223: 7.25 | DJ223: 7.05 | DK223: 6.68
DM243: Parcela B / Mercado
DM245: Grandes
DM246: Reg | DN246: Distribuidora | DO246: PB/Mcdo | DP246: Média | DQ246: Parcela B | DR246: Mercado | DS246: Proc.Tar
DM247: N | DN247: ETO | DO247: =DQ247/DR247 -> 265.4071894 | DP247: =$DP$284 -> 157.3788987 | DQ247: 639963261.2 | DR247: 2411250.662 | DS247: 2020
DM248: N | DN248: Eletroacre | DO248: =DQ248/DR248 -> 262.1465373 | DP248: 157.3788987 | DQ248: 287816729.4 | DR248: 1097923.064 | DS248: 2020
DM249: CO | DN249: EMT | DO249: =DQ249/DR249 -> 246.7591507 | DP249: 157.3788987 | DQ249: 2384063093 | DR249: 9661498.209 | DS249: 2021
DM250: N | DN250: Equatorial PA | DO250: 238.5668194 | DP250: 157.3788987 | DQ250: 2059159218 | DR250: 8631373.062 | DS250: 2020
DM251: N | DN251: Cemar | DO251: 234.2860346 | DP251: 157.3788987 | DQ251: 1473020968 | DR251: 6287276.026 | DS251: 2020
DM252: CO | DN252: EMS | DO252: =DQ252/DR252 -> 233.1547235 | DP252: 157.3788987 | DQ252: 1338673092 | DR252: 5741565.396 | DS252: 2021
DM253: NE | DN253: Equatorial PI | DO253: =DQ253/DR253 -> 225.4201543 | DP253: 157.3788987 | DQ253: 847371044 | DR253: 3759074.012 | DS253: 2020
DM254: NE | DN254: Coelba | DO254: =DQ254/DR254 -> 223.125744 | DP254: 157.3788987 | DQ254: 4496925221 | DR254: 20154219.5 | DS254: 2021
DM255: N | DN255: CEA | DO255: =DQ255/DR255 -> 202.1486891 | DP255: 157.3788987 | DQ255: 208334410.9 | DR255: 1030599.861 | DS255: 2020
DM256: N | DN256: Roraima Energia | DO256: 196.414686 | DP256: 157.3788987 | DQ256: 190096815.7 | DR256: 967834.023 | DS256: 2020
... 49 more rows

Sheet Mercado
B2: DADOS DE MERCADO DE ENERGIA E RECEITA VERIFICADA | G2: Anexo II | H2: =Resultado!$D$6 -> 0.08279603217
G3: Anexo I | H3: =Resultado!$D$8 -> 0.1179756419
M5: TipoMercado | R5: AnoMes
B6: Dados de Mercado | M6: Regular | R6: =DATE(YEAR(R8),MONTH(R8)-1,1) -> 44743
R7: AnoMes
B8: Descrição | C8: MERCADO (MWh) | D8: RECEITA (R$) | F8: DESCRIÇÃO | G8: POR DENTRO | J8: Critérios | L8: Para º de consumidores | R8: =DATE(YEAR(R10),MONTH(R10)-1,1) -> 44774
B9: FORNECIMENTO | C9: =SUM(C10:C16) -> 3086162.264 | D9: =SUM(D10:D16) -> 1801043014 | F9: ICMS | G9: =SUM(INDIRECT("DADOS_MercadoBase[ICMS]"))/(SUM(INDIRECT("DADOS_MercadoBase[ICMS]"),INDIRECT("DADOS_MercadoBase[PisPasep]"),INDIRECT("DADOS_MercadoBase[Cofins]"),INDIRECT("DADOS_MercadoBase[FinTotAj]"))+G20) -> 0.1599152847 | H9: =SUM(INDIRECT("DADOS_MercadoBase[ICMS]")) -> 409017950.5 | J9: Subgrupo | K9: OPÇÃO | M9: AnoMes | N9: Subgrupo | O9: OPÇÃO | R9: AnoMes
B10: A1 | C10: =DSUM(Mercado_Receita!A:AAA,"TUSD_E",J9:K10) -> 0 | D10: =DSUM(Mercado_Receita!A:AAA,"total",J9:K10) -> 0 | F10: PIS/COFINS | G10: =SUM( INDIRECT("DADOS_MercadoBase[Cofins]"), INDIRECT("DADOS_MercadoBase[PisPasep]"))/(SUM( INDIRECT("DADOS_MercadoBase[ICMS]"), INDIRECT("DADOS_MercadoBase[PisPasep]"), INDIRECT("DADOS_MercadoBase[Cofins]"), INDIRECT("DADOS_MercadoBase[FinTotAj]"))+G20) -> 0.0367573699 | J10: A1 | K10: Cativo | M10: =DMAX(MercadoBase,"AnoMes",M5:M6) -> 45047 | N10: A1 | O10: Suprimento | R10: =DATE(YEAR(R12),MONTH(R12)-1,1) -> 44805
B11: A2 | C11: =DSUM(Mercado_Receita!A:AAA,"TUSD_E",J11:K12) -> 5711.609 | D11: =DSUM(Mercado_Receita!A:AAA,"total",J11:K12) -> 3711787.2 | J11: Subgrupo | K11: OPÇÃO | M11: AnoMes | N11: Subgrupo | O11: OPÇÃO | P11: Subgrupo | R11: AnoMes
B12: A3 | C12: =DSUM(Mercado_Receita!A:AAA,"TUSD_E",J13:K14) -> 2217.13 | D12: =DSUM(Mercado_Receita!A:AAA,"total",J13:K14) -> 1142998.863 | F12: MWh Ano Anterior | G12: =BD!C45 -> 4651597.577 | H12: <- Atenção! - Alterado para Mercado TUSD | J12: A2 | K12: Cativo | M12: =$M$10 -> 45047 | N12: A2 | O12: Livre | P12: A1 | R12: =DATE(YEAR(R14),MONTH(R14)-1,1) -> 44835
B13: A3a | C13: =DSUM(Mercado_Receita!A:AAA,"TUSD_E",J15:K16) -> 4953.876 | D13: =DSUM(Mercado_Receita!A:AAA,"total",J15:K16) -> 4724349.368 | F13: Variação | G13: =C24/G12-1 -> -0.0152462344 | J13: Subgrupo | K13: OPÇÃO | M13: AnoMes | N13: Subgrupo | O13: OPÇÃO | R13: AnoMes
B14: A4 | C14: =DSUM(Mercado_Receita!A:AAA,"TUSD_E",J17:K18) -> 603673.545 | D14: =DSUM(Mercado_Receita!A:AAA,"total",J17:K18) -> 341045427.5 | F14: R$ Ano Anterior | G14: =BD!C46 -> 2215903294 | J14: ="=A3" -> =A3 | K14: Cativo | M14: =$M$10 -> 45047 | N14: ="=A3" -> =A3 | O14: Distribuição | R14: =DATE(YEAR(R16),MONTH(R16)-1,1) -> 44866
B15: As | C15: =DSUM(Mercado_Receita!A:AAA,"TUSD_E",J19:K20) -> 0 | D15: =DSUM(Mercado_Receita!A:AAA,"total",J19:K20) -> 0 | F15: Variação | G15: =D24/G14-1 -> -0.02871799473 | J15: Subgrupo | K15: OPÇÃO | M15: AnoMes | N15: Subgrupo | O15: OPÇÃO | R15: AnoMes
B16: BT | C16: =DSUM(Mercado_Receita!A:AAA,"TUSD_E",J21:K22) -> 2469606.104 | D16: =DSUM(Mercado_Receita!A:AAA,"total",J21:K22) -> 1450418451 | J16: ="=A3a" -> =A3a | K16: Cativo | M16: =$M$10 -> 45047 | N16: ="=A3a" -> =A3a | O16: Geração | R16: =DATE(YEAR(R18),MONTH(R18)-1,1) -> 44896
B17: SUPRIMENTO (Merc. TUSD + Sup. RB) | C17: =DSUM(Mercado_Receita!A:AAA,"TUSD_E",O9:P10)+'Mercado Supridas'!U69 -> 41448.611 | D17: =DSUM(Mercado_Receita!A:AAA,"total",O9:P10) -> 12579806.96 | F17: Parâmetros de cálculo de RI | J17: Subgrupo | K17: OPÇÃO | M17: AnoMes | N17: Subgrupo | O17: OPÇÃO | R17: AnoMes
B18: LIVRES A1 | C18: =DSUM(Mercado_Receita!A:AAA,"TUSD_E",O11:P12) -> 0 | D18: =DSUM(Mercado_Receita!A:AAA,"total",O11:P12) -> 0 | F18: RR sem RI | G18: =SUM(Resultado!D19,Resultado!D29,Resultado!D38,Resultado!D45) -> 2317756112 | J18: A4 | K18: Cativo | M18: =$M$10 -> 45047 | N18: A4 | O18: Livre | R18: =DATE(YEAR(R20),MONTH(R20)-1,1) -> 44927
B19: DEMAIS LIVRES | C19: =DSUM(Mercado_Receita!A:AAA,"TUSD_E",O19:P20)+DSUM(Mercado_Receita!A:AAA,"TUSD_E",O17:P18)-C18 -> 1377558.625 | D19: =DSUM(Mercado_Receita!A:AAA,"total",O19:P20)+DSUM(Mercado_Receita!A:AAA,"TOTAL",O17:P18)-D18 -> 300859220.1 | F19: Financeiros | G19: =Financeiros!D8 -> 75715912.94 | J19: Subgrupo | K19: OPÇÃO | M19: AnoMes | N19: Subgrupo | O19: OPÇÃO | R19: AnoMes
B20: DISTRIBUIÇÃO | C20: =DSUM(Mercado_Receita!A:AAA,"TUSD_E",O13:P14) -> 75508.73 | D20: =DSUM(Mercado_Receita!A:AAA,"total",O13:P14) -> 7705882.667 | F20: Receita Bandeiras | G20: =SUM(TabBand[Fat Bandeiras]) -> 16487.61 | J20: AS | K20: Cativo | M20: =$M$10 -> 45047 | N20: AS | O20: erc | R20: =DATE(YEAR(R22),MONTH(R22)-1,1) -> 44958
B21: GERADOR | D21: =DSUM(Mercado_Receita!A:AAA,"total",O15:P16) -> 30079071.82 | J21: Subgrupo | K21: OPÇÃO | M21: AnoMes | N21: Subgrupo | R21: AnoMes
B22: CDE Baixa Renda | J22: ="=B*" -> =B* | K22: Cativo | M22: =$M$10 -> 45047 | N22: ="=B*" -> =B* | R22: =DATE(YEAR(R24),MONTH(R24)-1,1) -> 44986
B23: AJUSTE ECONÔMICO - BOLHA | F23: Mercado TE | J23: Subclasse | K23: OPÇÃO | R23: AnoMes
B24: TOTAL | C24: =SUM(C10:C23) -> 4580678.23 | D24: =SUM(D10:D23) -> 2152266995 | F24: 2022 | G24: 3283240.976 | J24: ="=Residencial baixa renda*" -> =Residencial baixa renda* | K24: Cativo | R24: =DATE(YEAR(R26),MONTH(R26)-1,1) -> 45017
B25: ENERGIA DESTINADA APE/PIE | F25: 2023 | G25: =SUM(Mercado_Receita!P:P) -> 3114499.622 | J25: Classe | L25: AnoMes | R25: AnoMes
B26: MERCADO TOTAL BAIXA RENDA | C26: =DSUM(Mercado_Receita!A:AAA,"TUSD_E",J23:K24) -> 212818.632 | G26: =G25/G24-1 -> -0.05139475148 | J26: Residencial | L26: =$M$10 -> 45047 | R26: =DATE(YEAR(R28),MONTH(R28)-1,1) -> 45047
J27: Classe | L27: AnoMes | R27: AnoMes
B28: ="Fonte: SAMP - "&TEXT(L26,"mmmm/aa") -> Fonte: SAMP - maio/23 | J28: Industrial | L28: =$M$10 -> 45047 | R28: =B65 -> 45078
B29: DESCRIÇÃO - Tipo | C29: RECEITA (R$) | D29: % Total | E29: nº de consumidores | F29: MWh mensal | G29: Percentual RI | H29: Reais RI (c/tributos) | J29: Classe | L29: AnoMes
B30: Residencial | C30: =DSUM(Mercado_Receita!A:AAA,"total",J25:K26) -> 910669109.1 | D30: =IFERROR(C30/$C$38,0) -> 0.4231208819 | E30: =DSUM(Mercado_Receita!$A:$AAA,"UC",$J$25:$L$26) -> 738890 | F30: =DSUM(Mercado_Receita!$A:$AAA,"TUSD_E",$J$25:$L$26) -> 121161.145 | G30: =BD!M67 -> 0.0064 | H30: =G30*C30/$D$24*SUM($G$18:$G$20)/(1-SUM($G$9:$G$10)) -> 8068322.142 | J30: Comercial | L30: =$M$10 -> 45047
B31: Industrial | C31: =DSUM(Mercado_Receita!A:AAA,"total",J27:K28) -> 431483897 | D31: 0.2004787965 | E31: =DSUM(Mercado_Receita!$A:$AAA,"UC",$J$27:$L$28) -> 4500 | F31: =DSUM(Mercado_Receita!$A:$AAA,"TUSD_E",$J$27:$L$28) -> 134087.29 | G31: =BD!M68 -> 0.0035 | H31: =G31*C31/$D$24*SUM($G$18:$G$20)/(1-SUM($G$9:$G$10)) -> 2090620.899 | J31: Classe | L31: AnoMes
B32: Comercial | C32: =DSUM(Mercado_Receita!A:AAA,"total",J29:K30) -> 372448656.6 | D32: 0.1730494671 | E32: =DSUM(Mercado_Receita!$A:$AAA,"UC",$J$29:$L$30) -> 65426 | F32: =DSUM(Mercado_Receita!$A:$AAA,"TUSD_E",$J$29:$L$30) -> 47355.141 | G32: =BD!M69 -> 0.004 | H32: 2062381.737 | J32: Rural | L32: =$M$10 -> 45047
B33: Rural | C33: =DSUM(Mercado_Receita!A:AAA,"total",J31:K32) -> 172902654.4 | D33: 0.0803351326 | E33: =DSUM(Mercado_Receita!$A:$AAA,"UC",$J$31:$L$32) -> 43452 | F33: =DSUM(Mercado_Receita!$A:$AAA,"TUSD_E",$J$31:$L$32) -> 22317.73 | G33: =BD!M70 -> 0.002 | H33: 478711.9923 | J33: Classe | L33: AnoMes
B34: Iluminação Pública | C34: =DSUM(Mercado_Receita!A:AAA,"total",J33:K34) -> 59107037.98 | D34: 0.02746268847 | E34: =DSUM(Mercado_Receita!$A:$AAA,"UC",$J$33:$L$34) -> 783 | F34: =DSUM(Mercado_Receita!$A:$AAA,"TUSD_E",$J$33:$L$34) -> 14517.724 | G34: =BD!M71 -> 0 | H34: 0 | J34: Iluminação Pública | L34: =$M$10 -> 45047
B35: Poder Público | C35: =DSUM(Mercado_Receita!A:AAA,"total",J35:K36) -> 72339266.05 | D35: 0.03361073055 | E35: =DSUM(Mercado_Receita!$A:$AAA,"UC",$J$35:$L$36) -> 7334 | F35: =DSUM(Mercado_Receita!$A:$AAA,"TUSD_E",$J$35:$L$36) -> 9647.944 | G35: =BD!M72 -> 0.0001 | H35: 10014.21126 | J35: Classe | L35: AnoMes
B36: Serviço Público | C36: =DSUM(Mercado_Receita!A:AAA,"total",J37:K38) -> 80733442.84 | D36: 0.03751088644 | E36: =DSUM(Mercado_Receita!$A:$AAA,"UC",$J$37:$L$38) -> 1271 | F36: =DSUM(Mercado_Receita!$A:$AAA,"TUSD_E",$J$37:$L$38) -> 12370.574 | G36: =BD!M73 -> 0 | H36: 0 | J36: Poder Público | L36: =$M$10 -> 45047
B37: Demais | C37: =D24-SUM(C30:C36) -> 52582931.18 | D37: 0.02443141641 | E37: =DSUM(Mercado_Receita!A:AAA,"UC",$J$39:$L$40)-SUM(E$30:E$36) -> 185 | F37: =DSUM(Mercado_Receita!B:AAB,"TUSD_E",$J$39:$L$40)-SUM(F$30:F$36) -> 8978.522 | G37: =BD!M74 -> 0 | H37: 0 | J37: Classe | L37: AnoMes
B38: TOTAL | C38: =SUM(C30:C37) -> 2152266995 | D38: =SUM(D30:D37) -> 1 | E38: =SUM(E30:E37) -> 861841 | F38: =SUM(F30:F37) -> 370436.07 | H38: =SUM(H30:H37) -> 12710050.98 | J38: Serviço público | L38: =$M$10 -> 45047
J39: Classe | L39: AnoMes
B40: nº de consumidores | J40: * | L40: =$M$10 -> 45047
B41: A1 | C41: =DSUM(Mercado_Receita!A:AAA,"UC",L9:N10) -> 0
B42: A2 | C42: =DSUM(Mercado_Receita!A:AAA,"UC",L11:N12) -> 17
B43: A3 | C43: =DSUM(Mercado_Receita!A:AAA,"UC",L13:N14) -> 2
B44: A3a | C44: =DSUM(Mercado_Receita!A:AAA,"UC",L15:N16) -> 46
B45: A4 | C45: =DSUM(Mercado_Receita!A:AAA,"UC",L17:N18) -> 2274
B46: As | C46: =DSUM(Mercado_Receita!A:AAA,"UC",L19:N20) -> 0
B47: BT | C47: =DSUM(Mercado_Receita!A:AAA,"UC",L21:N22) -> 859502
B52: Arrecadação dos Encargos
B53: Competência | D53: PeD | E53: ONS | F53: ESSERR | G53: PROINFA | H53: CDE | I53: TFSEE | J53: CFURH | K53: CVA_Energia | L53: CVA_RB | M53: CVA_CDE | N53: CVA_CFURH | O53: CVA_TranItaipu | P53: CVA_ESSERR | Q53: CVA_PROINFA | R53: Fator Selic | S53: RTE_Energia | T53: RTE_CDE_USO | U53: RTE_CDE_E | V53: RTE_CUSD | W53: RTE_PeD | X53: CVA_CovidTe_ou_CVA_CDE_E | Y53: CVA_CCC | Z53: DISTRIBUICAO | AA53: cDE_E_ACR | AB53: CDE_E_Dec | AC53: CVA_CovidTusd
B54: =DATE(YEAR(B55),MONTH(B55)-1,1) -> 44743 | D54: =DSUM(MercadoBase,D$53,INDIRECT("r"&5+2*(ROW()-54)&":r"&6+2*(ROW()-54))) -> 1381078.079 | E54: 0 | F54: 5760778.814 | G54: 4721232.05 | H54: 26810620.6 | I54: 155609.4073 | J54: 0 | K54: 6528196.255 | L54: 690069.9672 | M54: 4196613.377 | N54: 0 | O54: 366264.7684 | P54: 1685495.392 | Q54: 1003844.471 | R54: =VLOOKUP(CAPA!$C$15,Índices!B:F,5,FALSE)/VLOOKUP(DATE(YEAR(B54),MONTH(B54),1),Índices!B:F,5,FALSE) -> 1.123816231 | S54: =DSUM(MercadoBase,S$53,INDIRECT("r"&5+2*(ROW()-54)&":r"&6+2*(ROW()-54))) -> 0 | T54: 0 | U54: 0 | V54: 0 | W54: 0 | X54: 49849.58552 | Y54: 0 | Z54: =DSUM(MercadoBase,Z$53,INDIRECT("r"&5+2*(ROW()-54)&":r"&6+2*(ROW()-54))) -> 38429367.95 | AA54: =DSUM(MercadoBase,AA$53,INDIRECT("r"&5+2*(ROW()-54)&":r"&6+2*(ROW()-54))) -> 0 | AB54: 0 | AC54: 50940.9252
B55: 44774 | D55: 1395056.884 | E55: 0 | F55: 5840071.012 | G55: 4743848.558 | H55: 26971111.66 | I55: 157116.5862 | J55: 0 | K55: 6615763.721 | L55: 687168.5295 | M55: 4221734.726 | N55: 0 | O55: 371306.09 | P55: 1708694.796 | Q55: 1008653.27 | R55: =VLOOKUP(CAPA!$C$15,Índices!B:F,5,FALSE)/VLOOKUP(DATE(YEAR(B55),MONTH(B55),1),Índices!B:F,5,FALSE) -> 1.110826655 | S55: 0 | T55: 0 | U55: 0 | V55: 0 | W55: 0 | X55: 50535.72247 | Y55: 0 | Z55: 38629786.39 | AA55: 0 | AB55: 0 | AC55: 51245.86269
B56: 44805 | D56: 1448067.635 | E56: 0 | F56: 6023363.64 | G56: 4944255.725 | H56: 28097129.28 | I56: 162214.9762 | J56: 0 | K56: 6835748.629 | L56: 718951.8427 | M56: 4397988.035 | N56: 0 | O56: 382959.6588 | P56: 1762322.767 | Q56: 1051264.525 | R56: =VLOOKUP(CAPA!$C$15,Índices!B:F,5,FALSE)/VLOOKUP(DATE(YEAR(B56),MONTH(B56),1),Índices!B:F,5,FALSE) -> 1.099045086 | S56: 0 | T56: 0 | U56: 0 | V56: 0 | W56: 0 | X56: 52121.80343 | Y56: 0 | Z56: 40301913.14 | AA56: 0 | AB56: 0 | AC56: 53385.3275
B57: 44835 | D57: 1465140.227 | E57: 0 | F57: 6106992.044 | G57: 4940051.994 | H57: 28147195.93 | I57: 163172.7594 | J57: 0 | K57: 6926229.972 | L57: 723302.781 | M57: 4405824.868 | N57: 0 | O57: 388276.6721 | P57: 1786790.863 | Q57: 1050370.714 | R57: =VLOOKUP(CAPA!$C$15,Índices!B:F,5,FALSE)/VLOOKUP(DATE(YEAR(B57),MONTH(B57),1),Índices!B:F,5,FALSE) -> 1.087940738 | S57: 0 | T57: 0 | U57: 0 | V57: 0 | W57: 0 | X57: 52845.46275 | Y57: 0 | Z57: 40815081.2 | AA57: 0 | AB57: 0 | AC57: 53480.45552
B58: 44866 | D58: 1428682.206 | E58: 0 | F58: 5951061.224 | G58: 4921411.509 | H58: 27964468.54 | I58: 160905.481 | J58: 0 | K58: 6752297.725 | L58: 714691.0081 | M58: 4377222.912 | N58: 0 | O58: 378362.7408 | P58: 1741168.442 | Q58: 1046407.31 | R58: =VLOOKUP(CAPA!$C$15,Índices!B:F,5,FALSE)/VLOOKUP(DATE(YEAR(B58),MONTH(B58),1),Índices!B:F,5,FALSE) -> 1.076948584 | S58: 0 | T58: 0 | U58: 0 | V58: 0 | W58: 0 | X58: 51496.15096 | Y58: 0 | Z58: 39940903.57 | AA58: 0 | AB58: 0 | AC58: 53133.2684
B59: 44896 | D59: 1574132.22 | E59: 0 | F59: 6561828.377 | G59: 5221317.73 | H59: 29914855.3 | I59: 172683.525 | J59: 0 | K59: 7448394.922 | L59: 761657.8774 | M59: 4682513.092 | N59: 0 | O59: 417194.7281 | P59: 1919867.409 | Q59: 1110174.395 | R59: =VLOOKUP(CAPA!$C$15,Índices!B:F,5,FALSE)/VLOOKUP(DATE(YEAR(B59),MONTH(B59),1),Índices!B:F,5,FALSE) -> 1.064985446 | S59: 0 | T59: 0 | U59: 0 | V59: 0 | W59: 0 | X59: 56781.28521 | Y59: 0 | Z59: 43668544.72 | AA59: 0 | AB59: 0 | AC59: 56839.05752
B60: 44927 | D60: 1470787.874 | E60: 0 | F60: 6084385.623 | G60: 5078627.133 | H60: 28750820.88 | I60: 163802.1566 | J60: 0 | K60: 6915666.08 | L60: 736738.9846 | M60: 4500309.088 | N60: 0 | O60: 386839.3777 | P60: 1780176.65 | Q60: 1079835.033 | R60: =VLOOKUP(CAPA!$C$15,Índices!B:F,5,FALSE)/VLOOKUP(DATE(YEAR(B60),MONTH(B60),1),Índices!B:F,5,FALSE) -> 1.053155199 | S60: 0 | T60: 0 | U60: 0 | V60: 0 | W60: 0 | X60: 52649.84324 | Y60: 0 | Z60: 41298241.13 | AA60: 0 | AB60: 0 | AC60: 54627.35973
B61: 44958 | D61: 1484597.65 | E61: 0 | F61: 6111540.938 | G61: 5161235.236 | H61: 29213288.06 | I61: 166750.5248 | J61: 0 | K61: 6952437.138 | L61: 736143.9791 | M61: 4572698.159 | N61: 0 | O61: 388565.8865 | P61: 1788121.784 | Q61: 1097399.45 | R61: =VLOOKUP(CAPA!$C$15,Índices!B:F,5,FALSE)/VLOOKUP(DATE(YEAR(B61),MONTH(B61),1),Índices!B:F,5,FALSE) -> 1.043573718 | S61: 0 | T61: 0 | U61: 0 | V61: 0 | W61: 0 | X61: 52884.82557 | Y61: 0 | Z61: 41749414.63 | AA61: 0 | AB61: 0 | AC61: 55506.06024
B62: 44986 | D62: 1579671.561 | E62: 0 | F62: 6559729.695 | G62: 5299074.161 | H62: 30181879.42 | I62: 173076.4714 | J62: 0 | K62: 7451417.32 | L62: 763793.0635 | M62: 4724309.848 | N62: 0 | O62: 417061.2959 | P62: 1919253.374 | Q62: 1126707.232 | R62: =VLOOKUP(CAPA!$C$15,Índices!B:F,5,FALSE)/VLOOKUP(DATE(YEAR(B62),MONTH(B62),1),Índices!B:F,5,FALSE) -> 1.031457464 | S62: 0 | T62: 0 | U62: 0 | V62: 0 | W62: 0 | X62: 56763.12475 | Y62: 0 | Z62: =DSUM(MercadoBase,Z$53,INDIRECT("r"&5+2*(ROW()-54)&":r"&6+2*(ROW()-54))) -> 43959648.56 | AA62: 0 | AB62: 0 | AC62: 57346.41077
B63: 45017 | D63: 1547040.814 | E63: 0 | F63: 6363727.126 | G63: 5436906.448 | H63: 30755284.28 | I63: 172269.418 | J63: 0 | K63: =DSUM(MercadoBase,K$53,INDIRECT("r"&5+2*(ROW()-54)&":r"&6+2*(ROW()-54)))*IF(VLOOKUP("MesesAdin",TabPostergacao[#All],2,FALSE)>2,0,1) -> 7248924.568 | L63: =DSUM(MercadoBase,L$53,INDIRECT("r"&5+2*(ROW()-54)&":r"&6+2*(ROW()-54)))*IF(VLOOKUP("MesesAdin",TabPostergacao[#All],2,FALSE)>2,0,1) -> 771748.7359 | M63: =DSUM(MercadoBase,M$53,INDIRECT("r"&5+2*(ROW()-54)&":r"&6+2*(ROW()-54)))*IF(VLOOKUP("MesesAdin",TabPostergacao[#All],2,FALSE)>2,0,1) -> 4814063.775 | N63: =DSUM(MercadoBase,N$53,INDIRECT("r"&5+2*(ROW()-54)&":r"&6+2*(ROW()-54)))*IF(VLOOKUP("MesesAdin",TabPostergacao[#All],2,FALSE)>2,0,1) -> 0 | O63: =DSUM(MercadoBase,O$53,INDIRECT("r"&5+2*(ROW()-54)&":r"&6+2*(ROW()-54)))*IF(VLOOKUP("MesesAdin",TabPostergacao[#All],2,FALSE)>2,0,1) -> 404599.6414 | P63: =DSUM(MercadoBase,P$53,INDIRECT("r"&5+2*(ROW()-54)&":r"&6+2*(ROW()-54)))*IF(VLOOKUP("MesesAdin",TabPostergacao[#All],2,FALSE)>2,0,1) -> 1861906.713 | Q63: =DSUM(MercadoBase,Q$53,INDIRECT("r"&5+2*(ROW()-54)&":r"&6+2*(ROW()-54)))*IF(VLOOKUP("MesesAdin",TabPostergacao[#All],2,FALSE)>2,0,1) -> 1156013.603 | R63: =VLOOKUP(CAPA!$C$15,Índices!B:F,5,FALSE)/VLOOKUP(DATE(YEAR(B63),MONTH(B63),1),Índices!B:F,5,FALSE) -> 1.022073387 | S63: 0 | T63: 0 | U63: 0 | V63: 0 | W63: 0 | X63: 55067.06122 | Y63: 0 | Z63: 43680770.56 | AA63: 0 | AB63: 0 | AC63: 58435.89596
B64: 45047 | D64: =DSUM(MercadoBase,D$53,INDIRECT("r"&5+2*(ROW()-54)&":r"&6+2*(ROW()-54))) -> 1399152.906 | E64: 0 | F64: 5778623.068 | G64: 4857690.167 | H64: 27556542 | I64: 159327.5388 | J64: 0 | K64: =DSUM(MercadoBase,K$53,INDIRECT("r"&5+2*(ROW()-54)&":r"&6+2*(ROW()-54)))*IF(VLOOKUP("MesesAdin",TabPostergacao[#All],2,FALSE)>1,0,1) -> 6569180.176 | L64: =DSUM(MercadoBase,L$53,INDIRECT("r"&5+2*(ROW()-54)&":r"&6+2*(ROW()-54)))*IF(VLOOKUP("MesesAdin",TabPostergacao[#All],2,FALSE)>1,0,1) -> 719939.0845 | M64: =DSUM(MercadoBase,M$53,INDIRECT("r"&5+2*(ROW()-54)&":r"&6+2*(ROW()-54)))*IF(VLOOKUP("MesesAdin",TabPostergacao[#All],2,FALSE)>1,0,1) -> 4313370.978 | N64: =DSUM(MercadoBase,N$53,INDIRECT("r"&5+2*(ROW()-54)&":r"&6+2*(ROW()-54)))*IF(VLOOKUP("MesesAdin",TabPostergacao[#All],2,FALSE)>1,0,1) -> 0 | O64: =DSUM(MercadoBase,O$53,INDIRECT("r"&5+2*(ROW()-54)&":r"&6+2*(ROW()-54)))*IF(VLOOKUP("MesesAdin",TabPostergacao[#All],2,FALSE)>1,0,1) -> 367399.2889 | P64: =DSUM(MercadoBase,P$53,INDIRECT("r"&5+2*(ROW()-54)&":r"&6+2*(ROW()-54)))*IF(VLOOKUP("MesesAdin",TabPostergacao[#All],2,FALSE)>1,0,1) -> 1690716.285 | Q64: =DSUM(MercadoBase,Q$53,INDIRECT("r"&5+2*(ROW()-54)&":r"&6+2*(ROW()-54)))*IF(VLOOKUP("MesesAdin",TabPostergacao[#All],2,FALSE)>1,0,1) -> 1032858.661 | R64: =VLOOKUP(CAPA!$C$15,Índices!B:F,5,FALSE)/VLOOKUP(DATE(YEAR(B64),MONTH(B64),1),Índices!B:F,5,FALSE) -> 1.010719822 | S64: =DSUM(MercadoBase,S$53,INDIRECT("r"&5+2*(ROW()-54)&":r"&6+2*(ROW()-54))) -> 0 | T64: 0 | U64: 0 | V64: 0 | W64: 0 | X64: 50003.99671 | Y64: 0 | Z64: =DSUM(MercadoBase,Z$53,INDIRECT("r"&5+2*(ROW()-54)&":r"&6+2*(ROW()-54))) -> 39659406.69 | AA64: =DSUM(MercadoBase,AA$53,INDIRECT("r"&5+2*(ROW()-54)&":r"&6+2*(ROW()-54))) -> 0 | AB64: 0 | AC64: 52358.19662
B65: =DATE(YEAR(CAPA!$C$10),MONTH(CAPA!$C$10)-1,1) -> 45078 | D65: 1399152.906 | E65: 0 | F65: 5778623.068 | G65: 4857690.167 | H65: 27556542 | I65: 159327.5388 | J65: 0 | K65: =DSUM(MercadoBase,K$53,INDIRECT("r"&5+2*(ROW()-54)&":r"&6+2*(ROW()-54)))*IF(VLOOKUP("MesesAdin",TabPostergacao[#All],2,FALSE)>0,0,1) -> 6569180.176 | L65: =DSUM(MercadoBase,L$53,INDIRECT("r"&5+2*(ROW()-54)&":r"&6+2*(ROW()-54)))*IF(VLOOKUP("MesesAdin",TabPostergacao[#All],2,FALSE)>0,0,1) -> 719939.0845 | M65: =DSUM(MercadoBase,M$53,INDIRECT("r"&5+2*(ROW()-54)&":r"&6+2*(ROW()-54)))*IF(VLOOKUP("MesesAdin",TabPostergacao[#All],2,FALSE)>0,0,1) -> 4313370.978 | N65: =DSUM(MercadoBase,N$53,INDIRECT("r"&5+2*(ROW()-54)&":r"&6+2*(ROW()-54)))*IF(VLOOKUP("MesesAdin",TabPostergacao[#All],2,FALSE)>0,0,1) -> 0 | O65: =DSUM(MercadoBase,O$53,INDIRECT("r"&5+2*(ROW()-54)&":r"&6+2*(ROW()-54)))*IF(VLOOKUP("MesesAdin",TabPostergacao[#All],2,FALSE)>0,0,1) -> 367399.2889 | P65: =DSUM(MercadoBase,P$53,INDIRECT("r"&5+2*(ROW()-54)&":r"&6+2*(ROW()-54)))*IF(VLOOKUP("MesesAdin",TabPostergacao[#All],2,FALSE)>0,0,1) -> 1690716.285 | Q65: =DSUM(MercadoBase,Q$53,INDIRECT("r"&5+2*(ROW()-54)&":r"&6+2*(ROW()-54)))*IF(VLOOKUP("MesesAdin",TabPostergacao[#All],2,FALSE)>0,0,1) -> 1032858.661 | R65: =VLOOKUP(CAPA!$C$15,Índices!B:F,5,FALSE)/VLOOKUP(DATE(YEAR(B65),MONTH(B65),1),Índices!B:F,5,FALSE) -> 1 | S65: 0 | T65: 0 | U65: 0 | V65: 0 | W65: 0 | X65: 50003.99671 | Y65: 0 | Z65: 39659406.69 | AA65: 0 | AB65: 0 | AC65: 52358.19662
B66: Total Bruto | D66: =SUM(D54:D65) -> 17572560.96 | E66: =SUM(E54:E65) -> 0 | F66: 72920724.63 | G66: =SUM(G54:G65) -> 60183340.88 | H66: 341919738 | I66: 1966256.383 | J66: 0 | K66: 82813436.68 | L66: 8744144.938 | M66: 53520019.84 | N66: 0 | O66: 4636229.437 | P66: 21335230.76 | Q66: 12796387.33 | S66: =SUM(S54:S65) -> 0 | T66: 0 | U66: 0 | V66: 0 | W66: 0 | X66: 631002.8585 | Y66: 0 | Z66: 491792485.2 | AA66: 0 | AB66: 0 | AC66: =SUM(AC54:AC65) -> 649657.0168
B67: Total Atualizado pelo SELIC | D67: =SUMPRODUCT(D54:D65,$R$54:$R$65) -> 18624379.61 | E67: 0 | F67: 77297711.69 | G67: 63769421.85 | H67: 362307377.3 | I67: 2083883.509 | J67: 0 | K67: 87780076.99 | L67: 9265068.712 | M67: 56711256.67 | N67: 0 | O67: 4914514.059 | P67: 22615854.75 | Q67: 13558872.1 | R67: 13.51070122 | S67: 0 | T67: 0 | U67: 0 | V67: 0 | W67: 0 | X67: 668878.1177 | Y67: 0 | Z67: 521110682.2 | AA67: 0 | AB67: 0 | AC67: =SUMPRODUCT(AC54:AC65,$R$54:$R$65) -> 688394.0989

Sheet Mercado_Receita
A1: Código | B1: TipoMercado | C1: Modalidade | D1: Subgrupo | E1: Classe | F1: Subclasse | G1: Detalhe | H1: Agente | I1: Posto | J1: OPÇÃO | K1: AnoMes | L1: D | M1: Daj | N1: TUSD_E | O1: TUSD_Eaj | P1: TE_E | Q1: TE_Eaj | R1: TUSD/KW | S1: TUSD/MWh | T1: TE | U1: ReceitaD | V1: ReceitaE | W1: Total | X1: Total com Tar de aplicação | Y1: CCC | Z1: CDE | AA1: CFURH | AB1: Conexao_D | AC1: Conexao_T | AD1: CUSD | AE1: DISTRIBUICAO | AF1: EnergiaRevenda | AG1: ESSERR | AH1: ITAIPU | AI1: ONS | AJ1: OUTROS | AK1: PeD | AL1: PROINFA | AM1: RGR | AN1: TFSEE | AO1: TUST_FR | AP1: TUST_RB | AQ1: TUSDG_ONS | AR1: TUSDG_T | AS1: TUST_CI | AT1: TUST_ITAIPU | AU1: CVA_CCC | AV1: CVA_CDE | AW1: CVA_PROINFA | AX1: CVA_TranItaipu | AY1: CVA_ESSERR | AZ1: CVA_CFURH | BA1: CVA_CDE_E | BB1: CVA_Energia | BC1: CVA_RB | BD1: perdasnt | BE1: perdasrb_d | BF1: perdasrb_c | BG1: perdastec | BH1: RI | BI1: PisPasep | BJ1: Cofins | BK1: ICMS | BL1: UC | BM1: total_dummy | BN1: Subs_CarFI | BO1: Subs_GerFI | BP1: Subs_Dist | BQ1: Subs_AguaEsgoto | BR1: Subs_Rural | BS1: Subs_Irrigante | BT1: Subs_BaixaRenda | BU1: CDE_E | BV1: DespesaEnergia | BW1: RTE_CUSD | BX1: RTE_Energia | BY1: RTE_CDE_USO | BZ1: RTE_CDE_E | CA1: RTE_PeD | CB1: Dif_Subs_Car | CC1: Dif_Subs_Ger | CD1: Dif_Subs_D | CE1: Dif_Subs_Agua | CF1: Dif_Subs_Ru | CG1: Dif_Subs_Irr | CH1: dif_subs_baixa | CI1: FinTotAj | CJ1: FinAj | CK1: RTE_CDE_E_Dec | CL1: RTE_CDE_E_ACR | CM1: CDE_E_Dec | CN1: CDE_E_ACR | CO1: FinPostTUSD | CP1: FinPostTE | CQ1: FinPostQtddias | CR1: FinCT_Geral | CS1: finCT_TUST_FR | CT1: finCT_TUST_RB | CU1: FINCT_TUSDG_ONS | CV1: FINCT_TUSDG_T | CW1: FINCT_TUST_CI | CX1: FINCT_TUST_ITAIPU | CY1: FinCT_Itaipu | CZ1: FinCT_CUSD | DA1: FinCT_Conexao_D | DB1: FinCT_Conexao_T | DC1: FinCT_EnergiaRevenda | DD1: FINCT_perdasrb_c | DE1: FINCT_perdasrb_d | DF1: FinCT_perdasnt | DG1: FinCT_perdastec | DH1: FinCT_CCC | DI1: FinCT_CDE | DJ1: FinCT_CDE_E | DK1: FinCT_CFURH | DL1: FinCT_ONS | DM1: FinCT_ESSERR | DN1: FinCT_Ped | DO1: finCT_PROINFA | DP1: finCT_TFSEE | DQ1: FINCT_Liminar | DR1: FinCT_Subsidio | DS1: FINCT_RGR | DT1: Tipo_ato | DU1: DIST_D | DV1: DIST_E | DW1: FIN_RI | DX1: FINCT_RI | DY1: Fin_TUSD | DZ1: Fin_TE | EA1: CVA_TUSD | EB1: CVA_TE | EC1: FinCT_ParcelaB | ED1: CVA_EnergiaRevenda | EE1: CVA_perdasnt | EF1: CVA_perdasrb_d | EG1: CVA_perdasrb_c | EH1: CVA_perdastec | EI1: CVA_TUST_RB | EJ1: CVA_TUST_FR | EK1: CVA_TUSDG_ONS | EL1: CVA_TUSDG_T | EM1: CVA_TUST_CI | EN1: CVA_TUST_ITAIPU | EO1: CVA_liminar | EP1: covidTusdEco | EQ1: covidTeEco | ER1: CVA_CovidTusd | ES1: CVA_CovidTe_ou_CVA_CDE_E | ET1: FinCT_CDECOVIDTUSD | EU1: FinCT_CDECOVIDTE_ou_FinCT_CDE_E | EV1: CDE_Elet_Eco | EW1: FinCT_CDE_Elet | EX1: CVA_CDE_Elet | EY1: Subs_BENEFICIO_L14299_TUSD | EZ1: Subs_BENEFICIO_L14299_TE | FA1: Tar_PTUSD | FB1: Tar_ETUSD | FC1: Tar_ETE | FD1: Tar_PTUSD_S | FE1: Tar_ETUSD_S | FF1: Tar_ETE_S | FG1: PercDescCompensada | FH1: Subs_(D-Daj)*Tar_PTUSD | FI1: Subs_(TUSD_E-TUSD_Eaj)*Tar_ETUSD | FJ1: Subs_(TE_E-TE_Eaj)*Tar_ETE | FK1: Subs_D*(Tar_PTUSD_S-Tar_PTUSD) | FL1: Subs_TUSD_E*(T_ETUSD_S-T_ETUSD) | FM1: Subs_TE_E*(Tar_ETE_S-Tar_ETE) | FN1: Subs_SCEE | FO1: SubsidioTotal | FP1: idsreag | FQ1: FinCTAn3En | FR1: An3En | FS1: CVA_An3En | FT1: Fin_An3En | FU1: FIN_CFURH | FV1: TEAngra | FW1: TUSDAngra | FX1: teCheia | FY1: tusdcheia | FZ1: AngraIII_TE | GA1: AngraIII_TUSD | GB1: AngraIII_Desc_TE | GC1: AngraIII_Desc_TUSD
A2: 1 | B2: Regular | C2: Convencional | D2: B1 | E2: Residencial | F2: Residencial | G2: Não se aplica | H2: Não se aplica | I2: Não se aplica | J2: CATIVO | K2: 2022-07-01 | L2: 0 | M2: 0 | N2: 97438.88 | O2: 97438.88 | P2: 97438.88 | Q2: 97438.88 | S2: 345.64 | T2: 270.9 | V2: 60074967.08 | W2: 60074967.08 | X2: 60602111.42 | Y2: 0 | Z2: 8899606.382 | AA2: 0 | AB2: 0 | AC2: 81721.52977 | AD2: 1144033.679 | AE2: 13718390.14 | AF2: 23353858.29 | AG2: 2340314.346 | AH2: 614439.6065 | AI2: 0 | AJ2: 0 | AK2: 546014.7283 | AL2: 1408671.519 | AN2: 44269.35973 | AO2: 1865578.587 | AP2: 2391387.126 | AQ2: 0 | AR2: 0 | AS2: 0 | AT2: 428148.892 | AU2: 0 | AV2: 1393037.772 | AW2: 299516.5457 | AX2: 148794.932 | AY2: 684731.9041 | AZ2: 0 | BB2: 2660627.949 | BC2: 161499.4104 | BD2: 54640.29024 | BE2: 52066.51116 | BF2: 423384.4072 | BG2: 2891405.015 | BH2: 355579.4296 | BI2: 390773.58 | BJ2: 1811179.05 | BK2: 10348611.2 | BL2: 596533 | BV2: 26775354.51 | CI2: 60602111.42 | CJ2: 527144.3108 | CO2: 756125.7088 | CP2: -228981.368 | CQ2: 31 | CR2: -4861519.35 | CS2: 27910.19731 | CT2: 30611.24146 | CU2: 0 | CV2: 0 | CW2: 0 | CX2: 37337.15014 | CY2: 10496.97764 | CZ2: 37793.67038 | DA2: 0 | DB2: -1113.379137 | DC2: -1880152.192 | DD2: -34085.46508 | DE2: -4191.725576 | DF2: -4398.933152 | DG2: -232778.7301 | DH2: 0 | DI2: 6935.867635 | DK2: 0 | DL2: 0 | DM2: -447684.1345 | DN2: 0.06170636974 | DO2: -4820.990846 | DP2: 314.6972672 | DQ2: 0 | DR2: -2393561.799 | DV2: 13718390.14 | DW2: 358617.4802 | DX2: 3038.050586 | DY2: -1398247.928 | DZ2: -3460054.629 | EA2: 2154373.637 | EB2: 3231073.261 | EC2: 0 | ED2: 2320638.857 | EE2: 5429.525995 | EF2: 5173.77332 | EG2: 42071.0914 | EH2: 287314.7017 | EI2: 82452.51985 | EJ2: 64284.7658 | EK2: 0 | EL2: 0 | EM2: 0 | EN2: 14762.12473 | EO2: 0 | EP2: 495199.5885 | EQ2: 593067.4114 | ER2: 16909.49978 | ES2: 20251.3764 | ET2: 83652.53003 | EU2: -93784.39448 | EV2: -1626535.723 | EW2: 0 | EX2: 0 | FB2: 353.4 | FC2: 268.55 | FE2: 353.4 | FF2: 268.55 | FG2: 0 | FI2: 0 | FJ2: 0 | FL2: 0 | FM2: 0 | FO2: 0 | FP2: 165 | FQ2: 0 | FR2: 0 | FS2: 0 | FU2: 0 | FZ2: 0 | GA2: 0 | GB2: 0 | GC2: 0
A3: 2 | B3: Refaturamento - Regular | C3: Convencional | D3: B1 | E3: Residencial | F3: Residencial | G3: Não se aplica | H3: Não se aplica | I3: Não se aplica | J3: CATIVO | K3: 2022-07-01 | L3: 0 | M3: 0 | N3: -33.947 | O3: -33.947 | P3: -33.947 | Q3: -33.947 | S3: 345.64 | T3: 270.9 | V3: -20929.68338 | W3: -20929.68338 | X3: -21113.33665 | Y3: 0 | Z3: -3100.5584 | AA3: 0 | AB3: 0 | AC3: -28.47118903 | AD3: -398.5730471 | AE3: -4779.387756 | AF3: -8136.315065 | AG3: -815.3485662 | AH3: -214.0663083 | AI3: 0 | AJ3: 0 | AK3: -190.2275763 | AL3: -490.7709535 | AN3: -15.42312427 | AO3: -649.9540664 | AP3: -833.1419529 | AQ3: 0 | AR3: 0 | AS3: 0 | AT3: -149.1639727 | AU3: 0 | AV3: -485.3242695 | AW3: -104.349395 | AX3: -51.83907652 | AY3: -238.5556356 | AZ3: 0 | BB3: -926.9435054 | BC3: -56.26522477 | BD3: -19.03628134 | BE3: -18.13959535 | BF3: -147.5040607 | BG3: -1007.344563 | BH3: -123.8812977 | BI3: -145.09 | BJ3: -669.02 | BK3: -7753.8 | BL3: -39 | BV3: -9328.339566 | CI3: -21115.2025 | CJ3: -185.54912 | CO3: -263.42872 | CP3: 79.77545 | CQ3: 31 | CR3: 1693.718127 | CS3: -9.723710579 | CT3: -10.66473479 | CU3: 0 | CV3: 0 | CW3: 0 | CX3: -13.00799266 | CY3: -3.657070976 | CZ3: -13.167041 | DA3: 0 | DB3: 0.3878932267 | DC3: 655.0314048 | DD3: 11.87512914 | DE3: 1.460366828 | DF3: 1.532556447 | DG3: 81.09842346 | DH3: 0 | DI3: -2.416406044 | DK3: 0 | DL3: 0 | DM3: 155.9699097 | DN3: -2.149805226e-05 | DO3: 1.67959829 | DP3: -0.1096382484 | DQ3: 0 | DR3: 833.8995931 | DV3: -4779.387756 | DW3: -124.9397325 | DX3: -1.058434818 | DY3: 487.13945 | DZ3: 1205.45797 | EA3: -750.56817 | EB3: -1125.68252 | EC3: 0 | ED3: -808.4937682 | EE3: -1.891607528 | EF3: -1.802505149 | EG3: -14.65726351 | EH3: -100.0983609 | EI3: -28.72586068 | EJ3: -22.39634676 | EK3: 0 | EL3: 0 | EM3: 0 | EN3: -5.143017326 | EO3: 0 | EP3: -172.5239497 | EQ3: -206.6203903 | ER3: -5.891147239 | ES3: -7.055432849 | ET3: -29.14393553 | EU3: 32.67380372 | EV3: 566.6732641 | EW3: 0 | EX3: 0 | FB3: 353.4 | FC3: 268.55 | FE3: 353.4 | FF3: 268.55 | FG3: 0 | FI3: 0 | FJ3: 0 | FL3: 0 | FM3: 0 | FO3: 0 | FP3: 165 | FQ3: 0 | FR3: 0 | FS3: 0 | FU3: 0 | FZ3: 0 | GA3: 0 | GB3: 0 | GC3: 0
A4: 3 | B4: Sistema de Compensação GD I | C4: Convencional | D4: B1 | E4: Residencial | F4: Residencial | G4: Não se aplica | H4: Não se aplica | I4: Não se aplica | J4: CATIVO | K4: 2022-07-01 | L4: 0 | M4: 0 | N4: 3229.492 | O4: 3229.492 | P4: 3229.492 | Q4: 3229.492 | S4: 345.64 | T4: 270.9 | V4: 1991110.998 | W4: 1991110.998 | X4: 2008582.549 | Y4: 0 | Z4: 294966.5228 | AA4: 0 | AB4: 0 | AC4: 2708.559731 | AD4: 37917.59116 | AE4: 454679.1917 | AF4: 774034.9489 | AG4: 77566.84454 | AH4: 20364.84608 | AI4: 0 | AJ4: 0 | AK4: 18096.98754 | AL4: 46688.68731 | AN4: 1467.253555 | AO4: 61832.31089 | AP4: 79259.58911 | AQ4: 0 | AR4: 0 | AS4: 0 | AT4: 14190.46916 | AU4: 0 | AV4: 46170.52599 | AW4: 9927.108031 | AX4: 4931.625267 | AY4: 22694.59795 | AZ4: 0 | BB4: 88183.2455 | BC4: 5352.699598 | BD4: 1810.985309 | BE4: 1725.680563 | BF4: 14032.55616 | BG4: 95832.0679 | BH4: 11785.24346 | BI4: 12867.04 | BJ4: 59912.8 | BK4: 786069.78 | BL4: 29094 | BV4: 887436.2389 | CI4: 2008581.305 | CJ4: 17470.27782 | CO4: 25060.85792 | CP4: -7589.3062 | CQ4: 31 | CR4: -161129.0878 | CS4: 925.0492098 | CT4: 1014.572001 | CU4: 0 | CV4: 0 | CW4: 0 | CX4: 1237.493983 | CY4: 347.9094312 | CZ4: 1252.624785 | DA4: 0 | DB4: -36.90158401 | DC4: -62315.33513 | DD4: -1129.720875 | DE4: -138.9295958 | DF4: -145.7972364 | DG4: -7715.165104 | DH4: 0 | DI4: 229.8808139 | DK4: 0 | DL4: 0 | DM4: -14837.94078 | DN4: 0.002045181835 | DO4: -159.7858203 | DP4: 10.4302544 | DQ4: 0 | DR4: -79331.66597 | DV4: 454679.1917 | DW4: 11885.93592 | DX4: 100.6924552 | DY4: -46343.2102 | DZ4: -114679.2609 | EA4: 71404.06812 | EB4: 107089.9547 | EC4: 0 | ED4: 76914.72462 | EE4: 179.9549704 | EF4: 171.4783621 | EG4: 1394.394652 | EH4: 9522.692899 | EI4: 2732.7875 | EJ4: 2130.639606 | EK4: 0 | EL4: 0 | EM4: 0 | EN4: 489.2724927 | EO4: 0 | EP4: 16412.78214 | EQ4: 19656.49093 | ER4: 560.4446013 | ES4: 671.2069975 | ET4: 2772.560363 | EU4: -3108.368566 | EV4: -53909.52877 | EW4: 0 | EX4: 0 | FB4: 353.4 | FC4: 268.55 | FE4: 353.4 | FF4: 268.55 | FG4: 0 | FI4: 0 | FJ4: 0 | FL4: 0 | FM4: 0 | FO4: 0 | FP4: 165 | FQ4: 0 | FR4: 0 | FS4: 0 | FU4: 0 | FZ4: 0 | GA4: 0 | GB4: 0 | GC4: 0
